Workbook

Sheet Титул
A1: ФЕДЕРАЛЬНАЯ СЛУЖБА ГОСУДАРСТВЕННОЙ СТАТИСТИКИ
B10: ЧИСЛЕННОСТЬ НАСЕЛЕНИЯ РОССИЙСКОЙ ФЕДЕРАЦИИ
B12: ПО МУНИЦИПАЛЬНЫМ ОБРАЗОВАНИЯМ
B14: НА 1 ЯНВАРЯ 2023 года
B18: (Статистический бюллетень)
B25: МОСКВА 2023 г.

Sheet Предисловие
A1: Содержание
A2: Предисловие
A4: В бюллетене приведены данные оценки численности постоянного населения на 1 января 2023 года с учетом итогов ВПН-2020 (без учета статистической информации по Донецкой Народной Республике (ДНР), Луганской Народной Республике (ЛНР), Запорожской и Херсонской областям).
A5: Оценка численности населения - примерное определение числа жителей территории в период между переписями населения.
A6: В соответствии с действующей методологией (утверждена приказом Росстата от 03.06.2010 г. № 209) оценки численности населения на начало очередного года рассчитываются на основании итогов последней переписи населения, к которым ежегодно прибавляются числа родившихся и прибывших на данную территорию и вычитаются числа умерших и выбывших с данной территории.
A7: Расчеты численности населения приводятся по постоянному населению в целом по России, федеральным округам, субъектам Российской Федерации,
A8: муниципальным образованиям всех уровней, включая городские округа, муниципальные округа и районы, городские и сельские поселения и межселенные территории.
A9: В расчетах учитываются изменения численности населения территорий в результате изменения границ, а также изменения городского и сельского населения в результате преобразований
A10: городских населенных пунктов в сельские и сельских населенных пунктов в городские.
A11: К постоянному населению относятся лица, постоянно проживающие на данной территории, включая временно отсутствующих на указанную дату.
A12: К городскому населению относится население, проживающее в городских населенных пунктах. Городскими населенными пунктами считаются населенные пункты, утвержденные законодательными актами в качестве городов и поселков городского типа (рабочих, курортных, дачных поселков и поселков закрытых административно-территориальных образований). Все остальные населенные пункты считаются сельскими. Население, проживающее в них относится к сельскому.
A13: Сведения о муниципально-территориальном делении основаны на официальных документах, поступивших от органов власти субъектов Российской Федерации.
A14: В бюллетене впервые публикуются сведения об оценке численности населения:
A15: - районов Крайнего Севера и местностей, приравненных к ним, по городским округам и муниципальным районам;
A16: - сухопутных территорий Арктической зоны Российской Федерации по городским округам и муниципальным районам;
A17: - монопрофильных муниципальных образований (моногородов) Российской Федерации;
A18: - в местах традиционного проживания коренных малочисленных народов Российской Федерации по муниципальным образованиям. Приведена численность всего населения вне зависимости от его национального состава.
A19: Ранее публикуемые таблицы с различными относительными показателями по субъектам Российской Федерации приводятся в статистическом бюллетене "Численность и миграция Российской Федерации в 2018 году".
A20: Группировка городов и поселков городского типа произведена по численности городских населенных пунктов без населенных пунктов, подчиненных администрации соответствующего муниципального образования, по данным на 1 января 2022 года. Исключение составляют:
A21: - г. Москва, в границы которой с 1 июля 2012 года включены в качестве муниципальных поселений города Московский, Щербинка и Троицк, поселки городского типа Киевский и Кокошкино и 16 поселений с сельским населением (постановление Совета Федерации Федеральн
A22: - г. Севастополь, в границы которого включены г. Инкерман, населенный пункт с городским населением Балаклава, поселок Кача и 39 населенных пунктов с сельским населением.
A23: В группировках по числу и численности населения, проживающего в городских округах приведены также группировки по муниципальным округам.
A24: В сборнике используются условные обозначения:
A25: МТП - муниципально-территориальные преобразования;
A26: г - город;
A27: пгт - поселок городского типа;
A28: п - поселок;
A29: рп - рабочий поселок;
A30: гп - городской поселок;
A31: дп - дачный поселок;
A32: кп - курортный поселок;
A33: - - явление отсутствует;
A34: … - данных не имеется.
A36: Ответственный исполнитель | B36: Телефон
A37: Алексеева Виктория Сергеевна | B37: (495) 568-00-42, доб. 99854
A38: Гильманов Руслан Ирикович | B38: (495) 568-00-42, доб. 99629

Sheet Содержание
B2: № табл. | C2: СОДЕРЖАНИЕ
C3: Предисловие
B5: 1 | C5: Оценка численности постоянного населения по субъектам Российской Федерации
B6: 2 | C6: Изменения в муниципально-территориальном устройстве субъекта Российской Федерации в 2022 году
B7: 3 | C7: Оценка численности постоянного населения районов Крайнего Севера и приравненных к ним местностей по городским, муниципальным округам и муниципальным районам
B8: 4 | C8: Оценка численности постоянного населения сухопутных территорий Арктической Зоны Российской Федерации на 1 января 2023 и в среднем за 2022
B9: 5 | C9: Оценка численности постоянного населения монопрофильных муниципальных образований Российской Федерации
B10: 5.1. | C10: Муниципальные образования моногорода с наиболее сложным социально-экономическим положением
B11: 5.2. | C11: Муниципальные образования, в которых имеются риски ухудшения социально-экономического положения
B12: 5.3. | C12: Муниципальные образования со стабильной социально-экономической ситуацией
B13: 6 | C13: Оценка численности населения в местах традиционного проживания коренных малочисленных народов Российской Федерации; (человек)
B14: 7 | C14: Группировка числа городских округов по численности населения, проживающего в них, на 1 января 2023 года
B15: 8 | C15: Группировка численности населения, проживающего в городских округах, на 1 января 2023 года
B16: 9 | C16: Группировка числа муниципальных округов по численности населения, проживающего в них, на 1 января 2023 года
B17: 10 | C17: Группировка численности населения, проживающего в муниципальных округах, на 1 января 2023 года
B18: 11 | C18: Группировка числа муниципальных районов по численности населения, проживающего в них, на 1 января 2023 года
B19: 12 | C19: Группировка численности населения, проживающего в муниципальных районах, на 1 января 2023 года
B20: 13 | C20: Группировка числа городских поселений по численности населения, проживающего в них, на 1 января 2023 года
B21: 14 | C21: Группировка численности населения, проживающего в городских поселениях, на 1 января 2023 года
B22: 15 | C22: Группировка числа сельских поселений по численности населения, проживающего в них, на 1 января 2023 года
B23: 16 | C23: Группировка численности населения, проживающего в сельских поселениях, на 1 января 2023 года
B24: 17 | C24: Группировка числа городов по численности населения, проживающего в них, на 1 января 2023 года
B25: 18 | C25: Группировка численности населения, проживающего в городах, на 1 января 2023 года
B26: 19 | C26: Группировка числа поселков городского типа по численности населения, проживающего в них, на 1 января 2023 года
B27: 20 | C27: Группировка численности населения, проживающего в поселках городского типа, на 1 января 2023 года
B28: 21 | C28: Группировка внутригородских образований городов федерального значения Москвы, Санкт-Петербурга и Севастополя на 1 января 2023 года
B29: 22 | C29: Численность населения городов и поселков городского типа по федеральным округам и субъектам Российской Федерации на 1 января 2023 года
B30: 23 | C30: Города с численностью постоянного населения 1 млн. человек и более
B31: 24 | C31: Города с численностью постоянного населения от 500 тыс. до 1 млн. человек
B32: 25 | C32: Города с численностью постоянного населения от 250 тыс. до 500 тыс. человек
B33: 26 | C33: Города с численностью постоянного населения от 100 тыс. до 250 тыс. человек
B34: 27 | C34: Численность постоянного населения Российской Федерации по муниципальным образованиям на 1 января 2023 года

Sheet Таб_1
A1: Содержание
A2: 1. Оценка численности постоянного населения по субъектам Российской Федерации
A3: (человек)
B4: На 1 января 2023 года | E4: В среднем за 2022 год
B5: Все население | C5: Городское население | D5: Сельское население | E5: Все население | F5: Городское население | G5: Сельское население
A6: Российская Федеpация | B6: 146447424 | C6: 109655563 | D6: 36791861 | E6: 146713743 | F6: 109818980 | G6: 36894763
A7: Центральный федеральный округ | B7: 40240256 | C7: 33071627 | D7: 7168629 | E7: 40269144 | F7: 33084414 | G7: 7184730
A8: Белгородская область | B8: 1514527 | C8: 989816 | D8: 524711 | E8: 1525496 | F8: 996582 | G8: 528914
A9: Брянская область | B9: 1152505 | C9: 802376 | D9: 350129 | E9: 1158570 | F9: 806008 | G9: 352562
A10: Владимирская область | B10: 1325510 | C10: 1029181 | D10: 296329 | E10: 1333872 | F10: 1035423 | G10: 298449
A11: Воронежская область | B11: 2285282 | C11: 1565753 | D11: 719529 | E11: 2293949 | F11: 1571626 | G11: 722323
A12: Ивановская область | B12: 914725 | C12: 750725 | D12: 164000 | E12: 919420 | F12: 754039 | G12: 165381
A13: Калужская область | B13: 1070853 | C13: 801577 | D13: 269276 | E13: 1072053 | F13: 803448 | G13: 268605
A14: Костромская область | B14: 571900 | C14: 423745 | D14: 148155 | E14: 574948 | F14: 425146 | G14: 149802
A15: Курская область | B15: 1067034 | C15: 730769 | D15: 336265 | E15: 1072595 | F15: 734481 | G15: 338114
A16: Липецкая область | B16: 1126263 | C16: 709363 | D16: 416900 | E16: 1132202 | F16: 713456 | G16: 418746
A17: Московская область | B17: 8591736 | C17: 6726786 | D17: 1864950 | E17: 8566996 | F17: 6715009 | G17: 1851987
A18: Орловская область | B18: 700276 | C18: 466466 | D18: 233810 | E18: 705150 | F18: 469891 | G18: 235259
A19: Рязанская область | B19: 1088918 | C19: 777235 | D19: 311683 | E19: 1093748 | F19: 780616 | G19: 313132
A20: Смоленская область | B20: 873041 | C20: 634366 | D20: 238675 | E20: 879971 | F20: 639318 | G20: 240653
A21: Тамбовская область | B21: 966250 | C21: 583260 | D21: 382990 | E21: 972711 | F21: 586454 | G21: 386257
A22: Тверская область | B22: 1211183 | C22: 924628 | D22: 286555 | E22: 1218611 | F22: 930317 | G22: 288294
A23: Тульская область | B23: 1481471 | C23: 1083878 | D23: 397593 | E23: 1489080 | F23: 1090487 | G23: 398593
A24: Ярославская область | B24: 1194605 | C24: 967526 | D24: 227079 | E24: 1200121 | F24: 972462 | G24: 227659
A25: г. Москва | B25: 13104177 | C25: 13104177 | D25: 0 | E25: 13059651 | F25: 13059651 | G25: 0
A26: Северо-Западный федеральный округ | B26: 13867347 | C26: 11784124 | D26: 2083223 | E26: 13888591 | F26: 11800915 | G26: 2087676
A27: Республика Карелия | B27: 527880 | C27: 420887 | D27: 106993 | E27: 530132 | F27: 421853 | G27: 108279
A28: Республика Коми | B28: 726434 | C28: 564359 | D28: 162075 | E28: 730399 | F28: 566906 | G28: 163493
A29: Архангельская область | B29: 1005687 | C29: 781444 | D29: 224243 | E29: 1010859 | F29: 784247 | G29: 226612
A30: Ненецкий автономный округ | B30: 41383 | C30: 30832 | D30: 10551 | E30: 41405 | F30: 30785 | G30: 10620
A31: Архангельская область без Ненецкого автономного округа | B31: 964304 | C31: 750612 | D31: 213692 | E31: 969454 | F31: 753462 | G31: 215992
A32: Вологодская область | B32: 1128782 | C32: 818635 | D32: 310147 | E32: 1133603 | F32: 821808 | G32: 311795
A33: Калининградская область | B33: 1032343 | C33: 790930 | D33: 241413 | E33: 1031661 | F33: 791145 | G33: 240516
A34: Ленинградская область | B34: 2023767 | C34: 1357252 | D34: 666515 | E34: 2014894 | F34: 1352085 | G34: 662809
A35: Мурманская область | B35: 658698 | C35: 612858 | D35: 45840 | E35: 661969 | F35: 616034 | G35: 45935
A36: Новгородская область | B36: 575926 | C36: 421125 | D36: 154801 | E36: 578752 | F36: 422954 | G36: 155798
A37: Псковская область | B37: 587786 | C37: 416590 | D37: 171196 | E37: 592342 | F37: 419903 | G37: 172439
A38: г.Санкт-Петербург | B38: 5600044 | C38: 5600044 | D38: 0 | E38: 5603980 | F38: 5603980 | G38: 0
A39: Южный федеральный округ | B39: 16642052 | C39: 10519371 | D39: 6122681 | E39: 16680128 | F39: 10542355 | G39: 6137773
A40: Республика Адыгея | B40: 497985 | C40: 243944 | D40: 254041 | E40: 498135 | F40: 245190 | G40: 252945
A41: Республика Калмыкия | B41: 264483 | C41: 124270 | D41: 140213 | E41: 265458 | F41: 124458 | G41: 141000
A42: Республика Крым | B42: 1916805 | C42: 963958 | D42: 952847 | E42: 1923948 | F42: 969095 | G42: 954853
A43: Краснодарский край | B43: 5819345 | C43: 3324820 | D43: 2494525 | E43: 5825693 | F43: 3323569 | G43: 2502124
A44: Астраханская область | B44: 950557 | C44: 608953 | D44: 341604 | E44: 954164 | F44: 612355 | G44: 341809
A45: Волгоградская область | B45: 2470057 | C45: 1916300 | D45: 553757 | E45: 2481432 | F45: 1923765 | G45: 557667
A46: Ростовская область | B46: 4164547 | C46: 2820735 | D46: 1343812 | E46: 4178435 | F46: 2833084 | G46: 1345351
A47: г. Севастополь | B47: 558273 | C47: 516391 | D47: 41882 | E47: 552863 | F47: 510839 | G47: 42024
A48: Северо-Кавказский федеральный округ | B48: 10205730 | C48: 5165291 | D48: 5040439 | E48: 10189917 | F48: 5159924 | G48: 5029993
A49: Республика Дагестан | B49: 3209781 | C49: 1450491 | D49: 1759290 | E49: 3198342 | F49: 1445877 | G49: 1752465
A50: Республика Ингушетия | B50: 519078 | C50: 284653 | D50: 234425 | E50: 515197 | F50: 282472 | G50: 232725
A51: Кабардино-Балкарская Республика | B51: 903266 | C51: 467644 | D51: 435622 | E51: 903802 | F51: 468544 | G51: 435258
A52: Карачаево-Черкесская Республика | B52: 468444 | C52: 193802 | D52: 274642 | E52: 468770 | F52: 193859 | G52: 274911
A53: Республика Северная Осетия-Алания | B53: 680748 | C53: 430138 | D53: 250610 | E53: 683071 | F53: 431685 | G53: 251386
A54: Чеченская Республика | B54: 1533209 | C54: 584739 | D54: 948470 | E54: 1523906 | F54: 581260 | G54: 942646
A55: Ставропольский край | B55: 2891204 | C55: 1753824 | D55: 1137380 | E55: 2896829 | F55: 1756227 | G55: 1140602
A56: Приволжский федеральный округ | B56: 28683247 | C56: 20739346 | D56: 7943901 | E56: 28776390 | F56: 20790907 | G56: 7985483
A57: Республика Башкортостан | B57: 4077600 | C57: 2542369 | D57: 1535231 | E57: 4084610 | F57: 2540848 | G57: 1543762
A58: Республика Марий Эл | B58: 672321 | C58: 462660 | D58: 209661 | E58: 674336 | F58: 463021 | G58: 211315
A59: Республика Мордовия | B59: 771373 | C59: 490388 | D59: 280985 | E59: 776407 | F59: 493055 | G59: 283352
A60: Республика Татарстан | B60: 4001625 | C60: 3071356 | D60: 930269 | E60: 4000854 | F60: 3071135 | G60: 929719
A61: Удмуртская Республика | B61: 1442251 | C61: 948447 | D61: 493804 | E61: 1445599 | F61: 950309 | G61: 495290
A62: Чувашская Республика | B62: 1173177 | C62: 754451 | D62: 418726 | E62: 1178543 | F62: 756257 | G62: 422286
A63: Пермский край | B63: 2508352 | C63: 1898277 | D63: 610075 | E63: 2516751 | F63: 1904517 | G63: 612234
A64: Кировская область | B64: 1138112 | C64: 891429 | D64: 246683 | E64: 1143644 | F64: 893541 | G64: 250103
A65: Нижегородская область | B65: 3081817 | C65: 2465535 | D65: 616282 | E65: 3095367 | F65: 2475399 | G65: 619968
A66: Оренбургская область | B66: 1841377 | C66: 1102225 | D66: 739152 | E66: 1848579 | F66: 1105477 | G66: 743102
A67: Пензенская область | B67: 1246609 | C67: 857559 | D67: 389050 | E67: 1253856 | F67: 862276 | G67: 391580
A68: Самарская область | B68: 3142683 | C68: 2498659 | D68: 644024 | E68: 3153533 | F68: 2508613 | G68: 644920
A69: Саратовская область | B69: 2404944 | C69: 1846905 | D69: 558039 | E69: 2417978 | F69: 1854563 | G69: 563415
A70: Ульяновская область | B70: 1181006 | C70: 909086 | D70: 271920 | E70: 1186333 | F70: 911896 | G70: 274437
A71: Уральский федеральный округ | B71: 12259126 | C71: 10060938 | D71: 2198188 | E71: 12272192 | F71: 10067180 | G71: 2205012
A72: Курганская область | B72: 761586 | C72: 489010 | D72: 272576 | E72: 766959 | F72: 491621 | G72: 275338
A73: Свердловская область | B73: 4239161 | C73: 3639118 | D73: 600043 | E73: 4251426 | F73: 3648823 | G73: 602603
A74: Тюменская область | B74: 3851234 | C74: 3118663 | D74: 732571 | E74: 3839456 | F74: 3106292 | G74: 733164
A75: Ханты-Мансийский автономный округ-Югра | B75: 1730353 | C75: 1595766 | D75: 134587 | E75: 1722058 | F75: 1586864 | G75: 135194
A76: Ямало-Ненецкий автономный округ | B76: 512387 | C76: 434071 | D76: 78316 | E76: 511815 | F76: 433540 | G76: 78275
A77: Тюменская область без автономных округов | B77: 1608494 | C77: 1088826 | D77: 519668 | E77: 1605583 | F77: 1085888 | G77: 519695
A78: Челябинская область | B78: 3407145 | C78: 2814147 | D78: 592998 | E78: 3414351 | F78: 2820444 | G78: 593907
A79: Сибирский федеральный округ | B79: 16645802 | C79: 12489271 | D79: 4156531 | E79: 16702161 | F79: 12527094 | G79: 4175067
A80: Республика Алтай | B80: 210769 | C80: 64957 | D80: 145812 | E80: 210789 | F80: 65160 | G80: 145629
A81: Республика Тыва | B81: 337271 | C81: 186501 | D81: 150770 | E81: 336761 | F81: 185408 | G81: 151353
A82: Республика Хакасия | B82: 530233 | C82: 364045 | D82: 166188 | E82: 531611 | F82: 364530 | G82: 167081
A83: Алтайский край | B83: 2130950 | C83: 1242728 | D83: 888222 | E83: 2142941 | F83: 1248843 | G83: 894098
A84: Красноярский край | B84: 2845545 | C84: 2264708 | D84: 580837 | E84: 2850935 | F84: 2266588 | G84: 584347
A85: Иркутская область | B85: 2344360 | C85: 1817199 | D85: 527161 | E85: 2353904 | F85: 1825857 | G85: 528047
A86: Кемеровская область | B86: 2568238 | C86: 2222194 | D86: 346044 | E86: 2580125 | F86: 2232496 | G86: 347629
A87: Новосибирская область | B87: 2794266 | C87: 2227777 | D87: 566489 | E87: 2795879 | F87: 2228441 | G87: 567438
A88: Омская область | B88: 1832064 | C88: 1349162 | D88: 482902 | E88: 1841800 | F88: 1355320 | G88: 486480
A89: Томская область | B89: 1052106 | C89: 750000 | D89: 302106 | E89: 1057416 | F89: 754451 | G89: 302965
A90: Дальневосточный федеральный округ | B90: 7903864 | C90: 5825595 | D90: 2078269 | E90: 7935220 | F90: 5846191 | G90: 2089029
A91: Республика Бурятия | B91: 974628 | C91: 576015 | D91: 398613 | E91: 976290 | F91: 577289 | G91: 399001
A92: Республика Саха (Якутия) | B92: 997565 | C92: 670281 | D92: 327284 | E92: 997699 | F92: 669353 | G92: 328346
A93: Забайкальский край | B93: 992429 | C93: 689961 | D93: 302468 | E93: 996474 | F93: 691416 | G93: 305058
A94: Камчатский край | B94: 288730 | C94: 225106 | D94: 63624 | E94: 290652 | F94: 226567 | G94: 64085
A95: Приморский край | B95: 1820076 | C95: 1427371 | D95: 392705 | E95: 1831019 | F95: 1436378 | G95: 394641
A96: Хабаровский край | B96: 1284090 | C96: 1072186 | D96: 211904 | E96: 1288427 | F96: 1075502 | G96: 212925
A97: Амурская область | B97: 756198 | C97: 517053 | D97: 239145 | E97: 759884 | F97: 518775 | G97: 241109
A98: Магаданская область | B98: 134315 | C98: 129615 | D98: 4700 | E98: 135111 | F98: 130301 | G98: 4810
A99: Сахалинская область | B99: 460535 | C99: 380533 | D99: 80002 | E99: 463272 | F99: 382455 | G99: 80817
A100: Еврейская автономная область | B100: 147458 | C100: 104427 | D100: 43031 | E100: 148519 | F100: 105152 | G100: 43367
A101: Чукотский автономный округ | B101: 47840 | C101: 33047 | D101: 14793 | E101: 47873 | F101: 33003 | G101: 14870

Sheet Таб_2
A1: Содержание
A2: 2. Изменения в муниципально-территориальном устройстве
A3: субъектов Российской Федерации в 2022 году
A5: Преобразование муниципальных образований субъектов Российской Федерации: образование, упразднение, преобразование, переименование, изменение состава и границ муниципальных районов, городских округов, городских и сельских поселений, межселенных территорий и населенных пунктов | B5: Объемы МТП (человек)
B7: население
B8: городское | C8: сельское
A9: Российская Федерация | B9: =B10+B61+B243 -> -33 | C9: =C10+C61+C243 -> 33
A10: Центральный федеральный округ | B10: 451 | C10: -451
A11: Белгородская область | B11: 0 | C11: 0
A12: Изменений нет | B12: 0 | C12: 0
A13: Брянская область | B13: 0 | C13: 0
A14: Изменений нет | B14: 0 | C14: 0
A15: Владимирская область | B15: 451 | C15: -451
A16: Посёлку Доброград присвоен статус городского населенного пункта. Из состава Новосельского сельского поселения Ковровского района выделено городское поселение поселок Доброград Ковровского района. | B16: 451 | C16: -451
A17: Воронежская область | B17: 0 | C17: 0
A18: Объединены сельcкие поселения Воронежское и Никольское Новоусманского муниципального района в сельское поселение Никольское. Упразднено Воронежское сельское поселение | B18: 0 | C18: 0
A19: Объединены сельcкие поселения Усманское 1-е и Усманское-2 Новоусманского муниципального района в сельское поселение Усманское 1-е. Упразднено сельское поселение Усманское-2 | B19: 0 | C19: 0
A20: Ивановская область | B20: 0 | C20: 0
A21: Изменений нет | B21: 0 | C21: 0
A22: Калужская область | B22: 0 | C22: 0
A23: Изменений нет | B23: 0 | C23: 0
A24: Костромская область | B24: 0 | C24: 0
A25: Объединены Захаровское и Прискоковское сельские поселения Красносельского муниципального района в Прискоковское сельское поселение. Упразднено Захаровское сельское поселение. | B25: 0 | C25: 0
A26: Преобразован Поназыревский муниципальный район в Поназыревский муниципальный округ. Упразднены городские и сельские поселения Поназыревского муниципального района. | B26: 0 | C26: 0
A27: Преобразован Пыщугский муниципальный район в Пыщугский муниципальный округ. Упразднены городские и сельские поселения Пыщугского муниципального района. | B27: 0 | C27: 0
A28: Курская область | B28: 0 | C28: 0
A29: Изменений нет | B29: 0 | C29: 0
A30: Липецкая область | B30: 0 | C30: 0
A31: Изменений нет | B31: 0 | C31: 0
A32: Московская область | B32: 0 | C32: 0
A33: Переданы 36 сельских населенных пунктов из городского округа Солнечногорск в городской округ Химки | B33: 0 | C33: 0
A34: Орловская область | B34: 0 | C34: 0
A35: Изменений нет | B35: 0 | C35: 0
A36: Рязанская область | B36: 0 | C36: 0
A37: Изменений нет. | B37: 0 | C37: 0
A38: Смоленская область | B38: 0 | C38: 0
A39: Изменений нет. | B39: 0 | C39: 0
A40: Тамбовская область | B40: 0 | C40: 0
A41: 1. Упразднено сельское поселение Бокинский сельсовет Тамбовского муниципального района. Сельские населенные пункты - село Бокино, деревня Лужки, посёлок Тригуляй Бокинского сельского поселения Тамбовского муниципального района переданы в состав городского округа город Тамбов. | B41: 0 | C41: 0
A42: 2. Упразднено сельское поселение Покрово-Пригородный сельсовет Тамбовского муниципального района. Сельские населенные пункты - деревня Перикса, село Покрово-Пригородное Покрово-Пригородного сельского поселения Тамбовского муниципального района переданы в состав городского округа город Тамбов | B42: 0 | C42: 0
A43: 3. Упразднено сельское поселение Цнинский сельсовет Тамбовского муниципального района. Сельский населенный пункт посёлок Строитель Цнинского сельского поселения Тамбовского муниципального района передан в состав городского округа город Тамбов | B43: 0 | C43: 0
A44: 4. Передан населенный пункт посёлок Первомайский Донского сельского поселения Тамбовского муниципального района в состав городского округа город Тамбов | B44: 0 | C44: 0
A45: Тверская область | B45: 0 | C45: 0
A46: 1. Преобразован Бельский муниципальный район в Бельский муниципальный округ. Упразднены все поселения Бельского муниципального района. Населенные пункты поселений Бельского муниципального района входят в состав Бельского муниципального округа. | B46: 0 | C46: 0
A47: 2. Преобразован Зубцовский муниципальный район в Зубцовский муниципальный округ. Упразднены все поселения Зубцовский муниципального района. Населенные пункты поселений Зубцовский муниципального района входят в состав Зубцовского муниципального округа. | B47: 0 | C47: 0
A48: 3. Преобразован Кесовогорский муниципальный район в Кесовогорский муниципальный округ. Упразднены все поселения Кесовогорского муниципального района. Населенные пункты поселений Кесовогорского муниципального района входят в состав Кесовогорского муниципального округа. | B48: 0 | C48: 0
A49: 4. Преобразован Максатихинский муниципальный район в Максатихинский муниципальный округ. Упразднены все поселения Максатихинского муниципального района. Населенные пункты поселений Максатихинского муниципального района входят в состав Максатихинского муниципального округа. | B49: 0 | C49: 0
A50: 5. Преобразован Сонковский муниципальный район в Сонковский муниципальный округ. Упразднены все поселения Сонковского муниципального района. Населенные пункты поселений Сонковского муниципального района входят в состав Сонковского муниципального округа. | B50: 0 | C50: 0
A51: 6. Преобразован Старицкий муниципальный район в Старицкий муниципальный округ. Упразднены все поселения Старицкого муниципального района. Населенные пункты поселений Старицкого муниципального района входят в состав Старицкого муниципального округа. | B51: 0 | C51: 0
A52: 7. Объединены Кимрский муниципальный район и городской округ город Кимры в Кимрский муниципальный округ. Упразднены все поселения Кимрского муниципального района. | B52: 0 | C52: 0
A53: 8. Объединены Ржевский муниципальный район и городской округ город Ржев в Ржевский муниципальный округ. Упразднены все поселения Ржевского муниципального района. | B53: 0 | C53: 0
A54: 9. Преобразован Жарковский муниципальный район в Жарковский муниципальный округ. Упразднены все поселения Жарковского муниципального района. Населенные пункты поселений Жарковского муниципального района входят в состав Жарковского муниципального округа. | B54: 0 | C54: 0
A55: Тульская область | B55: 0 | C55: 0
A56: Изменений нет | B56: 0 | C56: 0
A57: Ярославская область | B57: 0 | C57: 0
A58: Изменений нет | B58: 0 | C58: 0
A59: г Москва | B59: 0 | C59: 0
A60: Изменений нет* | B60: 0 | C60: 0
A61: Северо-Западный федеральный округ | B61: 0 | C61: 0
A62: Республика Карелия | B62: 0 | C62: 0
A63: Преобразован Суоярвский муниципальный район в Суоярвский муниципальный округ. Упразднены городские и сельские поселения Суоярвского муниципального района | B63: 0 | C63: 0
A64: Республика Коми | B64: 0 | C64: 0
A65: Изменений нет | B65: 0 | C65: 0
A66: Архангельская область | B66: 0 | C66: 0
A67: 1. Преобразован Мезенский муниципальный район Архангельской области в Мезенский муниципальный округ Архангельской области. Упразднены городские и сельские поселения Мезенского муниципального района Архангельской области. | B67: 0 | C67: 0
A68: 2. Преобразован Шенкурский муниципальный район Архангельской области в Шенкурский муниципальный округ Архангельской области. Упразднены городские и сельские поселения Шенкурского муниципального района Архангельской области. | B68: 0 | C68: 0
A69: 3.Преобразован Лешуконский муниципальный район Архангельской области в Лешуконский муниципальный округ Архангельской области. Упразднены сельские поселения Лешуконского муниципального района Архангельской области. | B69: 0 | C69: 0
A70: 4. Преобразован Котласский муниципальный район Архангельской области в Котласский муниципальный округ Архангельской области. Упразднены городские и сельские поселения Котласского муниципального района Архангельской области. | B70: 0 | C70: 0
A71: 5. Преобразован Холмогорский муниципальный район Архангельской области в Холмогорский муниципальный округ Архангельской области. Упразднены сельские поселения Холмогорского муниципального района Архангельской области. | B71: 0 | C71: 0
A72: 6. Преобразован Няндомский муниципальный район Архангельской области в Няндомский муниципальный округ Архангельской области. Упразднены городские и сельские поселения Няндомского муниципального района Архангельской области. | B72: 0 | C72: 0
A73: 7. Преобразован Устьянский муниципальный район Архангельской области в Устьянский муниципальный округ Архангельской области. Упразднены городские и сельские поселения Устьянского муниципального района Архангельской области. | B73: 0 | C73: 0
A74: Ненецкий автономный округ | B74: 0 | C74: 0
A75: Изменений нет | B75: 0 | C75: 0
A76: Вологодская область | B76: 0 | C76: 0
A77: 1. Преобразован Бабаевский муниципальный район Вологодской области в Бабаевский муниципальный округ Вологодской области. Упразднены городские и сельские поселения Бабаевского муниципального района Вологодской области. | B77: 0 | C77: 0
A78: 2. Преобразован Бабушкинский муниципальный район Вологодской области в Бабушкинский муниципальный округ Вологодской области. Упразднены городские и сельские поселения Бабушкинского муниципального района Вологодской области. | B78: 0 | C78: 0
A79: 3. Преобразован Белозерский муниципальный район Вологодской области в Белозерский муниципальный округ Вологодской области. Упразднены городские и сельские поселения Белозерского муниципального района Вологодской области. | B79: 0 | C79: 0
A80: 4. Преобразован Великоустюгский муниципальный район Вологодской области в Великоустюгский муниципальный округ Вологодской области. Упразднены городские и сельские поселения Великоустюгского муниципального района Вологодской области. | B80: 0 | C80: 0
A81: 5. Преобразован Верховажский муниципальный район Вологодской области в Верховажский муниципальный округ Вологодской области. Упразднены городские и сельские поселения Верховажского муниципального района Вологодской области. | B81: 0 | C81: 0
A82: 6. Преобразован Вожегодский муниципальный район Вологодской области в Вожегодский муниципальный округ Вологодской области. Упразднены городские и сельские поселения Вожегодского муниципального района Вологодской области. | B82: 0 | C82: 0
A83: 7. Преобразован Вологодский муниципальный район Вологодской области в Вологодский муниципальный округ Вологодской области. Упразднены городские и сельские поселения Вологодского муниципального района Вологодской области. | B83: 0 | C83: 0
A84: 8. Преобразован Грязовецкий муниципальный район Вологодской области в Грязовецкий муниципальный округ Вологодской области. Упразднены городские и сельские поселения Грязовецкого муниципального района Вологодской области. | B84: 0 | C84: 0
A85: 9. Преобразован Кадуйский муниципальный район Вологодской области в Кадуйский муниципальный округ Вологодской области. Упразднены городские и сельские поселения Кадуйского муниципального района Вологодской области. | B85: 0 | C85: 0
A86: 10. Преобразован Кичменгско-Городецкий муниципальный район Вологодской области в Кичменгско-Городецкий муниципальный округ Вологодской области. Упразднены городские и сельские поселения Кичменгско-Городецкого муниципального района Вологодской области. | B86: 0 | C86: 0
A87: 11. Преобразован Междуреченский муниципальный район Вологодской области в Междуреченский муниципальный округ Вологодской области. Упразднены городские и сельские поселения Междуреченского муниципального района Вологодской области. | B87: 0 | C87: 0
A88: 12. Преобразован Нюксенский муниципальный район Вологодской области в Нюксенский муниципальный округ Вологодской области. Упразднены городские и сельские поселения Нюксенского муниципального района Вологодской области. | B88: 0 | C88: 0
A89: 13. Преобразован Сокольский муниципальный район Вологодской области в Сокольский муниципальный округ Вологодской области. Упразднены городские и сельские поселения Сокольского муниципального района Вологодской области. | B89: 0 | C89: 0
A90: 14. Преобразован Сямженский муниципальный район Вологодской области в Сямженский муниципальный округ Вологодской области. Упразднены городские и сельские поселения Сямженского муниципального района Вологодской области. | B90: 0 | C90: 0
A91: 15. Преобразован Тарногский муниципальный район Вологодской области в Тарногский муниципальный округ Вологодской области. Упразднены городские и сельские поселения Тарногского муниципального района Вологодской области. | B91: 0 | C91: 0
A92: 16. Преобразован Тотемский муниципальный район Вологодской области в Тотемский муниципальный округ Вологодской области. Упразднены городские и сельские поселения Тотемского муниципального района Вологодской области. | B92: 0 | C92: 0
A93: 17. Преобразован Усть-Кубинский муниципальный район Вологодской области в Усть-Кубинский муниципальный округ Вологодской области. Упразднены городские и сельские поселения Усть-Кубинского муниципального района Вологодской области. | B93: 0 | C93: 0
A94: 18. Преобразован Устюженский муниципальный район Вологодской области в Устюженский муниципальный округ Вологодской области. Упразднены городские и сельские поселения Устюженского муниципального района Вологодской области. | B94: 0 | C94: 0
A95: 19. Преобразован Харовский муниципальный район Вологодской области в Харовский муниципальный округ Вологодской области. Упразднены городские и сельские поселения Харовского муниципального района Вологодской области. | B95: 0 | C95: 0
A96: 20. Преобразован Чагодощенский муниципальный район Вологодской области в Чагодощенский муниципальный округ Вологодской области. Упразднены городские и сельские поселения Чагодощенского муниципального района Вологодской области. | B96: 0 | C96: 0
A97: Изменений нет. | B97: 0 | C97: 0
A98: Калининградская область | B98: 0 | C98: 0
A99: Изменений нет | B99: 0 | C99: 0
A100: Ленинградская область | B100: 0 | C100: 0
A101: Изменений нет. | B101: 0 | C101: 0
A102: Мурманская область | B102: 0 | C102: 0
A103: Изменений нет. | B103: 0 | C103: 0
A104: Новгородская область | B104: 0 | C104: 0
A105: Изменений нет. | B105: 0 | C105: 0
A106: Псковская область | B106: 0 | C106: 0
A107: Изменений нет. | B107: 0 | C107: 0
A108: г Санкт-Петербург | B108: 0 | C108: 0
A109: Изменений нет. | B109: 0 | C109: 0
A110: Южный федеральный округ | B110: 0 | C110: 0
A111: Республика Адыгея | B111: 0 | C111: 0
A112: Изменений нет. | B112: 0 | C112: 0
A113: Республика Калмыкия | B113: 0 | C113: 0
A114: Изменений нет. | B114: 0 | C114: 0
A115: Республика Крым | B115: 0 | C115: 0
A116: Изменений нет. | B116: 0 | C116: 0
A117: Краснодарский край | B117: 0 | C117: 0
A118: Преобразовано муниципальное образование городской округ город-курорт Сочи. Из черты города Сочи выделен поселок городского типа Дагомыс и включен в состав муниципального образования городской округ город-курорт Сочи. | B118: 0 | C118: 0
A119: Астраханская область | B119: 0 | C119: 0
A120: Изменений нет. | B120: 0 | C120: 0
A121: Волгоградская область | B121: 0 | C121: 0
A122: Изменений нет. | B122: 0 | C122: 0
A123: Ростовская область | B123: 0 | C123: 0
A124: Изменений нет. | B124: 0 | C124: 0
A125: г Севастополь | B125: 0 | C125: 0
A126: Изменений нет. | B126: 0 | C126: 0
A127: Северо-Кавказский федеральный округ | B127: 0 | C127: 0
A128: Республика Дагестан | B128: 0 | C128: 0
A129: Изменений нет. | B129: 0 | C129: 0
A130: Республика Ингушетия | B130: 0 | C130: 0
A131: Изменений нет. | B131: 0 | C131: 0
A132: Кабардино-Балкарская Республика | B132: 0 | C132: 0
A133: Изменений нет. | B133: 0 | C133: 0
A134: Карачаево-Черкесская Республика | B134: 0 | C134: 0
A135: Изменений нет. | B135: 0 | C135: 0
A136: Республика Северная Осетия - Алания | B136: 0 | C136: 0
A137: Изменений нет. | B137: 0 | C137: 0
A138: Чеченская Республика | B138: 0 | C138: 0
A139: 1. Переименовано Даргинское сельское поселение Веденского муниципального района Чеченской Республики в Даргойское сельское поселение Веденского муниципального района Чеченской Республики. | B139: 0 | C139: 0
A140: Ставропольский край | B140: 0 | C140: 0
A141: Изменений нет. | B141: 0 | C141: 0
A142: Приволжский федеральный округ
A143: Республика Башкортостан | B143: 0 | C143: 0
A144: Изменений нет. | B144: 0 | C144: 0
A145: Республика Марий Эл | B145: 0 | C145: 0
A146: Объединены: городское поселение Килемары и Большекибеевское, Нежнурское и Широкундышское сельские поселения Килемарского муниципального района в городское поселение Килемары. Большекибеевское, Нежнурское и Широкундышское сельские поселения упразднены. | B146: 0 | C146: 0
A147: Республика Мордовия | B147: 0 | C147: 0
A148: Изменений нет. | B148: 0 | C148: 0
A149: Республика Татарстан | B149: 0 | C149: 0
A150: Изменений нет. | B150: 0 | C150: 0
A151: Удмуртская Республика | B151: 0 | C151: 0
A152: Изменений нет. | B152: 0 | C152: 0
A153: Чувашская Республика | B153: 0 | C153: 0
A154: 1. Преобразован Алатырский муниципальный район в Алатырский муниципальный округ. Упразднены сельские поселения Алатырского муниципального района. | B154: 0 | C154: 0
A155: 2. Преобразован Аликовский муниципальный район в Аликовский муниципальный округ. Упразднены сельские поселения Аликовского муниципального района. | B155: 0 | C155: 0
A156: 3. Преобразован Батыревский муниципальный район в Батыревский муниципальный округ. Упразднены сельские поселения Батыревского муниципального района. | B156: 0 | C156: 0
A157: 4. Преобразован Вурнарский муниципальный район в Вурнарский муниципальный округ. Упразднены сельские поселения Вурнарского муниципального района. | B157: 0 | C157: 0
A158: 5. Преобразован Ибресинский муниципальный район в Ибресинский муниципальный округ. Упразднены сельские поселения Ибресинского муниципального района. | B158: 0 | C158: 0
A159: 6. Преобразован Канашский муниципальный район в Канашский муниципальный округ. Упразднены сельские поселения Канашского муниципального района. | B159: 0 | C159: 0
A160: 7. Преобразован Козловский муниципальный район в Козловский муниципальный округ. Упразднены сельские поселения Козловского муниципального района. | B160: 0 | C160: 0
A161: 8. Преобразован Комсомольский муниципальный район в Комсомольский муниципальный округ. Упразднены сельские поселения Комсомольского муниципального района. | B161: 0 | C161: 0
A162: 9. Преобразован Красночетайский муниципальный район в Красночетайский муниципальный округ. Упразднены сельские поселения Красночетайского муниципального района. | B162: 0 | C162: 0
A163: 10. Преобразован Мариинско-Посадский муниципальный район в Мариинско-Посадский муниципальный округ. Упразднены сельские поселения Мариинско-Посадского муниципального района. | B163: 0 | C163: 0
A164: 11. Преобразован Моргаушский муниципальный район в Моргаушский муниципальный округ. Упразднены сельские поселения Моргаушского муниципального района. | B164: 0 | C164: 0
A165: 12. Преобразован Порецкий муниципальный район в Порецкий муниципальный округ. Упразднены сельские поселения Порецкого муниципального района. | B165: 0 | C165: 0
A166: 13. Преобразован Урмарский муниципальный район в Урмарский муниципальный округ. Упразднены сельские поселения Урмарского муниципального района. | B166: 0 | C166: 0
A167: 14. Преобразован Цивильский муниципальный район в Цивильский муниципальный округ. Упразднены сельские поселения Цивильского муниципального района. | B167: 0 | C167: 0
A168: 15. Преобразован Чебоксарский муниципальный район в Чебоксарский муниципальный округ. Упразднены сельские поселения Чебоксарского муниципального района. | B168: 0 | C168: 0
A169: 16. Преобразован Шемуршинский муниципальный район в Шемуршинский муниципальный округ. Упразднены сельские поселения Шемуршинского муниципального района. | B169: 0 | C169: 0
A170: 17. Преобразован Ядринский муниципальный район в Ядринский муниципальный округ. Упразднены сельские поселения Ядринского муниципального района. | B170: 0 | C170: 0
A171: 18. Преобразован Яльчикский муниципальный район в Яльчикский муниципальный округ. Упразднены сельские поселения Яльчикского муниципального района. | B171: 0 | C171: 0
A172: 19. Преобразован Янтиковский муниципальный район в Янтиковский муниципальный округ. Упразднены сельские поселения Янтиковского муниципального района. | B172: 0 | C172: 0
A173: Пермский край | B173: 0 | C173: 0
A174: 1. Объеденены Кудымкарский муниципальный округ и Городской округ город Кудымкар в Кудымкарский муниципальный округ | B174: 0 | C174: 0
A175: 2. Объеденены Губахинский городской округ и Гремячинский городской округ в Губахинский муниципальный округ | B175: 0 | C175: 0
A176: 3. Преобразован Пермский муниципальный район в Пермский муниципальный округ. Упразднены сельские поселения Пермского муниципального района | B176: 0 | C176: 0
A177: Кировская область | B177: 0 | C177: 0
A178: 1. Преобразован Афанасьевский муниципальный район в Афанасьевский муниципальный округ. Упразднены городское и сельские поселения Афанасьевского муниципального района. | B178: 0 | C178: 0
A179: 2. Упразднено Метелевское сельское поселение Нагорского муниципального района. Сельские населенные пункты: поселок Бажелка, деревня Каменное и деревня Комарово Метелевского сельского поселения переданы в состав Чеглаковского сельского поселения Нагорского муниципального района | B179: 0 | C179: 0
A180: Нижегородская область | B180: 0 | C180: 0
A181: 1. Преобразован Большемурашкинский муниципальный район Нижегородской области в Большемурашкинский муниципальный округ Нижегородской области. Городские и сельские поселения Большемурашкинского муниципального района упразднены | B181: 0 | C181: 0
A182: 2. Преобразован Княгининский муниципальный район Нижегородской области в Княгининский муниципальный округ Нижегородской области. Городские и сельские поселения Княгининского муниципального района упразднены | B182: 0 | C182: 0
A183: 3. Преобразован Шатковский муниципальный район Нижегородской области в Шатковский муниципальный округ Нижегородской области. Городские и сельские поселения Шатковского муниципального района упразднены | B183: 0 | C183: 0
A184: 4. Преобразован Гагинский муниципальный район Нижегородской области в Гагинский муниципальный округ Нижегородской области. Сельские поселения Гагинского муниципального района упразднены | B184: 0 | C184: 0
A185: 5. Преобразован Сеченовский муниципальный район Нижегородской области в Сеченовский муниципальный округ Нижегородской области. Сельские поселения Сеченовского муниципального района упразднены | B185: 0 | C185: 0
A186: 6. Преобразован Тонкинский муниципальный район Нижегородской области в Тонкинский муниципальный округ Нижегородской области. Городские и сельские поселения Тонкинского муниципального района упразднены | B186: 0 | C186: 0
A187: 7. Преобразован Спасский муниципальный район Нижегородской области в Спасский муниципальный округ. Сельские поселения Спасского муниципального района упразднены | B187: 0 | C187: 0
A188: 8. Преобразован Сосновский муниципальный район Нижегородской области в Сосновский муниципальный округ Нижегородской области. Городские и сельские поселения Сосновского муниципального района упразднены | B188: 0 | C188: 0
A189: 9. Преобразован Шарангский муниципальный район Нижегородской области в Шарангский муниципальный округ Нижегородской области. Городские и сельские поселения Шарангского муниципального района упразднены | B189: 0 | C189: 0
A190: 10. Преобразован Ветлужский муниципальный района Нижегородской области в Ветлужский муниципальный округ Нижегородской области. Городские и сельские поселения Ветлужского муниципального района упразднены | B190: 0 | C190: 0
A191: 11. Преобразован Краснобаковский муниципальный района Нижегородской области в Краснобаковский муниципальный округ Нижегородской области. Городские и сельские поселения Краснобаковского муниципального района упразднены | B191: 0 | C191: 0
A192: 12. Преобразован Ардатовский муниципальный района Нижегородской области во вновь образованное муниципальное образование –Ардатовский муниципальный округ Нижегородской области. Городские и сельские поселения Ардатовского муниципального района утрачивают статус муниципальных образований. | B192: 0 | C192: 0
A193: 13. Преобразован Вознесенский муниципальный района Нижегородской области во вновь образованное муниципальное образование –Вознесенский муниципальный округ Нижегородской области. Городские и сельские поселения Вознесенского муниципального района утрачивают статус муниципальных образований. | B193: 0 | C193: 0
A194: 14. Преобразован Воскресенский муниципальный район Нижегородской области в Воскресенский муниципальный округ Нижегородской области. Городские и сельские поселения Воскресенского муниципального района упразднены | B194: 0 | C194: 0
A195: 15. Преобразован Варнавинский муниципального район Нижегородской области в Варнавинский муниципальный округ Нижегородской области. Городские и сельские поселения Варнавинского муниципального района утрачивают статус муниципальных образований | B195: 0 | C195: 0
A196: 16. Преобразован Дальнеконстантиновский муниципальный район Нижегородской области в Дальнеконстантиновский муниципальный округ Нижегородской области. Городские и сельские поселения Дальнеконстантиновского муниципального района упразднены | B196: 0 | C196: 0
A197: 17. Преобразован Городецкий муниципальный район Нижегородской области в Городецкий муниципальный округ Нижегородской области. Городские и сельские поселения Городецкого муниципального района утрачивают статус муниципальных образований. | B197: 0 | C197: 0
A198: 18. Преобразован Краснооктябрьский муниципальный район Нижегородской области в Краснооктябрьский муниципальный округ Нижегородской области. Сельские поселения Краснооктябрьского муниципального района упразднены | B198: 0 | C198: 0
A199: 19. Преобразован Пильнинский муниципальный район Нижегородской области в Пильнинский муниципальный округ Нижегородской области. Городские и сельские поселения Пильнинского муниципального района упразднены | B199: 0 | C199: 0
A200: 20. Преобразован Вачский муниципальный район Нижегородской области в Вачский муниципальный округ Нижегородской области. Городские и сельские поселения Вачского муниципального района упразднены | B200: 0 | C200: 0
A201: 21. Преобразован Лукояновский муниципальный район Нижегородской области в Лукояновский муниципальный округ Нижегородской области. Городские и сельские поселения Лукояновского муниципального района упразднены | B201: 0 | C201: 0
A202: 22. Преобразован Большеболдинский муниципальный район Нижегородской области в Большеболдинский муниципальный округ Нижегородской области. Сельские поселения Большеболдинского муниципального района упразднены | B202: 0 | C202: 0
... 108 more rows

Sheet Таб_3
B1: Содержание
A2: 3. Оценка численности постоянного населения районов Крайнего Севера и приравненных к ним местностей по городским, муниципальным округам и муниципальным районам
A3: (человек)
C5: На 1 января 2023 года
C6: Все | D6: Городское | E6: Сельское
C7: население | D7: население | E7: население
A8: Всего по районам Крайнего Севера и местностям приравненным к ним | C8: 9350268 | D8: 7417411 | E8: 1932857
B9: Республика Алтай | C9: 30310 | D9: 0 | E9: 30310
B10: Кош-Агачский муниципальный район | C10: 18512 | D10: 0 | E10: 18512
B11: Улаганский муниципальный район | C11: 11798 | D11: 0 | E11: 11798
B12: Республика Бурятия | C12: 89748 | D12: 46372 | E12: 43376
B13: Городской округ город Северобайкальск | C13: 24431 | D13: 24431 | E13: 0
B14: Баргузинский муниципальный район | C14: 19820 | D14: 6084 | E14: 13736
B15: Баунтовский эвенкийский муниципальный район | C15: 8122 | D15: 0 | E15: 8122
B16: Курумканский муниципальный район | C16: 12950 | D16: 0 | E16: 12950
B17: Муйский муниципальный район | C17: 8744 | D17: 8174 | E17: 570
B18: Окинский муниципальный район | C18: 5332 | D18: 0 | E18: 5332
B19: Северо-Байкальский муниципальный район | C19: 10349 | D19: 7683 | E19: 2666
A20: * | B20: Республика Карелия | C20: 527880 | D20: 420887 | E20: 106993
B21: Городской округ г. Петрозаводск | C21: 235793 | D21: 235793 | E21: 0
B22: Городской округ г. Костомукша | C22: 26531 | D22: 25928 | E22: 603
B23: Суоярвский муниципальный округ | C23: 12418 | D23: 6819 | E23: 5599
B24: Беломорский муниципальный район | C24: 12546 | D24: 7407 | E24: 5139
B25: Калевальский муниципальный район | C25: 5939 | D25: 3417 | E25: 2522
B26: Кемский муниципальный район | C26: 12715 | D26: 9712 | E26: 3003
B27: Кондопожский муниципальный район | C27: 31671 | D27: 25295 | E27: 6376
B28: Лахденпохский муниципальный район | C28: 10709 | D28: 5855 | E28: 4854
B29: Лоухский муниципальный район | C29: 10289 | D29: 7178 | E29: 3111
B30: Медвежьегорский муниципальный район | C30: 23931 | D30: 17355 | E30: 6576
B31: Муезерский муниципальный район | C31: 7903 | D31: 2507 | E31: 5396
B32: Олонецкий муниципальный район | C32: 18662 | D32: 7631 | E32: 11031
B33: Питкярантский муниципальный район | C33: 14735 | D33: 8094 | E33: 6641
B34: Прионежский муниципальный район | C34: 21994 | D34: 0 | E34: 21994
B35: Пряжинский муниципальный район | C35: 12259 | D35: 2984 | E35: 9275
B36: Пудожский муниципальный район | C36: 14351 | D36: 7207 | E36: 7144
B37: Сегежский муниципальный район | C37: 31609 | D37: 28985 | E37: 2624
B38: Сортавальский муниципальный район | C38: 23825 | D38: 18720 | E38: 5105
A39: * | B39: Республика Коми | C39: 726434 | D39: 564359 | E39: 162075
B40: Городской округ Сыктывкар | C40: 233105 | D40: 232422 | E40: 683
B41: Городской округ Воркута | C41: 67702 | D41: 67410 | E41: 292
B42: Городской округ Вуктыл | C42: 10365 | D42: 9198 | E42: 1167
B43: Городской округ Инта | C43: 21092 | D43: 19947 | E43: 1145
B44: Городской округ Усинск | C44: 36025 | D44: 32062 | E44: 3963
B45: Городской округ Ухта | C45: 94168 | D45: 92534 | E45: 1634
B46: Муниципальный район Ижемский | C46: 16294 | D46: 0 | E46: 16294
B47: Муниципальный район Княжпогостский | C47: 15250 | D47: 12827 | E47: 2423
B48: Муниципальный район Койгородский | C48: 7571 | D48: 0 | E48: 7571
B49: Муниципальный район Корткеросский | C49: 18538 | D49: 0 | E49: 18538
B50: Муниципальный район Печора | C50: 42796 | D50: 37774 | E50: 5022
B51: Муниципальный район Прилузский | C51: 17418 | D51: 0 | E51: 17418
B52: Муниципальный район Сосногорск | C52: 34217 | D52: 31073 | E52: 3144
B53: Муниципальный район Сыктывдинский | C53: 21432 | D53: 0 | E53: 21432
B54: Муниципальный район Сысольский | C54: 11753 | D54: 0 | E54: 11753
B55: Муниципальный район Троицко-Печорский | C55: 9676 | D55: 5876 | E55: 3800
B56: Муниципальный район Удорский | C56: 12529 | D56: 7856 | E56: 4673
B57: Муниципальный район Усть-Вымский | C57: 23861 | D57: 15380 | E57: 8481
B58: Муниципальный район Усть-Куломский | C58: 22164 | D58: 0 | E58: 22164
B59: Муниципальный район Усть-Цилемский | C59: 10478 | D59: 0 | E59: 10478
A60: * | B60: Республика Саха (Якутия) | C60: 997565 | D60: 670281 | E60: 327284
B61: Городской округ город Якутск | C61: 378549 | D61: 361154 | E61: 17395
B62: Городской округ Жатай | C62: 11583 | D62: 11583
B63: Абыйский муниципальный район | C63: 3786 | D63: 1905 | E63: 1881
B64: Алданский муниципальный район | C64: 39279 | D64: 35848 | E64: 3431
B65: Аллаиховский муниципальный район | C65: 2349 | D65: 1832 | E65: 517
B66: Амгинский муниципальный район | C66: 16894 | D66: 0 | E66: 16894
B67: Анабарский национальный (долгано-эвенкийский) муниципальный район | C67: 3454 | D67: 0 | E67: 3454
B68: Булунский муниципальный район | C68: 7997 | D68: 4440 | E68: 3557
B69: Верхневилюйский муниципальный район | C69: 20889 | E69: 20889
B70: Верхнеколымский муниципальный район | C70: 3748 | D70: 2455 | E70: 1293
B71: Верхоянский муниципальный район | C71: 10009 | D71: 4683 | E71: 5326
B72: Вилюйский муниципальный район | C72: 25121 | D72: 12843 | E72: 12278
B73: Горный муниципальный район | C73: 12004 | D73: 0 | E73: 12004
B74: Жиганский национальный муниципальный район | C74: 4086 | D74: 0 | E74: 4086
B75: Кобяйский муниципальный район | C75: 11188 | D75: 3270 | E75: 7918
B76: Нюрбинский муниципальный район | C76: 22997 | D76: 10055 | E76: 12942
B77: Ленский муниципальный район | C77: 32106 | D77: 28138 | E77: 3968
B78: Мегино-Кангаласский муниципальный район | C78: 33110 | D78: 5139 | E78: 27971
B79: Мирнинский муниципальный район | C79: 71308 | D79: 68683 | E79: 2625
B80: Момский муниципальный район | C80: 3783 | D80: 0 | E80: 3783
B81: Намский муниципальный район | C81: 24860 | D81: 0 | E81: 24860
B82: Нерюнгринский муниципальный район | C82: 69032 | D82: 67770 | E82: 1262
B83: Нижнеколымский муниципальный район | C83: 4211 | D83: 2641 | E83: 1570
B84: Оймяконский муниципальный район | C84: 7600 | D84: 4496 | E84: 3104
B85: Олекминский муниципальный район | C85: 20691 | D85: 8457 | E85: 12234
B86: Оленекский эвенкийский национальный муниципальный район | C86: 4361 | D86: 0 | E86: 4361
B87: Среднеколымский муниципальный район | C87: 6741 | D87: 3118 | E87: 3623
B88: Сунтарский муниципальный район | C88: 22352 | D88: 0 | E88: 22352
B89: Таттинский муниципальный район | C89: 16858 | D89: 0 | E89: 16858
B90: Томпонский муниципальный район | C90: 11064 | D90: 6187 | E90: 4877
B91: Усть-Алданский муниципальный район | C91: 22249 | D91: 0 | E91: 22249
B92: Усть-Майский муниципальный район | C92: 7159 | D92: 4877 | E92: 2282
B93: Усть-Янский муниципальный район | C93: 6809 | D93: 3524 | E93: 3285
B94: Хангаласский муниципальный район | C94: 34435 | D94: 17183 | E94: 17252
B95: Чурапчинский муниципальный район | C95: 21955 | D95: 0 | E95: 21955
B96: Эвено-Бытантайский национальный муниципальный район | C96: 2948 | D96: 0 | E96: 2948
A97: * | B97: Республика Тыва | C97: 337271 | D97: 186501 | E97: 150770
B98: Городской округ город Кызыл | C98: 128149 | D98: 128149 | E98: 0
B99: Городской округ город Ак-Довурак | C99: 12208 | D99: 12208 | E99: 0
B100: Бай-Тайгинский муниципальный район | C100: 10548 | D100: 0 | E100: 10548
B101: Барун-Хемчикский муниципальный район | C101: 11881 | D101: 0 | E101: 11881
B102: Дзун-Хемчикский муниципальный район | C102: 19185 | D102: 9566 | E102: 9619
B103: Каа-Хемский муниципальный район | C103: 12100 | D103: 0 | E103: 12100
B104: Кызылский муниципальный район | C104: 36061 | D104: 19869 | E104: 16192
B105: Монгун-Тайгинский муниципальный район | C105: 6069 | D105: 0 | E105: 6069
B106: Овюрский кожуун муниципальный район | C106: 7277 | D106: 0 | E106: 7277
B107: Пий-Хемский муниципальный район | C107: 10501 | D107: 4985 | E107: 5516
B108: Сут-Хольский муниципальный район | C108: 8161 | D108: 0 | E108: 8161
B109: Тандинский муниципальный район | C109: 15234 | D109: 0 | E109: 15234
B110: Тере-Хольский муниципальный район | C110: 1941 | D110: 0 | E110: 1941
B111: Тес-Хемский муниципальный район | C111: 8908 | D111: 0 | E111: 8908
B112: Тоджинский муниципальный район | C112: 6681 | D112: 0 | E112: 6681
B113: Улуг-Хемский муниципальный район | C113: 20131 | D113: 11724 | E113: 8407
B114: Чаа-Хольский муниципальный район | C114: 6037 | D114: 0 | E114: 6037
B115: Чеди-Хольский муниципальный район | C115: 7670 | D115: 0 | E115: 7670
B116: Эрзинский муниципальный район | C116: 8529 | D116: 0 | E116: 8529
B117: Забайкальский край | C117: 18232 | D117: 9017 | E117: 9215
B118: Каларский муниципальный округ | C118: 7377 | D118: 4130 | E118: 3247
B119: Тунгокоченский муниципальный округ | C119: 9739 | D119: 4887 | E119: 4852
B120: Муниципальный район "Тунгиро-Олекминский район" | C120: 1116 | D120: 0 | E120: 1116
A121: * | B121: Камчатский край | C121: 288730 | D121: 225106 | E121: 63624
B122: Петропавловск-Камчатский городской округ | C122: 162992 | D122: 162992 | E122: 0
B123: Вилючинский городской округ | C123: 21834 | D123: 21834 | E123: 0
B124: Городской округ поселок Палана | C124: 2727 | D124: 2727 | E124: 0
B125: Алеутский муниципальный округ | C125: 624 | D125: 0 | E125: 624
B126: Быстринский муниципальный район | C126: 2422 | D126: 0 | E126: 2422
B127: Елизовский муниципальный район | C127: 59658 | D127: 37553 | E127: 22105
B128: Карагинский муниципальный район | C128: 3403 | D128: 0 | E128: 3403
B129: Олюторский муниципальный район | C129: 3569 | D129: 0 | E129: 3569
B130: Мильковский муниципальный район | C130: 8890 | D130: 0 | E130: 8890
B131: Пенжинский муниципальный район | C131: 2026 | D131: 0 | E131: 2026
B132: Соболевский муниципальный район | C132: 1988 | D132: 0 | E132: 1988
B133: Тигильский муниципальный район | C133: 3668 | D133: 0 | E133: 3668
B134: Усть-Большерецкий муниципальный район | C134: 6185 | D134: 0 | E134: 6185
B135: Усть-Камчатский муниципальный район | C135: 8744 | D135: 0 | E135: 8744
B136: Красноярский край | C136: 409562 | D136: 304971 | E136: 104591
B137: Городской округ город Енисейск | C137: 17655 | D137: 17655 | E137: 0
B138: Городской округ город Лесосибирск | C138: 59207 | D138: 59206 | E138: 1
B139: Городской округ город Норильск | C139: 175466 | D139: 175466 | E139: 0
B140: Богучанский муниципальный район | C140: 42460 | D140: 0 | E140: 42460
B141: Енисейский муниципальный район | C141: 21466 | D141: 3543 | E141: 17923
B142: Кежемский муниципальный район | C142: 16917 | D142: 13089 | E142: 3828
B143: Мотыгинский муниципальный район | C143: 12208 | D143: 6766 | E143: 5442
B144: Северо-Енисейский муниципальный район | C144: 8492 | D144: 5996 | E144: 2496
B145: Таймырский Долгано-Ненецкий муниципальный район | C145: 29889 | D145: 19782 | E145: 10107
B146: Туруханский муниципальный район | C146: 12491 | D146: 3468 | E146: 9023
B147: Эвенкийский муниципальный район | C147: 13311 | D147: 0 | E147: 13311
B148: Пермский край | C148: 27030 | D148: 0 | E148: 27030
B149: Гайнский муниципальный округ | C149: 11876 | D149: 0 | E149: 11876
B150: Косинский муниципальный округ | C150: 5685 | D150: 0 | E150: 5685
B151: Кочевский муниципальный округ | C151: 9469 | D151: 0 | E151: 9469
B152: Приморский край | C152: 87677 | D152: 63198 | E152: 24479
B153: Дальнегорский городской округ | C153: 38999 | D153: 33030 | E153: 5969
B154: Ольгинский муниципальный округ | C154: 7511 | D154: 3112 | E154: 4399
B155: Тернейский муниципальный округ | C155: 9876 | D155: 8026 | E155: 1850
B156: Кавалеровский муниципальный район | C156: 21082 | D156: 15794 | E156: 5288
B157: Красноармейский муниципальный район (кроме Лукьяновского и Новопокровского сельских поселений) | C157: 10209 | D157: 3236 | E157: 6973
B158: Хабаровский край | C158: 488121 | D158: 400761 | E158: 87360
B159: Городской округ "Город Комсомольск-на-Амуре" | C159: 236158 | D159: 236158 | E159: 0
B160: Амурский муниципальный район (кроме Литовского, Санболинского и Болоньского сельских поселений) | C160: 53461 | D160: 48087 | E160: 5374
B161: Аяно-Майский муниципальный район | C161: 1863 | D161: 0 | E161: 1863
B162: Ванинский муниципальный район | C162: 34071 | D162: 25622 | E162: 8449
B163: Верхнебуреинский муниципальный район | C163: 24861 | D163: 18936 | E163: 5925
B164: Комсомольский муниципальный район | C164: 24018 | D164: 0 | E164: 24018
B165: Николаевский муниципальный район | C165: 23830 | D165: 20286 | E165: 3544
B166: Охотский муниципальный район | C166: 6083 | D166: 3257 | E166: 2826
B167: Им. Полины Осипенко муниципальный район | C167: 3657 | D167: 0 | E167: 3657
B168: Советско-Гаванский муниципальный район | C168: 36866 | D168: 36162 | E168: 704
B169: Солнечный муниципальный район | C169: 27089 | D169: 12253 | E169: 14836
B170: Тугуро-Чумиканский муниципальный район | C170: 1860 | D170: 0 | E170: 1860
B171: Ульчский муниципальный район | C171: 14304 | D171: 0 | E171: 14304
B172: Амурская область | C172: 79464 | D172: 51862 | E172: 27602
B173: Городской округ город Зея | C173: 18864 | D173: 18864 | E173: 0
B174: Городской округ город Тында | C174: 28160 | D174: 28160 | E174: 0
B175: Зейский муниципальный район | C175: 11572 | D175: 0 | E175: 11572
B176: Селемджинский муниципальный район | C176: 7262 | D176: 4838 | E176: 2424
B177: Тындинский муниципальный округ | C177: 13606 | D177: 0 | E177: 13606
A178: * | B178: Архангельская область включая Ненецкий автономный округ | C178: 1005687 | D178: 781444 | E178: 224243
A179: * | B179: Ненецкий автономный округ | C179: 41383 | D179: 30832 | E179: 10551
B180: Городской округ город Нарьян -Мар | C180: 23579 | D180: 23579 | E180: 0
B181: Заполярный муниципальный район | C181: 17804 | D181: 7253 | E181: 10551
A182: * | B182: Архангельская область без Ненецкого автономного округа | C182: 964304 | D182: 750612 | E182: 213692
B183: Городской округ "Архангельск" | C183: 303357 | D183: 298617 | E183: 4740
B184: Городской округ "Коряжма" | C184: 34002 | D184: 34002 | E184: 0
B185: Городской округ "Котлас" | C185: 67023 | D185: 66939 | E185: 84
B186: Городской округ "Мирный" ЗАТО | C186: 27174 | D186: 27174 | E186: 0
B187: Городской округ "Новая Земля" | C187: 2360 | D187: 2060 | E187: 300
B188: Городской округ "Новодвинск" | C188: 32826 | D188: 32826 | E188: 0
B189: Городской округ "Северодвинск" | C189: 156731 | D189: 156056 | E189: 675
B190: Вельский муниципальный район | C190: 45261 | D190: 26102 | E190: 19159
B191: Верхнетоемский муниципальный округ | C191: 11299 | D191: 0 | E191: 11299
B192: Вилегодский муниципальный округ | C192: 8759 | D192: 0 | E192: 8759
B193: Виноградовский муниципальный округ | C193: 12647 | D193: 0 | E193: 12647
B194: Каргопольский муниципальный округ | C194: 14796 | D194: 8737 | E194: 6059
B195: Котласский муниципальный округ | C195: 17228 | D195: 8526 | E195: 8702
B196: Коношский муниципальный район | C196: 18209 | D196: 10317 | E196: 7892
B197: Лешуконский муниципальный округ | C197: 5231 | D197: 0 | E197: 5231
B198: Красноборский муниципальный район | C198: 10234 | D198: 0 | E198: 10234
B199: Ленский муниципальный район | C199: 9879 | D199: 3932 | E199: 5947
B200: Мезенский муниципальный округ | C200: 7248 | D200: 2832 | E200: 4416
B201: Няндомский муниципальный округ | C201: 22889 | D201: 18146 | E201: 4743
... 128 more rows

Sheet Таб_4
B1: Содержание
A2: 4. Оценка численности постоянного населения сухопутных территорий
B3: Арктической зоны Российской Федерации на 1 января 2023 года и в среднем за 2022 год
A4: (человек)
C6: На 1 января 2023 года | F6: В среднем за 2022 год
C7: Все | D7: в том числе | F7: Все | G7: в том числе
C8: население | D8: городское | E8: сельское | F8: население | G8: городское | H8: сельское
A9: Арктическая зона Российской Федерации | C9: 2362591 | D9: 2046950 | E9: 315641 | F9: 2369931 | G9: 2053184 | H9: 316747
B10: Республика Карелия | C10: 99629 | D10: 82627 | E10: 17002 | F10: 100485 | G10: 83207 | H10: 17278
B11: Городской округ город Костомукша | C11: 26531 | D11: 25928 | E11: 603 | F11: 26544 | G11: 25943 | H11: 601
B12: Беломорский муниципальный район | C12: 12546 | D12: 7407 | E12: 5139 | F12: 12754 | G12: 7511 | H12: 5243
B13: Калевальский муниципальный район | C13: 5939 | D13: 3417 | E13: 2522 | F13: 6029 | G13: 3463 | H13: 2566
B14: Кемский муниципальный район | C14: 12715 | D14: 9712 | E14: 3003 | F14: 12859 | G14: 9823 | H14: 3036
B15: Лоухский муниципальный район | C15: 10289 | D15: 7178 | E15: 3111 | F15: 10409 | G15: 7244 | H15: 3165
B16: Сегежский муниципальный район | C16: 31609 | D16: 28985 | E16: 2624 | F16: 31890 | G16: 29223 | H16: 2667
B17: Республика Коми2) | C17: 135297 | D17: 119419 | E17: 15878 | F17: 136204 | G17: 120199 | H17: 16005
B18: Городской округ Воркута | C18: 67702 | D18: 67410 | E18: 292 | F18: 67913 | G18: 67619 | H18: 294
B19: Городской округ Инта | C19: 21092 | D19: 19947 | E19: 1145 | F19: 21364 | G19: 20215 | H19: 1149
B20: Городской округ Усинск | C20: 36025 | D20: 32062 | E20: 3963 | F20: 36346 | G20: 32365 | H20: 3981
B21: Усть-Цилемский муниципальный район | C21: 10478 | D21: 0 | E21: 10478 | F21: 10581 | G21: 0 | H21: 10581
B22: Республика Саха (Якутия) | C22: 64282 | D22: 24598 | E22: 39684 | F22: 64140 | G22: 24473 | H22: 39667
B23: Абыйский муниципальный район | C23: 3786 | D23: 1905 | E23: 1881 | F23: 3792 | G23: 1900 | H23: 1892
B24: Аллаиховский муниципальный район | C24: 2349 | D24: 1832 | E24: 517 | F24: 2356 | G24: 1847 | H24: 509
B25: Анабарский национальный (долгано-эвенкийский) муниципальный район | C25: 3454 | D25: 0 | E25: 3454 | F25: 3467 | G25: 0 | H25: 3467
B26: Булунский муниципальный район | C26: 7997 | D26: 4440 | E26: 3557 | F26: 7863 | G26: 4320 | H26: 3543
B27: Верхнеколымский муниципальный район | C27: 3748 | D27: 2455 | E27: 1293 | F27: 3756 | G27: 2472 | H27: 1284
B28: Верхоянский муниципальный район | C28: 10009 | D28: 4683 | E28: 5326 | F28: 10007 | G28: 4699 | H28: 5308
B29: Жиганский национальный муниципальный район | C29: 4086 | D29: 0 | E29: 4086 | F29: 4121 | G29: 0 | H29: 4121
B30: Момский муниципальный район | C30: 3783 | D30: 0 | E30: 3783 | F30: 3754 | G30: 0 | H30: 3754
B31: Нижнеколымский муниципальный район | C31: 4211 | D31: 2641 | E31: 1570 | F31: 4201 | G31: 2627 | H31: 1574
B32: Оленекский эвенкийский национальный муниципальный район | C32: 4361 | D32: 0 | E32: 4361 | F32: 4348 | G32: 0 | H32: 4348
B33: Среднеколымский муниципальный район | C33: 6741 | D33: 3118 | E33: 3623 | F33: 6746 | G33: 3111 | H33: 3635
B34: Усть-Янский муниципальный район | C34: 6809 | D34: 3524 | E34: 3285 | F34: 6797 | G34: 3497 | H34: 3300
B35: Эвено-Бытантайский национальный муниципальный район | C35: 2948 | D35: 0 | E35: 2948 | F35: 2932 | G35: 0 | H35: 2932
B36: Красноярский край 3) | C36: 224495 | D36: 198716 | E36: 25779 | F36: 224863 | G36: 199013 | H36: 25850
B37: Городской округ город Норильск | C37: 175466 | D37: 175466 | E37: 0 | F37: 175636 | G37: 175636 | H37: 0
B38: Таймырский Долгано-Ненецкий муниципальный район | C38: 29889 | D38: 19782 | E38: 10107 | F38: 29997 | G38: 19853 | H38: 10144
B39: Туруханский муниципальный район | C39: 12491 | D39: 3468 | E39: 9023 | F39: 12573 | G39: 3524 | H39: 9049
B40: Эвенкийский муниципальный район
B41: Сельское поселение поселок Суринда | C41: 754 | D41: 0 | E41: 754 | F41: 741 | G41: 0 | H41: 741
B42: Сельское поселение поселок Тура | C42: 130 | D42: 0 | E42: 130 | F42: 128 | G42: 0 | H42: 128
B43: Сельское поселение поселок Нидым | C43: 140 | D43: 0 | E43: 140 | F43: 142 | G43: 0 | H43: 142
B44: Сельское поселение поселок Учами | C44: 337 | D44: 0 | E44: 337 | F44: 338 | G44: 0 | H44: 338
B45: Сельское поселение поселок Тутончаны | C45: 4369 | D45: 0 | E45: 4369 | F45: 4398 | G45: 0 | H45: 4398
B46: Сельское поселение поселок Ессей | C46: 194 | D46: 0 | E46: 194 | F46: 199 | G46: 0 | H46: 199
B47: Сельское поселение поселок Чиринда | C47: 82 | D47: 0 | E47: 82 | F47: 79 | G47: 0 | H47: 79
B48: Сельское поселение поселок Эконда | C48: 226 | D48: 0 | E48: 226 | F48: 223 | G48: 0 | H48: 223
B49: Сельское поселение поселок Кислокан | C49: 331 | D49: 0 | E49: 331 | F49: 323 | G49: 0 | H49: 323
B50: Сельское поселение поселок Юкта | C50: 86 | D50: 0 | E50: 86 | F50: 86 | G50: 0 | H50: 86
B51: Архангельская область, включая Ненецкий автономный округ | C51: 619963 | D51: 541614 | E51: 78349 | F51: 622582 | G51: 543715 | H51: 78867
B52: Архангельская область без Ненецкого автономного округа4) | C52: 578580 | D52: 510782 | E52: 67798 | F52: 581177 | G52: 512930 | H52: 68247
B53: Городской округ "Архангельск" | C53: 303357 | D53: 298617 | E53: 4740 | F53: 304793 | G53: 300039 | H53: 4754
B54: Городской округ "Новая Земля" | C54: 2360 | D54: 2060 | E54: 300 | F54: 2331 | G54: 2018 | H54: 313
B55: Городской округ "Новодвинск" | C55: 32826 | D55: 32826 | E55: 0 | F55: 32982 | G55: 32982 | H55: 0
B56: Городской округ "Северодвинск" | C56: 156731 | D56: 156056 | E56: 675 | F56: 157165 | G56: 156475 | H56: 690
B57: Лешуконский муниципальный район | C57: 5231 | D57: 0 | E57: 5231 | F57: 5330 | G57: 0 | H57: 5330
B58: Мезенский муниципальный район | C58: 7248 | D58: 2832 | E58: 4416 | F58: 7312 | G58: 2842 | H58: 4470
B59: Онежский муниципальный район | C59: 24068 | D59: 18391 | E59: 5677 | F59: 24359 | G59: 18574 | H59: 5785
B60: Пинежский муниципальный район | C60: 17966 | D60: 0 | E60: 17966 | F60: 18156 | G60: 0 | H60: 18156
A61: * | B61: Приморский муниципальный район | C61: 28793 | D61: 0 | E61: 28793 | F61: 28749 | G61: 0 | H61: 28749
A62: * | B62: Ненецкий автономный округ | C62: 41383 | D62: 30832 | E62: 10551 | F62: 41405 | G62: 30785 | H62: 10620
A63: * | B63: Мурманская область | C63: 658698 | D63: 612858 | E63: 45840 | F63: 661969 | G63: 616034 | H63: 45935
A64: * | B64: Чукотский автономный округ | C64: 47840 | D64: 33047 | E64: 14793 | F64: 47873 | G64: 33003 | H64: 14870
A65: * | B65: Ямало-Ненецкий автономный округ | C65: 512387 | D65: 434071 | E65: 78316 | F65: 511815 | G65: 433540 | H65: 78275
A67: * | B67: Вся территория субъекта Российской Федерации включена в сухопутную территорию Арктической зоны Российской Федерации.
B69: 1) Территории муниципальных образований "Городской округ г.Костомукша", "Калевальский муниципальный район" и "Сегежский муниципальный район" Республики Карелия включены в Перечень сухопутных территорий Арктической зоны Российской Федерации ФЗ "О государственной поддержке предпринимательской деятельности в Арктической зоне Российской Федерации"от 13.07.2020 № 193.
B71: 2) Территории муниципальных образований "Городской округ Инта", "Городской округ Усинск", "Усть-Цилемский муниципальный район" Республики Коми включены в Перечень сухопутных территорий Арктической зоны Российской Федерации ФЗ "О государственной поддержке предпринимательской деятельности в Арктической зоне Российской Федерации"от 13.07.2020 № 193.
B73: 3) Территории муниципальных образований "Сельское поселение поселок Суринда", "Сельское поселение поселок Тура", "Сельское поселение поселок Нидым", "Сельское поселение поселок Учами", "Сельское поселение поселок Тутончаны", "Сельское поселение поселок Ессей", "Сельское поселение поселок Чиринда", "Сельское поселение поселок Эконда", "Сельское поселение поселок Кислокан", "Сельское поселение поселок Юкта" Эвенкийского муниципального района Красноярского края включены в Перечень сухопутных территорий Арктической зоны Российской Федерации ФЗ "О государственной поддержке предпринимательской деятельности в Арктической зоне Российской Федерации"от 13.07.2020 № 193.
B75: 4) Территории муниципальных образований "Лешуконский муниципальный район", "Пинежский муниципальный район" Архангельской области включены в Перечень сухопутных территорий Арктической зоны Российской Федерации ФЗ "О государственной поддержке предпринимательской деятельности в Арктической зоне Российской Федерации"от 13.07.2020 № 193.

Sheet Таб_5.1
B1: Содержание
B2: 5.1. Оценка численности постоянного населения монопрофильных муниципальных образований Российской Федерации
B3: Муниципальные образования моногорода с наиболее сложным социально-экономическим положением
C4: Субъект Российской Федерации | D4: Муниципальное образование, городской населенный пункт (моногорода с наиболее сложным социально-экономическим положением) | E4: На 1 января 2023г.; человек
A5: 1072000000 | B5: 1 | C5: Амурская область | D5: Городской округ г Райчихинск | E5: 17451
A6: 107200000011000 | C6: Амурская область | D6: г Райчихинск | E6: 15860
A7: 1073000000 | B7: 2 | C7: Амурская область | D7: Городской округ г Свободный | E7: 48789
A8: 107300000011000 | C8: Амурская область | D8: г Свободный | E8: 48789
A9: 1165441420 | B9: 3 | C9: Архангельская область | D9: Устьянский муниципальный округ | E9: …
A10: 116544141012200 | C10: Архангельская область | D10: п Кизема снп | E10: 0
A11: 1164610120 | B11: 4 | C11: Архангельская область | D11: Городское поселение Онежское | E11: 16449
A12: 116461010011200 | C12: Архангельская область | D12: г Онега | E12: 16449
A13: 1565615500 | B13: 5 | C13: Брянская область | D13: Белоберезковское городское поселение | E13: 5716
A14: 156561550511000 | C14: Брянская область | D14: п Белая Березка | E14: 5716
A15: 1561615300 | B15: 6 | C15: Брянская область | D15: Бытошское городское поселение | E15: 4275
A16: 156161530511000 | C16: Брянская область | D16: п Бытошь | E16: 3900
A17: 1561615600 | B17: 7 | C17: Брянская область | D17: Ивотское городское поселение | E17: 6643
A18: 156161560511000 | C18: Брянская область | D18: п Ивот | E18: 5697
A19: 1561615900 | B19: 8 | C19: Брянская область | D19: Любохонское городское поселение | E19: 4888
A20: 156161590511000 | C20: Брянская область | D20: п Любохна | E20: 4888
A21: 1761510100 | B21: 9 | C21: Владимирская область | D21: Городское поселение город Гороховец | E21: 12310
A22: 176151010011000 | C22: Владимирская область | D22: г Гороховец | E22: 12310
A23: 1762510100 | B23: 10 | C23: Владимирская область | D23: Городское поселение город Камешково | E23: 11857
A24: 176251010011000 | C24: Владимирская область | D24: г Камешково | E24: 11857
A25: 1762011500 | B25: 11 | C25: Владимирская область | D25: Городское поселение город Курлово | E25: 6100
A26: 176201150011000 | C26: Владимирская область | D26: г Курлово | E26: 6100
A27: 1961410500 | B27: 12 | C27: Вологодская область | D27: Великоустюгский муниципальный округ | E27: …
A28: 196141050011000 | C28: Вологодская область | D28: г Красавино | E28: 5460
A29: 1965416200 | B29: 13 | C29: Вологодская область | D29: Чагодощенский муниципальный округ | E29: …
A30: 196541620511000 | C30: Вологодская область | D30: пгт Сазоново | E30: 2680
A31: 1973000000 | B31: 14 | C31: Вологодская область | D31: Городской округ город Череповец | E31: 301040
A32: 197300000011002 | C32: Вологодская область | D32: г Череповец | E32: 301040
A33: 7664815800 | B33: 15 | C33: Забайкальский край | D33: Городское поселение Жирекенское | E33: 3436
A34: 766481580511000 | C34: Забайкальский край | D34: пгт Жирекен | E34: 3424
A35: 7680215300 | B35: 16 | C35: Забайкальский край | D35: Городское поселение Новоорловск | E35: 3065
A36: 766021530511000 | C36: Забайкальский край | D36: пгт Новоорловск | E36: 3065
A37: 7665415800 | B37: 17 | C37: Забайкальский край | D37: Городское поселение Первомайское | E37: 11454
A38: 766541580511000 | C38: Забайкальский край | D38: пгт Первомайский | E38: 11054
A39: 7662110100 | B39: 18 | C39: Забайкальский край | D39: Городское поселение г Краснокаменск | E39: 51261
A40: 766211010011000 | C40: Забайкальский край | D40: г Краснокаменск | E40: 51261
A41: 7663615600 | B41: 19 | C41: Забайкальский край | D41: Городское поселение Новопавловское | E41: 3084
A42: 766361560511000 | C42: Забайкальский край | D42: пгт Новопавловка | E42: 2759
A43: 2460315600 | B43: 20 | C43: Ивановская область | D43: Петровское городское поселение | E43: 3003
A44: 246031560511000 | C44: Ивановская область | D44: пгт Петровский | E44: 1866
A45: 2460115400 | B45: 21 | C45: Ивановская область | D45: Каменское городское поселение | E45: 3573
A46: 246011540511000 | C46: Ивановская область | D46: пгт Каменка | E46: 3573
A47: 2462515100 | B47: 22 | C47: Ивановская область | D47: Савинское городское поселение | E47: 4620
A48: 246251510511000 | C48: Ивановская область | D48: пгт Савино | E48: 4620
A49: 2463510100 | B49: 23 | C49: Ивановская область | D49: Южское городское поселение | E49: 13108
A50: 246351010011000 | C50: Ивановская область | D50: г Южа | E50: 12667
A51: 2563410800 | B51: 24 | C51: Иркутская область | D51: Байкальское городское поселение | E51: 13572
A52: 256341080011000 | C52: Иркутская область | D52: г Байкальск | E52: 12965
A53: 2573600000 | B53: 25 | C53: Иркутская область | D53: Городской округ г Усолье-Сибирское | E53: 73507
A54: 257360000011000 | C54: Иркутская область | D54: г Усолье-Сибирское | E54: 73507
A55: 2573200000 | B55: 26 | C55: Иркутская область | D55: Городской округ г Тулун | E55: 37847
A56: 257320000011000 | C56: Иркутская область | D56: г Тулун | E56: 37847
A57: 3270400000 | B57: 27 | C57: Кемеровская область | D57: Анжеро-Судженский городской округ | E57: 70178
A58: 327040000011000 | C58: Кемеровская область | D58: г Анжеро-Судженск | E58: 65320
A59: 3260210100 | B59: 28 | C59: Кемеровская область | D59: Гурьевский муниципальный округ | E59: …
A60: 326021010011000 | C60: Кемеровская область | D60: г Гурьевск | E60: 21801
A61: 3273700000 | B61: 29 | C61: Кемеровская область | D61: Прокопьевский городской округ | E61: 174859
A62: 327370000011002 | C62: Кемеровская область | D62: г Прокопьевск | E62: 174859
A63: 3271500000 | B63: 30 | C63: Кемеровская область | D63: Калтанский городской округ | E63: 29370
A64: 327150000011000 | C64: Кемеровская область | D64: г Калтан | E64: 21334
A65: 3271600000 | B65: 31 | C65: Кемеровская область | D65: Киселевский городской округ | E65: 86185
A66: 327160000011000 | C66: Кемеровская область | D66: г Киселевск | E66: 81887
A67: 3262715700 | B67: 31-1 | C67: Кемеровская область | D67: Мундыбашское городское поселение | E67: 4092
A68: 326271570511000 | C68: Кемеровская область | D68: пгт Мундыбаш | E68: 4059
A69: 3274900000 | B69: 32 | C69: Кемеровская область | D69: Юргинский городской округ | E69: 78494
A70: 327490000011000 | C70: Кемеровская область | D70: г Юрга | E70: 78494
A71: 3260210400 | B71: 33 | C71: Кемеровская область | D71: Гурьевский муниципальный округ | E71: …
A72: 326021040011000 | C72: Кемеровская область | D72: г Салаир | E72: 6939
A73: 3262710100 | B73: 34 | C73: Кемеровская область | D73: Таштагольское городское поселение | E73: 21670
A74: 326271010011000 | C74: Кемеровская область | D74: г Таштагол | E74: 21670
A75: 3370400000 | B75: 35 | C75: Кировская область | D75: Городской округ г Вятские Поляны | E75: 29227
A76: 337040000011000 | C76: Кировская область | D76: г Вятские Поляны | E76: 29227
A77: 3364915400 | B77: 36 | C77: Кировская область | D77: Мурыгинское городское поселение | E77: 6080
A78: 336491540511000 | C78: Кировская область | D78: пгт Мурыгино | E78: 6080
A79: 3360510100 | B79: 37 | C79: Кировская область | D79: Белохолуницкое городское поселение | E79: 10400
A80: 336051010011000 | C80: Кировская область | D80: г Белая Холуница | E80: 9527
A81: 3362210100 | B81: 38 | C81: Кировская область | D81: Лузский муниципальный округ | E81: …
A82: 336221010011000 | C82: Кировская область | D82: г Луза | E82: 8788
A83: 4160310200 | B83: 39 | C83: Ленинградская область | D83: Городское поселение Пикалёвское | E83: 20169
A84: 416031020011000 | C84: Ленинградская область | D84: г Пикалёво | E84: 20169
A85: 4771200010 | B85: 40 | C85: Мурманская область | D85: Муниципальный округ город Кировск с подведомственной территорией | E85: 26253
A86: 477120000011100 | C86: Мурманская область | D86: г Кировск | E86: 24271
A87: 4770300011 | B87: 41 | C87: Мурманская область | D87: Ковдорский муниципальный округ | E87: …
A88: 477030000011110 | C88: Мурманская область | D88: г Ковдор | E88: 15423
A89: 4761015411 | B89: 42 | C89: Мурманская область | D89: Городское поселение Ревда | E89: 6321
A90: 476101540511110 | C90: Мурманская область | D90: пгт Ревда | E90: 6321
A91: 4965040200 | B91: 43 | C91: Новгородская область | D91: Грузинское сельское поселение | E91: 2383
A92: 496504020512000 | C92: Новгородская область | D92: поселок Краснофарфорный (снп) | E92: 0
A93: 4963210100 | B93: 44 | C93: Новгородская область | D93: Пестовское городское поселение | E93: 13731
A94: 496321010011000 | C94: Новгородская область | D94: г Пестово | E94: 13731
A95: 5372000000 | B95: 45 | C95: Оренбургская область | D95: Городской округ город Новотроицк | E95: 79946
A96: 537200000011000 | C96: Оренбургская область | D96: г Новотроицк | E96: 74959
A97: 5371400000 | B97: 46 | C97: Оренбургская область | D97: Кувандыкский городской округ | E97: 40777
A98: 537140000011000 | C98: Оренбургская область | D98: г Кувандык | E98: 26439
A99: 5364042800 | B99: 47 | C99: Оренбургская область | D99: Сельское поселение Светлинский поссовет | E99: 7117
A100: 536404281012000 | C100: Оренбургская область | D100: посёлок Светлый снп | E100: 0
A101: 5762610100 | B101: 48 | C101: Пермский край | D101: Красновишерский городской округ | E101: 17604
A102: 576261010011000 | C102: Пермский край | D102: г Красновишерск | E102: 14164
A103: 5764410100 | B103: 49 | C103: Пермский край | D103: Очерский городской округ | E103: 22456
A104: 576441010011000 | C104: Пермский край | D104: г Очер | E104: 14294
A105: 5761440600 | B105: 51 | C105: Пермский край | D105: Чусовской городской округ | E105: 64392
A106: 576144060511000 | C106: Пермский край | D106: г Чусовой | E106: 44780
A107: 5765810100 | B107: 54 | C107: Приморский край | D107: Дальнегорский городской округ | E107: 38999
A108: 576581010011000 | C108: Приморский край | D108: г Дальнегорск | E108: 33030
A109: 5763410100 | B109: 55 | C109: Приморский край | D109: Пожарский муниципальный округ | E109: …
A110: 576341010011000 | C110: Приморский край | D110: с. Светлогорье снп | E110: …
A111: 5763415700 | B111: 56 | C111: Приморский край | D111: Хорольский муниципальный округ | E111: …
A112: 576341570511000 | C112: Приморский край | D112: пгт Ярославский | E112: 8146
A113: 0570700020 | B113: 57 | C113: Республика Башкортостан | D113: Городское поселение г Белебей | E113: 59131
A114: 057070000011200 | C114: Республика Башкортостан | D114: г Белебей | E114: 59131
A115: 0563442101 | B115: 58 | C115: Республика Башкортостан | D115: Городской округ г Кумертау | E115: 61699
A116: 56344211012010 | C116: Республика Башкортостан | D116: г Кумертау | E116: 57812
A117: 0565015600 | B117: 59 | C117: Республика Бурятия | D117: Городское поселение Селенгинское | E117: 13187
A118: 056501560511000 | C118: Республика Бурятия | D118: пгт Селенгинск | E118: 13187
A119: 8060910100 | B119: 60 | C119: Республика Дагестан | D119: Городской округ город Каспийск | E119: 125748
A120: 806091010011000 | C120: Республика Дагестан | D120: г Каспийск | E120: 125748
A121: 8072300000 | B121: 61 | C121: Республика Дагестан | D121: Городской округ город Дагестанские Огни | E121: 31894
A122: 807230000011000 | C122: Республика Дагестан | D122: г Дагестанские Огни | E122: 31894
A123: 8162416300 | B123: 62 | C123: Республика Карелия | D123: Суоярвский муниципальный округ | E123: …
A124: 816241630511000 | C124: Республика Карелия | D124: г Суоярви | E124: 6819
A125: 8272000000 | B125: 63 | C125: Республика Карелия | D125: Кондопожское городское поселение | E125: 25848
A126: 827200000011002 | C126: Республика Карелия | D126: г Кондопога | E126: 25295
A127: 8270800000 | B127: 64 | C127: Республика Карелия | D127: Муезерское городское поселение | E127: 2507
A128: 827080000011000 | C128: Республика Карелия | D128: пгт Муезерский | E128: 2507
A129: 8665010120 | B129: 65 | C129: Республика Карелия | D129: Надвоицкое городское поселение | E129: 6785
A130: 866501010011200 | C130: Республика Карелия | D130: пгт Надвоицы | E130: 5911
A131: 8661510120 | B131: 66 | C131: Республика Карелия | D131: Питкярантское городское поселение | E131: 8407
A132: 866151010011200 | C132: Республика Карелия | D132: г Питкяранта | E132: 8094
A133: 8662715120 | B133: 67 | C133: Республика Карелия | D133: Пудожское городское поселение | E133: 8068
A134: 866271510511200 | C134: Республика Карелия | D134: г Пудож | E134: 7207
A135: 8664516020 | B135: 68 | C135: Республика Коми | D135: Городское поселение Емва | E135: 10883
A136: 866451600511200 | C136: Республика Коми | D136: г Емва | E136: 10779
A137: 8663310120 | B137: 69 | C137: Республика Крым | D137: Городской округ Красноперекопск | E137: 25181
A138: 866331010011200 | C138: Республика Крым | D138: г Красноперекопск | E138: 25181
A139: 8664210120 | B139: 70 | C139: Республика Татарстан | D139: Городское поселение город Зеленодольск | E139: 99078
A140: 866421010011200 | C140: Республика Татарстан | D140: г Зеленодольск | E140: 99078
A141: 8760810120 | B141: 71 | C141: Республика Татарстан | D141: Городской округ - город Набережные Челны | E141: 545750
A142: 876081010011200 | C142: Республика Татарстан | D142: г Набережные Челны | E142: 545750
A143: 3571800000 | B143: 72 | C143: Республика Хакасия | D143: Сельское поселение Туимский сельсовет | E143: 3744
A144: 357180000011000 | C144: Республика Хакасия | D144: с Туим снп | E144: …
A145: 9262810100 | B145: 72-1 | C145: Республика Хакасия | D145: Городской округ г Абаза | E145: 12055
A146: 926281010011000 | C146: Республика Хакасия | D146: г Абаза | E146: 12055
A147: 9273000000 | B147: 72-2 | C147: Республика Хакасия | D147: Городское поселение Вершино-Тёйский поссовет | E147: 3006
A148: 927300000011002 | C148: Республика Хакасия | D148: рп Вершина Тёи | E148: 3006
A149: 9563540300 | B149: 73 | C149: Ростовская область | D149: Городской округ Город Гуково | E149: 59293
A150: 956354031012000 | C150: Ростовская область | D150: г Гуково | E150: 59293
A151: 9570200000 | B151: 73-1 | C151: Самарская область | D151: Городской округ Тольятти | E151: 674630
A152: 957020000011000 | C152: Самарская область | D152: г Тольятти | E152: 674630
A153: 9560816900 | B153: 74 | C153: Свердловская область | D153: Волчанский городской округ | E153: 8587
A154: 956081690511000 | C154: Свердловская область | D154: г Волчанск | E154: 8392
A155: 6071500000 | B155: 75 | C155: Свердловская область | D155: Городской округ Первоуральск | E155: 131408
A156: 607150000011000 | C156: Свердловская область | D156: г Первоуральск | E156: 112860
A157: 3674000000 | B157: 76 | C157: Свердловская область | D157: Североуральский городской округ | E157: 35375
A158: 367400000011002 | C158: Свердловская область | D158: г Североуральск | E158: 24029
A159: 6573500000 | B159: 77 | C159: Свердловская область | D159: Городской округ Карпинск | E159: 27146
A160: 657350000011000 | C160: Свердловская область | D160: г Карпинск | E160: 25396
A161: 6575300000 | B161: 78 | C161: Свердловская область | D161: Городской округ Краснотурьинск | E161: 59269
A162: 657530000011002 | C162: Свердловская область | D162: г Краснотурьинск | E162: 55727
A163: 6575500000 | B163: 78-1 | C163: Смоленская область | D163: Дорогобужское городское поселение | E163: 9248
A164: 657550000011000 | C164: Смоленская область | D164: г Дорогобуж | E164: 9248
A165: 6574200000 | B165: 79 | C165: Тверская область | D165: Великооктябрьское городское поселение | E165: 2259
A166: 657420000011000 | C166: Тверская область | D166: пгт Великооктябрьский | E166: 2033
A167: 6574500000 | B167: 80 | C167: Тверская область | D167: Городское поселение город Кувшиново | E167: 9084
A168: 657450000011000 | C168: Тверская область | D168: г Кувшиново | E168: 9084
A169: 6661410100 | B169: 81 | C169: Тверская область | D169: Жарковский муниципальный округ | E169: …
A170: 666141010011000 | C170: Тверская область | D170: пгт Жарковский | E170: 2830
A171: 2865715700 | B171: 82 | C171: Тверская область | D171: Спировский муниципальный округ | E171: …
A172: 286571570511000 | C172: Тверская область | D172: пгт Спирово | E172: 5144
A173: 2863410100 | B173: 82-1 | C173: Ульяновская область | D173: Городской округ город Димитровград | E173: 109547
A174: 286341010011000 | C174: Ульяновская область | D174: г Димитровград | E174: 109547
A175: 2861415100 | B175: 83 | C175: Хабаровский край | D175: Городское поселение Рабочий поселок Чегдомын | E175: 12672
A176: 286141510511000 | C176: Хабаровский край | D176: пгт Чегдомын | E176: 11726
A177: 2865215100 | B177: 84 | C177: Челябинская область | D177: Усть-Катавский городской округ | E177: 23566
A178: 286521510511000 | C178: Челябинская область | D178: г Усть-Катав | E178: 21016
A179: 7370500000 | B179: 85 | C179: Челябинская область | D179: Карабашский городской округ | E179: 10588
A180: 737050000011002 | C180: Челябинская область | D180: г Карабаш | E180: 10339
A181: 0861415121 | B181: 86 | C181: Челябинская область | D181: Нязепетровское городское поселение | E181: 10200
A182: 086141510511210 | C182: Челябинская область | D182: г Нязепетровск | E182: 10198
A183: 7575500000 | B183: 87 | C183: Челябинская область | D183: Ашинское городское поселение | E183: 27442
A184: 757550000011000 | C184: Челябинская область | D184: г Аша | E184: 27442
A185: 7571500000 | B185: 88 | C185: Челябинская область | D185: Миньярское городское поселение | E185: 8468
A186: 757150000011000 | C186: Челябинская область | D186: г Миньяр | E186: 8364
A187: 7564410100 | B187: 89 | C187: Челябинская область | D187: Верхнеуфалейский городской округ | E187: 25532
A188: 756441010011000 | C188: Челябинская область | D188: г Верхний Уфалей | E188: 22548
A189: 7560910100 | B189: 90 | C189: Челябинская область | D189: Бакальское городское поселение | E189: 16163
A190: 756091010011000 | C190: Челябинская область | D190: г Бакал | E190: 16103
A191: 7560910300 | B191: 91 | C191: Чувашская Республика | D191: Канашский городской округ | E191: 44257
A192: 756091030011000 | C192: Чувашская Республика | D192: г Канаш | E192: 44257
A193: 7570600000 | B193: 92 | C193: Чувашская Республика | D193: Мариинско-Посадский муниципальный округ | E193: …
A194: 757060000011000 | C194: Чувашская Республика | D194: г Мариинский Посад | E194: 7746
A195: 7564910300 | B195: 93 | C195: Ярославская область | D195: Сельское поселение Песочное | E195: 2531
A196: 756491030011000 | C196: Ярославская область | D196: поселок Песочное снп | E196: 0
A197: 9770700000 | B197: 94 | C197: Ярославская область | D197: Городское поселение Гаврилов-Ям | E197: 15766
C198: Ярославская область | D198: г Гаврилов-Ям | E198: 15766
B200: Позиция 31-1 введена распоряжением Правительства Российской Федерации от 24.11.2015 № 2388-р
B201: Позиции 72-1, 72-2, 73-1 введены распоряжением Правительства Российской Федерации от 28.10.2015 № 2190-р
... 5 more rows

Sheet Таб_5.2
B1: Содержание
B2: 5.2. Муниципальные образования, в которых имеются риски ухудшения социально-экономического положения
C4: Субъект Российской Федерации | D4: Муниципальное образование, городской населенный пункт (моногорода, в которых имеются риски ухудшения социально-экономического положения) | E4: На 1 января 2023г.; человек
A5: 0173000000 | B5: 95 | C5: Алтайский край | D5: Городской округ г Яровое | E5: 16447
A6: 017300000011000 | C6: Алтайский край | D6: г Яровое | E6: 16447
A7: 0170600000 | B7: 96 | C7: Алтайский край | D7: Городской округ город Заринск | E7: 40626
A8: 017060000011000 | C8: Алтайский край | D8: г Заринск | E8: 40626
A9: 0170300000 | B9: 97 | C9: Алтайский край | D9: Городской округ город Алейск | E9: 24804
A10: 017030000011000 | C10: Алтайский край | D10: г Алейск | E10: 24804
A11: 0171300000 | B11: 98 | C11: Алтайский край | D11: Городской округ город Новоалтайск | E11: 73122
A12: 017130000011000 | C12: Алтайский край | D12: г Новоалтайск | E12: 73122
A13: 0160515700 | B13: 99 | C13: Алтайский край | D13: Городское поселение Степноозёрский поссовет | E13: 5542
A14: 016051570511000 | C14: Алтайский край | D14: пгт Степное Озеро | E14: 5542
A15: 1073200020 | B15: 100 | C15: Амурская область | D15: Городской округ город Тында | E15: 28160
A16: 107320000011200 | C16: Амурская область | D16: г Тында | E16: 28160
A17: 1071000000 | B17: 101 (1) | C17: Амурская область | D17: Городской округ - пгт Прогресс | E17: 10970
A18: 107100000011000 | C18: Амурская область | D18: пгт Прогресс | E18: 9820
A19: 1165415120 | B19: 102 | C19: Архангельская область | D19: Устьянский муниципальный округ | E19: …
A20: 116541510511200 | C20: Архангельская область | D20: рп Октябрьский | E20: 9008
A21: 1170800020 | B21: 103 | C21: Архангельская область | D21: Городской округ Коряжма | E21: 34002
A22: 117080000011200 | C22: Архангельская область | D22: г Коряжма | E22: 34002
A23: 1171500020 | B23: 104 | C23: Архангельская область | D23: Городской округ Новодвинск | E23: 32826
A24: 117150000011200 | C24: Архангельская область | D24: г Новодвинск | E24: 32826
A25: 1565410100 | B25: 105 | C25: Брянская область | D25: Суражское городское поселение | E25: 10995
A26: 156541010011000 | C26: Брянская область | D26: г Сураж | E26: 10995
A27: 1571000000 | B27: 106 | C27: Брянская область | D27: Городской округ город Фокино | E27: 12245
A28: 157100000011000 | C28: Брянская область | D28: г Фокино | E28: 12245
A29: 1764210100 | B29: 107 | C29: Владимирская область | D29: Городское поселение город Меленки | E29: 13147
A30: 176421010011000 | C30: Владимирская область | D30: г Меленки | E30: 13147
A31: 1761010100 | B31: 108 | C31: Владимирская область | D31: Городское поселение город Вязники | E31: 39575
A32: 176101010011000 | C32: Владимирская область | D32: г Вязники | E32: 35167
A33: 1872000000 | B33: 109 | C33: Волгоградская область | D33: Городской округ город Михайловка | E33: 82970
A34: 187200000011000 | C34: Волгоградская область | D34: г Михайловка | E34: 55029
A35: 1872800000 | B35: 110 | C35: Волгоградская область | D35: Городской округ город Фролово | E35: 34494
A36: 187280000011000 | C36: Волгоградская область | D36: г Фролово | E36: 34494
A37: 1963810100 | B37: 111 | C37: Вологодская область | D37: Сокольский муниципальный округ | E37: …
A38: 196381010011000 | C38: Вологодская область | D38: г Сокол | E38: 34298
A39: 2062716000 | B39: 112 | C39: Воронежская область | D39: Елань-Коленовское городское поселение | E39: 3209
A40: 206271600511000 | C40: Воронежская область | D40: пгт Елань-Коленовский рп | E40: 3208
A41: 2064910100 | B41: 113 | C41: Воронежская область | D41: Городское поселение город Семилуки | E41: 27948
A42: 206491010011000 | C42: Воронежская область | D42: г Семилуки | E42: 27948
A43: 2063310100 | B43: 114 | C43: Воронежская область | D43: Городское поселение город Павловск | E43: 21917
A44: 206331010011000 | C44: Воронежская область | D44: г Павловск | E44: 21917
A45: 9962017000 | B45: 115 | C45: Еврейская автономная область | D45: Теплоозерское городское поселение | E45: 4657
A46: 996201700511000 | C46: Еврейская автономная область | D46: пгт Теплоозерск | E46: 3481
A47: 7664415420 | B47: 116 | C47: Забайкальский край | D47: Тунгокоченский муниципальный округ | E47: …
A48: 766441540511200 | C48: Забайкальский край | D48: пгт Вершино-Дарасунский | E48: 4887
A49: 7660915400 | B49: 117 | C49: Забайкальский край | D49: Городское поселение Шерловогорское | E49: 10081
A50: 766091540511000 | C50: Забайкальский край | D50: пгт Шерловая Гора | E50: 10081
A51: 7664015400 | B51: 118 | C51: Забайкальский край | D51: Городское поселение Кокуйское | E51: 5552
A52: 766401540511000 | C52: Забайкальский край | D52: пгт Кокуй | E52: 5426
A53: 2461110400 | B53: 119 | C53: Ивановская область | D53: Наволокское городское поселение | E53: 10195
A54: 246111040011000 | C54: Ивановская область | D54: г Наволоки | E54: 7923
A55: 2463315400 | B55: 120 | C55: Ивановская область | D55: Колобовское городское поселение | E55: 3289
A56: 246331540511000 | C56: Ивановская область | D56: пгт Колобово | E56: 2334
A57: 2470300000 | B57: 121 | C57: Ивановская область | D57: Городской округ Вичуга | E57: 30010
A58: 247030000011000 | C58: Ивановская область | D58: г Вичуга | E58: 30010
A59: 2462010600 | B59: 122 | C59: Ивановская область | D59: Приволжское городское поселение | E59: 14137
A60: 246201060011000 | C60: Ивановская область | D60: г Приволжск | E60: 14137
A61: 2574500000 | B61: 123 | C61: Иркутская область | D61: Городской округ Черемховское | E61: 53415
A62: 257450000011000 | C62: Иркутская область | D62: г Черемхово | E62: 53415
A63: 2572600000 | B63: 124 | C63: Иркутская область | D63: Городской округ г Саянск | E63: 35593
A64: 257260000011000 | C64: Иркутская область | D64: г Саянск | E64: 35593
A65: 2573800020 | B65: 125 | C65: Иркутская область | D65: Городской округ г Усть-Илимск | E65: 78445
A66: 257380000011200 | C66: Иркутская область | D66: г Усть-Илимск | E66: 78445
A67: 2562610120 | B67: 126 | C67: Иркутская область | D67: Железногорское городское поселение | E67: 21111
A68: 256261010011200 | C68: Иркутская область | D68: г Железногорск-Илимский | E68: 21111
A69: 2961610400 | B69: 126(1) | C69: Калининградская область | D69: Янтарный городской округ | E69: 7237
A70: 296161040011000 | C70: Калининградская область | D70: пгт Янтарный | E70: 6571
A71: 2960810100 | B71: 127 | C71: Калужская область | D71: Городское поселение город Сосенский | E71: 11483
A72: 296081010011000 | C72: Калужская область | D72: г Сосенский | E72: 11259
A73: 9163015800 | B73: 128 | C73: Калужская область | D73: Городское поселение город Кондрово | E73: 15734
A74: 916301580511000 | C74: Калужская область | D74: г Кондрово | E74: 15734
A75: 3261610100 | B75: 129 | C75: Карачаево-Черкесская Республика | D75: Медногорское городское поселение | E75: 5549
A76: 326161010011000 | C76: Карачаево-Черкесская Республика | D76: пгт Медногорский (рп) | E76: 5549
A77: 3263110100 | B77: 130 | C77: Кемеровская область | D77: Мариинский муниципальный округ | E77: …
A78: 326311010011000 | C78: Кемеровская область | D78: г Мариинск | E78: 40386
A79: 3264615100 | B79: 131 | C79: Кемеровская область | D79: Топкинский муниципальный округ | E79: …
A80: 326461510511000 | C80: Кемеровская область | D80: г Топки | E80: 26861
A81: 3272800000 | B81: 132 | C81: Кемеровская область | D81: Яшкинский муниципальный округ | E81: …
A82: 327280000011000 | C82: Кемеровская область | D82: пгт Яшкино | E82: 12776
A83: 3272500000 | B83: 134 | C83: Кемеровская область | D83: Мысковский городской округ | E83: 41743
A84: 327250000011000 | C84: Кемеровская область | D84: г Мыски | E84: 39709
A85: 3271000000 | B85: 135 | C85: Кемеровская область | D85: Междуреченский городской округ | E85: 96559
A86: 327100000011000 | C86: Кемеровская область | D86: г Междуреченск | E86: 95408
A87: 3274000000 | B87: 136 | C87: Кемеровская область | D87: Березовский городской округ | E87: 45941
A88: 327400000011000 | C88: Кемеровская область | D88: г Березовский | E88: 43816
A89: 3271900000 | B89: 137 | C89: Кемеровская область | D89: Тайгинский городской округ | E89: 23240
A90: 327190000011000 | C90: Кемеровская область | D90: г Тайга | E90: 22092
A91: 3273400000 | B91: 138 | C91: Кемеровская область | D91: Ленинск-Кузнецкий городской округ | E91: 91711
A92: 327340000011000 | C92: Кемеровская область | D92: г Ленинск-Кузнецкий | E92: 90412
A93: 3273200000 | B93: 139 | C93: Кемеровская область | D93: Осинниковский городской округ | E93: 44002
A94: 327320000011000 | C94: Кемеровская область | D94: г Осинники | E94: 39549
A95: 3270700000 | B95: 140 | C95: Кемеровская область | D95: Полысаевский городской округ | E95: 28061
A96: 327070000011000 | C96: Кемеровская область | D96: г Полысаево | E96: 25502
A97: 3360710100 | B97: 141 | C97: Кемеровская область | D97: Беловский городской округ | E97: 120094
A98: 336071010011000 | C98: Кемеровская область | D98: г Белово | E98: 67950
A99: 3363215400 | B99: 142 | C99: Кировская область | D99: Верхнекамский муниципальный округ | E99: …
A100: 336321540511000 | C100: Кировская область | D100: г Кирс | E100: 8263
A101: 3364110100 | B101: 143 | C101: Кировская область | D101: Демьяновское городское поселение | E101: 4916
A102: 336411010011000 | C102: Кировская область | D102: пгт Демьяново | E102: 4298
A103: 3471400000 | B103: 144 | C103: Кировская область | D103: Уржумское городское поселение | E103: 8336
A104: 347140000011000 | C104: Кировская область | D104: г Уржум | E104: 8336
A105: 3470800000 | B105: 145 | C105: Костромская область | D105: Городской округ город Мантурово | E105: 15426
A106: 347080000011000 | C106: Костромская область | D106: г Мантурово | E106: 12738
A107: 0470700000 | B107: 146 | C107: Костромская область | D107: Городской округ город Галич | E107: 12600
A108: 047070000011000 | C108: Костромская область | D108: г Галич | E108: 12600
A109: 0473700000 | B109: 147 | C109: Красноярский край | D109: Городской округ г Бородино | E109: 14985
A110: 047370000011000 | C110: Красноярский край | D110: г Бородино | E110: 14985
A111: 3761210100 | B111: 148 | C111: Красноярский край | D111: Городской округ г Зеленогорск (ЗАТО) | E111: 53402
A112: 376121010011000 | C112: Красноярский край | D112: г Зеленогорск | E112: 53402
A113: 3762610100 | B113: 149 | C113: Курганская область | D113: Городское поселение город Катайск | E113: 11653
A114: 376261010011000 | C114: Курганская область | D114: г Катайск | E114: 11653
A115: 3760810100 | B115: 150 | C115: Курганская область | D115: Петуховский муниципальный округ | E115: …
A116: 376081010011000 | C116: Курганская область | D116: г Петухово | E116: 8457
A117: 3870500000 | B117: 151 | C117: Курганская область | D117: Городское поселение город Далматово | E117: 11586
A118: 387050000012000 | C118: Курганская область | D118: г Далматово | E118: 11422
A119: 4164210100 | B119: 152 | C119: Курская область | D119: Городской округ город Железногорск | E119: 96206
A120: 416421010011000 | C120: Курская область | D120: г Железногорск | E120: 96206
A121: 4761515110 | B121: 153 | C121: Ленинградская область | D121: Городское поселение Сланцевское | E121: 35258
A122: 476151510511100 | C122: Ленинградская область | D122: г Сланцы | E122: 34113
A123: 4771500010 | B123: 154 | C123: Мурманская область | D123: Печенгский муниципальный округ | E123: …
A124: 477150000011100 | C124: Мурманская область | D124: пгт Никель | E124: 9519
A125: 4761510310 | B125: 155 | C125: Мурманская область | D125: Муниципальный округ город Мончегорск с подведомственной территорией | E125: 41729
A126: 476151030011100 | C126: Мурманская область | D126: г Мончегорск | E126: 39477
A127: 4771700010 | B127: 156 | C127: Мурманская область | D127: Печенгский муниципальный округ | E127: …
A128: 477170000011100 | C128: Мурманская область | D128: г Заполярный | E128: 14231
A129: 2262810300 | B129: 157 | C129: Мурманская область | D129: Муниципальный округ город Оленегорск с подведомственной территорией | E129: 27974
A130: 226281030011000 | C130: Мурманская область | D130: г Оленегорск | E130: 20875
A131: 2260215500 | B131: 158 | C131: Нижегородская область | D131: Городецкий муниципальный округ | E131: …
A132: 226021550511000 | C132: Нижегородская область | D132: г Заволжье | E132: 36370
A133: 2273000000 | B133: 159 | C133: Нижегородская область | D133: Ардатовский муниципальный округ | E133: …
A134: 227300000011000 | C134: Нижегородская область | D134: пгт Мухтолово | E134: 4218
A135: 2272700000 | B135: 160 | C135: Нижегородская область | D135: Городской округ Навашинский | E135: 20982
A136: 227270000011000 | C136: Нижегородская область | D136: г Навашино | E136: 14372
A137: 2264210300 | B137: 161 | C137: Нижегородская область | D137: Городской округ город Кулебаки | E137: 45413
A138: 226421030011000 | C138: Нижегородская область | D138: г Кулебаки | E138: 31715
A139: 4963015100 | B139: 162 | C139: Нижегородская область | D139: Павловский муниципальный округ | E139: …
A140: 496301510511000 | C140: Нижегородская область | D140: г Ворсма | E140: 10028
A141: 4960610100 | B141: 163 | C141: Новгородская область | D141: Парфинское городское поселение | E141: 6404
A142: 496061010011000 | C142: Новгородская область | D142: пгт Парфино рп | E142: 6304
A143: 4962816200 | B143: 164 | C143: Новгородская область | D143: Городское поселение город Боровичи | E143: 47353
A144: 496281620511000 | C144: Новгородская область | D144: г Боровичи | E144: 47353
A145: 5061515200 | B145: 165 | C145: Новгородская область | D145: Угловское городское поселение | E145: 2682
A146: 506151520511000 | C146: Новгородская область | D146: пгт Угловка рп | E146: 2221
A147: 5262915700 | B147: 166 | C147: Новосибирская область | D147: Городское поселение рабочий посёлок Линево | E147: 17731
A148: 526291570511000 | C148: Новосибирская область | D148: пгт Линево рп | E148: 17731
A149: 5371500000 | B149: 167 | C149: Омская область | D149: Красноярское городское поселение | E149: 5433
A150: 537150000011000 | C150: Омская область | D150: пгт Красный Яр рп | E150: 5433
A151: 5371300000 | B151: 168 | C151: Оренбургская область | D151: Городской округ город Медногорск | E151: 24531
A152: 537130000011000 | C152: Оренбургская область | D152: г Медногорск | E152: 23364
A153: 5471000000 | B153: 169 | C153: Оренбургская область | D153: Гайский городской округ | E153: 39585
A154: 547100000011000 | C154: Оренбургская область | D154: г Гай | E154: 32637
A155: 5665610100 | B155: 170 | C155: Орловская область | D155: Городской округ город Мценск | E155: 36070
A156: 566561010011000 | C156: Орловская область | D156: г Мценск | E156: 36070
A157: 5665310100 | B157: 171 | C157: Пензенская область | D157: Городское поселение город Сердобск | E157: 29775
A158: 566531010011000 | C158: Пензенская область | D158: г Сердобск | E158: 29775
A159: 5760510500 | B159: 172 | C159: Пензенская область | D159: Городское поселение город Никольск | E159: 19513
A160: 576051050011000 | C160: Пензенская область | D160: г Никольск | E160: 19513
A161: 5761440400 | B161: 173 | C161: Пермский край | D161: Александровский муниципальный округ | E161: …
A162: 576144040511000 | C162: Пермский край | D162: г Александровск | E162: 10502
A163: 5761410100 | B163: 175 | C163: Пермский край | D163: Горнозаводской городской округ | E163: 22067
A164: 576141010011000 | C164: Пермский край | D164: г Горнозаводск | E164: 10890
A165: 5764647200 | B165: 175(1) | C165: Пермский край | D165: Нытвенский городской округ | E165: 38404
A166: 576464721012000 | C166: Пермский край | D166: г Нытва | E166: 16463
A167: 0561415421 | B167: 176 | C167: Пермский край | D167: Пермский муниципальный округ | E167: …
A168: 056141540511210 | C168: Пермский край | D168: поселок Юго-Камский снп | E168: …
A169: 0572000000 | B169: 177 | C169: Приморский край | D169: Востокское городское поселение | E169: 3236
A170: 057200000011000 | C170: Приморский край | D170: пгт Восток | E170: 3236
A171: 0563415101 | B171: 178 | C171: Приморский край | D171: Спасск-Дальний городской округ | E171: 35096
A172: 056341510511010 | C172: Приморский край | D172: г Спасск-Дальний | E172: 35096
A173: 0570300000 | B173: 179 | C173: Приморский край | D173: Пожарский муниципальный округ | E173: …
A174: 057030000011000 | C174: Приморский край | D174: пгт Лучегорск | E174: 17089
A175: 0562015400 | B175: 180 | C175: Приморский край | D175: Арсеньевский городской округ | E175: 47306
A176: 056201540511000 | C176: Приморский край | D176: г Арсеньев | E176: 47306
A177: 0562615400 | B177: 181 | C177: Приморский край | D177: Новошахтинское городское поселение | E177: 7403
A178: 056261540511000 | C178: Приморский край | D178: пгт Новошахтинский | E178: 7049
A179: 8061110100 | B179: 182 | C179: Приморский край | D179: Октябрьский муниципальный округ | E179: …
A180: 806111010011000 | C180: Приморский край | D180: пгт Липовцы | E180: 5246
A181: 8072700000 | B181: 183 | C181: Республика Башкортостан | D181: Городское поселение город Белорецк | E181: 64212
A182: 807270000011000 | C182: Республика Башкортостан | D182: г Белорецк | E182: 64212
A183: 8162415800 | B183: 184 | C183: Республика Башкортостан | D183: Городской округ город Нефтекамск | E183: 144006
A184: 816241580511000 | C184: Республика Башкортостан | D184: г Нефтекамск | E184: 133300
A185: 8164810100 | B185: 185 | C185: Республика Бурятия | D185: Городское поселение Каменское | E185: 6986
A186: 816481010011000 | C186: Республика Бурятия | D186: пгт Каменск | E186: 6308
A187: 8172000020 | B187: 186 | C187: Республика Бурятия | D187: Городское поселение Город Гусиноозерск | E187: 24504
A188: 817200000011200 | C188: Республика Бурятия | D188: г Гусиноозерск | E188: 24415
A189: 8163644200 | B189: 187 | C189: Республика Бурятия | D189: Городской округ город Северобайкальск | E189: 24431
A190: 816364421012000 | C190: Республика Бурятия | D190: г Северобайкальск | E190: 24431
A191: 8664510120 | B191: 188 | C191: Республика Бурятия | D191: Сельское поселение Саганнурское | E191: 4058
A192: 866451010011200 | C192: Республика Бурятия | D192: поселок Саган-Нур снп | E192: …
A193: 8662415520 | B193: 189 | C193: Республика Карелия | D193: Сегежское городское поселение | E193: 23074
A194: 866241550511200 | C194: Республика Карелия | D194: г Сегежа | E194: 23074
A195: 8670600010 | B195: 190 | C195: Республика Карелия | D195: Пиндушское городское поселение | E195: 4254
A196: 867060000011100 | C196: Республика Карелия | D196: пгт Пиндуши | E196: 3842
A197: 8661810120 | B197: 191 | C197: Республика Карелия | D197: Городской округ город Костомукша | E197: 26531
A198: 866181010011200 | C198: Республика Карелия | D198: г Костомукша | E198: 25928
A199: 8661016020 | B199: 192 | C199: Республика Карелия | D199: Лахденпохское городское поселение | E199: 5855
A200: 866101600511200 | C200: Республика Карелия | D200: г Лахденпохья | E200: 5855
A201: 8771500010 | B201: 193 | C201: Республика Карелия | D201: Вяртсильское городское поселение | E201: 2086
... 111 more rows

Sheet Таб_5.3
B1: Содержание
B2: 5.3. Муниципальные образования со стабильной социально-экономической ситуацией
C4: Субъект Российской Федерации | D4: Муниципальное образование, городской населенный пункт (моногорода со стабильной социально-экономической ситуацией) | E4: На 1 января 2023 г.; человек
A5: 1165018820 | B5: 249 | C5: Архангельская область | D5: Плесецкий муниципальный округ | E5: …
A6: 116501880511200 | C6: Архангельская область | D6: рп Североонежск | E6: 4697
A7: 1173000010 | B7: 250 | C7: Архангельская область | D7: Городской округ Северодвинск | E7: 156731
A8: 117300000011102 | C8: Архангельская область | D8: г Северодвинск | E8: 156056
A9: 1473000000 | B9: 251 | C9: Белгородская область | D9: Губкинский городской округ | E9: 113662
A10: 147300000011000 | C10: Белгородская область | D10: г Губкин | E10: 84357
A11: 1562410100 | B11: 252 | C11: Брянская область | D11: Карачевское городское поселение | E11: 23498
A12: 156241010011000 | C12: Брянская область | D12: г Карачев | E12: 17010
A13: 1564215100 | B13: 253 | C13: Брянская область | D13: Погарское городское поселение | E13: 9475
A14: 156421510511000 | C14: Брянская область | D14: п Погар | E14: 9475
A15: 1571500000 | B15: 254 | C15: Брянская область | D15: Городской округ город Клинцы | E15: 69556
A16: 157150000011000 | C16: Брянская область | D16: г Клинцы | E16: 62275
A17: 1572500000 | B17: 255 | C17: Брянская область | D17: Городской округ город Сельцо | E17: 15611
A18: 157250000011000 | C18: Брянская область | D18: г Сельцо | E18: 15611
A19: 1764010100 | B19: 256 | C19: Владимирская область | D19: Городское поселение город Кольчугино | E19: 39234
A20: 176401010011000 | C20: Владимирская область | D20: г Кольчугино | E20: 38492
A21: 1765015700 | B21: 257 | C21: Владимирская область | D21: Городское поселение поселок Ставрово | E21: 6755
A22: 176501570511000 | C22: Владимирская область | D22: п Ставрово | E22: 6755
A23: 2064710100 | B23: 258 | C23: Воронежская область | D23: Городское поселение город Россошь | E23: 60262
A24: 206471010011000 | C24: Воронежская область | D24: г Россошь | E24: 60262
A25: 2463110100 | B25: 259 | C25: Ивановская область | D25: Фурмановское городское поселение | E25: 29131
A26: 246311010011000 | C26: Ивановская область | D26: г Фурманов | E26: 29131
A27: 2470700000 | B27: 260 | C27: Ивановская область | D27: Городской округ Тейково | E27: 30763
A28: 247070000011000 | C28: Ивановская область | D28: г Тейково | E28: 30763
A29: 2565510100 | B29: 261 | C29: Иркутская область | D29: Городское поселение город Шелехов | E29: 41184
A30: 256551010011000 | C30: Иркутская область | D30: г Шелехов | E30: 41184
A31: 3262717500 | B31: 261(1) | C31: Калужская область | D31: Городское поселение город Ермолино | E31: 10418
A32: 326271750511000 | C32: Калужская область | D32: г Ермолино | E32: 10418
A33: 3275100000 | B33: 262 | C33: Кемеровская область | D33: Шерегешское городское поселение | E33: 10033
A34: 327510000511000 | C34: Кемеровская область | D34: пгт Шерегеш | E34: 9783
A35: 3262815400 | B35: 263 | C35: Кемеровская область | D35: Прокопьевский муниципальный округ | E35: …
A36: 326281540511000 | C36: Кемеровская область | D36: пгт Краснобродский | E36: 11257
A37: 3273100001 | B37: 264 | C37: Кемеровская область | D37: Тисульский муниципальный округ | E37: …
A38: 327310000011012 | C38: Кемеровская область | D38: пгт Белогорск | E38: 2219
A39: 3361015400 | B39: 265 | C39: Кемеровская область | D39: Новокузнецкий городской округ | E39: 533565
A40: 336101540511000 | C40: Кемеровская область | D40: г Новокузнецк | E40: 533565
A41: 3362810100 | B41: 266 | C41: Кировская область | D41: Краснополянское городское поселение | E41: 5154
A42: 336281010011000 | C42: Кировская область | D42: пгт Красная Поляна | E42: 5154
A43: 3363015700 | B43: 267 | C43: Кировская область | D43: Омутнинское городское поселение | E43: 19751
A44: 336301570511000 | C44: Кировская область | D44: г Омутнинск | E44: 19371
A45: 3370700000 | B45: 268 | C45: Кировская область | D45: Стрижевское городское поселение | E45: 3114
A46: 337070000011000 | C46: Кировская область | D46: пгт Стрижи | E46: 3114
A47: 0472900010 | B47: 269 | C47: Кировская область | D47: Городской округ город Кирово-Чепецк | E47: 65262
A48: 047290000011102 | C48: Кировская область | D48: г Кирово-Чепецк | E48: 65262
A49: 0473500000 | B49: 270 | C49: Красноярский край | D49: Городской округ город Норильск | E49: 175466
A50: 047350000011000 | C50: Красноярский край | D50: г Норильск | E50: 174747
A51: 0472200020 | B51: 271 | C51: Красноярский край | D51: Городской округ город Железногорск ЗАТО | E51: 88713
A52: 047220000011200 | C52: Красноярский край | D52: г Железногорск | E52: 81307
A53: 3760615100 | B53: 272 | C53: Красноярский край | D53: Городской округ г Лесосибирск | E53: 59207
A54: 376061510511000 | C54: Красноярский край | D54: г Лесосибирск | E54: 55241
A55: 4160910800 | B55: 273 | C55: Курганская область | D55: Городское поселение Варгашинский поссовет | E55: 10770
A56: 416091080011000 | C56: Курганская область | D56: пгт Варгаши | E56: 8366
A57: 4263310100 | B57: 274 | C57: Ленинградская область | D57: Городское поселение Сясьстройское | E57: 13062
A58: 426331010011000 | C58: Ленинградская область | D58: г Сясьстрой | E58: 12417
A59: 2273400000 | B59: 275 | C59: Липецкая область | D59: Городское поселение город Лебедянь | E59: 19173
A60: 227340000011000 | C60: Липецкая область | D60: г Лебедянь | E60: 19173
A61: 2264210100 | B61: 276 | C61: Нижегородская область | D61: Городской округ город Первомайск | E61: 17309
A62: 226421010011000 | C62: Нижегородская область | D62: г Первомайск | E62: 13080
A63: 2263110300 | B63: 277 | C63: Нижегородская область | D63: Павловский муниципальный округ | E63: …
A64: 226311030011000 | C64: Нижегородская область | D64: г Павлово | E64: 56288
A65: 2263310100 | B65: 278 | C65: Нижегородская область | D65: Володарский муниципальный округ | E65: …
A66: 226331010011000 | C66: Нижегородская область | D66: г Володарск | E66: 9628
A67: 2263116800 | B67: 279 | C67: Нижегородская область | D67: Княгининский муниципальный округ | E67: …
A68: 226311680511000 | C68: Нижегородская область | D68: г Княгинино | E68: 6430
A69: 2260510100 | B69: 280 | C69: Нижегородская область | D69: Володарский муниципальный округ | E69: …
A70: 226051010011000 | C70: Нижегородская область | D70: пгт Решетиха | E70: 6457
A71: 2271500000 | B71: 281 | C71: Нижегородская область | D71: Балахнинский муниципальный округ | E71: …
A72: 227150000011000 | C72: Нижегородская область | D72: г Балахна | E72: 47746
A73: 5065215300 | B73: 282 | C73: Нижегородская область | D73: Городской округ город Выкса | E73: 72979
A74: 506521530511000 | C74: Нижегородская область | D74: г Выкса | E74: 44731
A75: 5372500000 | B75: 283 | C75: Новосибирская область | D75: Городское поселение рабочий посёлок Горный | E75: 9098
A76: 537250000011000 | C76: Новосибирская область | D76: пгт Горный рп | E76: 8827
A77: 5373200000 | B77: 284 | C77: Оренбургская область | D77: Соль-Илецкий городской округ | E77: 45870
A78: 537320000011000 | C78: Оренбургская область | D78: г Соль-Илецк | E78: 25754
A79: 5664515100 | B79: 285 | C79: Оренбургская область | D79: Ясненский городской округ | E79: 17951
A80: 566451510511000 | C80: Оренбургская область | D80: г Ясный | E80: 15363
A81: 5673400000 | B81: 286 | C81: Пензенская область | D81: Городское поселение рабочий поселок Мокшан | E81: 11367
A82: 567340000011000 | C82: Пензенская область | D82: пгт Мокшан рп | E82: 10694
A83: 8065310100 | B83: 287 | C83: Пензенская область | D83: Городской округ город Заречный | E83: 58550
A84: 806531010011000 | C84: Пензенская область | D84: г Заречный | E84: 58550
A85: 8061510100 | B85: 287(1) | C85: Псковская область | D85: Городское поселение Печоры | E85: 12619
A86: 806151010011000 | C86: Псковская область | D86: г Печоры | E86: 9808
A87: 8162110100 | B87: 288 | C87: Республика Башкортостан | D87: Городское поселение город Учалы | E87: 36198
A88: 816211010011000 | C88: Республика Башкортостан | D88: г Учалы | E88: 36198
A89: 8960715100 | B89: 289 | C89: Республика Башкортостан | D89: Городское поселение город Благовещенск | E89: 35355
A90: 896071510511000 | C90: Республика Башкортостан | D90: г Благовещенск | E90: 35355
A91: 9860317010 | B91: 290 | C91: Республика Бурятия | D91: Городское поселение город Закаменск | E91: 11641
A92: 986031700511100 | C92: Республика Бурятия | D92: г Закаменск | E92: 11054
A93: 9864415710 | B93: 291(1) | C93: Республика Марий Эл | D93: Городской округ город Козьмодемьянск | E93: 19355
A94: 986441570511100 | C94: Республика Марий Эл | D94: г Козьмодемьянск | E94: 19355
A95: 9863110110 | B95: 291 | C95: Республика Мордовия | D95: Атяшевское городское поселение | E95: 6823
A96: 986311010011100 | C96: Республика Мордовия | D96: пгт Атяшево | E96: 5979
A97: 9264410100 | B97: 292 | C97: Республика Саха (Якутия) | D97: Городское поселение Поселок Нижний Куранах | E97: 6020
A98: 926441010011002 | C98: Республика Саха (Якутия) | D98: пгт Нижний Куранах | E98: 5418
A99: 6160815600 | B99: 293 | C99: Республика Саха (Якутия) | D99: Городское поселение Поселок Мохсоголлох | E99: 5192
A100: 616081560511000 | C100: Республика Саха (Якутия) | D100: пгт Мохсоголлох | E100: 5192
A101: 6165815700 | B101: 294 | C101: Республика Саха (Якутия) | D101: Городское поселение г Мирный | E101: 34013
A102: 616581570511000 | C102: Республика Саха (Якутия) | D102: г Мирный | E102: 34013
A103: 3675000000 | B103: 295 | C103: Республика Татарстан | D103: Городское поселение г Нижнекамск | E103: 241315
A104: 367500000011000 | C104: Республика Татарстан | D104: г Нижнекамск | E104: 241106
A105: 6575100000 | B105: 296 | C105: Рязанская область | D105: Елатомское городское поселение | E105: 3307
A106: 657510000011002 | C106: Рязанская область | D106: пгт Елатьма | E106: 3193
A107: 6570800000 | B107: 297 | C107: Рязанская область | D107: Лесновское городское поселение | E107: 8058
A108: 657080000011000 | C108: Рязанская область | D108: пгт Лесной | E108: 7609
A109: 6575600000 | B109: 297(1) | C109: Рязанская область | D109: Новомичуринское городское поселение | E109: 16752
A110: 657560000011000 | C110: Рязанская область | D110: г Новомичуринск | E110: 16752
A111: 6571900000 | B111: 297(2) | C111: Самарская область | D111: Городской округ Новокуйбышевск | E111: 99247
A112: 657190000011000 | C112: Самарская область | D112: г Новокуйбышевск | E112: 97163
A113: 6575400000 | B113: 298 | C113: Самарская область | D113: Городской округ Чапаевск | E113: 69177
A114: 657540000011000 | C114: Самарская область | D114: г Чапаевск | E114: 69169
A115: 6576200000 | B115: 299 | C115: Свердловская область | D115: Городской округ город Нижний Тагил | E115: 336919
A116: 657620000511000 | C116: Свердловская область | D116: г Нижний Тагил | E116: 334209
A117: 6871000000 | B117: 300 | C117: Свердловская область | D117: Верхнесалдинский городской округ | E117: 42304
A118: 687100000011000 | C118: Свердловская область | D118: г Верхняя Салда | E118: 40474
A119: 6860615100 | B119: 301 | C119: Свердловская область | D119: Серовский городской округ | E119: 99332
A120: 686061510511000 | C120: Свердловская область | D120: г Серов | E120: 93192
A121: 2875100000 | B121: 302 | C121: Свердловская область | D121: Городской округ Ревда | E121: 60758
A122: 287510000011000 | C122: Свердловская область | D122: г Ревда | E122: 59521
A123: 6974100000 | B123: 303 | C123: Свердловская область | D123: Полевской городской округ | E123: 60688
A124: 697410000011002 | C124: Свердловская область | D124: г Полевской | E124: 54364
A125: 7060610100 | B125: 304 | C125: Свердловская область | D125: Малышевский городской округ | E125: 9539
A126: 706061010011000 | C126: Свердловская область | D126: пгт Малышева | E126: 8400
A127: 7064815400 | B127: 305 | C127: Тамбовская область | D127: Городской округ город Котовск | E127: 26309
A128: 706481540511000 | C128: Тамбовская область | D128: г Котовск | E128: 26309
A129: 7064010100 | B129: 306 | C129: Тамбовская область | D129: Городское поселение Знаменский поссовет | E129: 5408
A130: 706401010011000 | C130: Тамбовская область | D130: пгт Знаменка рп | E130: 5408
A131: 9471000000 | B131: 307 | C131: Тверская область | D131: Удомельский городской округ | E131: 30006
A132: 947100000011000 | C132: Тверская область | D132: г Удомля | E132: 25490
A133: 9472000000 | B133: 308 | C133: Томская область | D133: Городской округ город Северск | E133: 111974
A134: 947200000011000 | C134: Томская область | D134: г Северск | E134: 105797
A135: 7363615700 | B135: 309 | C135: Тульская область | D135: Городское поселение город Белев | E135: 12530
A136: 736361570511000 | C136: Тульская область | D136: г Белев | E136: 12530
A137: 7574300000 | B137: 310 | C137: Тульская область | D137: Городское поселение рабочий поселок Первомайский | E137: 10180
A138: 757430000011000 | C138: Тульская область | D138: пгт Первомайский рп | E138: 10180
A139: 7570700000 | B139: 311 | C139: Тульская область | D139: Городское поселение город Суворов | E139: 17474
A140: 757070000011000 | C140: Тульская область | D140: г Суворов | E140: 17474
A141: 7574600000 | B141: 312 | C141: Удмуртская Республика | D141: Городской округ Воткинск | E141: 96646
A142: 757460000011000 | C142: Удмуртская Республика | D142: г Воткинск | E142: 96646
A143: 7573800000 | B143: 313 | C143: Удмуртская Республика | D143: Городской округ Глазов | E143: 86996
A144: 757380000011002 | C144: Удмуртская Республика | D144: г Глазов | E144: 86996
A145: 9771000000 | B145: 314 | C145: Ульяновская область | D145: Силикатненское городское поселение | E145: 2979
A146: 977100000011002 | C146: Ульяновская область | D146: пгт Силикатный рп | E146: 2674
B147: 315 | C147: Челябинская область | D147: Озерский городской округ | E147: 86692
C148: Челябинская область | D148: г Озерск | E148: 76434
B149: 316 | C149: Челябинская область | D149: Трехгорный городской округ | E149: 32478
C150: Челябинская область | D150: г Трехгорный | E150: 32478
B151: 317 | C151: Челябинская область | D151: Снежинский городской округ | E151: 50901
C152: Челябинская область | D152: г Снежинск | E152: 50717
B153: 318 | C153: Челябинская область | D153: Магнитогорский городской округ | E153: 409255
C154: Челябинская область | D154: г Магнитогорск | E154: 409255
B155: 319 | C155: Чувашская Республика | D155: Новочебоксарский городской округ | E155: 120425
C156: Чувашская Республика | D156: г Новочебоксарск | E156: 120147
B158: Позиция 285 в ред. распоряжения Правительства Российской Федерации от 18.03.2019 № 453-р
B159: Позиция 287 (1) введена распоряжением Правительства Российской Федерации от 08.08.2019 № 1762-р
B160: Позиция 290 (1) введена распоряжением Правительства Российской Федерации от 08.08.2019 № 1762-р
B161: Позиция 297 (1) введена распоряжением Правительства Российской Федерации от 08.08.2019 № 1762-р
B162: Позиция 297 (2) введена распоряжением Правительства Российской Федерации от 08.08.2019 № 1762-р
B163: Позиция 307 в ред. распоряжения Правительства Российской Федерации от 18.03.2019 № 453-р

Sheet Таб_6
A1: Содержание
A2: Оценка численности населения в местах традиционного проживания коренных малочисленных народов Российской Федерации; (человек)
B4: На 1 января 2023 года
B5: Все | C5: в том числе
B6: население | C6: городское | D6: сельское
A7: Российская Федерация | B7: 3460803 | C7: 2558081 | D7: 902722
A8: Республика Алтай | B8: 56965 | C8: 0 | D8: 56965
A9: Кош-Агачский муниципальный район | B9: 18512 | C9: 0 | D9: 18512
A10: Майминский муниципальный район | B10: 8224 | C10: 0 | D10: 8224
A11: Кызыл-Озекское сельское поселение | B11: 6853 | C11: 0 | D11: 6853
A12: Бирюлинское сельское поселение | B12: 1371 | C12: 0 | D12: 1371
A13: Турочакский муниципальный район | B13: 10960 | C13: 0 | D13: 10960
A14: Улаганский муниципальный район | B14: 11798 | C14: 0 | D14: 11798
A15: Чойский муниципальный район | B15: 7471 | C15: 0 | D15: 7471
A16: Республика Бурятия | B16: 38243 | C16: 7683 | D16: 30560
A17: Баргузинский муниципальный район | B17: 6298 | C17: 0 | D17: 6298
A18: Сельское поселение Баргузинское | B18: 5114 | C18: 0 | D18: 5114
A19: Сельское поселение Сувинское | B19: 440 | C19: 0 | D19: 440
A20: Сельское поселение Юбилейное | B20: 744 | C20: 0 | D20: 744
A21: Баунтовский эвенкийский муниципальный район | B21: 8122 | C21: 0 | D21: 8122
A22: Закаменский муниципальный район | B22: 597 | C22: 0 | D22: 597
A23: Сельское поселение Мылинское*) | B23: 597 | C23: 0 | D23: 597
A24: Курумканский муниципальный район | B24: 7157 | C24: 0 | D24: 7157
A25: Сельское поселение Дырен эвенкийское | B25: 809 | C25: 0 | D25: 809
A26: Сельское поселение Улюнхан эвенкийское | B26: 743 | C26: 0 | D26: 743
A27: Сельское поселение Курумкан | B27: 5605 | C27: 0 | D27: 5605
A28: Муйский муниципальный район | B28: 388 | C28: 0 | D28: 388
A29: Сельское поселение Муйская сельская администрация | B29: 388 | C29: 0 | D29: 388
A30: Окинский муниципальный район | B30: 5332 | C30: 0 | D30: 5332
A31: Северо-Байкальский муниципальный район | B31: 10349 | C31: 7683 | D31: 2666
A32: Республика Карелия | B32: 2420 | C32: 0 | D32: 2420
A33: Прионежский муниципальный район | B33: 2420 | C33: 0 | D33: 2420
A34: Шокшинское вепсское сельское поселение | B34: 862 | C34: 0 | D34: 862
A35: Шелтозерское вепсское сельское поселение | B35: 1007 | C35: 0 | D35: 1007
A36: Рыборецкое вепсское сельское поселение | B36: 551 | C36: 0 | D36: 551
A37: Республика Коми | B37: 100704 | C37: 68532 | D37: 32172
A38: Городской округ Воркута | B38: 67702 | C38: 67410 | D38: 292
A39: Городской округ Инта без г Инты | B39: 1563 | C39: 418 | D39: 1145
A40: Городской округ Усинск без г Усинска | B40: 4667 | C40: 704 | D40: 3963
A41: Муниципальный район Ижемский | B41: 16294 | C41: 0 | D41: 16294
A42: Муниципальный район Усть-Цилемский | B42: 10478 | C42: 0 | D42: 10478
A43: Республика Саха (Якутия) | B43: 41357 | C43: 0 | D43: 41357
A44: Абыйский муниципальный район | B44: 488 | C44: 0 | D44: 488
A45: Сельское поселение Майорский национальный наслег | B45: 488 | C45: 0 | D45: 488
A46: Алданский муниципальный район | B46: 2122 | C46: 0 | D46: 2122
A47: Сельское поселение Беллетский эвенкийский национальный наслег | B47: 1685 | C47: 0 | D47: 1685
A48: Сельское поселение Национальный наслег Анамы | B48: 437 | C48: 0 | D48: 437
A49: Аллаиховский муниципальный район | B49: 517 | C49: 0 | D49: 517
A50: Сельское поселение Берелехский наслег | B50: 81 | C50: 0 | D50: 81
A51: Сельское поселение Быягнырский наслег | B51: 126 | C51: 0 | D51: 126
A52: Сельское поселение Русско-Устьинский наслег | B52: 113 | C52: 0 | D52: 113
A53: Сельское поселение Юкагирский национальный наслег*) | B53: 197 | C53: 0 | D53: 197
A54: с Оленегорск | B54: 0 | C54: 0 | D54: 0
A55: Межселенные территории Аллаиховского муниципального района | B55: 0 | C55: 0 | D55: 0
A56: Анабарский национальный (долгано-эвенкийский) муниципальный район | B56: 3454 | C56: 0 | D56: 3454
A57: Сельское поселение Саскылахский национальный (эвенкийский) наслег | B57: 2318 | C57: 0 | D57: 2318
A58: с Саскылах | B58: 0 | C58: 0 | D58: 0
A59: Сельское поселение Юрюнг-Хаинский национальный (долганский) наслег | B59: 1136 | C59: 0 | D59: 1136
A60: Булунский муниципальный район | B60: 3557 | C60: 0 | D60: 3557
A61: Сельское поселение Борогонский наслег | B61: 527 | C61: 0 | D61: 527
A62: Сельское поселение Булунский национальный (эвенкийский) наслег | B62: 1087 | C62: 0 | D62: 1087
A63: с Кюсюр | B63: 0 | C63: 0 | D63: 0
A64: Сельское поселение Быковский национальный (эвенкийский) наслег | B64: 434 | C64: 0 | D64: 434
A65: Сельское поселение Сиктяхский наслег | B65: 292 | C65: 0 | D65: 292
A66: Сельское поселение Тюметинский наслег*) | B66: 779 | C66: 0 | D66: 779
A67: с Таймылыр | B67: 0 | C67: 0 | D67: 0
A68: с Усть-Оленек | B68: 0 | C68: 0 | D68: 0
A69: Сельское поселение Хара-Улахский наслег | B69: 438 | C69: 0 | D69: 438
A70: Верхнеколымский муниципальный район | B70: 1082 | C70: 0 | D70: 1082
A71: Сельское поселение Арылахский наслег | B71: 403 | C71: 0 | D71: 403
A72: Сельское поселение Верхнеколымский наслег | B72: 326 | C72: 0 | D72: 326
A73: Сельское поселение Нелемнский юкагирский наслег | B73: 256 | C73: 0 | D73: 256
A74: Сельское поселение Утаинский эвенский национальный наслег | B74: 97 | C74: 0 | D74: 97
A75: Верхоянский муниципальный район | B75: 778 | C75: 0 | D75: 778
A76: Сельское поселение Табалахский наслег | B76: 778 | C76: 0 | D76: 778
A77: с Улахан-Кюель | B77: 0 | C77: 0 | D77: 0
A78: Жиганский национальный муниципальный район | B78: 4086 | C78: 0 | D78: 4086
A79: Сельское поселение Бестяхский наслег | B79: 202 | C79: 0 | D79: 202
A80: Сельское поселение Жиганский эвенкийский национальный наслег | B80: 3256 | C80: 0 | D80: 3256
A81: Сельское поселение Кыстатыам | B81: 373 | C81: 0 | D81: 373
A82: Сельское поселение Линдинский национальный эвенкийский наслег | B82: 255 | C82: 0 | D82: 255
A83: Кобяйский муниципальный район | B83: 1184 | C83: 0 | D83: 1184
A84: Сельское поселение Кировский эвенский национальный наслег | B84: 450 | C84: 0 | D84: 450
A85: с Сегян-Кюель | B85: 0 | C85: 0 | D85: 0
A86: Сельское поселение Ламынхинский национальный наслег | B86: 734 | C86: 0 | D86: 734
A87: Мирнинский муниципальный район | B87: 389 | C87: 0 | D87: 389
A88: Сельское поселение Садынский национальный эвенкийский наслег | B88: 389 | C88: 0 | D88: 389
A89: Момский муниципальный район | B89: 3783 | C89: 0 | D89: 3783
A90: Сельское поселение Индигирский национальный наслег | B90: 268 | C90: 0 | D90: 268
A91: Сельское поселение Момский национальный наслег | B91: 2200 | C91: 0 | D91: 2200
A92: с Хонуу | B92: 0 | C92: 0 | D92: 0
A93: Сельское поселение Соболохский национальный наслег | B93: 191 | C93: 0 | D93: 191
A94: Сельское поселение Тебюляхский национальный наслег | B94: 193 | C94: 0 | D94: 193
A95: Сельское поселение Улахан-Чистайский национальный наслег | B95: 739 | C95: 0 | D95: 739
A96: Сельское поселение Чыбагалахский национальный наслег | B96: 192 | C96: 0 | D96: 192
A97: Нерюнгринский муниципальный район | B97: 1044 | C97: 0 | D97: 1044
A98: Сельское поселение Иенгринский эвенкийский национальный наслег (сельский округ) | B98: 1044 | C98: 0 | D98: 1044
A99: Нижнеколымский муниципальный район | B99: 1570 | C99: 0 | D99: 1570
A100: Сельское национальное юкагирское поселение Олеринский Суктул | B100: 739 | C100: 0 | D100: 739
A101: Сельское поселение Походский наслег | B101: 203 | C101: 0 | D101: 203
A102: с Походок | B102: 0 | C102: 0 | D102: 0
A103: Сельское поселение Халарчинский чукотский национальный наслег | B103: 628 | C103: 0 | D103: 628
A104: Оймяконский муниципальный район | B104: 1893 | C104: 0 | D104: 1893
A105: Сельское поселение Борогонский 2-й наслег | B105: 1111 | C105: 0 | D105: 1111
A106: с Томтор | B106: 0 | C106: 0 | D106: 0
A107: Сельское поселение Сордоннохский наслег | B107: 416 | C107: 0 | D107: 416
A108: с Орто-Балаган | B108: 0 | C108: 0 | D108: 0
A109: Сельское поселение Ючюгейский наслег | B109: 366 | C109: 0 | D109: 366
A110: с Ючюгей | B110: 0 | C110: 0 | D110: 0
A111: Олекминский муниципальный район | B111: 1795 | C111: 0 | D111: 1795
A112: Сельское поселение Жарханский национальный наслег | B112: 1039 | C112: 0 | D112: 1039
A113: с Токко | B113: 0 | C113: 0 | D113: 0
A114: с Уолбут | B114: 0 | C114: 0 | D114: 0
A115: Сельское поселение Киндигирский национальный наслег | B115: 220 | C115: 0 | D115: 220
A116: с Куду-Кюель | B116: 0 | C116: 0 | D116: 0
A117: Сельское поселение Тянский национальный наслег | B117: 413 | C117: 0 | D117: 413
A118: с Тяня | B118: 0 | C118: 0 | D118: 0
A119: Сельское поселение Чаринский национальный наслег | B119: 123 | C119: 0 | D119: 123
A120: Оленекский эвенкийский национальный муниципальный район | B120: 4361 | C120: 0 | D120: 4361
A121: Сельское поселение Жилиндинский национальный наслег | B121: 756 | C121: 0 | D121: 756
A122: Сельское поселение Кирбейский национальный наслег | B122: 854 | C122: 0 | D122: 854
A123: Сельское поселение Оленекский национальный наслег | B123: 2414 | C123: 0 | D123: 2414
A124: Сельское поселение Шологонский национальный наслег | B124: 337 | C124: 0 | D124: 337
A125: Среднеколымский муниципальный район | B125: 284 | C125: 0 | D125: 284
A126: Сельское поселение Березовский национальный (кочевой) наслег | B126: 284 | C126: 0 | D126: 284
A127: Томпонский муниципальный район | B127: 838 | C127: 0 | D127: 838
A128: Сельское поселение Томпонский национальный (эвенский) наслег | B128: 838 | C128: 0 | D128: 838
A129: Усть-Майский муниципальный район | B129: 1899 | C129: 0 | D129: 1899
A130: Сельское поселение Кюпский национальный наслег | B130: 545 | C130: 0 | D130: 545
A131: Сельское поселение Петропавловский национальный наслег | B131: 978 | C131: 0 | D131: 978
A132: Сельское поселение Эжанский национальный наслег | B132: 376 | C132: 0 | D132: 376
A133: Усть-Янский муниципальный район | B133: 3285 | C133: 0 | D133: 3285
A134: Сельское поселение Казачинский национальный наслег | B134: 1252 | C134: 0 | D134: 1252
A135: Сельское поселение Омолойский национальный наслег | B135: 415 | C135: 0 | D135: 415
A136: Сельское поселение Силянняхский национальный наслег | B136: 542 | C136: 0 | D136: 542
A137: Сельское поселение Туматский национальный наслег | B137: 504 | C137: 0 | D137: 504
A138: Сельское поселение Усть-Янский национальный наслег | B138: 353 | C138: 0 | D138: 353
A139: Сельское поселение Уяндинский национальный наслег | B139: 103 | C139: 0 | D139: 103
A140: Сельское поселение Юкагирский национальный (кочевой) наслег | B140: 116 | C140: 0 | D140: 116
A141: Эвено-Бытантайский национальный муниципальный район | B141: 2948 | C141: 0 | D141: 2948
A142: Сельское поселение Верхне-Бытантайский наслег | B142: 236 | C142: 0 | D142: 236
A143: Сельское поселение Нижне-Бытантайский наслег | B143: 735 | C143: 0 | D143: 735
A144: с Кустур | B144: 0 | C144: 0 | D144: 0
A145: Сельское поселение Тюгясирский наслег | B145: 1977 | C145: 0 | D145: 1977
A146: Республика Тыва | B146: 7453 | C146: 0 | D146: 7453
A147: Монгун-Тайгинский муниципальный район | B147: 1573 | C147: 0 | D147: 1573
A148: Сельское поселение Моген-Буренский | B148: 1437 | C148: 0 | D148: 1437
A149: Сельское поселение Тоолайлыг | B149: 136 | C149: 0 | D149: 136
A150: Тере-Хольский муниципальный район | B150: 1941 | C150: 0 | D150: 1941
A151: Сельское поселение Шынаанский | B151: 1635 | C151: 0 | D151: 1635
A152: Сельское поселение Каргы | B152: 93 | C152: 0 | D152: 93
A153: Сельское поселение Балыктыг | B153: 163 | C153: 0 | D153: 163
A154: Сельское поселение Эми | B154: 50 | C154: 0 | D154: 50
A155: Тоджинский муниципальный район | B155: 2634 | C155: 0 | D155: 2634
A156: Сельское поселение Азасский | B156: 1310 | C156: 0 | D156: 1310
A157: Сельское поселение Ийский | B157: 1140 | C157: 0 | D157: 1140
A158: Сельское поселение Сыстыг-Хемский | B158: 84 | C158: 0 | D158: 84
A159: Сельское поселение Чазыларский | B159: 100 | C159: 0 | D159: 100
A160: Эрзинский муниципальный район | B160: 1305 | C160: 0 | D160: 1305
A161: Сельское поселение Бай-Дагский | B161: 1305 | C161: 0 | D161: 1305
A162: Республика Хакасия | B162: 5063 | C162: 1161 | D162: 3902
A163: Аскизский муниципальный район | B163: 3105 | C163: 1161 | D163: 1944
A164: Сельское поселение Балыксинский сельсовет | B164: 1914 | C164: 0 | D164: 1914
A165: Городское поселение Бискамжинский поссовет*) - сельское население | B165: 1191 | C165: 1161 | D165: 30
A166: Таштыпский муниципальный район | B166: 1958 | C166: 0 | D166: 1958
A167: Сельское поселение Анчулский сельсовет | B167: 777 | C167: 0 | D167: 777
A168: Сельское поселение Матурский сельсовет | B168: 1181 | C168: 0 | D168: 1181
A169: Алтайский край | B169: 25252 | C169: 0 | D169: 25252
A170: Городской округ город Бийск | B170: 6237 | D170: 6237
A171: п Нагорный | B171: 0 | C171: 0 | D171: 0
A172: Красногорский муниципальный район | B172: 12865 | C172: 0 | D172: 12865
A173: Солтонский муниципальный район | B173: 6150 | C173: 0 | D173: 6150
A174: Забайкальский край | B174: 7369 | C174: 0 | D174: 7369
A175: Каларский муниципальный округ*) | B175: 3247 | C175: 0 | D175: 3247
A176: с Кюсть-Кемда | B176: 0 | C176: 0 | D176: 0
A177: с Чапо-Олого | B177: 0 | C177: 0 | D177: 0
A178: с Неляты | B178: 0 | C178: 0 | D178: 0
A179: с Средний Калар | B179: 0 | C179: 0 | D179: 0
A180: Муниципальный район Тунгиро-Олекминский район | B180: 1116 | C180: 0 | D180: 1116
A181: Сельское поселение Тупикское | B181: 811 | C181: 0 | D181: 811
A182: Сельское поселение Зареченское | B182: 196 | C182: 0 | D182: 196
A183: Межселенная территория муниципального района Тунгиро-Олекминский район | B183: 109 | C183: 0 | D183: 109
A184: Тунгокоченский муниципальный округ*) | B184: 3006 | C184: 0 | D184: 3006
A185: село Верх-Усугли | B185: 0 | C185: 0 | D185: 0
A186: село Тунгокочен | B186: 0 | C186: 0 | D186: 0
A187: село Усть-Каренга | B187: 0 | C187: 0 | D187: 0
A188: Межселенная территория муниципального района Тунгокоченский | B188: 132 | C188: 0 | D188: 132
A189: Камчатский край | B189: 288730 | C189: 225106 | D189: 63624
A190: Алеутский муниципальный округ | B190: 21834 | C190: 21834 | D190: 0
A191: Вилючинский городской округ | B191: 2727 | C191: 2727 | D191: 0
A192: Городской округ поселок Палана | B192: 162992 | C192: 162992 | D192: 0
A193: Петропавловск-Камчатский городской округ | B193: 624 | C193: 0 | D193: 624
A194: Быстринский муниципальный район | B194: 2422 | C194: 0 | D194: 2422
A195: Елизовский муниципальный район | B195: 59658 | C195: 37553 | D195: 22105
A196: Карагинский муниципальный район | B196: 3403 | C196: 0 | D196: 3403
A197: Мильковский муниципальный район | B197: 8890 | C197: 0 | D197: 8890
A198: Олюторский муниципальный район | B198: 3569 | C198: 0 | D198: 3569
A199: Пенжинский муниципальный район | B199: 2026 | C199: 0 | D199: 2026
A200: Тигильский муниципальный район | B200: 3668 | C200: 0 | D200: 3668
A201: Соболевский муниципальный район | B201: 1988 | C201: 0 | D201: 1988
... 272 more rows

Sheet Таб_7
A1: Содержание
A2: 7. Группировка числа городских округов по численности населения, проживающего в них, на 1 января 2023 года
B4: Число городских округов - всего | C4: в том числе с числом жителей, человек
A5: Группировка числа городских округов по численности населения, проживающего в них | C5: до 10000 | D5: 10000 - 14999 | E5: 15000 - 19999 | F5: 20000 - 29999 | G5: 30000 - 49999 | H5: 50000 - 99999 | I5: 100000 - 149999 | J5: 150000 - 199999 | K5: 200000 - 249999 | L5: 250000 - 499999 | M5: 500000 - 999999 | N5: 1000000 и более
A6: Российская Федерация | B6: 597 | C6: 44 | D6: 34 | E6: 41 | F6: 75 | G6: 98 | H6: 121 | I6: 54 | J6: 26 | K6: 21 | L6: 47 | M6: 22 | N6: 14
A7: Центральный федеральный округ | B7: 138 | C7: 6 | D7: 5 | E7: 6 | F7: 18 | G7: 17 | H7: 31 | I7: 14 | J7: 7 | K7: 7 | L7: 22 | M7: 4 | N7: 1
A8: Белгородская область | B8: 9 | C8: 0 | D8: 0 | E8: 0 | F8: 1 | G8: 1 | H8: 4 | I8: 1 | J8: 0 | K8: 0 | L8: 2 | M8: 0 | N8: 0
A9: Брянская область | B9: 5 | C9: 0 | D9: 1 | E9: 1 | F9: 0 | G9: 1 | H9: 1 | I9: 0 | J9: 0 | K9: 0 | L9: 1 | M9: 0 | N9: 0
A10: Владимирская область | B10: 5 | C10: 0 | D10: 0 | E10: 1 | F10: 0 | G10: 0 | H10: 1 | I10: 2 | J10: 0 | K10: 0 | L10: 1 | M10: 0 | N10: 0
A11: Воронежская область | B11: 3 | C11: 0 | D11: 0 | E11: 0 | F11: 0 | G11: 1 | H11: 1 | I11: 0 | J11: 0 | K11: 0 | L11: 0 | M11: 0 | N11: 1
A12: Ивановская область | B12: 6 | C12: 0 | D12: 0 | E12: 0 | F12: 0 | G12: 3 | H12: 2 | I12: 0 | J12: 0 | K12: 0 | L12: 1 | M12: 0 | N12: 0
A13: Калужская область | B13: 2 | C13: 0 | D13: 0 | E13: 0 | F13: 0 | G13: 0 | H13: 0 | I13: 1 | J13: 0 | K13: 0 | L13: 1 | M13: 0 | N13: 0
A14: Костромская область | B14: 6 | C14: 0 | D14: 2 | E14: 1 | F14: 1 | G14: 1 | H14: 0 | I14: 0 | J14: 0 | K14: 0 | L14: 1 | M14: 0 | N14: 0
A15: Курская область | B15: 5 | C15: 0 | D15: 1 | E15: 1 | F15: 0 | G15: 1 | H15: 1 | I15: 0 | J15: 0 | K15: 0 | L15: 1 | M15: 0 | N15: 0
A16: Липецкая область | B16: 2 | C16: 0 | D16: 0 | E16: 0 | F16: 0 | G16: 0 | H16: 1 | I16: 0 | J16: 0 | K16: 0 | L16: 1 | M16: 0 | N16: 0
A17: Московская область | B17: 60 | C17: 3 | D17: 0 | E17: 1 | F17: 7 | G17: 3 | H17: 14 | I17: 9 | J17: 6 | K17: 7 | L17: 9 | M17: 1 | N17: 0
A18: Орловская область | B18: 3 | C18: 0 | D18: 0 | E18: 0 | F18: 0 | G18: 2 | H18: 0 | I18: 0 | J18: 0 | K18: 0 | L18: 1 | M18: 0 | N18: 0
A19: Рязанская область | B19: 4 | C19: 0 | D19: 0 | E19: 0 | F19: 3 | G19: 0 | H19: 0 | I19: 0 | J19: 0 | K19: 0 | L19: 0 | M19: 1 | N19: 0
A20: Смоленская область | B20: 2 | C20: 0 | D20: 0 | E20: 0 | F20: 1 | G20: 0 | H20: 0 | I20: 0 | J20: 0 | K20: 0 | L20: 1 | M20: 0 | N20: 0
A21: Тамбовская область | B21: 7 | C21: 0 | D21: 0 | E21: 1 | F21: 2 | G21: 2 | H21: 1 | I21: 0 | J21: 0 | K21: 0 | L21: 1 | M21: 0 | N21: 0
A22: Тверская область | B22: 9 | C22: 1 | D22: 1 | E22: 0 | F22: 3 | G22: 2 | H22: 1 | I22: 0 | J22: 0 | K22: 0 | L22: 1 | M22: 0 | N22: 0
A23: Тульская область | B23: 7 | C23: 2 | D23: 0 | E23: 0 | F23: 0 | G23: 0 | H23: 3 | I23: 1 | J23: 0 | K23: 0 | L23: 0 | M23: 1 | N23: 0
A24: Ярославская область | B24: 3 | C24: 0 | D24: 0 | E24: 0 | F24: 0 | G24: 0 | H24: 1 | I24: 0 | J24: 1 | K24: 0 | L24: 0 | M24: 1 | N24: 0
A25: г.Москва | B25: 0 | C25: 0 | D25: 0 | E25: 0 | F25: 0 | G25: 0 | H25: 0 | I25: 0 | J25: 0 | K25: 0 | L25: 0 | M25: 0 | N25: 0
A26: Северо-Западный федеральный округ | B26: 38 | C26: 7 | D26: 2 | E26: 0 | F26: 7 | G26: 6 | H26: 6 | I26: 0 | J26: 2 | K26: 3 | L26: 5 | M26: 0 | N26: 0
A27: Республика Карелия | B27: 2 | C27: 0 | D27: 0 | E27: 0 | F27: 1 | G27: 0 | H27: 0 | I27: 0 | J27: 0 | K27: 1 | L27: 0 | M27: 0 | N27: 0
A28: Республика Коми | B28: 6 | C28: 0 | D28: 1 | E28: 0 | F28: 1 | G28: 1 | H28: 2 | I28: 0 | J28: 0 | K28: 1 | L28: 0 | M28: 0 | N28: 0
A29: Архангельская область, включая Ненецкий автономный округ | B29: 8 | C29: 1 | D29: 0 | E29: 0 | F29: 2 | G29: 2 | H29: 1 | I29: 0 | J29: 1 | K29: 0 | L29: 1 | M29: 0 | N29: 0
A30: Ненецкий автономный округ | B30: 1 | C30: 0 | D30: 0 | E30: 0 | F30: 1 | G30: 0 | H30: 0 | I30: 0 | J30: 0 | K30: 0 | L30: 0 | M30: 0 | N30: 0
A31: Архангельская область без Ненецкого автономного округа | B31: 7 | C31: 1 | D31: 0 | E31: 0 | F31: 1 | G31: 2 | H31: 1 | I31: 0 | J31: 1 | K31: 0 | L31: 1 | M31: 0 | N31: 0
A32: Вологодская область | B32: 2 | C32: 0 | D32: 0 | E32: 0 | F32: 0 | G32: 0 | H32: 0 | I32: 0 | J32: 0 | K32: 0 | L32: 2 | M32: 0 | N32: 0
A33: Калининградская область | B33: 10 | C33: 3 | D33: 1 | E33: 0 | F33: 3 | G33: 2 | H33: 0 | I33: 0 | J33: 0 | K33: 0 | L33: 1 | M33: 0 | N33: 0
A34: Ленинградская область | B34: 1 | C34: 0 | D34: 0 | E34: 0 | F34: 0 | G34: 0 | H34: 1 | I34: 0 | J34: 0 | K34: 0 | L34: 0 | M34: 0 | N34: 0
A35: Мурманская область | B35: 6 | C35: 3 | D35: 0 | E35: 0 | F35: 0 | G35: 1 | H35: 1 | I35: 0 | J35: 0 | K35: 0 | L35: 1 | M35: 0 | N35: 0
A36: Новгородская область | B36: 1 | C36: 0 | D36: 0 | E36: 0 | F36: 0 | G36: 0 | H36: 0 | I36: 0 | J36: 0 | K36: 1 | L36: 0 | M36: 0 | N36: 0
A37: Псковская область | B37: 2 | C37: 0 | D37: 0 | E37: 0 | F37: 0 | G37: 0 | H37: 1 | I37: 0 | J37: 1 | K37: 0 | L37: 0 | M37: 0 | N37: 0
A38: г.Санкт-Петербург | B38: 0 | C38: 0 | D38: 0 | E38: 0 | F38: 0 | G38: 0 | H38: 0 | I38: 0 | J38: 0 | K38: 0 | L38: 0 | M38: 0 | N38: 0
A39: Южный федеральный округ | B39: 42 | C39: 0 | D39: 1 | E39: 2 | F39: 4 | G39: 5 | H39: 7 | I39: 7 | J39: 4 | K39: 4 | L39: 4 | M39: 1 | N39: 3
A40: Республика Адыгея | B40: 2 | C40: 0 | D40: 0 | E40: 1 | F40: 0 | G40: 0 | H40: 0 | I40: 0 | J40: 1 | K40: 0 | L40: 0 | M40: 0 | N40: 0
A41: Республика Калмыкия | B41: 1 | C41: 0 | D41: 0 | E41: 0 | F41: 0 | G41: 0 | H41: 0 | I41: 1 | J41: 0 | K41: 0 | L41: 0 | M41: 0 | N41: 0
A42: Республика Крым | B42: 11 | C42: 0 | D42: 0 | E42: 0 | F42: 3 | G42: 2 | H42: 2 | I42: 2 | J42: 1 | K42: 0 | L42: 1 | M42: 0 | N42: 0
A43: Краснодарский край | B43: 8 | C43: 0 | D43: 1 | E43: 0 | F43: 0 | G43: 0 | H43: 1 | I43: 1 | J43: 0 | K43: 2 | L43: 1 | M43: 1 | N43: 1
A44: Астраханская область | B44: 2 | C44: 0 | D44: 0 | E44: 0 | F44: 1 | G44: 0 | H44: 0 | I44: 0 | J44: 0 | K44: 0 | L44: 1 | M44: 0 | N44: 0
A45: Волгоградская область | B45: 6 | C45: 0 | D45: 0 | E45: 0 | F45: 0 | G45: 2 | H45: 1 | I45: 1 | J45: 0 | K45: 0 | L45: 1 | M45: 0 | N45: 1
A46: Ростовская область | B46: 12 | C46: 0 | D46: 0 | E46: 1 | F46: 0 | G46: 1 | H46: 3 | I46: 2 | J46: 2 | K46: 2 | L46: 0 | M46: 0 | N46: 1
A47: г. Севастополь | B47: 0 | C47: 0 | D47: 0 | E47: 0 | F47: 0 | G47: 0 | H47: 0 | I47: 0 | J47: 0 | K47: 0 | L47: 0 | M47: 0 | N47: 0
A48: Северо-Кавказский федеральный округ | B48: 40 | C48: 0 | D48: 1 | E48: 1 | F48: 1 | G48: 4 | H48: 16 | I48: 9 | J48: 2 | K48: 1 | L48: 3 | M48: 2 | N48: 0
A49: Республика Дагестан | B49: 10 | C49: 0 | D49: 1 | E49: 0 | F49: 0 | G49: 1 | H49: 4 | I49: 2 | J49: 1 | K49: 0 | L49: 0 | M49: 1 | N49: 0
A50: Республика Ингушетия | B50: 5 | C50: 0 | D50: 0 | E50: 1 | F50: 0 | G50: 2 | H50: 1 | I50: 1 | J50: 0 | K50: 0 | L50: 0 | M50: 0 | N50: 0
A51: Кабардино-Балкарская Республика | B51: 3 | C51: 0 | D51: 0 | E51: 0 | F51: 0 | G51: 0 | H51: 2 | I51: 0 | J51: 0 | K51: 0 | L51: 1 | M51: 0 | N51: 0
A52: Карачаево-Черкесская Республика | B52: 2 | C52: 0 | D52: 0 | E52: 0 | F52: 0 | G52: 1 | H52: 0 | I52: 1 | J52: 0 | K52: 0 | L52: 0 | M52: 0 | N52: 0
A53: Республика Северная Осетия-Алания | B53: 1 | C53: 0 | D53: 0 | E53: 0 | F53: 0 | G53: 0 | H53: 0 | I53: 0 | J53: 0 | K53: 0 | L53: 1 | M53: 0 | N53: 0
A54: Чеченская Республика | B54: 2 | C54: 0 | D54: 0 | E54: 0 | F54: 0 | G54: 0 | H54: 1 | I54: 0 | J54: 0 | K54: 0 | L54: 1 | M54: 0 | N54: 0
A55: Ставропольский край | B55: 17 | C55: 0 | D55: 0 | E55: 0 | F55: 1 | G55: 0 | H55: 8 | I55: 5 | J55: 1 | K55: 1 | L55: 0 | M55: 1 | N55: 0
A56: Приволжский федеральный округ | B56: 101 | C56: 5 | D56: 5 | E56: 13 | F56: 13 | G56: 14 | H56: 22 | I56: 9 | J56: 2 | K56: 1 | L56: 5 | M56: 7 | N56: 5
A57: Республика Башкортостан | B57: 9 | C57: 0 | D57: 1 | E57: 1 | F57: 0 | G57: 0 | H57: 2 | I57: 3 | J57: 0 | K57: 0 | L57: 1 | M57: 0 | N57: 1
A58: Республика Марий Эл | B58: 3 | C58: 0 | D58: 0 | E58: 1 | F58: 0 | G58: 0 | H58: 1 | I58: 0 | J58: 0 | K58: 0 | L58: 1 | M58: 0 | N58: 0
A59: Республика Мордовия | B59: 1 | C59: 0 | D59: 0 | E59: 0 | F59: 0 | G59: 0 | H59: 0 | I59: 0 | J59: 0 | K59: 0 | L59: 1 | M59: 0 | N59: 0
A60: Республика Татарстан | B60: 2 | C60: 0 | D60: 0 | E60: 0 | F60: 0 | G60: 0 | H60: 0 | I60: 0 | J60: 0 | K60: 0 | L60: 0 | M60: 1 | N60: 1
A61: Удмуртская Республика | B61: 5 | C61: 0 | D61: 0 | E61: 0 | F61: 0 | G61: 1 | H61: 3 | I61: 0 | J61: 0 | K61: 0 | L61: 0 | M61: 1 | N61: 0
A62: Чувашская Республика | B62: 5 | C62: 0 | D62: 0 | E62: 0 | F62: 1 | G62: 2 | H62: 0 | I62: 1 | J62: 0 | K62: 0 | L62: 0 | M62: 1 | N62: 0
A63: Пермский край | B63: 22 | C63: 1 | D63: 1 | E63: 5 | F63: 4 | G63: 3 | H63: 5 | I63: 2 | J63: 0 | K63: 0 | L63: 0 | M63: 0 | N63: 1
A64: Кировская область | B64: 6 | C64: 1 | D64: 0 | E64: 1 | F64: 2 | G64: 0 | H64: 1 | I64: 0 | J64: 0 | K64: 0 | L64: 1 | M64: 0 | N64: 0
A65: Нижегородская область | B65: 15 | C65: 0 | D65: 2 | E65: 3 | F65: 2 | G65: 2 | H65: 2 | I65: 2 | J65: 0 | K65: 1 | L65: 0 | M65: 0 | N65: 1
A66: Оренбургская область | B66: 13 | C66: 1 | D66: 0 | E66: 1 | F66: 2 | G66: 5 | H66: 2 | I66: 0 | J66: 1 | K66: 0 | L66: 0 | M66: 1 | N66: 0
A67: Пензенская область | B67: 3 | C67: 0 | D67: 0 | E67: 0 | F67: 0 | G67: 0 | H67: 2 | I67: 0 | J67: 0 | K67: 0 | L67: 1 | M67: 0 | N67: 0
A68: Самарская область | B68: 10 | C68: 0 | D68: 0 | E68: 0 | F68: 2 | G68: 1 | H68: 4 | I68: 0 | J68: 1 | K68: 0 | L68: 0 | M68: 1 | N68: 1
A69: Саратовская область | B69: 4 | C69: 2 | D69: 1 | E69: 0 | F69: 0 | G69: 0 | H69: 0 | I69: 0 | J69: 0 | K69: 0 | L69: 0 | M69: 1 | N69: 0
A70: Ульяновская область | B70: 3 | C70: 0 | D70: 0 | E70: 1 | F70: 0 | G70: 0 | H70: 0 | I70: 1 | J70: 0 | K70: 0 | L70: 0 | M70: 1 | N70: 0
A71: Уральский федеральный округ | B71: 111 | C71: 13 | D71: 5 | E71: 9 | F71: 18 | G71: 30 | H71: 18 | I71: 7 | J71: 3 | K71: 0 | L71: 5 | M71: 1 | N71: 2
A72: Курганская область | B72: 2 | C72: 0 | D72: 0 | E72: 0 | F72: 0 | G72: 0 | H72: 1 | I72: 0 | J72: 0 | K72: 0 | L72: 1 | M72: 0 | N72: 0
A73: Свердловская область | B73: 68 | C73: 12 | D73: 4 | E73: 8 | F73: 14 | G73: 16 | H73: 10 | I73: 1 | J73: 1 | K73: 0 | L73: 1 | M73: 0 | N73: 1
A74: Тюменская область включая автономные округа | B74: 25 | C74: 0 | D74: 0 | E74: 1 | F74: 2 | G74: 10 | H74: 4 | I74: 5 | J74: 0 | K74: 0 | L74: 2 | M74: 1 | N74: 0
A75: Ханты-Мансийский автономный округ - Югра | B75: 13 | C75: 0 | D75: 0 | E75: 1 | F75: 0 | G75: 5 | H75: 3 | I75: 2 | J75: 0 | K75: 0 | L75: 2 | M75: 0 | N75: 0
A76: Ямало-Ненецкий автономный округ | B76: 6 | C76: 0 | D76: 0 | E76: 0 | F76: 1 | G76: 3 | H76: 0 | I76: 2 | J76: 0 | K76: 0 | L76: 0 | M76: 0 | N76: 0
A77: Тюменская область без автономных округов | B77: 6 | C77: 0 | D77: 0 | E77: 0 | F77: 1 | G77: 2 | H77: 1 | I77: 1 | J77: 0 | K77: 0 | L77: 0 | M77: 1 | N77: 0
A78: Челябинская область | B78: 16 | C78: 1 | D78: 1 | E78: 0 | F78: 2 | G78: 4 | H78: 3 | I78: 1 | J78: 2 | K78: 0 | L78: 1 | M78: 0 | N78: 1
A79: Сибирский федеральный округ | B79: 69 | C79: 3 | D79: 6 | E79: 4 | F79: 5 | G79: 13 | H79: 18 | I79: 6 | J79: 4 | K79: 2 | L79: 0 | M79: 5 | N79: 3
A80: Республика Алтай | B80: 1 | C80: 0 | D80: 0 | E80: 0 | F80: 0 | G80: 0 | H80: 1 | I80: 0 | J80: 0 | K80: 0 | L80: 0 | M80: 0 | N80: 0
A81: Республика Тыва | B81: 2 | C81: 0 | D81: 1 | E81: 0 | F81: 0 | G81: 0 | H81: 0 | I81: 1 | J81: 0 | K81: 0 | L81: 0 | M81: 0 | N81: 0
A82: Республика Хакасия | B82: 5 | C82: 0 | D82: 2 | E82: 0 | F82: 0 | G82: 0 | H82: 2 | I82: 0 | J82: 1 | K82: 0 | L82: 0 | M82: 0 | N82: 0
A83: Алтайский край | B83: 9 | C83: 0 | D83: 2 | E83: 1 | F83: 1 | G83: 1 | H83: 1 | I83: 1 | J83: 1 | K83: 0 | L83: 0 | M83: 1 | N83: 0
A84: Красноярский край | B84: 17 | C84: 2 | D84: 1 | E84: 2 | F84: 0 | G84: 4 | H84: 5 | I84: 1 | J84: 1 | K84: 0 | L84: 0 | M84: 0 | N84: 1
A85: Иркутская область | B85: 10 | C85: 0 | D85: 0 | E85: 1 | F85: 0 | G85: 3 | H85: 3 | I85: 0 | J85: 0 | K85: 2 | L85: 0 | M85: 1 | N85: 0
A86: Кемеровская область | B86: 15 | C86: 0 | D86: 0 | E86: 0 | F86: 3 | G86: 3 | H86: 5 | I86: 1 | J86: 1 | K86: 0 | L86: 0 | M86: 2 | N86: 0
A87: Новосибирская область | B87: 5 | C87: 0 | D87: 0 | E87: 0 | F87: 1 | G87: 1 | H87: 1 | I87: 1 | J87: 0 | K87: 0 | L87: 0 | M87: 0 | N87: 1
A88: Омская область | B88: 1 | C88: 0 | D88: 0 | E88: 0 | F88: 0 | G88: 0 | H88: 0 | I88: 0 | J88: 0 | K88: 0 | L88: 0 | M88: 0 | N88: 1
A89: Томская область | B89: 4 | C89: 1 | D89: 0 | E89: 0 | F89: 0 | G89: 1 | H89: 0 | I89: 1 | J89: 0 | K89: 0 | L89: 0 | M89: 1 | N89: 0
A90: Дальневосточный федеральный округ | B90: 58 | C90: 10 | D90: 9 | E90: 6 | F90: 9 | G90: 9 | H90: 3 | I90: 2 | J90: 2 | K90: 3 | L90: 3 | M90: 2 | N90: 0
A91: Республика Бурятия | B91: 2 | C91: 0 | D91: 0 | E91: 0 | F91: 1 | G91: 0 | H91: 0 | I91: 0 | J91: 0 | K91: 0 | L91: 1 | M91: 0 | N91: 0
A92: Республика Саха (Якутия) | B92: 2 | C92: 0 | D92: 1 | E92: 0 | F92: 0 | G92: 0 | H92: 0 | I92: 0 | J92: 0 | K92: 0 | L92: 1 | M92: 0 | N92: 0
A93: Забайкальский край | B93: 4 | C93: 1 | D93: 1 | E93: 1 | F93: 0 | G93: 0 | H93: 0 | I93: 0 | J93: 0 | K93: 0 | L93: 1 | M93: 0 | N93: 0
A94: Камчатский край | B94: 3 | C94: 1 | D94: 0 | E94: 0 | F94: 1 | G94: 0 | H94: 0 | I94: 0 | J94: 1 | K94: 0 | L94: 0 | M94: 0 | N94: 0
A95: Приморский край | B95: 12 | C95: 0 | D95: 0 | E95: 0 | F95: 2 | G95: 6 | H95: 0 | I95: 2 | J95: 0 | K95: 1 | L95: 0 | M95: 1 | N95: 0
A96: Хабаровский край | B96: 2 | C96: 0 | D96: 0 | E96: 0 | F96: 0 | G96: 0 | H96: 0 | I96: 0 | J96: 0 | K96: 1 | L96: 0 | M96: 1 | N96: 0
A97: Амурская область | B97: 9 | C97: 1 | D97: 1 | E97: 3 | F97: 1 | G97: 1 | H97: 1 | I97: 0 | J97: 0 | K97: 1 | L97: 0 | M97: 0 | N97: 0
A98: Магаданская область | B98: 1 | C98: 0 | D98: 0 | E98: 0 | F98: 0 | G98: 0 | H98: 1 | I98: 0 | J98: 0 | K98: 0 | L98: 0 | M98: 0 | N98: 0
A99: Сахалинская область | B99: 18 | C99: 4 | D99: 5 | E99: 2 | F99: 4 | G99: 2 | H99: 0 | I99: 0 | J99: 1 | K99: 0 | L99: 0 | M99: 0 | N99: 0
A100: Еврейская автономная область | B100: 1 | C100: 0 | D100: 0 | E100: 0 | F100: 0 | G100: 0 | H100: 1 | I100: 0 | J100: 0 | K100: 0 | L100: 0 | M100: 0 | N100: 0
A101: Чукотский автономный округ | B101: 4 | C101: 3 | D101: 1 | E101: 0 | F101: 0 | G101: 0 | H101: 0 | I101: 0 | J101: 0 | K101: 0 | L101: 0 | M101: 0 | N101: 0

Sheet Таб_8
A1: Содержание
A2: 8. Группировка численности населения, проживающего в городских округах, на 1 января 2023 года
B4: Численность населения, проживающего в городских округах - всего | C4: в том числе с числом жителей, человек
A5: Группировка численности населения, проживающего в городских округах | C5: до 10000 | D5: 10000 - 14999 | E5: 15000 - 19999 | F5: 20000 - 29999 | G5: 30000 - 49999 | H5: 50000 - 99999 | I5: 100000 - 149999 | J5: 150000 - 199999 | K5: 200000 - 249999 | L5: 250000 - 499999 | M5: 500000 - 999999 | N5: 1000000 и более
A6: Российская Федерация | B6: 78287632 | C6: 229394 | D6: 411237 | E6: 712368 | F6: 1849030 | G6: 3836492 | H6: 8456062 | I6: 6422566 | J6: 4550467 | K6: 4695013 | L6: 16459400 | M6: 13592422 | N6: 17073181
A7: Центральный федеральный округ | B7: 18727822 | C7: 19821 | D7: 63653 | E7: 100849 | F7: 440066 | G7: 632353 | H7: 2174659 | I7: 1721250 | J7: 1199665 | K7: 1551601 | L7: 7585521 | M7: 2186389 | N7: 1051995
A8: Белгородская область | B8: 1029121 | C8: 0 | D8: 0 | E8: 0 | F8: 26669 | G8: 39084 | H8: 263446 | I8: 113662 | J8: 0 | K8: 0 | L8: 586260 | M8: 0 | N8: 0
A9: Брянская область | B9: 538118 | C9: 0 | D9: 12245 | E9: 15611 | F9: 0 | G9: 48937 | H9: 69556 | I9: 0 | J9: 0 | K9: 0 | L9: 391769 | M9: 0 | N9: 0
A10: Владимирская область | B10: 662366 | C10: 0 | D10: 0 | E10: 17392 | F10: 0 | G10: 0 | H10: 52002 | I10: 243657 | J10: 0 | K10: 0 | L10: 349315 | M10: 0 | N10: 0
A11: Воронежская область | B11: 1150734 | C11: 0 | D11: 0 | E11: 0 | F11: 0 | G11: 30495 | H11: 68244 | I11: 0 | J11: 0 | K11: 0 | L11: 0 | M11: 0 | N11: 1051995
A12: Ивановская область | B12: 581785 | C12: 0 | D12: 0 | E12: 0 | F12: 0 | G12: 91365 | H12: 129733 | I12: 0 | J12: 0 | K12: 0 | L12: 360687 | M12: 0 | N12: 0
A13: Калужская область | B13: 485072 | C13: 0 | D13: 0 | E13: 0 | F13: 0 | G13: 0 | H13: 0 | I13: 129584 | J13: 0 | K13: 0 | L13: 355488 | M13: 0 | N13: 0
A14: Костромская область | B14: 358655 | C14: 0 | D14: 26679 | E14: 15431 | F14: 20211 | G14: 30369 | H14: 0 | I14: 0 | J14: 0 | K14: 0 | L14: 265965 | M14: 0 | N14: 0
A15: Курская область | B15: 602055 | C15: 0 | D15: 14601 | E15: 17041 | F15: 0 | G15: 39504 | H15: 96206 | I15: 0 | J15: 0 | K15: 0 | L15: 434703 | M15: 0 | N15: 0
A16: Липецкая область | B16: 587346 | C16: 0 | D16: 0 | E16: 0 | F16: 0 | G16: 0 | H16: 96918 | I16: 0 | J16: 0 | K16: 0 | L16: 490428 | M16: 0 | N16: 0
A17: Московская область | B17: 8591736 | C17: 12555 | D17: 0 | E17: 19392 | F17: 176508 | G17: 117921 | H17: 999317 | I17: 1103674 | J17: 1025755 | K17: 1551601 | L17: 3035167 | M17: 549846 | N17: 0
A18: Орловская область | B18: 375631 | C18: 0 | D18: 0 | E18: 0 | F18: 0 | G18: 78998 | H18: 0 | I18: 0 | J18: 0 | K18: 0 | L18: 296633 | M18: 0 | N18: 0
A19: Рязанская область | B19: 597952 | C19: 0 | D19: 0 | E19: 0 | F19: 74749 | G19: 0 | H19: 0 | I19: 0 | J19: 0 | K19: 0 | L19: 0 | M19: 523203 | N19: 0
A20: Смоленская область | B20: 337852 | C20: 0 | D20: 0 | E20: 0 | F20: 24956 | G20: 0 | H20: 0 | I20: 0 | J20: 0 | K20: 0 | L20: 312896 | M20: 0 | N20: 0
A21: Тамбовская область | B21: 531671 | C21: 0 | D21: 0 | E21: 15982 | F21: 49471 | G21: 85502 | H21: 89262 | I21: 0 | J21: 0 | K21: 0 | L21: 291454 | M21: 0 | N21: 0
A22: Тверская область | B22: 629551 | C22: 1819 | D22: 10128 | E22: 0 | F22: 67502 | G22: 70178 | H22: 65168 | I22: 0 | J22: 0 | K22: 0 | L22: 414756 | M22: 0 | N22: 0
A23: Тульская область | B23: 868581 | C23: 5447 | D23: 0 | E23: 0 | F23: 0 | G23: 0 | H23: 189945 | I23: 130673 | J23: 0 | K23: 0 | L23: 0 | M23: 542516 | N23: 0
A24: Ярославская область | B24: 799596 | C24: 0 | D24: 0 | E24: 0 | F24: 0 | G24: 0 | H24: 54862 | I24: 0 | J24: 173910 | K24: 0 | L24: 0 | M24: 570824 | N24: 0
A25: г.Москва | B25: 0 | C25: 0 | D25: 0 | E25: 0 | F25: 0 | G25: 0 | H25: 0 | I25: 0 | J25: 0 | K25: 0 | L25: 0 | M25: 0 | N25: 0
A26: Северо-Западный федеральный округ | B26: 3593391 | C26: 35364 | D26: 23238 | E26: 0 | F26: 175804 | G26: 211232 | H26: 429952 | I26: 0 | J26: 346046 | K26: 692089 | L26: 1679666 | M26: 0 | N26: 0
A27: Республика Карелия | B27: 262324 | C27: 0 | D27: 0 | E27: 0 | F27: 26531 | G27: 0 | H27: 0 | I27: 0 | J27: 0 | K27: 235793 | L27: 0 | M27: 0 | N27: 0
A28: Республика Коми | B28: 462457 | C28: 0 | D28: 10365 | E28: 0 | F28: 21092 | G28: 36025 | H28: 161870 | I28: 0 | J28: 0 | K28: 233105 | L28: 0 | M28: 0 | N28: 0
A29: Архангельская область, включая Ненецкий автономный округ | B29: 647052 | C29: 2360 | D29: 0 | E29: 0 | F29: 50753 | G29: 66828 | H29: 67023 | I29: 0 | J29: 156731 | K29: 0 | L29: 303357 | M29: 0 | N29: 0
A30: Ненецкий автономный округ | B30: 23579 | C30: 0 | D30: 0 | E30: 0 | F30: 23579 | G30: 0 | H30: 0 | I30: 0 | J30: 0 | K30: 0 | L30: 0 | M30: 0 | N30: 0
A31: Архангельская область без Ненецкого автономного округа | B31: 623473 | C31: 2360 | D31: 0 | E31: 0 | F31: 27174 | G31: 66828 | H31: 67023 | I31: 0 | J31: 156731 | K31: 0 | L31: 303357 | M31: 0 | N31: 0
A32: Вологодская область | B32: 619152 | C32: 0 | D32: 0 | E32: 0 | F32: 0 | G32: 0 | H32: 0 | I32: 0 | J32: 0 | K32: 0 | L32: 619152 | M32: 0 | N32: 0
A33: Калининградская область | B33: 675649 | C33: 19466 | D33: 12873 | E33: 0 | F33: 77428 | G33: 76147 | H33: 0 | I33: 0 | J33: 0 | K33: 0 | L33: 489735 | M33: 0 | N33: 0
A34: Ленинградская область | B34: 64121 | C34: 0 | D34: 0 | E34: 0 | F34: 0 | G34: 0 | H34: 64121 | I34: 0 | J34: 0 | K34: 0 | L34: 0 | M34: 0 | N34: 0
A35: Мурманская область | B35: 364141 | C35: 13538 | D35: 0 | E35: 0 | F35: 0 | G35: 32232 | H35: 50949 | I35: 0 | J35: 0 | K35: 0 | L35: 267422 | M35: 0 | N35: 0
A36: Новгородская область | B36: 223191 | C36: 0 | D36: 0 | E36: 0 | F36: 0 | G36: 0 | H36: 0 | I36: 0 | J36: 0 | K36: 223191 | L36: 0 | M36: 0 | N36: 0
A37: Псковская область | B37: 275304 | C37: 0 | D37: 0 | E37: 0 | F37: 0 | G37: 0 | H37: 85989 | I37: 0 | J37: 189315 | K37: 0 | L37: 0 | M37: 0 | N37: 0
A38: г.Санкт-Петербург | B38: 0 | C38: 0 | D38: 0 | E38: 0 | F38: 0 | G38: 0 | H38: 0 | I38: 0 | J38: 0 | K38: 0 | L38: 0 | M38: 0 | N38: 0
A39: Южный федеральный округ | B39: 8621259 | C39: 0 | D39: 13768 | E39: 35206 | F39: 95383 | G39: 186305 | H39: 529032 | I39: 812422 | J39: 642798 | K39: 872448 | L39: 1484248 | M39: 561793 | N39: 3387856
A40: Республика Адыгея | B40: 179380 | C40: 0 | D40: 0 | E40: 15614 | F40: 0 | G40: 0 | H40: 0 | I40: 0 | J40: 163766 | K40: 0 | L40: 0 | M40: 0 | N40: 0
A41: Республика Калмыкия | B41: 106882 | C41: 0 | D41: 0 | E41: 0 | F41: 0 | G41: 0 | H41: 0 | I41: 106882 | J41: 0 | K41: 0 | L41: 0 | M41: 0 | N41: 0
A42: Республика Крым | B42: 1061279 | C42: 0 | D42: 0 | E42: 0 | F42: 71551 | G42: 70257 | H42: 154079 | I42: 255871 | J42: 152683 | K42: 0 | L42: 356838 | M42: 0 | N42: 0
A43: Краснодарский край | B43: 2735801 | C43: 0 | D43: 13768 | E43: 0 | F43: 0 | G43: 0 | H43: 67391 | I43: 116967 | J43: 0 | K43: 407632 | L43: 342024 | M43: 561793 | N43: 1226226
A44: Астраханская область | B44: 492674 | C44: 0 | D44: 0 | E44: 0 | F44: 23832 | G44: 0 | H44: 0 | I44: 0 | J44: 0 | K44: 0 | L44: 468842 | M44: 0 | N44: 0
A45: Волгоградская область | B45: 1600590 | C45: 0 | D45: 0 | E45: 0 | F45: 0 | G45: 69943 | H45: 82970 | I45: 105471 | J45: 0 | K45: 0 | L45: 316544 | M45: 0 | N45: 1025662
A46: Ростовская область | B46: 2444653 | C46: 0 | D46: 0 | E46: 19592 | F46: 0 | G46: 46105 | H46: 224592 | I46: 227231 | J46: 326349 | K46: 464816 | L46: 0 | M46: 0 | N46: 1135968
A47: г. Севастополь | B47: 0 | C47: 0 | D47: 0 | E47: 0 | F47: 0 | G47: 0 | H47: 0 | I47: 0 | J47: 0 | K47: 0 | L47: 0 | M47: 0 | N47: 0
A48: Северо-Кавказский федеральный округ | B48: 5008665 | C48: 0 | D48: 10565 | E48: 16931 | F48: 24405 | G48: 154065 | H48: 954298 | I48: 1096648 | J48: 315918 | K48: 213377 | L48: 912677 | M48: 1309781 | N48: 0
A49: Республика Дагестан | B49: 1440673 | C49: 0 | D49: 10565 | E49: 0 | F49: 0 | G49: 31894 | H49: 229402 | I49: 251825 | J49: 157466 | K49: 0 | L49: 0 | M49: 759521 | N49: 0
A50: Республика Ингушетия | B50: 284653 | C50: 0 | D50: 0 | E50: 16931 | F50: 0 | G50: 81111 | H50: 62525 | I50: 124086 | J50: 0 | K50: 0 | L50: 0 | M50: 0 | N50: 0
A51: Кабардино-Балкарская Республика | B51: 392158 | C51: 0 | D51: 0 | E51: 0 | F51: 0 | G51: 0 | H51: 120502 | I51: 0 | J51: 0 | K51: 0 | L51: 271656 | M51: 0 | N51: 0
A52: Карачаево-Черкесская Республика | B52: 153849 | C52: 0 | D52: 0 | E52: 0 | F52: 0 | G52: 41060 | H52: 0 | I52: 112789 | J52: 0 | K52: 0 | L52: 0 | M52: 0 | N52: 0
A53: Республика Северная Осетия-Алания | B53: 309619 | C53: 0 | D53: 0 | E53: 0 | F53: 0 | G53: 0 | H53: 0 | I53: 0 | J53: 0 | K53: 0 | L53: 309619 | M53: 0 | N53: 0
A54: Чеченская Республика | B54: 392302 | C54: 0 | D54: 0 | E54: 0 | F54: 0 | G54: 0 | H54: 60900 | I54: 0 | J54: 0 | K54: 0 | L54: 331402 | M54: 0 | N54: 0
A55: Ставропольский край | B55: 2035411 | C55: 0 | D55: 0 | E55: 0 | F55: 24405 | G55: 0 | H55: 480969 | I55: 607948 | J55: 158452 | K55: 213377 | L55: 0 | M55: 550260 | N55: 0
A56: Приволжский федеральный округ | B56: 16872747 | C56: 26266 | D56: 65640 | E56: 227734 | F56: 326027 | G56: 592557 | H56: 1598328 | I56: 1150540 | J56: 355046 | K56: 226691 | L56: 1903210 | M56: 4477035 | N56: 5923673
A57: Республика Башкортостан | B57: 2015762 | C57: 0 | D57: 14002 | E57: 15394 | F57: 0 | G57: 0 | H57: 118629 | I57: 407584 | J57: 0 | K57: 0 | L57: 279174 | M57: 0 | N57: 1180979
A58: Республика Марий Эл | B58: 365647 | C58: 0 | D58: 0 | E58: 19355 | F58: 0 | G58: 0 | H58: 52164 | I58: 0 | J58: 0 | K58: 0 | L58: 294128 | M58: 0 | N58: 0
A59: Республика Мордовия | B59: 340591 | C59: 0 | D59: 0 | E59: 0 | F59: 0 | G59: 0 | H59: 0 | I59: 0 | J59: 0 | K59: 0 | L59: 340591 | M59: 0 | N59: 0
A60: Республика Татарстан | B60: 1860435 | C60: 0 | D60: 0 | E60: 0 | F60: 0 | G60: 0 | H60: 0 | I60: 0 | J60: 0 | K60: 0 | L60: 0 | M60: 545750 | N60: 1314685
A61: Удмуртская Республика | B61: 938531 | C61: 0 | D61: 0 | E61: 0 | F61: 0 | G61: 44038 | H61: 273902 | I61: 0 | J61: 0 | K61: 0 | L61: 0 | M61: 620591 | N61: 0
A62: Чувашская Республика | B62: 728904 | C62: 0 | D62: 0 | E62: 0 | F62: 26321 | G62: 75807 | H62: 0 | I62: 120425 | J62: 0 | K62: 0 | L62: 0 | M62: 506351 | N62: 0
A63: Пермский край | B63: 1943221 | C63: 7515 | D63: 14240 | E63: 85847 | F63: 95239 | G63: 125358 | H63: 338155 | I63: 249710 | J63: 0 | K63: 0 | L63: 0 | M63: 0 | N63: 1027157
A64: Кировская область | B64: 645023 | C64: 5054 | D64: 0 | E64: 19631 | F64: 58135 | G64: 0 | H64: 65262 | I64: 0 | J64: 0 | K64: 0 | L64: 496941 | M64: 0 | N64: 0
A65: Нижегородская область | B65: 2111980 | C65: 0 | D65: 24540 | E65: 52699 | F65: 49996 | G65: 90952 | H65: 166700 | I65: 263274 | J65: 0 | K65: 226691 | L65: 0 | M65: 0 | N65: 1237128
A66: Оренбургская область | B66: 1194391 | C66: 6384 | D66: 0 | E66: 17951 | F66: 48233 | G66: 209647 | H66: 168365 | I66: 0 | J66: 190980 | K66: 0 | L66: 0 | M66: 552831 | N66: 0
A67: Пензенская область | B67: 628417 | C67: 0 | D67: 0 | E67: 0 | F67: 0 | G67: 0 | H67: 136041 | I67: 0 | J67: 0 | K67: 0 | L67: 492376 | M67: 0 | N67: 0
A68: Самарская область | B68: 2376388 | C68: 0 | D68: 0 | E68: 0 | F68: 48103 | G68: 46755 | H68: 279110 | I68: 0 | J68: 164066 | K68: 0 | L68: 0 | M68: 674630 | N68: 1163724
A69: Саратовская область | B69: 962486 | C69: 7313 | D69: 12858 | E69: 0 | F69: 0 | G69: 0 | H69: 0 | I69: 0 | J69: 0 | K69: 0 | L69: 0 | M69: 942315 | N69: 0
A70: Ульяновская область | B70: 760971 | C70: 0 | D70: 0 | E70: 16857 | F70: 0 | G70: 0 | H70: 0 | I70: 109547 | J70: 0 | K70: 0 | L70: 0 | M70: 634567 | N70: 0
A71: Уральский федеральный округ | B71: 9840435 | C71: 77278 | D71: 61679 | E71: 151310 | F71: 449568 | G71: 1191852 | H71: 1228804 | I71: 825608 | J71: 487182 | K71: 0 | L71: 1745712 | M71: 855618 | N71: 2765824
A72: Курганская область | B72: 373607 | C72: 0 | D72: 0 | E72: 0 | F72: 0 | G72: 0 | H72: 68102 | I72: 0 | J72: 0 | K72: 0 | L72: 305505 | M72: 0 | N72: 0
A73: Свердловская область | B73: 4152076 | C73: 68702 | D73: 51091 | E73: 135109 | F73: 347735 | G73: 632104 | H73: 701087 | I73: 131408 | J73: 164614 | K73: 0 | L73: 336919 | M73: 0 | N73: 1583307
A74: Тюменская область включая автономные округа | B74: 2824448 | C74: 0 | D74: 0 | E74: 16201 | F74: 52735 | G74: 407914 | H74: 252039 | I74: 545908 | J74: 0 | K74: 0 | L74: 694033 | M74: 855618 | N74: 0
A75: Ханты-Мансийский автономный округ - Югра | B75: 1337737 | C75: 0 | D75: 0 | E75: 16201 | F75: 0 | G75: 208047 | H75: 184722 | I75: 234734 | J75: 0 | K75: 0 | L75: 694033 | M75: 0 | N75: 0
A76: Ямало-Ненецкий автономный округ | B76: 350829 | C76: 0 | D76: 0 | E76: 0 | F76: 29306 | G76: 113524 | H76: 0 | I76: 207999 | J76: 0 | K76: 0 | L76: 0 | M76: 0 | N76: 0
A77: Тюменская область без автономных округов | B77: 1135882 | C77: 0 | D77: 0 | E77: 0 | F77: 23429 | G77: 86343 | H77: 67317 | I77: 103175 | J77: 0 | K77: 0 | L77: 0 | M77: 855618 | N77: 0
A78: Челябинская область | B78: 2490304 | C78: 8576 | D78: 10588 | E78: 0 | F78: 49098 | G78: 151834 | H78: 207576 | I78: 148292 | J78: 322568 | K78: 0 | L78: 409255 | M78: 0 | N78: 1182517
A79: Сибирский федеральный округ | B79: 10869047 | C79: 14845 | D79: 63262 | E79: 79484 | F79: 126348 | G79: 502879 | H79: 1316276 | I79: 561104 | J79: 853461 | K79: 451302 | L79: 0 | M79: 2956253 | N79: 3943833
A80: Республика Алтай | B80: 64957 | C80: 0 | D80: 0 | E80: 0 | F80: 0 | G80: 0 | H80: 64957 | I80: 0 | J80: 0 | K80: 0 | L80: 0 | M80: 0 | N80: 0
A81: Республика Тыва | B81: 140357 | C81: 0 | D81: 0 | E81: 12208 | F81: 0 | G81: 0 | H81: 0 | I81: 0 | J81: 128149 | K81: 0 | L81: 0 | M81: 0 | N81: 0
A82: Республика Хакасия | B82: 341997 | C82: 0 | D82: 22875 | E82: 0 | F82: 0 | G82: 0 | H82: 133774 | I82: 0 | J82: 185348 | K82: 0 | L82: 0 | M82: 0 | N82: 0
A83: Алтайский край | B83: 1184855 | C83: 0 | D83: 25402 | E83: 16447 | F83: 24804 | G83: 40626 | H83: 73122 | I83: 124687 | J83: 189639 | K83: 0 | L83: 0 | M83: 690128 | N83: 0
A84: Красноярский край | B84: 2054472 | C84: 12211 | D84: 14985 | E84: 35496 | F84: 0 | G84: 158123 | H84: 359148 | I84: 101384 | J84: 175466 | K84: 0 | L84: 0 | M84: 0 | N84: 1197659
A85: Иркутская область | B85: 1386838 | C85: 0 | D85: 0 | E85: 15333 | F85: 0 | G85: 103621 | H85: 205367 | I85: 0 | J85: 0 | K85: 451302 | L85: 0 | M85: 611215 | N85: 0
A86: Кемеровская область | B86: 2013364 | C86: 0 | D86: 0 | E86: 0 | F86: 80671 | G86: 131686 | H86: 423127 | I86: 120094 | J86: 174859 | K86: 0 | L86: 0 | M86: 1082927 | N86: 0
A87: Новосибирская область | B87: 1846719 | C87: 0 | D87: 0 | E87: 0 | F87: 20873 | G87: 30762 | H87: 56781 | I87: 102965 | J87: 0 | K87: 0 | L87: 0 | M87: 0 | N87: 1635338
A88: Омская область | B88: 1110836 | C88: 0 | D88: 0 | E88: 0 | F88: 0 | G88: 0 | H88: 0 | I88: 0 | J88: 0 | K88: 0 | L88: 0 | M88: 0 | N88: 1110836
A89: Томская область | B89: 724652 | C89: 2634 | D89: 0 | E89: 0 | F89: 0 | G89: 38061 | H89: 0 | I89: 111974 | J89: 0 | K89: 0 | L89: 0 | M89: 571983 | N89: 0
A90: Дальневосточный федеральный округ | B90: 4754266 | C90: 55820 | D90: 109432 | E90: 100854 | F90: 211429 | G90: 365249 | H90: 224713 | I90: 254994 | J90: 350351 | K90: 687505 | L90: 1148366 | M90: 1245553 | N90: 0
A91: Республика Бурятия | B91: 460569 | C91: 0 | D91: 0 | E91: 0 | F91: 24431 | G91: 0 | H91: 0 | I91: 0 | J91: 0 | K91: 0 | L91: 436138 | M91: 0 | N91: 0
A92: Республика Саха (Якутия) | B92: 390132 | C92: 0 | D92: 11583 | E92: 0 | F92: 0 | G92: 0 | H92: 0 | I92: 0 | J92: 0 | K92: 0 | L92: 378549 | M92: 0 | N92: 0
A93: Забайкальский край | B93: 372470 | C93: 7411 | D93: 14683 | E93: 16697 | F93: 0 | G93: 0 | H93: 0 | I93: 0 | J93: 0 | K93: 0 | L93: 333679 | M93: 0 | N93: 0
A94: Камчатский край | B94: 187553 | C94: 2727 | D94: 0 | E94: 0 | F94: 21834 | G94: 0 | H94: 0 | I94: 0 | J94: 162992 | K94: 0 | L94: 0 | M94: 0 | N94: 0
A95: Приморский край | B95: 1384096 | C95: 0 | D95: 0 | E95: 0 | F95: 51975 | G95: 243399 | H95: 0 | I95: 254994 | J95: 0 | K95: 205343 | L95: 0 | M95: 628385 | N95: 0
A96: Хабаровский край | B96: 853326 | C96: 0 | D96: 0 | E96: 0 | F96: 0 | G96: 0 | H96: 0 | I96: 0 | J96: 0 | K96: 236158 | L96: 0 | M96: 617168 | N96: 0
A97: Амурская область | B97: 454614 | C97: 7429 | D97: 10970 | E97: 52493 | F97: 28160 | G97: 48789 | H97: 60769 | I97: 0 | J97: 0 | K97: 246004 | L97: 0 | M97: 0 | N97: 0
A98: Магаданская область | B98: 95408 | C98: 0 | D98: 0 | E98: 0 | F98: 0 | G98: 0 | H98: 95408 | I98: 0 | J98: 0 | K98: 0 | L98: 0 | M98: 0 | N98: 0
A99: Сахалинская область | B99: 460535 | C99: 24594 | D99: 58828 | E99: 31664 | F99: 85029 | G99: 73061 | H99: 0 | I99: 0 | J99: 187359 | K99: 0 | L99: 0 | M99: 0 | N99: 0
A100: Еврейская автономная область | B100: 68536 | C100: 0 | D100: 0 | E100: 0 | F100: 0 | G100: 0 | H100: 68536 | I100: 0 | J100: 0 | K100: 0 | L100: 0 | M100: 0 | N100: 0
A101: Чукотский автономный округ | B101: 27027 | C101: 13659 | D101: 13368 | E101: 0 | F101: 0 | G101: 0 | H101: 0 | I101: 0 | J101: 0 | K101: 0 | L101: 0 | M101: 0 | N101: 0

Sheet Таб_9
A1: Содержание
A2: 9. Группировка числа муниципальных округов по численности населения, проживающего в них, на 1 января 2023 года
B4: Число муниципаль-ных округов - всего | C4: в том числе с числом жителей, человек
A5: Группировка числа городских округов по численности населения, проживающего в них | C5: до 10000 | D5: 10000 - 14999 | E5: 15000 - 19999 | F5: 20000 - 29999 | G5: 30000 - 49999 | H5: 50000 - 99999 | I5: 100000 - 149999 | J5: 150000 - 199999 | K5: 200000 - 249999 | L5: 250000 - 499999 | M5: 500000 - 999999 | N5: 1000000 и более
A6: Российская Федерация | B6: =B7+B26+B39+B48+B56+B71+B79+B90 -> 312 | C6: =C7+C26+C39+C48+C56+C71+C79+C90 -> 83 | D6: 74 | E6: 41 | F6: 53 | G6: 36 | H6: 18 | I6: 6 | J6: 1 | K6: 0 | L6: 0 | M6: 0 | N6: 0
A7: Центральный федеральный округ | B7: =SUM(B8:B25) -> 31 | C7: =SUM(C8:C25) -> 16 | D7: 8 | E7: 0 | F7: 2 | G7: 2 | H7: 3 | I7: 0 | J7: 0 | K7: 0 | L7: 0 | M7: 0 | N7: 0
A8: Белгородская область | B8: 0 | C8: 0 | D8: 0 | E8: 0 | F8: 0 | G8: 0 | H8: 0 | I8: 0 | J8: 0 | K8: 0 | L8: 0 | M8: 0 | N8: 0
A9: Брянская область | B9: 2 | C9: 0 | D9: 0 | E9: 0 | F9: 0 | G9: 2 | H9: 0 | I9: 0 | J9: 0 | K9: 0 | L9: 0 | M9: 0 | N9: 0
A10: Владимирская область | B10: 0 | C10: 0 | D10: 0 | E10: 0 | F10: 0 | G10: 0 | H10: 0 | I10: 0 | J10: 0 | K10: 0 | L10: 0 | M10: 0 | N10: 0
A11: Воронежская область | B11: 0 | C11: 0 | D11: 0 | E11: 0 | F11: 0 | G11: 0 | H11: 0 | I11: 0 | J11: 0 | K11: 0 | L11: 0 | M11: 0 | N11: 0
A12: Ивановская область | B12: 0 | C12: 0 | D12: 0 | E12: 0 | F12: 0 | G12: 0 | H12: 0 | I12: 0 | J12: 0 | K12: 0 | L12: 0 | M12: 0 | N12: 0
A13: Калужская область | B13: 0 | C13: 0 | D13: 0 | E13: 0 | F13: 0 | G13: 0 | H13: 0 | I13: 0 | J13: 0 | K13: 0 | L13: 0 | M13: 0 | N13: 0
A14: Костромская область | B14: 6 | C14: 5 | D14: 1 | E14: 0 | F14: 0 | G14: 0 | H14: 0 | I14: 0 | J14: 0 | K14: 0 | L14: 0 | M14: 0 | N14: 0
A15: Курская область | B15: 0 | C15: 0 | D15: 0 | E15: 0 | F15: 0 | G15: 0 | H15: 0 | I15: 0 | J15: 0 | K15: 0 | L15: 0 | M15: 0 | N15: 0
A16: Липецкая область | B16: 0 | C16: 0 | D16: 0 | E16: 0 | F16: 0 | G16: 0 | H16: 0 | I16: 0 | J16: 0 | K16: 0 | L16: 0 | M16: 0 | N16: 0
A17: Московская область | B17: 0 | C17: 0 | D17: 0 | E17: 0 | F17: 0 | G17: 0 | H17: 0 | I17: 0 | J17: 0 | K17: 0 | L17: 0 | M17: 0 | N17: 0
A18: Орловская область | B18: 1 | C18: 0 | D18: 0 | E18: 0 | F18: 0 | G18: 0 | H18: 1 | I18: 0 | J18: 0 | K18: 0 | L18: 0 | M18: 0 | N18: 0
A19: Рязанская область | B19: 0 | C19: 0 | D19: 0 | E19: 0 | F19: 0 | G19: 0 | H19: 0 | I19: 0 | J19: 0 | K19: 0 | L19: 0 | M19: 0 | N19: 0
A20: Смоленская область | B20: 0 | C20: 0 | D20: 0 | E20: 0 | F20: 0 | G20: 0 | H20: 0 | I20: 0 | J20: 0 | K20: 0 | L20: 0 | M20: 0 | N20: 0
A21: Тамбовская область | B21: 0 | C21: 0 | D21: 0 | E21: 0 | F21: 0 | G21: 0 | H21: 0 | I21: 0 | J21: 0 | K21: 0 | L21: 0 | M21: 0 | N21: 0
A22: Тверская область | B22: 22 | C22: 11 | D22: 7 | E22: 0 | F22: 2 | G22: 0 | H22: 2 | I22: 0 | J22: 0 | K22: 0 | L22: 0 | M22: 0 | N22: 0
A23: Тульская область | B23: 0 | C23: 0 | D23: 0 | E23: 0 | F23: 0 | G23: 0 | H23: 0 | I23: 0 | J23: 0 | K23: 0 | L23: 0 | M23: 0 | N23: 0
A24: Ярославская область | B24: 0 | C24: 0 | D24: 0 | E24: 0 | F24: 0 | G24: 0 | H24: 0 | I24: 0 | J24: 0 | K24: 0 | L24: 0 | M24: 0 | N24: 0
A25: г.Москва | B25: 0 | C25: 0 | D25: 0 | E25: 0 | F25: 0 | G25: 0 | H25: 0 | I25: 0 | J25: 0 | K25: 0 | L25: 0 | M25: 0 | N25: 0
A26: Северо-Западный федеральный округ | B26: =SUM(B27:B28,B30:B37) -> 56 | C26: =SUM(C27:C28,C30:C37) -> 10 | D26: 17 | E26: 11 | F26: 6 | G26: 10 | H26: 1 | I26: 1 | J26: 0 | K26: 0 | L26: 0 | M26: 0 | N26: 0
A27: Республика Карелия | B27: 1 | C27: 0 | D27: 1 | E27: 0 | F27: 0 | G27: 0 | H27: 0 | I27: 0 | J27: 0 | K27: 0 | L27: 0 | M27: 0 | N27: 0
A28: Республика Коми | B28: 0 | C28: 0 | D28: 0 | E28: 0 | F28: 0 | G28: 0 | H28: 0 | I28: 0 | J28: 0 | K28: 0 | L28: 0 | M28: 0 | N28: 0
A29: Архангельская область, включая Ненецкий автономный округ | B29: 12 | C29: 3 | D29: 4 | E29: 2 | F29: 2 | G29: 1 | H29: 0 | I29: 0 | J29: 0 | K29: 0 | L29: 0 | M29: 0 | N29: 0
A30: Ненецкий автономный округ | B30: 0 | C30: 0 | D30: 0 | E30: 0 | F30: 0 | G30: 0 | H30: 0 | I30: 0 | J30: 0 | K30: 0 | L30: 0 | M30: 0 | N30: 0
A31: Архангельская область без Ненецкого автономного округа | B31: 12 | C31: 3 | D31: 4 | E31: 2 | F31: 2 | G31: 1 | H31: 0 | I31: 0 | J31: 0 | K31: 0 | L31: 0 | M31: 0 | N31: 0
A32: Вологодская область | B32: 20 | C32: 5 | D32: 7 | E32: 3 | F32: 1 | G32: 3 | H32: 1 | I32: 0 | J32: 0 | K32: 0 | L32: 0 | M32: 0 | N32: 0
A33: Калининградская область | B33: 12 | C33: 0 | D33: 3 | E33: 4 | F33: 1 | G33: 3 | H33: 0 | I33: 1 | J33: 0 | K33: 0 | L33: 0 | M33: 0 | N33: 0
A34: Ленинградская область | B34: 0 | C34: 0 | D34: 0 | E34: 0 | F34: 0 | G34: 0 | H34: 0 | I34: 0 | J34: 0 | K34: 0 | L34: 0 | M34: 0 | N34: 0
A35: Мурманская область | B35: 7 | C35: 0 | D35: 0 | E35: 2 | F35: 2 | G35: 3 | H35: 0 | I35: 0 | J35: 0 | K35: 0 | L35: 0 | M35: 0 | N35: 0
A36: Новгородская область | B36: 4 | C36: 2 | D36: 2 | E36: 0 | F36: 0 | G36: 0 | H36: 0 | I36: 0 | J36: 0 | K36: 0 | L36: 0 | M36: 0 | N36: 0
A37: Псковская область | B37: 0 | C37: 0 | D37: 0 | E37: 0 | F37: 0 | G37: 0 | H37: 0 | I37: 0 | J37: 0 | K37: 0 | L37: 0 | M37: 0 | N37: 0
A38: г.Санкт-Петербург | B38: 0 | C38: 0 | D38: 0 | E38: 0 | F38: 0 | G38: 0 | H38: 0 | I38: 0 | J38: 0 | K38: 0 | L38: 0 | M38: 0 | N38: 0
A39: Южный федеральный округ | B39: =SUM(B40:B47) -> 0 | C39: =SUM(C40:C47) -> 0 | D39: 0 | E39: 0 | F39: 0 | G39: 0 | H39: 0 | I39: 0 | J39: 0 | K39: 0 | L39: 0 | M39: 0 | N39: 0
A40: Республика Адыгея | B40: 0 | C40: 0 | D40: 0 | E40: 0 | F40: 0 | G40: 0 | H40: 0 | I40: 0 | J40: 0 | K40: 0 | L40: 0 | M40: 0 | N40: 0
A41: Республика Калмыкия | B41: 0 | C41: 0 | D41: 0 | E41: 0 | F41: 0 | G41: 0 | H41: 0 | I41: 0 | J41: 0 | K41: 0 | L41: 0 | M41: 0 | N41: 0
A42: Республика Крым | B42: 0 | C42: 0 | D42: 0 | E42: 0 | F42: 0 | G42: 0 | H42: 0 | I42: 0 | J42: 0 | K42: 0 | L42: 0 | M42: 0 | N42: 0
A43: Краснодарский край | B43: 0 | C43: 0 | D43: 0 | E43: 0 | F43: 0 | G43: 0 | H43: 0 | I43: 0 | J43: 0 | K43: 0 | L43: 0 | M43: 0 | N43: 0
A44: Астраханская область | B44: 0 | C44: 0 | D44: 0 | E44: 0 | F44: 0 | G44: 0 | H44: 0 | I44: 0 | J44: 0 | K44: 0 | L44: 0 | M44: 0 | N44: 0
A45: Волгоградская область | B45: 0 | C45: 0 | D45: 0 | E45: 0 | F45: 0 | G45: 0 | H45: 0 | I45: 0 | J45: 0 | K45: 0 | L45: 0 | M45: 0 | N45: 0
A46: Ростовская область | B46: 0 | C46: 0 | D46: 0 | E46: 0 | F46: 0 | G46: 0 | H46: 0 | I46: 0 | J46: 0 | K46: 0 | L46: 0 | M46: 0 | N46: 0
A47: г. Севастополь | B47: 0 | C47: 0 | D47: 0 | E47: 0 | F47: 0 | G47: 0 | H47: 0 | I47: 0 | J47: 0 | K47: 0 | L47: 0 | M47: 0 | N47: 0
A48: Северо-Кавказский федеральный округ | B48: =SUM(B49:B55) -> 16 | C48: =SUM(C49:C55) -> 0 | D48: 0 | E48: 0 | F48: 5 | G48: 6 | H48: 2 | I48: 2 | J48: 1 | K48: 0 | L48: 0 | M48: 0 | N48: 0
A49: Республика Дагестан | B49: 0 | C49: 0 | D49: 0 | E49: 0 | F49: 0 | G49: 0 | H49: 0 | I49: 0 | J49: 0 | K49: 0 | L49: 0 | M49: 0 | N49: 0
A50: Республика Ингушетия | B50: 0 | C50: 0 | D50: 0 | E50: 0 | F50: 0 | G50: 0 | H50: 0 | I50: 0 | J50: 0 | K50: 0 | L50: 0 | M50: 0 | N50: 0
A51: Кабардино-Балкарская Республика | B51: 0 | C51: 0 | D51: 0 | E51: 0 | F51: 0 | G51: 0 | H51: 0 | I51: 0 | J51: 0 | K51: 0 | L51: 0 | M51: 0 | N51: 0
A52: Карачаево-Черкесская Республика | B52: 0 | C52: 0 | D52: 0 | E52: 0 | F52: 0 | G52: 0 | H52: 0 | I52: 0 | J52: 0 | K52: 0 | L52: 0 | M52: 0 | N52: 0
A53: Республика Северная Осетия-Алания | B53: 0 | C53: 0 | D53: 0 | E53: 0 | F53: 0 | G53: 0 | H53: 0 | I53: 0 | J53: 0 | K53: 0 | L53: 0 | M53: 0 | N53: 0
A54: Чеченская Республика | B54: 0 | C54: 0 | D54: 0 | E54: 0 | F54: 0 | G54: 0 | H54: 0 | I54: 0 | J54: 0 | K54: 0 | L54: 0 | M54: 0 | N54: 0
A55: Ставропольский край | B55: 16 | C55: 0 | D55: 0 | E55: 0 | F55: 5 | G55: 6 | H55: 2 | I55: 2 | J55: 1 | K55: 0 | L55: 0 | M55: 0 | N55: 0
A56: Приволжский федеральный округ | B56: =SUM(B57:B70) -> 118 | C56: =SUM(C57:C70) -> 27 | D56: 32 | E56: 17 | F56: 22 | G56: 10 | H56: 7 | I56: 3 | J56: 0 | K56: 0 | L56: 0 | M56: 0 | N56: 0
A57: Республика Башкортостан | B57: 0 | C57: 0 | D57: 0 | E57: 0 | F57: 0 | G57: 0 | H57: 0 | I57: 0 | J57: 0 | K57: 0 | L57: 0 | M57: 0 | N57: 0
A58: Республика Марий Эл | B58: 0 | C58: 0 | D58: 0 | E58: 0 | F58: 0 | G58: 0 | H58: 0 | I58: 0 | J58: 0 | K58: 0 | L58: 0 | M58: 0 | N58: 0
A59: Республика Мордовия | B59: 0 | C59: 0 | D59: 0 | E59: 0 | F59: 0 | G59: 0 | H59: 0 | I59: 0 | J59: 0 | K59: 0 | L59: 0 | M59: 0 | N59: 0
A60: Республика Татарстан | B60: 0 | C60: 0 | D60: 0 | E60: 0 | F60: 0 | G60: 0 | H60: 0 | I60: 0 | J60: 0 | K60: 0 | L60: 0 | M60: 0 | N60: 0
A61: Удмуртская Республика | B61: 25 | C61: 4 | D61: 6 | E61: 6 | F61: 5 | G61: 3 | H61: 1 | I61: 0 | J61: 0 | K61: 0 | L61: 0 | M61: 0 | N61: 0
A62: Чувашская Республика | B62: 21 | C62: 1 | D62: 7 | E62: 3 | F62: 5 | G62: 4 | H62: 1 | I62: 0 | J62: 0 | K62: 0 | L62: 0 | M62: 0 | N62: 0
A63: Пермский край | B63: 21 | C63: 5 | D63: 7 | E63: 1 | F63: 4 | G63: 1 | H63: 1 | I63: 2 | J63: 0 | K63: 0 | L63: 0 | M63: 0 | N63: 0
A64: Кировская область | B64: 15 | C64: 12 | D64: 2 | E64: 0 | F64: 1 | G64: 0 | H64: 0 | I64: 0 | J64: 0 | K64: 0 | L64: 0 | M64: 0 | N64: 0
A65: Нижегородская область | B65: 36 | C65: 5 | D65: 10 | E65: 7 | F65: 7 | G65: 2 | H65: 4 | I65: 1 | J65: 0 | K65: 0 | L65: 0 | M65: 0 | N65: 0
A66: Оренбургская область | B66: 0 | C66: 0 | D66: 0 | E66: 0 | F66: 0 | G66: 0 | H66: 0 | I66: 0 | J66: 0 | K66: 0 | L66: 0 | M66: 0 | N66: 0
A67: Пензенская область | B67: 0 | C67: 0 | D67: 0 | E67: 0 | F67: 0 | G67: 0 | H67: 0 | I67: 0 | J67: 0 | K67: 0 | L67: 0 | M67: 0 | N67: 0
A68: Самарская область | B68: 0 | C68: 0 | D68: 0 | E68: 0 | F68: 0 | G68: 0 | H68: 0 | I68: 0 | J68: 0 | K68: 0 | L68: 0 | M68: 0 | N68: 0
A69: Саратовская область | B69: 0 | C69: 0 | D69: 0 | E69: 0 | F69: 0 | G69: 0 | H69: 0 | I69: 0 | J69: 0 | K69: 0 | L69: 0 | M69: 0 | N69: 0
A70: Ульяновская область | B70: 0 | C70: 0 | D70: 0 | E70: 0 | F70: 0 | G70: 0 | H70: 0 | I70: 0 | J70: 0 | K70: 0 | L70: 0 | M70: 0 | N70: 0
A71: Уральский федеральный округ | B71: =SUM(B72:B73,B75:B78) -> 28 | C71: =SUM(C72:C73,C75:C78) -> 7 | D71: 9 | E71: 4 | F71: 4 | G71: 1 | H71: 3 | I71: 0 | J71: 0 | K71: 0 | L71: 0 | M71: 0 | N71: 0
A72: Курганская область | B72: 20 | C72: 5 | D72: 8 | E72: 2 | F72: 4 | G72: 0 | H72: 1 | I72: 0 | J72: 0 | K72: 0 | L72: 0 | M72: 0 | N72: 0
A73: Свердловская область | B73: 0 | C73: 0 | D73: 0 | E73: 0 | F73: 0 | G73: 0 | H73: 0 | I73: 0 | J73: 0 | K73: 0 | L73: 0 | M73: 0 | N73: 0
A74: Тюменская область включая автономные округа | B74: 7 | C74: 2 | D74: 1 | E74: 2 | F74: 0 | G74: 1 | H74: 1 | I74: 0 | J74: 0 | K74: 0 | L74: 0 | M74: 0 | N74: 0
A75: Ханты-Мансийский автономный округ - Югра | B75: 0 | C75: 0 | D75: 0 | E75: 0 | F75: 0 | G75: 0 | H75: 0 | I75: 0 | J75: 0 | K75: 0 | L75: 0 | M75: 0 | N75: 0
A76: Ямало-Ненецкий автономный округ | B76: 7 | C76: 2 | D76: 1 | E76: 2 | F76: 0 | G76: 1 | H76: 1 | I76: 0 | J76: 0 | K76: 0 | L76: 0 | M76: 0 | N76: 0
A77: Тюменская область без автономных округов | B77: 0 | C77: 0 | D77: 0 | E77: 0 | F77: 0 | G77: 0 | H77: 0 | I77: 0 | J77: 0 | K77: 0 | L77: 0 | M77: 0 | N77: 0
A78: Челябинская область | B78: 1 | C78: 0 | D78: 0 | E78: 0 | F78: 0 | G78: 0 | H78: 1 | I78: 0 | J78: 0 | K78: 0 | L78: 0 | M78: 0 | N78: 0
A79: Сибирский федеральный округ | B79: =SUM(B80:B89) -> 24 | C79: =SUM(C80:C89) -> 5 | D79: 3 | E79: 4 | F79: 4 | G79: 6 | H79: 2 | I79: 0 | J79: 0 | K79: 0 | L79: 0 | M79: 0 | N79: 0
A80: Республика Алтай | B80: 0 | C80: 0 | D80: 0 | E80: 0 | F80: 0 | G80: 0 | H80: 0 | I80: 0 | J80: 0 | K80: 0 | L80: 0 | M80: 0 | N80: 0
A81: Республика Тыва | B81: 0 | C81: 0 | D81: 0 | E81: 0 | F81: 0 | G81: 0 | H81: 0 | I81: 0 | J81: 0 | K81: 0 | L81: 0 | M81: 0 | N81: 0
A82: Республика Хакасия | B82: 0 | C82: 0 | D82: 0 | E82: 0 | F82: 0 | G82: 0 | H82: 0 | I82: 0 | J82: 0 | K82: 0 | L82: 0 | M82: 0 | N82: 0
A83: Алтайский край | B83: 4 | C83: 2 | D83: 1 | E83: 0 | F83: 0 | G83: 1 | H83: 0 | I83: 0 | J83: 0 | K83: 0 | L83: 0 | M83: 0 | N83: 0
A84: Красноярский край | B84: 3 | C84: 2 | D84: 1 | E84: 0 | F84: 0 | G84: 0 | H84: 0 | I84: 0 | J84: 0 | K84: 0 | L84: 0 | M84: 0 | N84: 0
A85: Иркутская область | B85: 0 | C85: 0 | D85: 0 | E85: 0 | F85: 0 | G85: 0 | H85: 0 | I85: 0 | J85: 0 | K85: 0 | L85: 0 | M85: 0 | N85: 0
A86: Кемеровская область | B86: 17 | C86: 1 | D86: 1 | E86: 4 | F86: 4 | G86: 5 | H86: 2 | I86: 0 | J86: 0 | K86: 0 | L86: 0 | M86: 0 | N86: 0
A87: Новосибирская область | B87: 0 | C87: 0 | D87: 0 | E87: 0 | F87: 0 | G87: 0 | H87: 0 | I87: 0 | J87: 0 | K87: 0 | L87: 0 | M87: 0 | N87: 0
A88: Омская область | B88: 0 | C88: 0 | D88: 0 | E88: 0 | F88: 0 | G88: 0 | H88: 0 | I88: 0 | J88: 0 | K88: 0 | L88: 0 | M88: 0 | N88: 0
A89: Томская область | B89: 0 | C89: 0 | D89: 0 | E89: 0 | F89: 0 | G89: 0 | H89: 0 | I89: 0 | J89: 0 | K89: 0 | L89: 0 | M89: 0 | N89: 0
A90: Дальневосточный федеральный округ | B90: =SUM(B91:B101) -> 39 | C90: =SUM(C91:C101) -> 18 | D90: 5 | E90: 5 | F90: 10 | G90: 1 | H90: 0 | I90: 0 | J90: 0 | K90: 0 | L90: 0 | M90: 0 | N90: 0
A91: Республика Бурятия | B91: 0 | C91: 0 | D91: 0 | E91: 0 | F91: 0 | G91: 0 | H91: 0 | I91: 0 | J91: 0 | K91: 0 | L91: 0 | M91: 0 | N91: 0
A92: Республика Саха (Якутия) | B92: 0 | C92: 0 | D92: 0 | E92: 0 | F92: 0 | G92: 0 | H92: 0 | I92: 0 | J92: 0 | K92: 0 | L92: 0 | M92: 0 | N92: 0
A93: Забайкальский край | B93: 6 | C93: 5 | D93: 0 | E93: 1 | F93: 0 | G93: 0 | H93: 0 | I93: 0 | J93: 0 | K93: 0 | L93: 0 | M93: 0 | N93: 0
A94: Камчатский край | B94: 1 | C94: 1 | D94: 0 | E94: 0 | F94: 0 | G94: 0 | H94: 0 | I94: 0 | J94: 0 | K94: 0 | L94: 0 | M94: 0 | N94: 0
A95: Приморский край | B95: 12 | C95: 2 | D95: 2 | E95: 2 | F95: 6 | G95: 0 | H95: 0 | I95: 0 | J95: 0 | K95: 0 | L95: 0 | M95: 0 | N95: 0
A96: Хабаровский край | B96: 0 | C96: 0 | D96: 0 | E96: 0 | F96: 0 | G96: 0 | H96: 0 | I96: 0 | J96: 0 | K96: 0 | L96: 0 | M96: 0 | N96: 0
A97: Амурская область | B97: 12 | C97: 2 | D97: 3 | E97: 2 | F97: 4 | G97: 1 | H97: 0 | I97: 0 | J97: 0 | K97: 0 | L97: 0 | M97: 0 | N97: 0
A98: Магаданская область | B98: 8 | C98: 8 | D98: 0 | E98: 0 | F98: 0 | G98: 0 | H98: 0 | I98: 0 | J98: 0 | K98: 0 | L98: 0 | M98: 0 | N98: 0
A99: Сахалинская область | B99: 0 | C99: 0 | D99: 0 | E99: 0 | F99: 0 | G99: 0 | H99: 0 | I99: 0 | J99: 0 | K99: 0 | L99: 0 | M99: 0 | N99: 0
A100: Еврейская автономная область | B100: 0 | C100: 0 | D100: 0 | E100: 0 | F100: 0 | G100: 0 | H100: 0 | I100: 0 | J100: 0 | K100: 0 | L100: 0 | M100: 0 | N100: 0
A101: Чукотский автономный округ | B101: 0 | C101: 0 | D101: 0 | E101: 0 | F101: 0 | G101: 0 | H101: 0 | I101: 0 | J101: 0 | K101: 0 | L101: 0 | M101: 0 | N101: 0

Sheet Таб_10
A1: Содержание
A2: 10. Группировка численности населения, проживающего в муниципальных округах, на 1 января 2023 года
B4: Численность населения, проживающего в муниципальных округах - всего | C4: в том числе с числом жителей, человек
A5: Группировка численности населения, проживающего в городских округах | C5: до 10000 | D5: 10000 - 14999 | E5: 15000 - 19999 | F5: 20000 - 29999 | G5: 30000 - 49999 | H5: 50000 - 99999 | I5: 100000 - 149999 | J5: 150000 - 199999 | K5: 200000 - 249999 | L5: 250000 - 499999 | M5: 500000 - 999999 | N5: 1000000 и более
A6: Российская Федерация | B6: =B7+B26+B39+B48+B56+B71+B79+B90 -> 6762744 | C6: =C7+C26+C39+C48+C56+C71+C79+C90 -> 552107 | D6: 905418 | E6: 698942 | F6: 1251425 | G6: 1360138 | H6: 1148997 | I6: 679625 | J6: 166092 | K6: 0 | L6: 0 | M6: 0 | N6: 0
A7: Центральный федеральный округ | B7: =SUM(B8:B25) -> 485205 | C7: =SUM(C8:C25) -> 86870 | D7: 97082 | E7: 0 | F7: 45792 | G7: 68151 | H7: 187310 | I7: 0 | J7: 0 | K7: 0 | L7: 0 | M7: 0 | N7: 0
A8: Белгородская область | B8: 0 | C8: 0 | D8: 0 | E8: 0 | F8: 0 | G8: 0 | H8: 0 | I8: 0 | J8: 0 | K8: 0
A9: Брянская область | B9: 68151 | C9: 0 | D9: 0 | E9: 0 | F9: 0 | G9: 68151 | H9: 0 | I9: 0 | J9: 0 | K9: 0 | L9: 0 | M9: 0 | N9: 0
A10: Владимирская область | B10: 0 | C10: 0 | D10: 0 | E10: 0 | F10: 0 | G10: 0 | H10: 0 | I10: 0 | J10: 0 | K10: 0 | L10: 0 | M10: 0 | N10: 0
A11: Воронежская область | B11: 0 | C11: 0 | D11: 0 | E11: 0 | F11: 0 | G11: 0 | H11: 0 | I11: 0 | J11: 0 | K11: 0 | L11: 0 | M11: 0 | N11: 0
A12: Ивановская область | B12: 0 | C12: 0 | D12: 0 | E12: 0 | F12: 0 | G12: 0 | H12: 0 | I12: 0 | J12: 0 | K12: 0 | L12: 0 | M12: 0 | N12: 0
A13: Калужская область | B13: 0 | C13: 0 | D13: 0 | E13: 0 | F13: 0 | G13: 0 | H13: 0 | I13: 0 | J13: 0 | K13: 0 | L13: 0 | M13: 0 | N13: 0
A14: Костромская область | B14: 29469 | C14: 19404 | D14: 10065 | E14: 0 | F14: 0 | G14: 0 | H14: 0 | I14: 0 | J14: 0 | K14: 0 | L14: 0 | M14: 0 | N14: 0
A15: Курская область | B15: 0 | C15: 0 | D15: 0 | E15: 0 | F15: 0 | G15: 0 | H15: 0 | I15: 0 | J15: 0 | K15: 0 | L15: 0 | M15: 0 | N15: 0
A16: Липецкая область | B16: 0 | C16: 0 | D16: 0 | E16: 0 | F16: 0 | G16: 0 | H16: 0 | I16: 0 | J16: 0 | K16: 0 | L16: 0 | M16: 0 | N16: 0
A17: Московская область | B17: 0 | C17: 0 | D17: 0 | E17: 0 | F17: 0 | G17: 0 | H17: 0 | I17: 0 | J17: 0 | K17: 0 | L17: 0 | M17: 0 | N17: 0
A18: Орловская область | B18: 70123 | C18: 0 | D18: 0 | E18: 0 | F18: 0 | G18: 0 | H18: 70123 | I18: 0 | J18: 0 | K18: 0 | L18: 0 | M18: 0 | N18: 0
A19: Рязанская область | B19: 0 | C19: 0 | D19: 0 | E19: 0 | F19: 0 | G19: 0 | H19: 0 | I19: 0 | J19: 0 | K19: 0 | L19: 0 | M19: 0 | N19: 0
A20: Смоленская область | B20: 0 | C20: 0 | D20: 0 | E20: 0 | F20: 0 | G20: 0 | H20: 0 | I20: 0 | J20: 0 | K20: 0 | L20: 0 | M20: 0 | N20: 0
A21: Тамбовская область | B21: 0 | C21: 0 | D21: 0 | E21: 0 | F21: 0 | G21: 0 | H21: 0 | I21: 0 | J21: 0 | K21: 0 | L21: 0 | M21: 0 | N21: 0
A22: Тверская область | B22: 317462 | C22: 67466 | D22: 87017 | E22: 0 | F22: 45792 | G22: 0 | H22: 117187 | I22: 0 | J22: 0 | K22: 0 | L22: 0 | M22: 0 | N22: 0
A23: Тульская область | B23: 0 | C23: 0 | D23: 0 | E23: 0 | F23: 0 | G23: 0 | H23: 0 | I23: 0 | J23: 0 | K23: 0 | L23: 0 | M23: 0 | N23: 0
A24: Ярославская область | B24: 0 | C24: 0 | D24: 0 | E24: 0 | F24: 0 | G24: 0 | H24: 0 | I24: 0 | J24: 0 | K24: 0 | L24: 0 | M24: 0 | N24: 0
A25: г.Москва | B25: 0 | C25: 0 | D25: 0 | E25: 0 | F25: 0 | G25: 0 | H25: 0 | I25: 0 | J25: 0 | K25: 0 | L25: 0 | M25: 0 | N25: 0
A26: Северо-Западный федеральный округ | B26: =SUM(B27+B28+B30,B30:B37) -> 1175032 | C26: =SUM(C27+C28+C30,C30:C37) -> 67116 | D26: 210444 | E26: 185568 | F26: 152045 | G26: 399702 | H26: 52745 | I26: 107412 | J26: 0 | K26: 0 | L26: 0 | M26: 0 | N26: 0
A27: Республика Карелия | B27: 12418 | C27: 0 | D27: 12418 | E27: 0 | F27: 0 | G27: 0 | H27: 0 | I27: 0 | J27: 0 | K27: 0 | L27: 0 | M27: 0 | N27: 0
A28: Республика Коми | B28: 0 | C28: 0 | D28: 0 | E28: 0 | F28: 0 | G28: 0 | H28: 0 | I28: 0 | J28: 0 | K28: 0 | L28: 0 | M28: 0 | N28: 0
A29: Архангельская область, включая Ненецкий автономный округ | B29: 186421 | C29: 21238 | D29: 49423 | E29: 35673 | F29: 46498 | G29: 33589 | H29: 0 | I29: 0 | J29: 0 | K29: 0 | L29: 0 | M29: 0 | N29: 0
A30: Ненецкий автономный округ | B30: 0 | C30: 0 | D30: 0 | E30: 0 | F30: 0 | G30: 0 | H30: 0 | I30: 0 | J30: 0 | K30: 0 | L30: 0 | M30: 0 | N30: 0
A31: Архангельская область без Ненецкого автономного округа | B31: 186421 | C31: 21238 | D31: 49423 | E31: 35673 | F31: 46498 | G31: 33589 | H31: 0 | I31: 0 | J31: 0 | K31: 0 | L31: 0 | M31: 0 | N31: 0
A32: Вологодская область | B32: 380090 | C32: 38502 | D32: 88888 | E32: 50859 | F32: 22064 | G32: 127032 | H32: 52745 | I32: 0 | J32: 0 | K32: 0 | L32: 0 | M32: 0 | N32: 0
A33: Калининградская область | B33: 356694 | C33: 0 | D33: 35480 | E33: 66548 | F33: 29256 | G33: 117998 | H33: 0 | I33: 107412 | J33: 0 | K33: 0 | L33: 0 | M33: 0 | N33: 0
A34: Ленинградская область | B34: 0 | C34: 0 | D34: 0 | E34: 0 | F34: 0 | G34: 0 | H34: 0 | I34: 0 | J34: 0 | K34: 0 | L34: 0 | M34: 0 | N34: 0
A35: Мурманская область | B35: 207798 | C35: 0 | D35: 0 | E35: 32488 | F35: 54227 | G35: 121083 | H35: 0 | I35: 0 | J35: 0 | K35: 0 | L35: 0 | M35: 0 | N35: 0
A36: Новгородская область | B36: 31611 | C36: 7376 | D36: 24235 | E36: 0 | F36: 0 | G36: 0 | H36: 0 | I36: 0 | J36: 0 | K36: 0 | L36: 0 | M36: 0 | N36: 0
A37: Псковская область | B37: 0 | C37: 0 | D37: 0 | E37: 0 | F37: 0 | G37: 0 | H37: 0 | I37: 0 | J37: 0 | K37: 0 | L37: 0 | M37: 0 | N37: 0
A38: г.Санкт-Петербург | B38: 0 | C38: 0 | D38: 0 | E38: 0 | F38: 0 | G38: 0 | H38: 0 | I38: 0 | J38: 0 | K38: 0 | L38: 0 | M38: 0 | N38: 0
A39: Южный федеральный округ | B39: =SUM(B40:B47) -> 0 | C39: =SUM(C40:C47) -> 0 | D39: 0 | E39: 0 | F39: 0 | G39: 0 | H39: 0 | I39: 0 | J39: 0 | K39: 0 | L39: 0 | M39: 0 | N39: 0
A40: Республика Адыгея | B40: 0 | C40: 0 | D40: 0 | E40: 0 | F40: 0 | G40: 0 | H40: 0 | I40: 0 | J40: 0 | K40: 0 | L40: 0 | M40: 0 | N40: 0
A41: Республика Калмыкия | B41: 0 | C41: 0 | D41: 0 | E41: 0 | F41: 0 | G41: 0 | H41: 0 | I41: 0 | J41: 0 | K41: 0 | L41: 0 | M41: 0 | N41: 0
A42: Республика Крым | B42: 0 | C42: 0 | D42: 0 | E42: 0 | F42: 0 | G42: 0 | H42: 0 | I42: 0 | J42: 0 | K42: 0 | L42: 0 | M42: 0 | N42: 0
A43: Краснодарский край | B43: 0 | C43: 0 | D43: 0 | E43: 0 | F43: 0 | G43: 0 | H43: 0 | I43: 0 | J43: 0 | K43: 0 | L43: 0 | M43: 0 | N43: 0
A44: Астраханская область | B44: 0 | C44: 0 | D44: 0 | E44: 0 | F44: 0 | G44: 0 | H44: 0 | I44: 0 | J44: 0 | K44: 0 | L44: 0 | M44: 0 | N44: 0
A45: Волгоградская область | B45: 0 | C45: 0 | D45: 0 | E45: 0 | F45: 0 | G45: 0 | H45: 0 | I45: 0 | J45: 0 | K45: 0 | L45: 0 | M45: 0 | N45: 0
A46: Ростовская область | B46: 0 | C46: 0 | D46: 0 | E46: 0 | F46: 0 | G46: 0 | H46: 0 | I46: 0 | J46: 0 | K46: 0 | L46: 0 | M46: 0 | N46: 0
A47: г. Севастополь | B47: 0 | C47: 0 | D47: 0 | E47: 0 | F47: 0 | G47: 0 | H47: 0 | I47: 0 | J47: 0 | K47: 0 | L47: 0 | M47: 0 | N47: 0
A48: Северо-Кавказский федеральный округ | B48: =SUM(B49:B55) -> 855793 | C48: =SUM(C49:C55) -> 0 | D48: 0 | E48: 0 | F48: 119880 | G48: 221120 | H48: 130668 | I48: 218033 | J48: 166092 | K48: 0 | L48: 0 | M48: 0 | N48: 0
A49: Республика Дагестан | B49: 0 | C49: 0 | D49: 0 | E49: 0 | F49: 0 | G49: 0 | H49: 0 | I49: 0 | J49: 0 | K49: 0 | L49: 0 | M49: 0 | N49: 0
A50: Республика Ингушетия | B50: 0 | C50: 0 | D50: 0 | E50: 0 | F50: 0 | G50: 0 | H50: 0 | I50: 0 | J50: 0 | K50: 0 | L50: 0 | M50: 0 | N50: 0
A51: Кабардино-Балкарская Республика | B51: 0 | C51: 0 | D51: 0 | E51: 0 | F51: 0 | G51: 0 | H51: 0 | I51: 0 | J51: 0 | K51: 0 | L51: 0 | M51: 0 | N51: 0
A52: Карачаево-Черкесская Республика | B52: 0 | C52: 0 | D52: 0 | E52: 0 | F52: 0 | G52: 0 | H52: 0 | I52: 0 | J52: 0 | K52: 0 | L52: 0 | M52: 0 | N52: 0
A53: Республика Северная Осетия-Алания | B53: 0 | C53: 0 | D53: 0 | E53: 0 | F53: 0 | G53: 0 | H53: 0 | I53: 0 | J53: 0 | K53: 0 | L53: 0 | M53: 0 | N53: 0
A54: Чеченская Республика | B54: 0 | C54: 0 | D54: 0 | E54: 0 | F54: 0 | G54: 0 | H54: 0 | I54: 0 | J54: 0 | K54: 0 | L54: 0 | M54: 0 | N54: 0
A55: Ставропольский край | B55: 855793 | C55: 0 | D55: 0 | E55: 0 | F55: 119880 | G55: 221120 | H55: 130668 | I55: 218033 | J55: 166092 | K55: 0 | L55: 0 | M55: 0 | N55: 0
A56: Приволжский федеральный округ | B56: =SUM(B57:B70) -> 2602299 | C56: =SUM(C57:C70) -> 202881 | D56: 389535 | E56: 289655 | F56: 517429 | G56: 350022 | H56: 498597 | I56: 354180 | J56: 0 | K56: 0 | L56: 0 | M56: 0 | N56: 0
A57: Республика Башкортостан | B57: 0 | C57: 0 | D57: 0 | E57: 0 | F57: 0 | G57: 0 | H57: 0 | I57: 0 | J57: 0 | K57: 0 | L57: 0 | M57: 0 | N57: 0
A58: Республика Марий Эл | B58: 0 | C58: 0 | D58: 0 | E58: 0 | F58: 0 | G58: 0 | H58: 0 | I58: 0 | J58: 0 | K58: 0 | L58: 0 | M58: 0 | N58: 0
A59: Республика Мордовия | B59: 0 | C59: 0 | D59: 0 | E59: 0 | F59: 0 | G59: 0 | H59: 0 | I59: 0 | J59: 0 | K59: 0 | L59: 0 | M59: 0 | N59: 0
A60: Республика Татарстан | B60: 0 | C60: 0 | D60: 0 | E60: 0 | F60: 0 | G60: 0 | H60: 0 | I60: 0 | J60: 0 | K60: 0 | L60: 0 | M60: 0 | N60: 0
A61: Удмуртская Республика | B61: 503720 | C61: 32292 | D61: 66669 | E61: 105237 | F61: 119161 | G61: 98258 | H61: 82103 | I61: 0 | J61: 0 | K61: 0 | L61: 0 | M61: 0 | N61: 0
A62: Чувашская Республика | B62: 444273 | C62: 7629 | D62: 87966 | E62: 49234 | F62: 112689 | G62: 125156 | H62: 61599 | I62: 0 | J62: 0 | K62: 0 | L62: 0 | M62: 0 | N62: 0
A63: Пермский край | B63: 565131 | C63: 42388 | D63: 86682 | E63: 16457 | F63: 92882 | G63: 44174 | H63: 50499 | I63: 232049 | J63: 0 | K63: 0 | L63: 0 | M63: 0 | N63: 0
A64: Кировская область | B64: 119338 | C64: 75688 | D64: 23577 | E64: 0 | F64: 20073 | G64: 0 | H64: 0 | I64: 0 | J64: 0 | K64: 0 | L64: 0 | M64: 0 | N64: 0
A65: Нижегородская область | B65: 969837 | C65: 44884 | D65: 124641 | E65: 118727 | F65: 172624 | G65: 82434 | H65: 304396 | I65: 122131 | J65: 0 | K65: 0 | L65: 0 | M65: 0 | N65: 0
A66: Оренбургская область | B66: 0 | C66: 0 | D66: 0 | E66: 0 | F66: 0 | G66: 0 | H66: 0 | I66: 0 | J66: 0 | K66: 0 | L66: 0 | M66: 0 | N66: 0
A67: Пензенская область | B67: 0 | C67: 0 | D67: 0 | E67: 0 | F67: 0 | G67: 0 | H67: 0 | I67: 0 | J67: 0 | K67: 0 | L67: 0 | M67: 0 | N67: 0
A68: Самарская область | B68: 0 | C68: 0 | D68: 0 | E68: 0 | F68: 0 | G68: 0 | H68: 0 | I68: 0 | J68: 0 | K68: 0 | L68: 0 | M68: 0 | N68: 0
A69: Саратовская область | B69: 0 | C69: 0 | D69: 0 | E69: 0 | F69: 0 | G69: 0 | H69: 0 | I69: 0 | J69: 0 | K69: 0 | L69: 0 | M69: 0 | N69: 0
A70: Ульяновская область | B70: 0 | C70: 0 | D70: 0 | E70: 0 | F70: 0 | G70: 0 | H70: 0 | I70: 0 | J70: 0 | K70: 0 | L70: 0 | M70: 0 | N70: 0
A71: Уральский федеральный округ | B71: =SUM(B72:B73,B75:B78) -> 538627 | C71: =SUM(C72:C73,C75:C78) -> 50873 | D71: 109275 | E71: 65913 | F71: 98839 | G71: 36552 | H71: 177175 | I71: 0 | J71: 0 | K71: 0 | L71: 0 | M71: 0 | N71: 0
A72: Курганская область | B72: 321011 | C72: 36050 | D72: 99238 | E72: 32000 | F72: 98839 | G72: 0 | H72: 54884 | I72: 0 | J72: 0 | K72: 0 | L72: 0 | M72: 0 | N72: 0
A73: Свердловская область | B73: 0 | C73: 0 | D73: 0 | E73: 0 | F73: 0 | G73: 0 | H73: 0 | I73: 0 | J73: 0 | K73: 0 | L73: 0 | M73: 0 | N73: 0
A74: Тюменская область включая автономные округа | B74: 161558 | C74: 14823 | D74: 10037 | E74: 33913 | F74: 0 | G74: 36552 | H74: 66233 | I74: 0 | J74: 0 | K74: 0 | L74: 0 | M74: 0 | N74: 0
A75: Ханты-Мансийский автономный округ - Югра | B75: 0 | C75: 0 | D75: 0 | E75: 0 | F75: 0 | G75: 0 | H75: 0 | I75: 0 | J75: 0 | K75: 0 | L75: 0 | M75: 0 | N75: 0
A76: Ямало-Ненецкий автономный округ | B76: 161558 | C76: 14823 | D76: 10037 | E76: 33913 | F76: 0 | G76: 36552 | H76: 66233 | I76: 0 | J76: 0 | K76: 0 | L76: 0 | M76: 0 | N76: 0
A77: Тюменская область без автономных округов | B77: 0 | C77: 0 | D77: 0 | E77: 0 | F77: 0 | G77: 0 | H77: 0 | I77: 0 | J77: 0 | K77: 0 | L77: 0 | M77: 0 | N77: 0
A78: Челябинская область | B78: 56058 | C78: 0 | D78: 0 | E78: 0 | F78: 0 | G78: 0 | H78: 56058 | I78: 0 | J78: 0 | K78: 0 | L78: 0 | M78: 0 | N78: 0
A79: Сибирский федеральный округ | B79: =SUM(B80:B89) -> 591947 | C79: =SUM(C80:C89) -> 36306 | D79: 36423 | E79: 72345 | F79: 94851 | G79: 249520 | H79: 102502 | I79: 0 | J79: 0 | K79: 0 | L79: 0 | M79: 0 | N79: 0
A80: Республика Алтай | B80: 0 | C80: 0 | D80: 0 | E80: 0 | F80: 0 | G80: 0 | H80: 0 | I80: 0 | J80: 0 | K80: 0 | L80: 0 | M80: 0 | N80: 0
A81: Республика Тыва | B81: 0 | C81: 0 | D81: 0 | E81: 0 | F81: 0 | G81: 0 | H81: 0 | I81: 0 | J81: 0 | K81: 0 | L81: 0 | M81: 0 | N81: 0
A82: Республика Хакасия | B82: 0 | C82: 0 | D82: 0 | E82: 0 | F82: 0 | G82: 0 | H82: 0 | I82: 0 | J82: 0 | K82: 0 | L82: 0 | M82: 0 | N82: 0
A83: Алтайский край | B83: 61418 | C83: 12825 | D83: 11444 | E83: 0 | F83: 0 | G83: 37149 | H83: 0 | I83: 0 | J83: 0 | K83: 0 | L83: 0 | M83: 0 | N83: 0
A84: Красноярский край | B84: 25251 | C84: 13542 | D84: 11709 | E84: 0 | F84: 0 | G84: 0 | H84: 0 | I84: 0 | J84: 0 | K84: 0 | L84: 0 | M84: 0 | N84: 0
A85: Иркутская область | B85: 0 | C85: 0 | D85: 0 | E85: 0 | F85: 0 | G85: 0 | H85: 0 | I85: 0 | J85: 0 | K85: 0 | L85: 0 | M85: 0 | N85: 0
A86: Кемеровская область | B86: 505278 | C86: 9939 | D86: 13270 | E86: 72345 | F86: 94851 | G86: 212371 | H86: 102502 | I86: 0 | J86: 0 | K86: 0 | L86: 0 | M86: 0 | N86: 0
A87: Новосибирская область | B87: 0 | C87: 0 | D87: 0 | E87: 0 | F87: 0 | G87: 0 | H87: 0 | I87: 0 | J87: 0 | K87: 0 | L87: 0 | M87: 0 | N87: 0
A88: Омская область | B88: 0 | C88: 0 | D88: 0 | E88: 0 | F88: 0 | G88: 0 | H88: 0 | I88: 0 | J88: 0 | K88: 0 | L88: 0 | M88: 0 | N88: 0
A89: Томская область | B89: 0 | C89: 0 | D89: 0 | E89: 0 | F89: 0 | G89: 0 | H89: 0 | I89: 0 | J89: 0 | K89: 0 | L89: 0 | M89: 0 | N89: 0
A90: Дальневосточный федеральный округ | B90: =SUM(B91:B101) -> 513841 | C90: =SUM(C91:C101) -> 108061 | D90: 62659 | E90: 85461 | F90: 222589 | G90: 35071 | H90: 0 | I90: 0 | J90: 0 | K90: 0 | L90: 0 | M90: 0 | N90: 0
A91: Республика Бурятия | B91: 0 | C91: 0 | D91: 0 | E91: 0 | F91: 0 | G91: 0 | H91: 0 | I91: 0 | J91: 0 | K91: 0 | L91: 0 | M91: 0 | N91: 0
A92: Республика Саха (Якутия) | B92: 0 | C92: 0 | D92: 0 | E92: 0 | F92: 0 | G92: 0 | H92: 0 | I92: 0 | J92: 0 | K92: 0 | L92: 0 | M92: 0 | N92: 0
A93: Забайкальский край | B93: 54162 | C93: 38675 | D93: 0 | E93: 15487 | F93: 0 | G93: 0 | H93: 0 | I93: 0 | J93: 0 | K93: 0 | L93: 0 | M93: 0 | N93: 0
A94: Камчатский край | B94: 624 | C94: 624 | D94: 0 | E94: 0 | F94: 0 | G94: 0 | H94: 0 | I94: 0 | J94: 0 | K94: 0 | L94: 0 | M94: 0 | N94: 0
A95: Приморский край | B95: 217151 | C95: 17387 | D95: 24541 | E95: 35778 | F95: 139445 | G95: 0 | H95: 0 | I95: 0 | J95: 0 | K95: 0 | L95: 0 | M95: 0 | N95: 0
A96: Хабаровский край | B96: 0 | C96: 0 | D96: 0 | E96: 0 | F96: 0 | G96: 0 | H96: 0 | I96: 0 | J96: 0 | K96: 0 | L96: 0 | M96: 0 | N96: 0
A97: Амурская область | B97: 202997 | C97: 12468 | D97: 38118 | E97: 34196 | F97: 83144 | G97: 35071 | H97: 0 | I97: 0 | J97: 0 | K97: 0 | L97: 0 | M97: 0 | N97: 0
A98: Магаданская область | B98: 38907 | C98: 38907 | D98: 0 | E98: 0 | F98: 0 | G98: 0 | H98: 0 | I98: 0 | J98: 0 | K98: 0 | L98: 0 | M98: 0 | N98: 0
A99: Сахалинская область | B99: 0 | C99: 0 | D99: 0 | E99: 0 | F99: 0 | G99: 0 | H99: 0 | I99: 0 | J99: 0 | K99: 0 | L99: 0 | M99: 0 | N99: 0
A100: Еврейская автономная область | B100: 0 | C100: 0 | D100: 0 | E100: 0 | F100: 0 | G100: 0 | H100: 0 | I100: 0 | J100: 0 | K100: 0 | L100: 0 | M100: 0 | N100: 0
A101: Чукотский автономный округ | B101: 0 | C101: 0 | D101: 0 | E101: 0 | F101: 0 | G101: 0 | H101: 0 | I101: 0 | J101: 0 | K101: 0 | L101: 0 | M101: 0 | N101: 0

Sheet Таб_11
B1: Содержание
B2: 11. Группировка числа муниципальных районов по численности населения, проживающего в них, на 1 января 2023 года
C4: Число муниципальных районов - всего | D4: в том числе с числом жителей, человек
B5: Группировка числа муниципальных районов по численности населения, проживающего в них | D5: до 10000 | E5: 10000 - 14999 | F5: 15000 - 19999 | G5: 20000 - 29999 | H5: 30000 - 49999 | I5: 50000 - 99999 | J5: 100000 - 149999 | K5: 150000 - 199999 | L5: 200000 и более
B6: Российская Федерация | C6: 1420 | D6: 231 | E6: 266 | F6: 210 | G6: 267 | H6: 236 | I6: 159 | J6: 36 | K6: 9 | L6: 6
B7: Центральный федеральный округ | C7: 332 | D7: 75 | E7: 68 | F7: 47 | G7: 54 | H7: 55 | I7: 30 | J7: 2 | K7: 1 | L7: 0
B8: Белгородская область | C8: 13 | D8: 0 | E8: 2 | F8: 0 | G8: 7 | H8: 3 | I8: 0 | J8: 0 | K8: 1 | L8: 0
B9: Брянская область | C9: 24 | D9: 3 | E9: 4 | F9: 7 | G9: 4 | H9: 4 | I9: 2 | J9: 0 | K9: 0 | L9: 0
B10: Владимирская область | C10: 16 | D10: 0 | E10: 1 | F10: 1 | G10: 2 | H10: 9 | I10: 2 | J10: 1 | K10: 0 | L10: 0
B11: Воронежская область | C11: 31 | D11: 0 | E11: 1 | F11: 6 | G11: 8 | H11: 10 | I11: 6 | J11: 0 | K11: 0 | L11: 0
B12: Ивановская область | C12: 21 | D12: 6 | E12: 5 | F12: 6 | G12: 1 | H12: 3 | I12: 0 | J12: 0 | K12: 0 | L12: 0
B13: Калужская область | C13: 24 | D13: 8 | E13: 5 | F13: 2 | G13: 2 | H13: 3 | I13: 4 | J13: 0 | K13: 0 | L13: 0
B14: Костромская область | C14: 17 | D14: 12 | E14: 2 | F14: 1 | G14: 1 | H14: 1 | I14: 0 | J14: 0 | K14: 0 | L14: 0
B15: Курская область | C15: 28 | D15: 5 | E15: 12 | F15: 5 | G15: 5 | H15: 0 | I15: 1 | J15: 0 | K15: 0 | L15: 0
B16: Липецкая область | C16: 18 | D16: 0 | E16: 3 | F16: 4 | G16: 3 | H16: 6 | I16: 2 | J16: 0 | K16: 0 | L16: 0
B17: Московская область | C17: 0 | D17: 0 | E17: 0 | F17: 0 | G17: 0 | H17: 0 | I17: 0 | J17: 0 | K17: 0 | L17: 0
B18: Орловская область | C18: 23 | D18: 11 | E18: 7 | F18: 3 | G18: 2 | H18: 0 | I18: 0 | J18: 0 | K18: 0 | L18: 0
B19: Рязанская область | C19: 25 | D19: 8 | E19: 3 | F19: 2 | G19: 7 | H19: 4 | I19: 1 | J19: 0 | K19: 0 | L19: 0
B20: Смоленская область | C20: 25 | D20: 10 | E20: 6 | F20: 0 | G20: 3 | H20: 2 | I20: 4 | J20: 0 | K20: 0 | L20: 0
B21: Тамбовская область | C21: 23 | D21: 4 | E21: 8 | F21: 4 | G21: 4 | H21: 2 | I21: 1 | J21: 0 | K21: 0 | L21: 0
B22: Тверская область | C22: 9 | D22: 1 | E22: 1 | F22: 3 | G22: 0 | H22: 2 | I22: 2 | J22: 0 | K22: 0 | L22: 0
B23: Тульская область | C23: 19 | D23: 2 | E23: 5 | F23: 2 | G23: 2 | H23: 5 | I23: 2 | J23: 1 | K23: 0 | L23: 0
B24: Ярославская область | C24: 16 | D24: 5 | E24: 3 | F24: 1 | G24: 3 | H24: 1 | I24: 3 | J24: 0 | K24: 0 | L24: 0
B25: г.Москва | C25: 0 | D25: 0 | E25: 0 | F25: 0 | G25: 0 | H25: 0 | I25: 0 | J25: 0 | K25: 0 | L25: 0
B26: Северо-Западный федеральный округ | C26: 105 | D26: 27 | E26: 19 | F26: 17 | G26: 15 | H26: 11 | I26: 11 | J26: 2 | K26: 1 | L26: 2
B27: Республика Карелия | C27: 15 | D27: 2 | E27: 7 | F27: 1 | G27: 3 | H27: 2 | I27: 0 | J27: 0 | K27: 0 | L27: 0
B28: Республика Коми | C28: 14 | D28: 2 | E28: 3 | F28: 4 | G28: 3 | H28: 2 | I28: 0 | J28: 0 | K28: 0 | L28: 0
B29: Архангельская область, включая Ненецкий автономный округ | C29: 8 | D29: 1 | E29: 1 | F29: 3 | G29: 2 | H29: 1 | I29: 0 | J29: 0 | K29: 0 | L29: 0
B30: Ненецкий автономный округ | C30: 1 | D30: 0 | E30: 0 | F30: 1 | G30: 0 | H30: 0 | I30: 0 | J30: 0
B31: Архангельская область без Ненецкого автономного округа | C31: 7 | D31: 1 | E31: 1 | F31: 2 | G31: 2 | H31: 1 | I31: 0 | J31: 0 | K31: 0 | L31: 0
B32: Вологодская область | C32: 6 | D32: 1 | E32: 1 | F32: 1 | G32: 2 | H32: 1 | I32: 0 | J32: 0 | K32: 0 | L32: 0
B33: Калининградская область | C33: 0 | D33: 0 | E33: 0 | F33: 0 | G33: 0 | H33: 0 | I33: 0 | J33: 0 | K33: 0 | L33: 0
B34: Ленинградская область | C34: 17 | D34: 0 | E34: 0 | F34: 0 | G34: 2 | H34: 1 | I34: 9 | J34: 2 | K34: 1 | L34: 2
B35: Мурманская область | C35: 4 | D35: 2 | E35: 0 | F35: 0 | G35: 0 | H35: 2 | I35: 0 | J35: 0 | K35: 0 | L35: 0
B36: Новгородская область | C36: 17 | D36: 7 | E36: 3 | F36: 3 | G36: 1 | H36: 1 | I36: 2 | J36: 0 | K36: 0 | L36: 0
B37: Псковская область | C37: 24 | D37: 12 | E37: 4 | F37: 5 | G37: 2 | H37: 1 | I37: 0 | J37: 0 | K37: 0 | L37: 0
B38: г.Санкт-Петербург | C38: 0 | D38: 0 | E38: 0 | F38: 0 | G38: 0 | H38: 0 | I38: 0 | J38: 0 | K38: 0 | L38: 0
B39: Южный федеральный округ | C39: 157 | D39: 7 | E39: 15 | F39: 13 | G39: 25 | H39: 43 | I39: 36 | J39: 17 | K39: 1 | L39: 0
B40: Республика Адыгея | C40: 7 | D40: 0 | E40: 0 | F40: 1 | G40: 1 | H40: 3 | I40: 1 | J40: 1 | K40: 0 | L40: 0
B41: Республика Калмыкия | C41: 13 | D41: 6 | E41: 5 | F41: 1 | G41: 1 | H41: 0 | I41: 0 | J41: 0 | K41: 0 | L41: 0
B42: Республика Крым | C42: 14 | D42: 0 | E42: 0 | F42: 0 | G42: 2 | H42: 4 | I42: 7 | J42: 0 | K42: 1 | L42: 0
B43: Краснодарский край | C43: 37 | D43: 0 | E43: 0 | F43: 0 | G43: 1 | H43: 7 | I43: 16 | J43: 13 | K43: 0 | L43: 0
B44: Астраханская область | C44: 11 | D44: 0 | E44: 0 | F44: 1 | G44: 2 | H44: 6 | I44: 2 | J44: 0 | K44: 0 | L44: 0
B45: Волгоградская область | C45: 32 | D45: 0 | E45: 7 | F45: 5 | G45: 9 | H45: 8 | I45: 3 | J45: 0 | K45: 0 | L45: 0
B46: Ростовская область | C46: 43 | D46: 1 | E46: 3 | F46: 5 | G46: 9 | H46: 15 | I46: 7 | J46: 3 | K46: 0 | L46: 0
B47: г. Севастополь | C47: 0 | D47: 0 | E47: 0 | F47: 0 | G47: 0 | H47: 0 | I47: 0 | J47: 0 | K47: 0 | L47: 0
B48: Северо-Кавказский федеральный округ | C48: 88 | D48: 3 | E48: 5 | F48: 7 | G48: 15 | H48: 20 | I48: 29 | J48: 6 | K48: 3 | L48: 0
B49: Республика Дагестан | C49: 41 | D49: 0 | E49: 5 | F49: 2 | G49: 10 | H49: 9 | I49: 12 | J49: 2 | K49: 1 | L49: 0
B50: Республика Ингушетия | C50: 4 | D50: 1 | E50: 0 | F50: 0 | G50: 0 | H50: 0 | I50: 2 | J50: 1 | K50: 0 | L50: 0
B51: Кабардино-Балкарская Республика | C51: 10 | D51: 0 | E51: 0 | F51: 0 | G51: 0 | H51: 5 | I51: 5 | J51: 0 | K51: 0 | L51: 0
B52: Карачаево-Черкесская Республика | C52: 10 | D52: 0 | E52: 0 | F52: 3 | G52: 2 | H52: 3 | I52: 2 | J52: 0 | K52: 0 | L52: 0
B53: Республика Северная Осетия-Алания | C53: 8 | D53: 0 | E53: 0 | F53: 2 | G53: 1 | H53: 2 | I53: 2 | J53: 1 | K53: 0 | L53: 0
B54: Чеченская Республика | C54: 15 | D54: 2 | E54: 0 | F54: 0 | G54: 2 | H54: 1 | I54: 6 | J54: 2 | K54: 2 | L54: 0
B55: Ставропольский край | C55: 0 | D55: 0 | E55: 0 | F55: 0 | G55: 0 | H55: 0 | I55: 0 | J55: 0 | K55: 0 | L55: 0
B56: Приволжский федеральный округ | C56: 298 | D56: 27 | E56: 61 | F56: 55 | G56: 66 | H56: 47 | I56: 31 | J56: 6 | K56: 1 | L56: 4
B57: Республика Башкортостан | C57: 54 | D57: 0 | E57: 2 | F57: 9 | G57: 20 | H57: 10 | I57: 11 | J57: 2 | K57: 0 | L57: 0
B58: Республика Марий Эл | C58: 14 | D58: 1 | E58: 5 | F58: 2 | G58: 4 | H58: 1 | I58: 1 | J58: 0 | K58: 0 | L58: 0
B59: Республика Мордовия | C59: 22 | D59: 6 | E59: 5 | F59: 4 | G59: 3 | H59: 3 | I59: 1 | J59: 0 | K59: 0 | L59: 0
B60: Республика Татарстан | C60: 43 | D60: 0 | E60: 5 | F60: 7 | G60: 7 | H60: 9 | I60: 11 | J60: 1 | K60: 1 | L60: 2
B61: Удмуртская Республика | C61: 0 | D61: 0 | E61: 0 | F61: 0 | G61: 0 | H61: 0 | I61: 0 | J61: 0 | K61: 0 | L61: 0
B62: Чувашская Республика | C62: 0 | D62: 0 | E62: 0 | F62: 0 | G62: 0 | H62: 0 | I62: 0 | J62: 0 | K62: 0 | L62: 0
B63: Пермский край | C63: 0 | D63: 0 | E63: 0 | F63: 0 | G63: 0 | H63: 0 | I63: 0 | J63: 0 | K63: 0 | L63: 0
B64: Кировская область | C64: 24 | D64: 8 | E64: 3 | F64: 7 | G64: 4 | H64: 2 | I64: 0 | J64: 0 | K64: 0 | L64: 0
B65: Нижегородская область | C65: 0 | D65: 0 | E65: 0 | F65: 0 | G65: 0 | H65: 0 | I65: 0 | J65: 0 | K65: 0 | L65: 0
B66: Оренбургская область | C66: 29 | D66: 2 | E66: 9 | F66: 7 | G66: 7 | H66: 3 | I66: 0 | J66: 1 | K66: 0 | L66: 0
B67: Пензенская область | C67: 27 | D67: 4 | E67: 9 | F67: 3 | G67: 4 | H67: 6 | I67: 1 | J67: 0 | K67: 0 | L67: 0
B68: Самарская область | C68: 27 | D68: 1 | E68: 8 | F68: 5 | G68: 5 | H68: 5 | I68: 2 | J68: 1 | K68: 0 | L68: 0
B69: Саратовская область | C69: 37 | D69: 3 | E69: 9 | F69: 7 | G69: 6 | H69: 5 | I69: 4 | J69: 1 | K69: 0 | L69: 2
B70: Ульяновская область | C70: 21 | D70: 2 | E70: 6 | F70: 4 | G70: 6 | H70: 3 | I70: 0 | J70: 0 | K70: 0 | L70: 0
B71: Уральский федеральный округ | C71: 64 | D71: 4 | E71: 8 | F71: 13 | G71: 21 | H71: 13 | I71: 3 | J71: 2 | K71: 0 | L71: 0
B72: Курганская область | C72: 4 | D72: 1 | E72: 0 | F72: 2 | G72: 1 | H72: 0 | I72: 0 | J72: 0 | K72: 0 | L72: 0
B73: Свердловская область | C73: 5 | D73: 1 | E73: 2 | F73: 0 | G73: 1 | H73: 1 | I73: 0 | J73: 0 | K73: 0 | L73: 0
B74: Тюменская область включая автономные округа | C74: 29 | D74: 2 | E74: 5 | F74: 7 | G74: 8 | H74: 5 | I74: 0 | J74: 2 | K74: 0 | L74: 0
B75: Ханты-Мансийский автономный округ - Югра | C75: 9 | D75: 0 | E75: 0 | F75: 1 | G75: 2 | H75: 5 | I75: 0 | J75: 1 | K75: 0 | L75: 0
B76: Ямало-Ненецкий автономный округ | C76: 0 | D76: 0 | E76: 0 | F76: 0 | G76: 0 | H76: 0 | I76: 0 | J76: 0 | K76: 0 | L76: 0
B77: Тюменская область без автономных округов | C77: 20 | D77: 2 | E77: 5 | F77: 6 | G77: 6 | H77: 0 | I77: 0 | J77: 1 | K77: 0 | L77: 0
B78: Челябинская область | C78: 26 | D78: 0 | E78: 1 | F78: 4 | G78: 11 | H78: 7 | I78: 3 | J78: 0 | K78: 0 | L78: 0
B79: Сибирский федеральный округ | C79: 243 | D79: 46 | E79: 71 | F79: 42 | G79: 39 | H79: 33 | I79: 9 | J79: 1 | K79: 2 | L79: 0
B80: Республика Алтай | C80: 10 | D80: 1 | E80: 6 | F80: 2 | G80: - | H80: 1 | I80: - | J80: - | K80: - | L80: 0
B81: Республика Тыва | C81: 17 | D81: 9 | E81: 4 | F81: 2 | G81: 1 | H81: 1 | I81: 0 | J81: 0 | K81: 0 | L81: 0
B82: Республика Хакасия | C82: 8 | D82: 1 | E82: 1 | F82: 2 | G82: 2 | H82: 2 | I82: 0 | J82: 0 | K82: 0 | L82: 0
B83: Алтайский край | C83: 56 | D83: 15 | E83: 20 | F83: 11 | G83: 5 | H83: 4 | I83: 1 | J83: 0 | K83: 0 | L83: 0
B84: Красноярский край | C84: 41 | D84: 7 | E84: 14 | F84: 6 | G84: 9 | H84: 4 | I84: 1 | J84: 0 | K84: 0 | L84: 0
B85: Иркутская область | C85: 32 | D85: 4 | E85: 6 | F85: 5 | G85: 8 | H85: 5 | I85: 3 | J85: 0 | K85: 1 | L85: 0
B86: Кемеровская область | C86: 1 | D86: 0 | E86: 0 | F86: 0 | G86: 0 | H86: 1 | I86: 0 | J86: 0 | K86: 0 | L86: 0
B87: Новосибирская область | C87: 30 | D87: 2 | E87: 9 | F87: 1 | G87: 6 | H87: 8 | I87: 3 | J87: 0 | K87: 1 | L87: 0
B88: Омская область | C88: 32 | D88: 5 | E88: 4 | F88: 10 | G88: 7 | H88: 5 | I88: 0 | J88: 1 | K88: 0 | L88: 0
B89: Томская область | C89: 16 | D89: 2 | E89: 7 | F89: 3 | G89: 1 | H89: 2 | I89: 1 | J89: 0 | K89: 0 | L89: 0
B90: Дальневосточный федеральный округ | C90: 133 | D90: 42 | E90: 19 | F90: 16 | G90: 32 | H90: 14 | I90: 10 | J90: 0 | K90: 0 | L90: 0
B91: Республика Бурятия | C91: 21 | D91: 3 | E91: 3 | F91: 3 | G91: 7 | H91: 2 | I91: 3 | J91: 0 | K91: 0 | L91: 0
B92: Республика Саха (Якутия) | C92: 34 | D92: 14 | E92: 4 | F92: 2 | G92: 8 | H92: 4 | I92: 2 | J92: 0 | K92: 0 | L92: 0
B93: Забайкальский край | C93: 25 | D93: 5 | E93: 3 | F93: 6 | G93: 5 | H93: 4 | I93: 2 | J93: 0 | K93: 0 | L93: 0
B94: Камчатский край | C94: 10 | D94: 9 | E94: 0 | F94: 0 | G94: 0 | H94: 0 | I94: 1 | J94: 0 | K94: 0 | L94: 0
B95: Приморский край | C95: 10 | D95: 1 | E95: 2 | F95: 1 | G95: 5 | H95: 1 | I95: 0 | J95: 0 | K95: 0 | L95: 0
B96: Хабаровский край | C96: 17 | D96: 4 | E96: 2 | F96: 1 | G96: 5 | H96: 3 | I96: 2 | J96: 0 | K96: 0 | L96: 0
B97: Амурская область | C97: 8 | D97: 2 | E97: 4 | F97: 2 | G97: 0 | H97: 0 | I97: 0 | J97: 0 | K97: 0 | L97: 0
B98: Магаданская область | C98: 0 | D98: 0 | E98: 0 | F98: 0 | G98: 0 | H98: 0 | I98: 0 | J98: 0 | K98: 0 | L98: 0
B99: Сахалинская область | C99: 0 | D99: 0 | E99: 0 | F99: 0 | G99: 0 | H99: 0 | I99: 0 | J99: 0 | K99: 0 | L99: 0
B100: Еврейская автономная область | C100: 5 | D100: 1 | E100: 1 | F100: 1 | G100: 2 | H100: 0 | I100: 0 | J100: 0 | K100: 0 | L100: 0
B101: Чукотский автономный округ | C101: 3 | D101: 3 | E101: 0 | F101: 0 | G101: 0 | H101: 0 | I101: 0 | J101: 0 | K101: 0 | L101: 0

Sheet Таб_12
A1: Содержание
A2: 12. Группировка численности населения, проживающего в муниципальных районах, на 1 января 2023 года
B4: Численность населения, проживающего в муниципальных районах - всего | C4: в том числе с числом жителей, человек
A5: Группировка численности населения, проживающего в муниципальных районах | C5: до 10000 | D5: 10000 - 14999 | E5: 15000 - 19999 | F5: 20000 - 29999 | G5: 30000 - 49999 | H5: 50000 - 99999 | I5: 100000 - 149999 | J5: 150000 - 199999 | K5: 200000 и более
A6: Российская Федерация | B6: 42134554 | C6: 1646235 | D6: 3319850 | E6: 3663872 | F6: 6514766 | G6: 8784905 | H6: 10621558 | I6: 4192508 | J6: 1576725 | K6: 1814135
A7: Центральный федеральный округ | B7: 7923052 | C7: 547873 | D7: 842889 | E7: 800530 | F7: 1319523 | G7: 2022598 | H7: 1993646 | I7: 207190 | J7: 188803 | K7: 0
A8: Белгородская область | B8: 485406 | C8: 0 | D8: 25100 | E8: 0 | F8: 172254 | G8: 99249 | H8: 0 | I8: 0 | J8: 188803 | K8: 0
A9: Брянская область | B9: 546236 | C9: 22340 | D9: 50087 | E9: 113971 | F9: 102754 | G9: 132167 | H9: 124917
A10: Владимирская область | B10: 663144 | C10: 0 | D10: 14747 | E10: 16791 | F10: 50062 | G10: 349873 | H10: 127513 | I10: 104158 | J10: 0 | K10: 0
A11: Воронежская область | B11: 1134548 | C11: 0 | D11: 14963 | E11: 101605 | F11: 192246 | G11: 382167 | H11: 443567 | I11: 0 | J11: 0 | K11: 0
A12: Ивановская область | B12: 332940 | C12: 42300 | D12: 57261 | E12: 107191 | F12: 21783 | G12: 104405 | H12: 0 | I12: 0 | J12: 0 | K12: 0
A13: Калужская область | B13: 585781 | C13: 62019 | D13: 63915 | E13: 34201 | F13: 43127 | G13: 114390 | H13: 268129 | I13: 0 | J13: 0 | K13: 0
A14: Костромская область | B14: 183776 | C14: 76548 | D14: 20989 | E14: 16115 | F14: 28471 | G14: 41653 | H14: 0 | I14: 0 | J14: 0
A15: Курская область | B15: 464979 | C15: 43219 | D15: 155859 | E15: 84866 | F15: 125653 | G15: 0 | H15: 55382 | I15: 0 | J15: 0 | K15: 0
A16: Липецкая область | B16: 538917 | C16: 0 | D16: 40794 | E16: 67382 | F16: 76650 | G16: 216685 | H16: 137406 | I16: 0 | J16: 0 | K16: 0
A17: Московская область | B17: 0 | C17: 0 | D17: 0 | E17: 0 | F17: 0 | G17: 0 | H17: 0 | I17: 0 | J17: 0 | K17: 0
A18: Орловская область | B18: 254522 | C18: 73718 | D18: 84971 | E18: 49331 | F18: 46502 | G18: 0 | H18: 0 | I18: 0
A19: Рязанская область | B19: 490966 | C19: 57306 | D19: 35860 | E19: 31216 | F19: 168858 | G19: 135330 | H19: 62396 | I19: 0 | J19: 0 | K19: 0
A20: Смоленская область | B20: 535189 | C20: 66378 | D20: 69138 | E20: 0 | F20: 69449 | G20: 87518 | H20: 242706 | I20: 0 | J20: 0 | K20: 0
A21: Тамбовская область | B21: 434579 | C21: 36477 | D21: 100237 | E21: 66125 | F21: 94301 | G21: 62981 | H21: 74458 | I21: 0 | J21: 0 | K21: 0
A22: Тверская область | B22: 264170 | C22: 8010 | D22: 12747 | E22: 55003 | F22: 0 | G22: 61708 | H22: 126702 | I22: 0
A23: Тульская область | B23: 612890 | C23: 17463 | D23: 62307 | E23: 37082 | F23: 56219 | G23: 187783 | H23: 149004 | I23: 103032 | J23: 0 | K23: 0
A24: Ярославская область | B24: 395009 | C24: 42095 | D24: 33914 | E24: 19651 | F24: 71194 | G24: 46689 | H24: 181466 | I24: 0 | J24: 0 | K24: 0
A25: г.Москва | B25: 0 | C25: 0 | D25: 0 | E25: 0 | F25: 0 | G25: 0 | H25: 0 | I25: 0 | J25: 0 | K25: 0
A26: Северо-Западный федеральный округ | B26: 3498880 | C26: 195505 | D26: 227123 | E26: 300921 | F26: 363981 | G26: 425041 | H26: 733180 | I26: 241569 | J26: 195374 | K26: 816186
A27: Республика Карелия | B27: 253138 | C27: 13842 | D27: 87604 | E27: 18662 | F27: 69750 | G27: 63280 | H27: 0 | I27: 0 | J27: 0 | K27: 0
A28: Республика Коми | B28: 263977 | C28: 17247 | D28: 34760 | E28: 67500 | F28: 67457 | G28: 77013 | H28: 0 | I28: 0 | J28: 0 | K28: 0
A29: Архангельская область, включая Ненецкий автономный округ | B29: 172214 | C29: 9879 | D29: 10234 | E29: 53979 | F29: 52861 | G29: 45261 | H29: 0 | I29: 0
A30: Ненецкий автономный округ | B30: 17804 | C30: 0 | D30: 0 | E30: 17804 | F30: 0 | G30: 0 | H30: 0 | I30: 0
A31: Архангельская область без Ненецкого автономного округа | B31: 154410 | C31: 9879 | D31: 10234 | E31: 36175 | F31: 52861 | G31: 45261 | H31: 0 | I31: 0 | J31: 0 | K31: 0
A32: Вологодская область | B32: 129540 | C32: 6148 | D32: 14088 | E32: 18845 | F32: 51237 | G32: 39222 | H32: 0 | I32: 0
A33: Калининградская область | B33: 0 | C33: 0 | D33: 0 | E33: 0 | F33: 0 | G33: 0 | H33: 0 | I33: 0 | J33: 0 | K33: 0
A34: Ленинградская область | B34: 1959646 | C34: 0 | D34: 0 | E34: 0 | F34: 53056 | G34: 45192 | H34: 608269 | I34: 241569 | J34: 195374 | K34: 816186
A35: Мурманская область | B35: 86759 | C35: 13314 | D35: 0 | E35: 0 | F35: 0 | G35: 73445 | H35: 0 | I35: 0
A36: Новгородская область | B36: 321124 | C36: 44453 | D36: 36345 | E36: 55451 | F36: 21976 | G36: 37988 | H36: 124911 | I36: 0
A37: Псковская область | B37: 312482 | C37: 90622 | D37: 44092 | E37: 86484 | F37: 47644 | G37: 43640 | H37: 0 | I37: 0 | J37: 0 | K37: 0
A38: г.Санкт-Петербург | B38: 0 | C38: 0 | D38: 0 | E38: 0 | F38: 0 | G38: 0 | H38: 0 | I38: 0 | J38: 0 | K38: 0
A39: Южный федеральный округ | B39: 7462520 | C39: 59108 | D39: 201184 | E39: 225999 | F39: 646992 | G39: 1585654 | H39: 2561990 | I39: 2012473 | J39: 169120 | K39: 0
A40: Республика Адыгея | B40: 318605 | C40: 0 | D40: 0 | E40: 16262 | F40: 22196 | G40: 94063 | H40: 58793 | I40: 127291 | J40: 0 | K40: 0
A41: Республика Калмыкия | B41: 157601 | C41: 53245 | D41: 65770 | E41: 18310 | F41: 20276 | G41: 0 | H41: 0 | I41: 0 | J41: 0 | K41: 0
A42: Республика Крым | B42: 855526 | C42: 0 | D42: 0 | E42: 0 | F42: 55243 | G42: 135388 | H42: 495775 | I42: 0 | J42: 169120 | K42: 0
A43: Краснодарский край | B43: 3083544 | C43: 0 | D43: 0 | E43: 0 | F43: 29588 | G43: 281006 | H43: 1221206 | I43: 1551744 | J43: 0 | K43: 0
A44: Астраханская область | B44: 457883 | C44: 0 | D44: 0 | E44: 19408 | F44: 52981 | G44: 263465 | H44: 122029 | I44: 0 | J44: 0 | K44: 0
A45: Волгоградская область | B45: 869467 | C45: 0 | D45: 96315 | E45: 86314 | F45: 233020 | G45: 282214 | H45: 171604 | I45: 0 | J45: 0 | K45: 0
A46: Ростовская область | B46: 1719894 | C46: 5863 | D46: 39099 | E46: 85705 | F46: 233688 | G46: 529518 | H46: 492583 | I46: 333438 | J46: 0 | K46: 0
A47: г. Севастополь | B47: 0 | C47: 0 | D47: 0 | E47: 0 | F47: 0 | G47: 0 | H47: 0 | I47: 0 | J47: 0 | K47: 0
A48: Северо-Кавказский федеральный округ | B48: 4341272 | C48: 13397 | D48: 62080 | E48: 117929 | F48: 370241 | G48: 699921 | H48: 1882763 | I48: 673217 | J48: 521724 | K48: 0
A49: Республика Дагестан | B49: 1769108 | C49: 0 | D49: 62080 | E49: 33089 | F49: 235600 | G49: 295115 | H49: 766708 | I49: 202367 | J49: 174149 | K49: 0
A50: Республика Ингушетия | B50: 234425 | C50: 3930 | D50: 0 | E50: 0 | F50: 0 | G50: 0 | H50: 121318 | I50: 109177 | J50: 0 | K50: 0
A51: Кабардино-Балкарская Республика | B51: 511108 | C51: 0 | D51: 0 | E51: 0 | F51: 0 | G51: 188343 | H51: 322765 | I51: 0 | J51: 0 | K51: 0
A52: Карачаево-Черкесская Республика | B52: 314595 | C52: 0 | D52: 0 | E52: 50729 | F52: 54233 | G52: 105037 | H52: 104596 | I52: 0 | J52: 0 | K52: 0
A53: Республика Северная Осетия-Алания | B53: 371129 | C53: 0 | D53: 0 | E53: 34111 | F53: 27907 | G53: 69669 | H53: 138208 | I53: 101234 | J53: 0 | K53: 0
A54: Чеченская Республика | B54: 1140907 | C54: 9467 | D54: 0 | E54: 0 | F54: 52501 | G54: 41757 | H54: 429168 | I54: 260439 | J54: 347575 | K54: 0
A55: Ставропольский край | B55: 0 | C55: 0 | D55: 0 | E55: 0 | F55: 0 | G55: 0 | H55: 0 | I55: 0 | J55: 0 | K55: 0
A56: Приволжский федеральный округ | B56: 9208201 | C56: 223130 | D56: 780426 | E56: 973175 | F56: 1579850 | G56: 1747192 | H56: 2047319 | I56: 689450 | J56: 169710 | K56: 997949
A57: Республика Башкортостан | B57: 2061838 | C57: 0 | D57: 29249 | E57: 155662 | F57: 476565 | G57: 378235 | H57: 776120 | I57: 246007 | J57: 0 | K57: 0
A58: Республика Марий Эл | B58: 306674 | C58: 6141 | D58: 62005 | E58: 37297 | F58: 94720 | G58: 38830 | H58: 67681 | I58: 0 | J58: 0 | K58: 0
A59: Республика Мордовия | B59: 430782 | C59: 50323 | D59: 59088 | E59: 71984 | F59: 74269 | G59: 115859 | H59: 59259 | I59: 0 | J59: 0 | K59: 0
A60: Республика Татарстан | B60: 2141190 | C60: 0 | D60: 65658 | E60: 129218 | F60: 170238 | G60: 323635 | H60: 692293 | I60: 100110 | J60: 169710 | K60: 490328
A61: Удмуртская Республика | B61: 0 | C61: 0 | D61: 0 | E61: 0 | F61: 0 | G61: 0 | H61: 0 | I61: 0 | J61: 0 | K61: 0
A62: Чувашская Республика | B62: 0 | C62: 0 | D62: 0 | E62: 0 | F62: 0 | G62: 0 | H62: 0 | I62: 0 | J62: 0 | K62: 0
A63: Пермский край | B63: 0 | C63: 0 | D63: 0 | E63: 0 | F63: 0 | G63: 0 | H63: 0 | I63: 0 | J63: 0
A64: Кировская область | B64: 373751 | C64: 58908 | D64: 36261 | E64: 123254 | F64: 89473 | G64: 65855 | H64: 0 | I64: 0 | J64: 0
A65: Нижегородская область | B65: 0 | C65: 0 | D65: 0 | E65: 0 | F65: 0 | G65: 0 | H65: 0 | I65: 0 | J65: 0
A66: Оренбургская область | B66: 646986 | C66: 18982 | D66: 116765 | E66: 123254 | F66: 169700 | G66: 102561 | H66: 0 | I66: 115724 | J66: 0 | K66: 0
A67: Пензенская область | B67: 618192 | C67: 33568 | D67: 113640 | E67: 53883 | F67: 96603 | G67: 254452 | H67: 66046 | I67: 0 | J67: 0 | K67: 0
A68: Самарская область | B68: 766295 | C68: 9309 | D68: 102870 | E68: 86743 | F68: 114886 | G68: 184116 | H68: 141301 | I68: 127070 | J68: 0 | K68: 0
A69: Саратовская область | B69: 1442458 | C69: 28678 | D69: 115702 | E69: 118949 | F69: 152605 | G69: 173745 | H69: 244619 | I69: 100539 | J69: 0 | K69: 507621
A70: Ульяновская область | B70: 420035 | C70: 17221 | D70: 79188 | E70: 72931 | F70: 140791 | G70: 109904 | H70: 0 | I70: 0 | J70: 0 | K70: 0
A71: Уральский федеральный округ | B71: 1880064 | C71: 31366 | D71: 98198 | E71: 233250 | F71: 525202 | G71: 506326 | H71: 218009 | I71: 267713 | J71: 0 | K71: 0
A72: Курганская область | B72: 66968 | C72: 9866 | D72: 0 | E72: 34572 | F72: 22530 | G72: 0 | H72: 0 | I72: 0
A73: Свердловская область | B73: 87085 | C73: 2756 | D73: 26257 | E73: 0 | F73: 20495 | G73: 37577 | H73: 0 | I73: 0 | J73: 0 | K73: 0
A74: Тюменская область включая автономные округа | B74: 865228 | C74: 18744 | D74: 58068 | E74: 127973 | F74: 198079 | G74: 194651 | H74: 0 | I74: 267713 | J74: 0 | K74: 0
A75: Ханты-Мансийский автономный округ - Югра | B75: 392616 | C75: 0 | D75: 0 | E75: 18866 | F75: 51488 | G75: 194651 | H75: 0 | I75: 127611 | J75: 0 | K75: 0
A76: Ямало-Ненецкий автономный округ | B76: 0 | C76: 0 | D76: 0 | E76: 0 | F76: 0 | G76: 0 | H76: 0 | I76: 0 | J76: 0 | K76: 0
A77: Тюменская область без автономных округов | B77: 472612 | C77: 18744 | D77: 58068 | E77: 109107 | F77: 146591 | G77: 0 | H77: 0 | I77: 140102 | J77: 0 | K77: 0
A78: Челябинская область | B78: 860783 | C78: 0 | D78: 13873 | E78: 70705 | F78: 284098 | G78: 274098 | H78: 218009 | I78: 0
A79: Сибирский федеральный округ | B79: 5184808 | C79: 348162 | D79: 875629 | E79: 735039 | F79: 950649 | G79: 1292823 | H79: 549616 | I79: 100896 | J79: 331994 | K79: 0
A80: Республика Алтай | B80: 145812 | C80: 7471 | D80: 73473 | E80: 34203 | F80: 0 | G80: 30665 | H80: 0 | J80: 0 | K80: 0
A81: Республика Тыва | B81: 196914 | C81: 61273 | D81: 45030 | E81: 34419 | F81: 20131 | G81: 36061 | H81: 0 | I81: 0 | J81: 0 | K81: 0
A82: Республика Хакасия | B82: 188236 | C82: 9758 | D82: 11181 | E82: 32908 | F82: 48487 | G82: 85902 | H82: 0 | I82: 0 | J82: 0 | K82: 0
A83: Алтайский край | B83: 884677 | C83: 115555 | D83: 249849 | E83: 195541 | F83: 117488 | G83: 153686 | H83: 52558 | I83: 0
A84: Красноярский край | B84: 765822 | C84: 57252 | D84: 172680 | E84: 107828 | F84: 221752 | G84: 152295 | H84: 54015 | I84: 0 | J84: 0 | K84: 0
A85: Иркутская область | B85: 957522 | C85: 23867 | D85: 73732 | E85: 80660 | F85: 206600 | G85: 219949 | H85: 187234 | I85: 0 | J85: 165480 | K85: 0
A86: Кемеровская область | B86: 49596 | C86: 0 | D86: 0 | E86: 0 | F86: 0 | G86: 49596 | H86: 0 | I86: 0 | J86: 0 | K86: 0
A87: Новосибирская область | B87: 947547 | C87: 16626 | D87: 116055 | E87: 19204 | F87: 147612 | G87: 314565 | H87: 166971 | I87: 0 | J87: 166514 | K87: 0
A88: Омская область | B88: 721228 | C88: 42532 | D88: 49366 | E88: 176142 | F88: 168272 | G88: 184020 | H88: 0 | I88: 100896 | J88: 0 | K88: 0
A89: Томская область | B89: 327454 | C89: 13828 | D89: 84263 | E89: 54134 | F89: 20307 | G89: 66084 | H89: 88838 | I89: 0 | J89: 0 | K89: 0
A90: Дальневосточный федеральный округ | B90: 2635757 | C90: 227694 | D90: 232321 | E90: 277029 | F90: 758328 | G90: 505350 | H90: 635035 | I90: 0 | J90: 0 | K90: 0
A91: Республика Бурятия | B91: 514059 | C91: 22198 | D91: 37790 | E91: 53009 | F91: 159078 | G91: 72644 | H91: 169340 | I91: 0 | J91: 0 | K91: 0
A92: Республика Саха (Якутия) | B92: 607433 | C92: 69032 | D92: 44265 | E92: 33752 | F92: 181114 | G92: 138930 | H92: 140340 | I92: 0 | J92: 0 | K92: 0
A93: Забайкальский край | B93: 565797 | C93: 29022 | D93: 38784 | E93: 102174 | F93: 124897 | G93: 143938 | H93: 126982 | I93: 0 | J93: 0 | K93: 0
A94: Камчатский край | B94: 100553 | C94: 40895 | D94: 0 | E94: 0 | F94: 0 | G94: 0 | H94: 59658 | I94: 0 | J94: 0 | K94: 0
A95: Приморский край | B95: 218829 | C95: 8026 | D95: 26260 | E95: 17605 | F95: 126269 | G95: 40669 | H95: 0 | I95: 0 | J95: 0 | K95: 0
A96: Хабаровский край | B96: 430764 | C96: 13463 | D96: 28734 | E96: 19440 | F96: 121243 | G96: 109169 | H96: 138715 | I96: 0 | J96: 0 | K96: 0
A97: Амурская область | B97: 98587 | C97: 16635 | D97: 46385 | E97: 35567 | F97: 0 | G97: 0 | H97: 0 | I97: 0 | J97: 0 | K97: 0
A98: Магаданская область | B98: 0 | C98: 0 | D98: 0 | E98: 0 | F98: 0 | G98: 0 | H98: 0 | I98: 0 | J98: 0 | K98: 0
A99: Сахалинская область | B99: 0 | C99: 0 | D99: 0 | E99: 0 | F99: 0 | G99: 0 | H99: 0 | I99: 0 | J99: 0 | K99: 0
A100: Еврейская автономная область | B100: 78922 | C100: 7610 | D100: 10103 | E100: 15482 | F100: 45727 | G100: 0 | H100: 0 | I100: 0 | J100: 0 | K100: 0
A101: Чукотский автономный округ | B101: 20813 | C101: 20813 | D101: 0 | E101: 0 | F101: 0 | G101: 0 | H101: 0 | I101: 0 | J101: 0 | K101: 0

Sheet Таб_13
A1: Содержание
A2: 13. Группировка числа городских поселений по численности населения, проживающего в них, на 1 января 2023 года
B4: Число городских поселений - всего | C4: в том числе с числом жителей, человек
A5: Группировка числа городских поселений по численности населения, проживающего в них | C5: до 3000 | D5: 3000 - 4999 | E5: 5000 - 9999 | F5: 10000 - 19999 | G5: 20000 - 29999 | H5: 30000 - 39999 | I5: 40000 - 49999 | J5: 50000 - 59999 | K5: 60000 - 69999 | L5: 70000 - 79999 | M5: 80000 - 89999 | N5: 90000 - 99999 | O5: 100000 и более
A6: Российская Федерация | B6: 1202 | C6: 199 | D6: 189 | E6: 353 | F6: 259 | G6: 92 | H6: 44 | I6: 21 | J6: 20 | K6: 9 | L6: 6 | M6: 2 | N6: 3 | O6: 5
A7: Центральный федеральный округ | B7: 323 | C7: 40 | D7: 67 | E7: 103 | F7: 73 | G7: 21 | H7: 9 | I7: 5 | J7: 4 | K7: 1 | L7: 0 | M7: 0 | N7: 0 | O7: 0
A8: Белгородская область | B8: 16 | C8: 0 | D8: 1 | E8: 7 | F8: 6 | G8: 2 | H8: 0 | I8: 0 | J8: 0 | K8: 0 | L8: 0 | M8: 0 | N8: 0 | O8: 0
A9: Брянская область | B9: 29 | C9: 4 | D9: 4 | E9: 12 | F9: 6 | G9: 3 | H9: 0 | I9: 0 | J9: 0 | K9: 0 | L9: 0 | M9: 0 | N9: 0 | O9: 0
A10: Владимирская область | B10: 27 | C10: 1 | D10: 1 | E10: 10 | F10: 11 | G10: 1 | H10: 2 | I10: 0 | J10: 1 | K10: 0 | L10: 0 | M10: 0 | N10: 0 | O10: 0
A11: Воронежская область | B11: 28 | C11: 0 | D11: 4 | E11: 6 | F11: 11 | G11: 4 | H11: 1 | I11: 0 | J11: 1 | K11: 1 | L11: 0 | M11: 0 | N11: 0 | O11: 0
A12: Ивановская область | B12: 24 | C12: 5 | D12: 8 | E12: 6 | F12: 3 | G12: 2 | H12: 0 | I12: 0 | J12: 0 | K12: 0 | L12: 0 | M12: 0 | N12: 0 | O12: 0
A13: Калужская область | B13: 26 | C13: 2 | D13: 3 | E13: 6 | F13: 11 | G13: 1 | H13: 2 | I13: 1 | J13: 0 | K13: 0 | L13: 0 | M13: 0 | N13: 0 | O13: 0
A14: Костромская область | B14: 9 | C14: 2 | D14: 4 | E14: 2 | F14: 1 | G14: 0 | H14: 0 | I14: 0 | J14: 0 | K14: 0 | L14: 0 | M14: 0 | N14: 0 | O14: 0
A15: Курская область | B15: 27 | C15: 6 | D15: 12 | E15: 7 | F15: 2 | G15: 0 | H15: 0 | I15: 0 | J15: 0 | K15: 0 | L15: 0 | M15: 0 | N15: 0 | O15: 0
A16: Липецкая область | B16: 6 | C16: 0 | D16: 0 | E16: 1 | F16: 4 | G16: 0 | H16: 0 | I16: 1 | J16: 0 | K16: 0 | L16: 0 | M16: 0 | N16: 0 | O16: 0
A17: Московская область | B17: 0 | C17: 0 | D17: 0 | E17: 0 | F17: 0 | G17: 0 | H17: 0 | I17: 0 | J17: 0 | K17: 0 | L17: 0 | M17: 0 | N17: 0 | O17: 0
A18: Орловская область | B18: 16 | C18: 2 | D18: 8 | E18: 6 | F18: 0 | G18: 0 | H18: 0 | I18: 0 | J18: 0 | K18: 0 | L18: 0 | M18: 0 | N18: 0 | O18: 0
A19: Рязанская область | B19: 29 | C19: 5 | D19: 8 | E19: 10 | F19: 4 | G19: 2 | H19: 0 | I19: 0 | J19: 0 | K19: 0 | L19: 0 | M19: 0 | N19: 0 | O19: 0
A20: Смоленская область | B20: 23 | C20: 2 | D20: 7 | E20: 8 | F20: 1 | G20: 1 | H20: 1 | I20: 2 | J20: 1 | K20: 0 | L20: 0 | M20: 0 | N20: 0 | O20: 0
A21: Тамбовская область | B21: 13 | C21: 1 | D21: 2 | E21: 8 | F21: 2 | G21: 0 | H21: 0 | I21: 0 | J21: 0 | K21: 0 | L21: 0 | M21: 0 | N21: 0 | O21: 0
A22: Тверская область | B22: 17 | C22: 8 | D22: 1 | E22: 3 | F22: 3 | G22: 1 | H22: 1 | I22: 0 | J22: 0 | K22: 0 | L22: 0 | M22: 0 | N22: 0 | O22: 0
A23: Тульская область | B23: 23 | C23: 1 | D23: 3 | E23: 8 | F23: 6 | G23: 3 | H23: 0 | I23: 1 | J23: 1 | K23: 0 | L23: 0 | M23: 0 | N23: 0 | O23: 0
A24: Ярославская область | B24: 10 | C24: 1 | D24: 1 | E24: 3 | F24: 2 | G24: 1 | H24: 2 | I24: 0 | J24: 0 | K24: 0 | L24: 0 | M24: 0 | N24: 0 | O24: 0
A25: г.Москва | B25: 0 | C25: 0 | D25: 0 | E25: 0 | F25: 0 | G25: 0 | H25: 0 | I25: 0 | J25: 0 | K25: 0 | L25: 0 | M25: 0 | N25: 0 | O25: 0
A26: Северо-Западный федеральный округ | B26: 163 | C26: 28 | D26: 28 | E26: 46 | F26: 33 | G26: 12 | H26: 6 | I26: 2 | J26: 2 | K26: 0 | L26: 3 | M26: 1 | N26: 1 | O26: 1
A27: Республика Карелия | B27: 20 | C27: 5 | D27: 4 | E27: 6 | F27: 3 | G27: 2 | H27: 0 | I27: 0 | J27: 0 | K27: 0 | L27: 0 | M27: 0 | N27: 0 | O27: 0
A28: Республика Коми | B28: 14 | C28: 5 | D28: 2 | E28: 4 | F28: 1 | G28: 1 | H28: 1 | I28: 0 | J28: 0 | K28: 0 | L28: 0 | M28: 0 | N28: 0 | O28: 0
A29: Архангельская область, включая Ненецкий автономный округ | B29: 7 | C29: 1 | D29: 2 | E29: 1 | F29: 2 | G29: 1 | H29: 0 | I29: 0 | J29: 0 | K29: 0 | L29: 0 | M29: 0 | N29: 0 | O29: 0
A30: Ненецкий автономный округ | B30: 1 | C30: 0 | D30: 0 | E30: 1 | F30: 0 | G30: 0 | H30: 0 | I30: 0 | J30: 0 | K30: 0 | L30: 0 | M30: 0 | N30: 0 | O30: 0
A31: Архангельская область без Ненецкого автономного округа | B31: 6 | C31: 1 | D31: 2 | E31: 0 | F31: 2 | G31: 1 | H31: 0 | I31: 0 | J31: 0 | K31: 0 | L31: 0 | M31: 0 | N31: 0 | O31: 0
A32: Вологодская область | B32: 4 | C32: 0 | D32: 0 | E32: 2 | F32: 2 | G32: 0 | H32: 0 | I32: 0 | J32: 0 | K32: 0 | L32: 0 | M32: 0 | N32: 0 | O32: 0
A33: Калининградская область | B33: 0 | C33: 0 | D33: 0 | E33: 0 | F33: 0 | G33: 0 | H33: 0 | I33: 0 | J33: 0 | K33: 0 | L33: 0 | M33: 0 | N33: 0 | O33: 0
A34: Ленинградская область | B34: 66 | C34: 7 | D34: 6 | E34: 15 | F34: 19 | G34: 6 | H34: 4 | I34: 1 | J34: 2 | K34: 0 | L34: 3 | M34: 1 | N34: 1 | O34: 1
A35: Мурманская область | B35: 10 | C35: 2 | D35: 4 | E35: 3 | F35: 0 | G35: 0 | H35: 1 | I35: 0 | J35: 0 | K35: 0 | L35: 0 | M35: 0 | N35: 0 | O35: 0
A36: Новгородская область | B36: 17 | C36: 3 | D36: 3 | E36: 5 | F36: 4 | G36: 1 | H36: 0 | I36: 1 | J36: 0 | K36: 0 | L36: 0 | M36: 0 | N36: 0 | O36: 0
A37: Псковская область | B37: 25 | C37: 5 | D37: 7 | E37: 10 | F37: 2 | G37: 1 | H37: 0 | I37: 0 | J37: 0 | K37: 0 | L37: 0 | M37: 0 | N37: 0 | O37: 0
A38: г.Санкт-Петербург | B38: 0 | C38: 0 | D38: 0 | E38: 0 | F38: 0 | G38: 0 | H38: 0 | I38: 0 | J38: 0 | K38: 0 | L38: 0 | M38: 0 | N38: 0
A39: Южный федеральный округ | B39: 96 | C39: 6 | D39: 2 | E39: 20 | F39: 29 | G39: 13 | H39: 9 | I39: 6 | J39: 7 | K39: 2 | L39: 1 | M39: 0 | N39: 1 | O39: 0
A40: Республика Адыгея | B40: 3 | C40: 0 | D40: 0 | E40: 1 | F40: 0 | G40: 0 | H40: 1 | I40: 0 | J40: 1 | K40: 0 | L40: 0 | M40: 0 | N40: 0 | O40: 0
A41: Республика Калмыкия | B41: 2 | C41: 0 | D41: 0 | E41: 1 | F41: 1 | G41: 0 | H41: 0 | I41: 0 | J41: 0 | K41: 0 | L41: 0 | M41: 0 | N41: 0 | O41: 0
A42: Республика Крым | B42: 4 | C42: 0 | D42: 0 | E42: 1 | F42: 2 | G42: 1 | H42: 0 | I42: 0 | J42: 0 | K42: 0 | L42: 0 | M42: 0 | N42: 0 | O42: 0
A43: Краснодарский край | B43: 30 | C43: 0 | D43: 0 | E43: 3 | F43: 4 | G43: 5 | H43: 5 | I43: 4 | J43: 5 | K43: 2 | L43: 1 | M43: 0 | N43: 1 | O43: 0
A44: Астраханская область | B44: 11 | C44: 3 | D44: 0 | E44: 3 | F44: 4 | G44: 0 | H44: 1 | I44: 0 | J44: 0 | K44: 0 | L44: 0 | M44: 0 | N44: 0 | O44: 0
A45: Волгоградская область | B45: 29 | C45: 1 | D45: 2 | E45: 9 | F45: 13 | G45: 4 | H45: 0 | I45: 0 | J45: 0 | K45: 0 | L45: 0 | M45: 0 | N45: 0 | O45: 0
A46: Ростовская область | B46: 17 | C46: 2 | D46: 0 | E46: 2 | F46: 5 | G46: 3 | H46: 2 | I46: 2 | J46: 1 | K46: 0 | L46: 0 | M46: 0 | N46: 0 | O46: 0
A47: г. Севастополь | B47: 0 | C47: 0 | D47: 0 | E47: 0 | F47: 0 | G47: 0 | H47: 0 | I47: 0 | J47: 0 | K47: 0 | L47: 0 | M47: 0 | N47: 0
A48: Северо-Кавказский федеральный округ | B48: 28 | C48: 2 | D48: 2 | E48: 8 | F48: 4 | G48: 5 | H48: 4 | I48: 0 | J48: 1 | K48: 2 | L48: 0 | M48: 0 | N48: 0 | O48: 0
A49: Республика Дагестан | B49: 7 | C49: 1 | D49: 0 | E49: 4 | F49: 2 | G49: 0 | H49: 0 | I49: 0 | J49: 0 | K49: 0 | L49: 0 | M49: 0 | N49: 0 | O49: 0
A50: Республика Ингушетия | B50: 0 | C50: 0 | D50: 0 | E50: 0 | F50: 0 | G50: 0 | H50: 0 | I50: 0 | J50: 0 | K50: 0 | L50: 0 | M50: 0 | N50: 0 | O50: 0
A51: Кабардино-Балкарская Республика | B51: 7 | C51: 0 | D51: 0 | E51: 2 | F51: 1 | G51: 3 | H51: 1 | I51: 0 | J51: 0 | K51: 0 | L51: 0 | M51: 0 | N51: 0 | O51: 0
A52: Карачаево-Черкесская Республика | B52: 5 | C52: 1 | D52: 2 | E52: 1 | F52: 0 | G52: 0 | H52: 1 | I52: 0 | J52: 0 | K52: 0 | L52: 0 | M52: 0 | N52: 0 | O52: 0
A53: Республика Северная Осетия-Алания | B53: 5 | C53: 0 | D53: 0 | E53: 1 | F53: 1 | G53: 1 | H53: 2 | I53: 0 | J53: 0 | K53: 0 | L53: 0 | M53: 0 | N53: 0 | O53: 0
A54: Чеченская Республика | B54: 4 | C54: 0 | D54: 0 | E54: 0 | F54: 0 | G54: 1 | H54: 0 | I54: 0 | J54: 1 | K54: 2 | L54: 0 | M54: 0 | N54: 0 | O54: 0
A55: Ставропольский край | B55: 0 | C55: 0 | D55: 0 | E55: 0 | F55: 0 | G55: 0 | H55: 0 | I55: 0 | J55: 0 | K55: 0 | L55: 0 | M55: 0 | N55: 0
A56: Приволжский федеральный округ | B56: 222 | C56: 21 | D56: 33 | E56: 84 | F56: 42 | G56: 14 | H56: 9 | I56: 3 | J56: 4 | K56: 4 | L56: 2 | M56: 1 | N56: 1 | O56: 4
A57: Республика Башкортостан | B57: 14 | C57: 0 | D57: 0 | E57: 0 | F57: 2 | G57: 3 | H57: 3 | I57: 1 | J57: 2 | K57: 3 | L57: 0 | M57: 0 | N57: 0 | O57: 0
A58: Республика Марий Эл | B58: 16 | C58: 1 | D58: 4 | E58: 7 | F58: 3 | G58: 1 | H58: 0 | I58: 0 | J58: 0 | K58: 0 | L58: 0 | M58: 0 | N58: 0 | O58: 0
A59: Республика Мордовия | B59: 16 | C59: 1 | D59: 3 | E59: 8 | F59: 3 | G59: 0 | H59: 0 | I59: 1 | J59: 0 | K59: 0 | L59: 0 | M59: 0 | N59: 0 | O59: 0
A60: Республика Татарстан | B60: 39 | C60: 2 | D60: 3 | E60: 8 | F60: 13 | G60: 3 | H60: 3 | I60: 0 | J60: 1 | K60: 1 | L60: 1 | M60: 1 | N60: 1 | O60: 2
A61: Удмуртская Республика | B61: 0 | C61: 0 | D61: 0 | E61: 0 | F61: 0 | G61: 0 | H61: 0 | I61: 0 | J61: 0 | K61: 0 | L61: 0 | M61: 0 | N61: 0 | O61: 0
A62: Чувашская Республика | B62: 0 | C62: 0 | D62: 0 | E62: 0 | F62: 0 | G62: 0 | H62: 0 | I62: 0 | J62: 0 | K62: 0 | L62: 0 | M62: 0 | N62: 0 | O62: 0
A63: Пермский край | B63: 0 | C63: 0 | D63: 0 | E63: 0 | F63: 0 | G63: 0 | H63: 0 | I63: 0 | J63: 0 | K63: 0 | L63: 0 | M63: 0 | N63: 0 | O63: 0
A64: Кировская область | B64: 33 | C64: 5 | D64: 11 | E64: 13 | F64: 4 | G64: 0 | H64: 0 | I64: 0 | J64: 0 | K64: 0 | L64: 0 | M64: 0 | N64: 0 | O64: 0
A65: Нижегородская область | B65: 0 | C65: 0 | D65: 0 | E65: 0 | F65: 0 | G65: 0 | H65: 0 | I65: 0 | J65: 0 | K65: 0 | L65: 0 | M65: 0 | N65: 0 | O65: 0
A66: Оренбургская область | B66: 0 | C66: 0 | D66: 0 | E66: 0 | F66: 0 | G66: 0 | H66: 0 | I66: 0 | J66: 0 | K66: 0 | L66: 0 | M66: 0 | N66: 0 | O66: 0
A67: Пензенская область | B67: 24 | C67: 3 | D67: 1 | E67: 15 | F67: 2 | G67: 2 | H67: 1 | I67: 0 | J67: 0 | K67: 0 | L67: 0 | M67: 0 | N67: 0 | O67: 0
A68: Самарская область | B68: 12 | C68: 2 | D68: 1 | E68: 4 | F68: 3 | G68: 1 | H68: 1 | I68: 0 | J68: 0 | K68: 0 | L68: 0 | M68: 0 | N68: 0 | O68: 0
A69: Саратовская область | B69: 37 | C69: 1 | D69: 5 | E69: 14 | F69: 7 | G69: 4 | H69: 1 | I69: 1 | J69: 1 | K69: 0 | L69: 1 | M69: 0 | N69: 0 | O69: 2
A70: Ульяновская область | B70: 31 | C70: 6 | D70: 5 | E70: 15 | F70: 5 | G70: 0 | H70: 0 | I70: 0 | J70: 0 | K70: 0 | L70: 0 | M70: 0 | N70: 0 | O70: 0
A71: Уральский федеральный округ | B71: 58 | C71: 12 | D71: 9 | E71: 12 | F71: 15 | G71: 7 | H71: 1 | I71: 2 | J71: 0 | K71: 0 | L71: 0 | M71: 0 | N71: 0 | O71: 0
A72: Курганская область | B72: 3 | C72: 0 | D72: 0 | E72: 0 | F72: 3 | G72: 0 | H72: 0 | I72: 0 | J72: 0 | K72: 0 | L72: 0 | M72: 0 | N72: 0 | O72: 0
A73: Свердловская область | B73: 5 | C73: 1 | D73: 1 | E73: 2 | F73: 1 | G73: 0 | H73: 0 | I73: 0 | J73: 0 | K73: 0 | L73: 0 | M73: 0 | N73: 0 | O73: 0
A74: Тюменская область включая автономные округа | B74: 26 | C74: 9 | D74: 4 | E74: 5 | F74: 2 | G74: 4 | H74: 1 | I74: 1 | J74: 0 | K74: 0 | L74: 0 | M74: 0 | N74: 0 | O74: 0
A75: Ханты-Мансийский автономный округ - Югра | B75: 26 | C75: 9 | D75: 4 | E75: 5 | F75: 2 | G75: 4 | H75: 1 | I75: 1 | J75: 0 | K75: 0 | L75: 0 | M75: 0 | N75: 0 | O75: 0
A76: Ямало-Ненецкий автономный округ | B76: 0 | C76: 0 | D76: 0 | E76: 0 | F76: 0 | G76: 0 | H76: 0 | I76: 0 | J76: 0 | K76: 0 | L76: 0 | M76: 0 | N76: 0 | O76: 0
A77: Тюменская область без автономных округов | B77: 0 | C77: 0 | D77: 0 | E77: 0 | F77: 0 | G77: 0 | H77: 0 | I77: 0 | J77: 0 | K77: 0 | L77: 0 | M77: 0 | N77: 0 | O77: 0
A78: Челябинская область | B78: 24 | C78: 2 | D78: 4 | E78: 5 | F78: 9 | G78: 3 | H78: 0 | I78: 1 | J78: 0 | K78: 0 | L78: 0 | M78: 0 | N78: 0
A79: Сибирский федеральный округ | B79: 158 | C79: 30 | D79: 23 | E79: 51 | F79: 33 | G79: 15 | H79: 3 | I79: 3 | J79: 0 | K79: 0 | L79: 0 | M79: 0 | N79: 0 | O79: 0
A80: Республика Алтай | B80: 0 | C80: 0 | D80: 0 | E80: 0 | F80: 0 | G80: 0 | H80: 0 | I80: 0 | J80: 0 | K80: 0 | L80: 0 | M80: 0 | N80: 0 | O80: 0
A81: Республика Тыва | B81: 4 | C81: 0 | D81: 0 | E81: 2 | F81: 2 | G81: 0 | H81: 0 | I81: 0 | J81: 0 | K81: 0 | L81: 0 | M81: 0 | N81: 0 | O81: 0
A82: Республика Хакасия | B82: 4 | C82: 1 | D82: 1 | E82: 1 | F82: 1 | G82: 0 | H82: 0 | I82: 0 | J82: 0 | K82: 0 | L82: 0 | M82: 0 | N82: 0 | O82: 0
A83: Алтайский край | B83: 7 | C83: 1 | D83: 0 | E83: 3 | F83: 2 | G83: 0 | H83: 1 | I83: 0 | J83: 0 | K83: 0 | L83: 0 | M83: 0 | N83: 0 | O83: 0
A84: Красноярский край | B84: 26 | C84: 5 | D84: 6 | E84: 5 | F84: 9 | G84: 1 | H84: 0 | I84: 0 | J84: 0 | K84: 0 | L84: 0 | M84: 0 | N84: 0 | O84: 0
A85: Иркутская область | B85: 56 | C85: 21 | D85: 8 | E85: 15 | F85: 5 | G85: 3 | H85: 2 | I85: 2 | J85: 0 | K85: 0 | L85: 0 | M85: 0 | N85: 0 | O85: 0
A86: Кемеровская область | B86: 6 | C86: 1 | D86: 3 | E86: 0 | F86: 1 | G86: 1 | H86: 0 | I86: 0 | J86: 0 | K86: 0 | L86: 0 | M86: 0 | N86: 0 | O86: 0
A87: Новосибирская область | B87: 26 | C87: 0 | D87: 2 | E87: 9 | F87: 9 | G87: 5 | H87: 0 | I87: 1 | J87: 0 | K87: 0 | L87: 0 | M87: 0 | N87: 0 | O87: 0
A88: Омская область | B88: 26 | C88: 1 | D88: 3 | E88: 15 | F88: 4 | G88: 3 | H88: 0 | I88: 0 | J88: 0 | K88: 0 | L88: 0 | M88: 0 | N88: 0 | O88: 0
A89: Томская область | B89: 3 | C89: 0 | D89: 0 | E89: 1 | F89: 0 | G89: 2 | H89: 0 | I89: 0 | J89: 0 | K89: 0 | L89: 0 | M89: 0 | N89: 0
A90: Дальневосточный федеральный округ | B90: 154 | C90: 60 | D90: 25 | E90: 29 | F90: 30 | G90: 5 | H90: 3 | I90: 0 | J90: 2 | K90: 0 | L90: 0 | M90: 0 | N90: 0 | O90: 0
A91: Республика Бурятия | B91: 16 | C91: 5 | D91: 3 | E91: 3 | F91: 4 | G91: 1 | H91: 0 | I91: 0 | J91: 0 | K91: 0 | L91: 0 | M91: 0 | N91: 0 | O91: 0
A92: Республика Саха (Якутия) | B92: 48 | C92: 23 | D92: 9 | E92: 7 | F92: 5 | G92: 2 | H92: 1 | I92: 0 | J92: 1 | K92: 0 | L92: 0 | M92: 0 | N92: 0 | O92: 0
A93: Забайкальский край | B93: 38 | C93: 14 | D93: 4 | E93: 7 | F93: 11 | G93: 1 | H93: 0 | I93: 0 | J93: 1 | K93: 0 | L93: 0 | M93: 0 | N93: 0 | O93: 0
A94: Камчатский край | B94: 4 | C94: 3 | D94: 0 | E94: 0 | F94: 0 | G94: 0 | H94: 1 | I94: 0 | J94: 0 | K94: 0 | L94: 0 | M94: 0 | N94: 0 | O94: 0
A95: Приморский край | B95: 7 | C95: 0 | D95: 3 | E95: 2 | F95: 2 | G95: 0 | H95: 0 | I95: 0 | J95: 0 | K95: 0 | L95: 0 | M95: 0 | N95: 0 | O95: 0
A96: Хабаровский край | B96: 22 | C96: 6 | D96: 1 | E96: 5 | F96: 8 | G96: 1 | H96: 1 | I96: 0 | J96: 0 | K96: 0 | L96: 0 | M96: 0 | N96: 0 | O96: 0
A97: Амурская область | B97: 6 | C97: 4 | D97: 1 | E97: 1 | F97: 0 | G97: 0 | H97: 0 | I97: 0 | J97: 0 | K97: 0 | L97: 0 | M97: 0 | N97: 0 | O97: 0
A98: Магаданская область | B98: 0 | C98: 0 | D98: 0 | E98: 0 | F98: 0 | G98: 0 | H98: 0 | I98: 0 | J98: 0 | K98: 0 | L98: 0 | M98: 0 | N98: 0 | O98: 0
A99: Сахалинская область | B99: 0 | C99: 0 | D99: 0 | E99: 0 | F99: 0 | G99: 0 | H99: 0 | I99: 0 | J99: 0 | K99: 0 | L99: 0 | M99: 0 | N99: 0 | O99: 0
A100: Еврейская автономная область | B100: 10 | C100: 4 | D100: 3 | E100: 3 | F100: 0 | G100: 0 | H100: 0 | I100: 0 | J100: 0 | K100: 0 | L100: 0 | M100: 0 | N100: 0 | O100: 0
A101: Чукотский автономный округ | B101: 3 | C101: 1 | D101: 1 | E101: 1 | F101: 0 | G101: 0 | H101: 0 | I101: 0 | J101: 0 | K101: 0 | L101: 0 | M101: 0 | N101: 0 | O101: 0

Sheet Таб_14
A1: Содержание
A2: 14. Группировка численности населения, проживающего в городских поселениях, на 1 января 2023 года
B4: Численность населения, проживающего в городских поселениях - всего | C4: в том числе с числом жителей, человек
A5: Группировка численности населения, проживающего в городских поселениях | C5: до 3000 | D5: 3000 - 4999 | E5: 5000 - 9999 | F5: 10000 - 19999 | G5: 20000 - 29999 | H5: 30000 - 39999 | I5: 40000 - 49999 | J5: 50000 - 59999 | K5: 60000 - 69999 | L5: 70000 - 79999 | M5: 80000 - 89999 | N5: 90000 - 99999 | O5: 100000 и более
A6: Российская Федерация | B6: 15438315 | C6: 361815 | D6: 748376 | E6: 2538740 | F6: 3580275 | G6: 2225492 | H6: 1539601 | I6: 920047 | J6: 1104096 | K6: 569120 | L6: 444796 | M6: 167639 | N6: 284076 | O6: 954242
A7: Центральный федеральный округ | B7: 3396981 | C7: 80011 | D7: 265365 | E7: 718403 | F7: 993806 | G7: 528771 | H7: 317990 | I7: 218649 | J7: 213724 | K7: 60262 | L7: 0 | M7: 0 | N7: 0 | O7: 0
A8: Белгородская область | B8: 181262 | C8: 0 | D8: 4221 | E8: 53909 | F8: 70440 | G8: 52692 | H8: 0 | I8: 0 | J8: 0 | K8: 0 | L8: 0 | M8: 0 | N8: 0 | O8: 0
A9: Брянская область | B9: 262942 | C9: 6745 | D9: 16241 | E9: 87377 | F9: 80025 | G9: 72554 | H9: 0 | I9: 0 | J9: 0 | K9: 0 | L9: 0 | M9: 0 | N9: 0 | O9: 0
A10: Владимирская область | B10: 387212 | C10: 451 | D10: 4174 | E10: 72547 | F10: 148740 | G10: 26548 | H10: 78809 | I10: 0 | J10: 55943 | K10: 0 | L10: 0 | M10: 0 | N10: 0 | O10: 0
A11: Воронежская область | B11: 452302 | C11: 0 | D11: 13911 | E11: 46149 | F11: 151733 | G11: 95292 | H11: 31929 | I11: 0 | J11: 53026 | K11: 60262 | L11: 0 | M11: 0 | N11: 0 | O11: 0
A12: Ивановская область | B12: 177055 | C12: 12544 | D12: 30230 | E12: 43937 | F12: 37440 | G12: 52904 | H12: 0 | I12: 0 | J12: 0 | K12: 0 | L12: 0 | M12: 0 | N12: 0 | O12: 0
A13: Калужская область | B13: 341678 | C13: 4460 | D13: 13808 | E13: 41886 | F13: 146871 | G13: 27661 | H13: 65481 | I13: 41511 | J13: 0 | K13: 0 | L13: 0 | M13: 0 | N13: 0 | O13: 0
A14: Костромская область | B14: 49614 | C14: 2415 | D14: 15265 | E14: 12499 | F14: 19435 | G14: 0 | H14: 0 | I14: 0 | J14: 0 | K14: 0 | L14: 0 | M14: 0 | N14: 0 | O14: 0
A15: Курская область | B15: 129014 | C15: 12988 | D15: 48968 | E15: 40255 | F15: 26803 | G15: 0 | H15: 0 | I15: 0 | J15: 0 | K15: 0 | L15: 0 | M15: 0 | N15: 0 | O15: 0
A16: Липецкая область | B16: 122017 | C16: 0 | D16: 0 | E16: 9647 | F16: 68571 | G16: 0 | H16: 0 | I16: 43799 | J16: 0 | K16: 0 | L16: 0 | M16: 0 | N16: 0 | O16: 0
A17: Московская область | B17: 0 | C17: 0 | D17: 0 | E17: 0 | F17: 0 | G17: 0 | H17: 0 | I17: 0 | J17: 0 | K17: 0 | L17: 0 | M17: 0 | N17: 0 | O17: 0
A18: Орловская область | B18: 81124 | C18: 5742 | D18: 32144 | E18: 43238 | F18: 0 | G18: 0 | H18: 0 | I18: 0 | J18: 0 | K18: 0 | L18: 0 | M18: 0 | N18: 0 | O18: 0
A19: Рязанская область | B19: 191513 | C19: 9094 | D19: 31346 | E19: 57723 | F19: 51953 | G19: 41397 | H19: 0 | I19: 0 | J19: 0 | K19: 0 | L19: 0 | M19: 0 | N19: 0 | O19: 0
A20: Смоленская область | B20: 298337 | C20: 4080 | D20: 25152 | E20: 58979 | F20: 10503 | G20: 25943 | H20: 37443 | I20: 85038 | J20: 51199 | K20: 0 | L20: 0 | M20: 0 | N20: 0 | O20: 0
A21: Тамбовская область | B21: 90823 | C21: 2958 | D21: 9291 | E21: 54366 | F21: 24208 | G21: 0 | H21: 0 | I21: 0 | J21: 0 | K21: 0 | L21: 0 | M21: 0 | N21: 0 | O21: 0
A22: Тверская область | B22: 140682 | C22: 15170 | D22: 3231 | E22: 24181 | F22: 43166 | G22: 22151 | H22: 32783 | I22: 0 | J22: 0 | K22: 0 | L22: 0 | M22: 0 | N22: 0 | O22: 0
A23: Тульская область | B23: 338965 | C23: 904 | D23: 12954 | E23: 54716 | F23: 84561 | G23: 83973 | H23: 0 | I23: 48301 | J23: 53556 | K23: 0 | L23: 0 | M23: 0 | N23: 0 | O23: 0
A24: Ярославская область | B24: 152441 | C24: 2460 | D24: 4429 | E24: 16994 | F24: 29357 | G24: 27656 | H24: 71545 | I24: 0 | J24: 0 | K24: 0 | L24: 0 | M24: 0 | N24: 0 | O24: 0
A25: г.Москва | B25: 0 | C25: 0 | D25: 0 | E25: 0 | F25: 0 | G25: 0 | H25: 0 | I25: 0 | J25: 0 | K25: 0 | L25: 0 | M25: 0 | N25: 0 | O25: 0
A26: Северо-Западный федеральный округ | B26: 2189065 | C26: 57174 | D26: 110466 | E26: 344723 | F26: 463542 | G26: 289352 | H26: 212578 | I26: 96539 | J26: 106943 | K26: 0 | L26: 222713 | M26: 87440 | N26: 92684 | O26: 104911
A27: Республика Карелия | B27: 161542 | C27: 11027 | D27: 14513 | E27: 47093 | F27: 39987 | G27: 48922 | H27: 0 | I27: 0 | J27: 0 | K27: 0 | L27: 0 | M27: 0 | N27: 0 | O27: 0
A28: Республика Коми | B28: 116342 | C28: 9061 | D28: 8270 | E28: 28587 | F28: 10883 | G28: 25158 | H28: 34383 | I28: 0 | J28: 0 | K28: 0 | L28: 0 | M28: 0 | N28: 0 | O28: 0
A29: Архангельская область, включая Ненецкий автономный округ | B29: 67478 | C29: 2091 | D29: 8970 | E29: 7253 | F29: 27349 | G29: 21815 | H29: 0 | I29: 0 | J29: 0 | K29: 0 | L29: 0 | M29: 0 | N29: 0 | O29: 0
A30: Ненецкий автономный округ | B30: 7253 | C30: 0 | D30: 0 | E30: 7253 | F30: 0 | G30: 0 | H30: 0 | I30: 0 | J30: 0 | K30: 0 | L30: 0 | M30: 0 | N30: 0 | O30: 0
A31: Архангельская область без Ненецкого автономного округа | B31: 60225 | C31: 2091 | D31: 8970 | E31: 0 | F31: 27349 | G31: 21815 | H31: 0 | I31: 0 | J31: 0 | K31: 0 | L31: 0 | M31: 0 | N31: 0 | O31: 0
A32: Вологодская область | B32: 41434 | C32: 0 | D32: 0 | E32: 15094 | F32: 26340 | G32: 0 | H32: 0 | I32: 0 | J32: 0 | K32: 0 | L32: 0 | M32: 0 | N32: 0 | O32: 0
A33: Калининградская область | B33: 0 | C33: 0 | D33: 0 | E33: 0 | F33: 0 | G33: 0 | H33: 0 | I33: 0 | J33: 0 | K33: 0 | L33: 0 | M33: 0 | N33: 0 | O33: 0
A34: Ленинградская область | B34: 1388390 | C34: 15342 | D34: 24499 | E34: 111803 | F34: 280236 | G34: 144567 | H34: 148066 | I34: 49186 | J34: 106943 | K34: 0 | L34: 222713 | M34: 87440 | N34: 92684 | O34: 104911
A35: Мурманская область | B35: 72860 | C35: 1653 | D35: 16375 | E35: 24703 | F35: 0 | G35: 0 | H35: 30129 | I35: 0 | J35: 0 | K35: 0 | L35: 0 | M35: 0 | N35: 0 | O35: 0
A36: Новгородская область | B36: 186752 | C36: 6091 | D36: 12167 | E36: 40496 | F36: 52594 | G36: 28051 | H36: 0 | I36: 47353 | J36: 0 | K36: 0 | L36: 0 | M36: 0 | N36: 0 | O36: 0
A37: Псковская область | B37: 154267 | C37: 11909 | D37: 25672 | E37: 69694 | F37: 26153 | G37: 20839 | H37: 0 | I37: 0 | J37: 0 | K37: 0 | L37: 0 | M37: 0 | N37: 0 | O37: 0
A38: г.Санкт-Петербург | B38: 0 | C38: 0 | D38: 0 | E38: 0 | F38: 0 | G38: 0 | H38: 0 | I38: 0 | J38: 0 | K38: 0 | L38: 0 | M38: 0 | N38: 0
A39: Южный федеральный округ | B39: 2150969 | C39: 12809 | D39: 8342 | E39: 145014 | F39: 412486 | G39: 311313 | H39: 318525 | I39: 262568 | J39: 390549 | K39: 122156 | L39: 74893 | M39: 0 | N39: 92314 | O39: 0
A40: Республика Адыгея | B40: 97422 | C40: 0 | D40: 0 | E40: 7716 | F40: 0 | G40: 0 | H40: 30836 | I40: 0 | J40: 58870 | K40: 0 | L40: 0 | M40: 0 | N40: 0 | O40: 0
A41: Республика Калмыкия | B41: 21842 | C41: 0 | D41: 0 | E41: 8172 | F41: 13670 | G41: 0 | H41: 0 | I41: 0 | J41: 0 | K41: 0 | L41: 0 | M41: 0 | N41: 0 | O41: 0
A42: Республика Крым | B42: 66878 | C42: 0 | D42: 0 | E42: 9618 | F42: 28160 | G42: 29100 | H42: 0 | I42: 0 | J42: 0 | K42: 0 | L42: 0 | M42: 0 | N42: 0 | O42: 0
A43: Краснодарский край | B43: 1110748 | C43: 0 | D43: 0 | E43: 21646 | F43: 48127 | G43: 120589 | H43: 182891 | I43: 173630 | J43: 274502 | K43: 122156 | L43: 74893 | M43: 0 | N43: 92314 | O43: 0
A44: Астраханская область | B44: 124684 | C44: 6971 | D44: 0 | E44: 20122 | F44: 62362 | G44: 0 | H44: 35229 | I44: 0 | J44: 0 | K44: 0 | L44: 0 | M44: 0 | N44: 0 | O44: 0
A45: Волгоградская область | B45: 344752 | C45: 1108 | D45: 8342 | E45: 61637 | F45: 184753 | G45: 88912 | H45: 0 | I45: 0 | J45: 0 | K45: 0 | L45: 0 | M45: 0 | N45: 0 | O45: 0
A46: Ростовская область | B46: 384643 | C46: 4730 | D46: 0 | E46: 16103 | F46: 75414 | G46: 72712 | H46: 69569 | I46: 88938 | J46: 57177 | K46: 0 | L46: 0 | M46: 0 | N46: 0 | O46: 0
A47: г. Севастополь | B47: 0 | C47: 0 | D47: 0 | E47: 0 | F47: 0 | G47: 0 | H47: 0 | I47: 0 | J47: 0 | K47: 0 | L47: 0 | M47: 0 | N47: 0
A48: Северо-Кавказский федеральный округ | B48: 565089 | C48: 2961 | D48: 6478 | E48: 55849 | F48: 61858 | G48: 115581 | H48: 136012 | I48: 0 | J48: 56005 | K48: 130345 | L48: 0 | M48: 0 | N48: 0 | O48: 0
A49: Республика Дагестан | B49: 48713 | C49: 1937 | D49: 0 | E49: 24001 | F49: 22775 | G49: 0 | H49: 0 | I49: 0 | J49: 0 | K49: 0 | L49: 0 | M49: 0 | N49: 0 | O49: 0
A50: Республика Ингушетия | B50: 0 | C50: 0 | D50: 0 | E50: 0 | F50: 0 | G50: 0 | H50: 0 | I50: 0 | J50: 0 | K50: 0 | L50: 0 | M50: 0 | N50: 0 | O50: 0
A51: Кабардино-Балкарская Республика | B51: 139095 | C51: 0 | D51: 0 | E51: 16306 | F51: 19990 | G51: 69817 | H51: 32982 | I51: 0 | J51: 0 | K51: 0 | L51: 0 | M51: 0 | N51: 0 | O51: 0
A52: Карачаево-Черкесская Республика | B52: 44408 | C52: 1024 | D52: 6478 | E52: 5549 | F52: 0 | G52: 0 | H52: 31357 | I52: 0 | J52: 0 | K52: 0 | L52: 0 | M52: 0 | N52: 0 | O52: 0
A53: Республика Северная Осетия-Алания | B53: 122221 | C53: 0 | D53: 0 | E53: 9993 | F53: 19093 | G53: 21462 | H53: 71673 | I53: 0 | J53: 0 | K53: 0 | L53: 0 | M53: 0 | N53: 0 | O53: 0
A54: Чеченская Республика | B54: 210652 | C54: 0 | D54: 0 | E54: 0 | F54: 0 | G54: 24302 | H54: 0 | I54: 0 | J54: 56005 | K54: 130345 | L54: 0 | M54: 0 | N54: 0 | O54: 0
A55: Ставропольский край | B55: 0 | C55: 0 | D55: 0 | E55: 0 | F55: 0 | G55: 0 | H55: 0 | I55: 0 | J55: 0 | K55: 0 | L55: 0 | M55: 0 | N55: 0
A56: Приволжский федеральный округ | B56: 3825281 | C56: 44967 | D56: 136267 | E56: 604746 | F56: 605251 | G56: 327306 | H56: 312624 | I56: 129877 | J56: 232088 | K56: 256357 | L56: 147190 | M56: 80199 | N56: 99078 | O56: 849331
A57: Республика Башкортостан | B57: 567250 | C57: 0 | D57: 0 | E57: 0 | F57: 37135 | G57: 69467 | H57: 103087 | I57: 46992 | J57: 114807 | K57: 195762 | L57: 0 | M57: 0 | N57: 0 | O57: 0
A58: Республика Марий Эл | B58: 121319 | C58: 2546 | D58: 16131 | E58: 47390 | F58: 33453 | G58: 21799 | H58: 0 | I58: 0 | J58: 0 | K58: 0 | L58: 0 | M58: 0 | N58: 0 | O58: 0
A59: Республика Мордовия | B59: 165895 | C59: 2465 | D59: 11840 | E59: 66333 | F59: 42836 | G59: 0 | H59: 0 | I59: 42421 | J59: 0 | K59: 0 | L59: 0 | M59: 0 | N59: 0 | O59: 0
A60: Республика Татарстан | B60: 1220007 | C60: 3162 | D60: 13356 | E60: 63958 | F60: 188159 | G60: 66413 | H60: 106975 | I60: 0 | J60: 58376 | K60: 60595 | L60: 74276 | M60: 80199 | N60: 99078 | O60: 405460
A61: Удмуртская Республика | B61: 0 | C61: 0 | D61: 0 | E61: 0 | F61: 0 | G61: 0 | H61: 0 | I61: 0 | J61: 0 | K61: 0 | L61: 0 | M61: 0 | N61: 0 | O61: 0
A62: Чувашская Республика | B62: 0 | C62: 0 | D62: 0 | E62: 0 | F62: 0 | G62: 0 | H62: 0 | I62: 0 | J62: 0 | K62: 0 | L62: 0 | M62: 0 | N62: 0 | O62: 0
A63: Пермский край | B63: 0 | C63: 0 | D63: 0 | E63: 0 | F63: 0 | G63: 0 | H63: 0 | I63: 0 | J63: 0 | K63: 0 | L63: 0 | M63: 0 | N63: 0 | O63: 0
A64: Кировская область | B64: 205331 | C64: 8827 | D64: 45914 | E64: 91541 | F64: 59049 | G64: 0 | H64: 0 | I64: 0 | J64: 0 | K64: 0 | L64: 0 | M64: 0 | N64: 0 | O64: 0
A65: Нижегородская область | B65: 0 | C65: 0 | D65: 0 | E65: 0 | F65: 0 | G65: 0 | H65: 0 | I65: 0 | J65: 0 | K65: 0 | L65: 0 | M65: 0 | N65: 0 | O65: 0
A66: Оренбургская область | B66: 0 | C66: 0 | D66: 0 | E66: 0 | F66: 0 | G66: 0 | H66: 0 | I66: 0 | J66: 0 | K66: 0 | L66: 0 | M66: 0 | N66: 0 | O66: 0
A67: Пензенская область | B67: 232681 | C67: 6048 | D67: 4869 | E67: 107771 | F67: 30880 | G67: 50053 | H67: 33060 | I67: 0 | J67: 0 | K67: 0 | L67: 0 | M67: 0 | N67: 0 | O67: 0
A68: Самарская область | B68: 133484 | C68: 5367 | D68: 3228 | E68: 30194 | F68: 42254 | G68: 20458 | H68: 31983 | I68: 0 | J68: 0 | K68: 0 | L68: 0 | M68: 0 | N68: 0 | O68: 0
A69: Саратовская область | B69: 973723 | C69: 2770 | D69: 20264 | E69: 96527 | F69: 101373 | G69: 99116 | H69: 37519 | I69: 40464 | J69: 58905 | K69: 0 | L69: 72914 | M69: 0 | N69: 0 | O69: 443871
A70: Ульяновская область | B70: 205591 | C70: 13782 | D70: 20665 | E70: 101032 | F70: 70112 | G70: 0 | H70: 0 | I70: 0 | J70: 0 | K70: 0 | L70: 0 | M70: 0 | N70: 0
A71: Уральский федеральный округ | B71: 639427 | C71: 24932 | D71: 35402 | E71: 86951 | F71: 202666 | G71: 173187 | H71: 31171 | I71: 85118 | J71: 0 | K71: 0 | L71: 0 | M71: 0 | N71: 0 | O71: 0
A72: Курганская область | B72: 34009 | C72: 0 | D72: 0 | E72: 0 | F72: 34009 | G72: 0 | H72: 0 | I72: 0 | J72: 0 | K72: 0 | L72: 0 | M72: 0 | N72: 0 | O72: 0
A73: Свердловская область | B73: 34526 | C73: 2910 | D73: 3653 | E73: 13257 | F73: 14706 | G73: 0 | H73: 0 | I73: 0 | J73: 0 | K73: 0 | L73: 0 | M73: 0 | N73: 0 | O73: 0
A74: Тюменская область включая автономные округа | B74: 262579 | C74: 17730 | D74: 15369 | E74: 37917 | F74: 27851 | G74: 90815 | H74: 31171 | I74: 41726 | J74: 0 | K74: 0 | L74: 0 | M74: 0 | N74: 0 | O74: 0
A75: Ханты-Мансийский автономный округ - Югра | B75: 262579 | C75: 17730 | D75: 15369 | E75: 37917 | F75: 27851 | G75: 90815 | H75: 31171 | I75: 41726 | J75: 0 | K75: 0 | L75: 0 | M75: 0 | N75: 0 | O75: 0
A76: Ямало-Ненецкий автономный округ | B76: 0 | C76: 0 | D76: 0 | E76: 0 | F76: 0 | G76: 0 | H76: 0 | I76: 0 | J76: 0 | K76: 0 | L76: 0 | M76: 0 | N76: 0 | O76: 0
A77: Тюменская область без автономных округов | B77: 0 | C77: 0 | D77: 0 | E77: 0 | F77: 0 | G77: 0 | H77: 0 | I77: 0 | J77: 0 | K77: 0 | L77: 0 | M77: 0 | N77: 0 | O77: 0
A78: Челябинская область | B78: 308313 | C78: 4292 | D78: 16380 | E78: 35777 | F78: 126100 | G78: 82372 | H78: 0 | I78: 43392 | J78: 0 | K78: 0 | L78: 0 | M78: 0 | N78: 0
A79: Сибирский федеральный округ | B79: 1566518 | C79: 44911 | D79: 90128 | E79: 378211 | F79: 463972 | G79: 359443 | H79: 102557 | I79: 127296 | J79: 0 | K79: 0 | L79: 0 | M79: 0 | N79: 0 | O79: 0
A80: Республика Алтай | B80: 0 | C80: 0 | D80: 0 | E80: 0 | F80: 0 | G80: 0 | H80: 0 | I80: 0 | J80: 0 | K80: 0 | L80: 0 | M80: 0 | N80: 0 | O80: 0
A81: Республика Тыва | B81: 46810 | C81: 0 | D81: 0 | E81: 15210 | F81: 31600 | G81: 0 | H81: 0 | I81: 0 | J81: 0 | K81: 0 | L81: 0 | M81: 0 | N81: 0 | O81: 0
A82: Республика Хакасия | B82: 23152 | C82: 1191 | D82: 3006 | E82: 5206 | F82: 13749 | G82: 0 | H82: 0 | I82: 0 | J82: 0 | K82: 0 | L82: 0 | M82: 0 | N82: 0 | O82: 0
A83: Алтайский край | B83: 88252 | C83: 2593 | D83: 0 | E83: 24791 | F83: 28472 | G83: 0 | H83: 32396 | I83: 0 | J83: 0 | K83: 0 | L83: 0 | M83: 0 | N83: 0 | O83: 0
A84: Красноярский край | B84: 216445 | C84: 7795 | D84: 22723 | E84: 34772 | F84: 130624 | G84: 20531 | H84: 0 | I84: 0 | J84: 0 | K84: 0 | L84: 0 | M84: 0 | N84: 0 | O84: 0
A85: Иркутская область | B85: 461410 | C85: 30252 | D85: 31060 | E85: 104864 | F85: 67325 | G85: 72206 | H85: 70161 | I85: 85542 | J85: 0 | K85: 0 | L85: 0 | M85: 0 | N85: 0 | O85: 0
A86: Кемеровская область | B86: 45175 | C86: 1564 | D86: 11908 | E86: 0 | F86: 10033 | G86: 21670 | H86: 0 | I86: 0 | J86: 0 | K86: 0 | L86: 0 | M86: 0 | N86: 0 | O86: 0
A87: Новосибирская область | B87: 385384 | C87: 0 | D87: 8732 | E87: 70335 | F87: 138729 | G87: 125834 | H87: 0 | I87: 41754 | J87: 0 | K87: 0 | L87: 0 | M87: 0 | N87: 0 | O87: 0
A88: Омская область | B88: 240889 | C88: 1516 | D88: 12699 | E88: 115150 | F88: 43440 | G88: 68084 | H88: 0 | I88: 0 | J88: 0 | K88: 0 | L88: 0 | M88: 0 | N88: 0 | O88: 0
A89: Томская область | B89: 59001 | C89: 0 | D89: 0 | E89: 7883 | F89: 0 | G89: 51118 | H89: 0 | I89: 0 | J89: 0 | K89: 0 | L89: 0 | M89: 0 | N89: 0
A90: Дальневосточный федеральный округ | B90: 1104985 | C90: 94050 | D90: 95928 | E90: 204843 | F90: 376694 | G90: 120539 | H90: 108144 | I90: 0 | J90: 104787 | K90: 0 | L90: 0 | M90: 0 | N90: 0 | O90: 0
A91: Республика Бурятия | B91: 118771 | C91: 7091 | D91: 12944 | E91: 21056 | F91: 53176 | G91: 24504 | H91: 0 | I91: 0 | J91: 0 | K91: 0 | L91: 0 | M91: 0 | N91: 0 | O91: 0
A92: Республика Саха (Якутия) | B92: 300353 | C92: 32753 | D92: 32873 | E92: 45277 | F92: 59117 | G92: 42794 | H92: 34013 | I92: 0 | J92: 53526 | K92: 0 | L92: 0 | M92: 0 | N92: 0 | O92: 0
A93: Забайкальский край | B93: 304695 | C93: 25441 | D93: 13551 | E93: 52591 | F93: 132451 | G93: 29400 | H93: 0 | I93: 0 | J93: 51261 | K93: 0 | L93: 0 | M93: 0 | N93: 0 | O93: 0
A94: Камчатский край | B94: 40365 | C94: 4166 | D94: 0 | E94: 0 | F94: 0 | G94: 0 | H94: 36199 | I94: 0 | J94: 0 | K94: 0 | L94: 0 | M94: 0 | N94: 0 | O94: 0
A95: Приморский край | B95: 47339 | C95: 0 | D95: 12598 | E95: 12637 | F95: 22104 | G95: 0 | H95: 0 | I95: 0 | J95: 0 | K95: 0 | L95: 0 | M95: 0 | N95: 0 | O95: 0
A96: Хабаровский край | B96: 223966 | C96: 12029 | D96: 3257 | E96: 37061 | F96: 109846 | G96: 23841 | H96: 37932 | I96: 0 | J96: 0 | K96: 0 | L96: 0 | M96: 0 | N96: 0 | O96: 0
A97: Амурская область | B97: 17060 | C97: 4247 | D97: 3752 | E97: 9061 | F97: 0 | G97: 0 | H97: 0 | I97: 0 | J97: 0 | K97: 0 | L97: 0 | M97: 0 | N97: 0 | O97: 0
A98: Магаданская область | B98: 0 | C98: 0 | D98: 0 | E98: 0 | F98: 0 | G98: 0 | H98: 0 | I98: 0 | J98: 0 | K98: 0 | L98: 0 | M98: 0 | N98: 0 | O98: 0
A99: Сахалинская область | B99: 0 | C99: 0 | D99: 0 | E99: 0 | F99: 0 | G99: 0 | H99: 0 | I99: 0 | J99: 0 | K99: 0 | L99: 0 | M99: 0 | N99: 0 | O99: 0
A100: Еврейская автономная область | B100: 41870 | C100: 7161 | D100: 13299 | E100: 21410 | F100: 0 | G100: 0 | H100: 0 | I100: 0 | J100: 0 | K100: 0 | L100: 0 | M100: 0 | N100: 0 | O100: 0
A101: Чукотский автономный округ | B101: 10566 | C101: 1162 | D101: 3654 | E101: 5750 | F101: 0 | G101: 0 | H101: 0 | I101: 0 | J101: 0 | K101: 0 | L101: 0 | M101: 0 | N101: 0 | O101: 0

Sheet Таб_15
A1: Содержание
A2: 15. Группировка числа сельских поселений по численности населения, проживающего в них, на 1 января 2023 года
B4: Число сельских поселений - всего | C4: в том числе с числом жителей, человек
A5: Группировка числа сельских поселений по численности населения, проживающего в них | C5: до 500 | D5: 500 - 999 | E5: 1000 - 1999 | F5: 2000 - 2999 | G5: 3000 - 4999 | H5: 5000 - 6999 | I5: 7000 - 9999 | J5: 10000 - 19999 | K5: 20000 и более
A6: Российская Федерация1),2) | B6: 14575 | C6: 2812 | D6: 4299 | E6: 3997 | F6: 1304 | G6: 1065 | H6: 505 | I6: 303 | J6: 254 | K6: 35
A7: Центральный федеральный округ | B7: 2850 | C7: 491 | D7: 901 | E7: 841 | F7: 258 | G7: 219 | H7: 80 | I7: 37 | J7: 22 | K7: 1
A8: Белгородская область | B8: 174 | C8: 16 | D8: 61 | E8: 65 | F8: 13 | G8: 10 | H8: 3 | I8: 1 | J8: 5 | K8: 0
A9: Брянская область | B9: 176 | C9: 14 | D9: 61 | E9: 61 | F9: 21 | G9: 13 | H9: 4 | I9: 0 | J9: 2 | K9: 0
A10: Владимирская область | B10: 80 | C10: 0 | D10: 7 | E10: 14 | F10: 19 | G10: 26 | H10: 7 | I10: 5 | J10: 2 | K10: 0
A11: Воронежская область | B11: 414 | C11: 58 | D11: 134 | E11: 133 | F11: 38 | G11: 28 | H11: 16 | I11: 5 | J11: 1 | K11: 1
A12: Ивановская область | B12: 92 | C12: 6 | D12: 18 | E12: 48 | F12: 8 | G12: 9 | H12: 2 | I12: 0 | J12: 1 | K12: 0
A13: Калужская область | B13: 252 | C13: 111 | D13: 71 | E13: 46 | F13: 6 | G13: 14 | H13: 3 | I13: 1 | J13: 0 | K13: 0
A14: Костромская область | B14: 89 | C14: 30 | D14: 16 | E14: 21 | F14: 10 | G14: 8 | H14: 3 | I14: 1 | J14: 0 | K14: 0
A15: Курская область | B15: 287 | C15: 60 | D15: 114 | E15: 74 | F15: 21 | G15: 14 | H15: 2 | I15: 2 | J15: 0 | K15: 0
A16: Липецкая область | B16: 286 | C16: 48 | D16: 104 | E16: 83 | F16: 18 | G16: 18 | H16: 8 | I16: 7 | J16: 0 | K16: 0
A17: Московская область | B17: 0 | C17: 0 | D17: 0 | E17: 0 | F17: 0 | G17: 0 | H17: 0 | I17: 0 | J17: 0 | K17: 0
A18: Орловская область | B18: 207 | C18: 78 | D18: 71 | E18: 42 | F18: 13 | G18: 2 | H18: 1 | I18: 0 | J18: 0 | K18: 0
A19: Рязанская область | B19: 232 | C19: 18 | D19: 97 | E19: 78 | F19: 27 | G19: 10 | H19: 1 | I19: 1 | J19: 0 | K19: 0
A20: Смоленская область | B20: 133 | C20: 7 | D20: 44 | E20: 48 | F20: 12 | G20: 17 | H20: 4 | I20: 0 | J20: 1 | K20: 0
A21: Тамбовская область | B21: 228 | C21: 28 | D21: 82 | E21: 71 | F21: 23 | G21: 16 | H21: 3 | I21: 4 | J21: 1 | K21: 0
A22: Тверская область | B22: 79 | C22: 17 | D22: 17 | E22: 27 | F22: 8 | G22: 6 | H22: 4 | I22: 0 | J22: 0 | K22: 0
A23: Тульская область | B23: 54 | C23: 0 | D23: 0 | E23: 5 | F23: 9 | G23: 16 | H23: 13 | I23: 8 | J23: 3 | K23: 0
A24: Ярославская область | B24: 67 | C24: 0 | D24: 4 | E24: 25 | F24: 12 | G24: 12 | H24: 6 | I24: 2 | J24: 6 | K24: 0
A25: г.Москва | B25: 0 | C25: 0 | D25: 0 | E25: 0 | F25: 0 | G25: 0 | H25: 0 | I25: 0 | J25: 0 | K25: 0
A26: Северо-Западный федеральный округ1) | B26: 647 | C26: 117 | D26: 172 | E26: 181 | F26: 73 | G26: 50 | H26: 23 | I26: 16 | J26: 10 | K26: 4
A27: Республика Карелия | B27: 81 | C27: 15 | D27: 33 | E27: 21 | F27: 8 | G27: 4 | H27: 0 | I27: 0 | J27: 0 | K27: 0
A28: Республика Коми 1) | B28: 143 | C28: 55 | D28: 47 | E28: 27 | F28: 4 | G28: 5 | H28: 2 | I28: 1 | J28: 1 | K28: 0
A29: Архангельская область, включая Ненецкий автономный округ | B29: 84 | C29: 24 | D29: 28 | E29: 17 | F29: 4 | G29: 11 | H29: 0 | I29: 0 | J29: 0 | K29: 0
A30: Ненецкий автономный округ | B30: 18 | C30: 8 | D30: 8 | E30: 2 | F30: 0 | G30: 0 | H30: 0 | I30: 0 | J30: 0 | K30: 0
A31: Архангельская область без Ненецкого автономного округа | B31: 66 | C31: 16 | D31: 20 | E31: 15 | F31: 4 | G31: 11 | H31: 0 | I31: 0 | J31: 0 | K31: 0
A32: Вологодская область | B32: 43 | C32: 2 | D32: 8 | E32: 15 | F32: 9 | G32: 6 | H32: 3 | I32: 0 | J32: 0 | K32: 0
A33: Калининградская область | B33: 0 | C33: 0 | D33: 0 | E33: 0 | F33: 0 | G33: 0 | H33: 0 | I33: 0 | J33: 0 | K33: 0
A34: Ленинградская область | B34: 121 | C34: 1 | D34: 10 | E34: 34 | F34: 23 | G34: 16 | H34: 13 | I34: 14 | J34: 6 | K34: 4
A35: Мурманская область | B35: 9 | C35: 2 | D35: 2 | E35: 3 | F35: 1 | G35: 0 | H35: 1 | I35: 0 | J35: 0 | K35: 0
A36: Новгородская область | B36: 81 | C36: 11 | D36: 27 | E36: 25 | F36: 12 | G36: 3 | H36: 0 | I36: 1 | J36: 2 | K36: 0
A37: Псковская область | B37: 85 | C37: 7 | D37: 17 | E37: 39 | F37: 12 | G37: 5 | H37: 4 | I37: 0 | J37: 1 | K37: 0
A38: г.Санкт-Петербург | B38: 0 | C38: 0 | D38: 0 | E38: 0 | F38: 0 | G38: 0 | H38: 0 | I38: 0 | J38: 0 | K38: 0
A39: Южный федеральный округ | B39: 1666 | C39: 89 | D39: 263 | E39: 526 | F39: 261 | G39: 242 | H39: 127 | I39: 66 | J39: 75 | K39: 17
A40: Республика Адыгея | B40: 48 | C40: 0 | D40: 0 | E40: 10 | F40: 10 | G40: 12 | H40: 8 | I40: 3 | J40: 5 | K40: 0
A41: Республика Калмыкия | B41: 111 | C41: 36 | D41: 48 | E41: 13 | F41: 2 | G41: 6 | H41: 4 | I41: 1 | J41: 1 | K41: 0
A42: Республика Крым | B42: 250 | C42: 1 | D42: 13 | E42: 89 | F42: 71 | G42: 41 | H42: 15 | I42: 9 | J42: 9 | K42: 2
A43: Краснодарский край | B43: 351 | C43: 1 | D43: 16 | E43: 69 | F43: 60 | G43: 74 | H43: 56 | I43: 27 | J43: 34 | K43: 14
A44: Астраханская область | B44: 116 | C44: 4 | D44: 23 | E44: 35 | F44: 19 | G44: 19 | H44: 8 | I44: 3 | J44: 5 | K44: 0
A45: Волгоградская область | B45: 399 | C45: 43 | D45: 127 | E45: 175 | F45: 28 | G45: 18 | H45: 7 | I45: 1 | J45: 0 | K45: 0
A46: Ростовская область | B46: 391 | C46: 4 | D46: 36 | E46: 135 | F46: 71 | G46: 72 | H46: 29 | I46: 22 | J46: 21 | K46: 1
A47: г. Севастополь | B47: 0 | C47: 0 | D47: 0 | E47: 0 | F47: 0 | G47: 0 | H47: 0 | I47: 0 | J47: 0 | K47: 0
A48: Северо-Кавказский федеральный округ | B48: 1242 | C48: 131 | D48: 194 | E48: 338 | F48: 199 | G48: 154 | H48: 102 | I48: 57 | J48: 63 | K48: 4
A49: Республика Дагестан2) | B49: 701 | C49: 73 | D49: 130 | E49: 209 | F49: 116 | G49: 94 | H49: 36 | I49: 25 | J49: 16 | K49: 1
A50: Республика Ингушетия | B50: 36 | C50: 5 | D50: 4 | E50: 4 | F50: 3 | G50: 3 | H50: 4 | I50: 5 | J50: 6 | K50: 2
A51: Кабардино-Балкарская Республика | B51: 112 | C51: 3 | D51: 16 | E51: 35 | F51: 15 | G51: 15 | H51: 16 | I51: 7 | J51: 5 | K51: 0
A52: Карачаево-Черкесская Республика | B52: 83 | C52: 1 | D52: 10 | E52: 23 | F52: 18 | G52: 15 | H52: 10 | I52: 3 | J52: 3 | K52: 0
A53: Республика Северная Осетия-Алания | B53: 97 | C53: 19 | D53: 12 | E53: 31 | F53: 14 | G53: 5 | H53: 6 | I53: 4 | J53: 6 | K53: 0
A54: Чеченская Республика | B54: 213 | C54: 29 | D54: 22 | E54: 36 | F54: 33 | G54: 22 | H54: 30 | I54: 13 | J54: 27 | K54: 1
A55: Ставропольский край | B55: 0 | C55: 0 | D55: 0 | E55: 0 | F55: 0 | G55: 0 | H55: 0 | I55: 0 | J55: 0 | K55: 0
A56: Приволжский федеральный округ | B56: 3594 | C56: 704 | D56: 1290 | E56: 1001 | F56: 253 | G56: 181 | H56: 65 | I56: 57 | J56: 38 | K56: 5
A57: Республика Башкортостан | B57: 818 | C57: 66 | D57: 305 | E57: 287 | F57: 62 | G57: 39 | H57: 18 | I57: 23 | J57: 17 | K57: 1
A58: Республика Марий Эл | B58: 102 | C58: 5 | D58: 12 | E58: 51 | F58: 20 | G58: 13 | H58: 1 | I58: 0 | J58: 0 | K58: 0
A59: Республика Мордовия | B59: 233 | C59: 60 | D59: 96 | E59: 51 | F59: 9 | G59: 11 | H59: 4 | I59: 2 | J59: 0 | K59: 0
A60: Республика Татарстан | B60: 872 | C60: 262 | D60: 383 | E60: 153 | F60: 29 | G60: 30 | H60: 4 | I60: 6 | J60: 3 | K60: 2
A61: Удмуртская Республика | B61: 0 | C61: 0 | D61: 0 | E61: 0 | F61: 0 | G61: 0 | H61: 0 | I61: 0 | J61: 0 | K61: 0
A62: Чувашская Республика | B62: 0 | C62: 0 | D62: 0 | E62: 0 | F62: 0 | G62: 0 | H62: 0 | I62: 0 | J62: 0 | K62: 0
A63: Пермский край | B63: 0 | C63: 0 | D63: 0 | E63: 0 | F63: 0 | G63: 0 | H63: 0 | I63: 0 | J63: 0 | K63: 0
A64: Кировская область | B64: 208 | C64: 86 | D64: 70 | E64: 38 | F64: 7 | G64: 6 | H64: 1 | I64: 0 | J64: 0 | K64: 0
A65: Нижегородская область | B65: 0 | C65: 0 | D65: 0 | E65: 0 | F65: 0 | G65: 0 | H65: 0 | I65: 0 | J65: 0 | K65: 0
A66: Оренбургская область | B66: 445 | C66: 147 | D66: 154 | E66: 77 | F66: 17 | G66: 18 | H66: 12 | I66: 12 | J66: 8 | K66: 0
A67: Пензенская область | B67: 264 | C67: 55 | D67: 87 | E67: 80 | F67: 19 | G67: 16 | H67: 3 | I67: 2 | J67: 1 | K67: 1
A68: Самарская область | B68: 284 | C68: 12 | D68: 84 | E68: 107 | F68: 31 | G68: 21 | H68: 15 | I68: 8 | J68: 5 | K68: 1
A69: Саратовская область | B69: 256 | C69: 10 | D69: 79 | E69: 103 | F69: 37 | G69: 16 | H69: 4 | I69: 3 | J69: 4 | K69: 0
A70: Ульяновская область | B70: 112 | C70: 1 | D70: 20 | E70: 54 | F70: 22 | G70: 11 | H70: 3 | I70: 1 | J70: 0 | K70: 0
A71: Уральский федеральный округ | B71: 638 | C71: 109 | D71: 175 | E71: 190 | F71: 67 | G71: 40 | H71: 25 | I71: 17 | J71: 14 | K71: 1
A72: Курганская область | B72: 50 | C72: 28 | D72: 12 | E72: 8 | F72: 1 | G72: 1 | H72: 0 | I72: 0 | J72: 0 | K72: 0
A73: Свердловская область | B73: 16 | C73: 1 | D73: 1 | E73: 4 | F73: 2 | G73: 5 | H73: 1 | I73: 2 | J73: 0 | K73: 0
A74: Тюменская область включая автономные округа | B74: 330 | C74: 56 | D74: 120 | E74: 88 | F74: 23 | G74: 11 | H74: 15 | I74: 10 | J74: 6 | K74: 1
A75: Ханты-Мансийский автономный округ - Югра | B75: 57 | C75: 1 | D75: 11 | E75: 29 | F75: 8 | G75: 2 | H75: 3 | I75: 1 | J75: 2 | K75: 0
A76: Ямало-Ненецкий автономный округ | B76: 0 | C76: 0 | D76: 0 | E76: 0 | F76: 0 | G76: 0 | H76: 0 | I76: 0 | J76: 0 | K76: 0
A77: Тюменская область без автономных округов | B77: 273 | C77: 55 | D77: 109 | E77: 59 | F77: 15 | G77: 9 | H77: 12 | I77: 9 | J77: 4 | K77: 1
A78: Челябинская область | B78: 242 | C78: 24 | D78: 42 | E78: 90 | F78: 41 | G78: 23 | H78: 9 | I78: 5 | J78: 8 | K78: 0
A79: Сибирский федеральный округ | B79: 2629 | C79: 683 | D79: 862 | E79: 698 | F79: 142 | G79: 127 | H79: 56 | I79: 37 | J79: 23 | K79: 1
A80: Республика Алтай | B80: 91 | C80: 14 | D80: 36 | E80: 27 | F80: 4 | G80: 4 | H80: 4 | I80: 1 | J80: 1 | K80: 0
A81: Республика Тыва | B81: 120 | C81: 21 | D81: 45 | E81: 39 | F81: 0 | G81: 14 | H81: 1 | I81: 0 | J81: 0 | K81: 0
A82: Республика Хакасия | B82: 82 | C82: 9 | D82: 20 | E82: 33 | F82: 8 | G82: 6 | H82: 2 | I82: 2 | J82: 2 | K82: 0
A83: Алтайский край | B83: 619 | C83: 165 | D83: 244 | E83: 132 | F83: 19 | G83: 34 | H83: 9 | I83: 12 | J83: 4 | K83: 0
A84: Красноярский край | B84: 457 | C84: 170 | D84: 120 | E84: 96 | F84: 35 | G84: 20 | H84: 9 | I84: 6 | J84: 1 | K84: 0
A85: Иркутская область | B85: 354 | C85: 87 | D85: 103 | E85: 119 | F85: 19 | G85: 11 | H85: 7 | I85: 2 | J85: 5 | K85: 1
A86: Кемеровская область | B86: 4 | C86: 0 | D86: 3 | E86: 0 | F86: 1 | G86: 0 | H86: 0 | I86: 0 | J86: 0 | K86: 0
A87: Новосибирская область | B87: 427 | C87: 122 | D87: 150 | E87: 104 | F87: 16 | G87: 14 | H87: 9 | I87: 6 | J87: 6 | K87: 0
A88: Омская область | B88: 363 | C88: 75 | D88: 118 | E88: 116 | F88: 26 | G88: 19 | H88: 5 | I88: 3 | J88: 1 | K88: 0
A89: Томская область | B89: 112 | C89: 20 | D89: 23 | E89: 32 | F89: 14 | G89: 5 | H89: 10 | I89: 5 | J89: 3 | K89: 0
A90: Дальневосточный федеральный округ | B90: 1309 | C90: 488 | D90: 442 | E90: 222 | F90: 51 | G90: 52 | H90: 27 | I90: 16 | J90: 9 | K90: 2
A91: Республика Бурятия | B91: 247 | C91: 58 | D91: 95 | E91: 55 | F91: 12 | G91: 9 | H91: 10 | I91: 3 | J91: 4 | K91: 1
A92: Республика Саха (Якутия) | B92: 361 | C92: 155 | D92: 135 | E92: 49 | F92: 10 | G92: 3 | H92: 3 | I92: 4 | J92: 2 | K92: 0
A93: Забайкальский край | B93: 273 | C93: 109 | D93: 93 | E93: 48 | F93: 9 | G93: 8 | H93: 5 | I93: 0 | J93: 1 | K93: 0
A94: Камчатский край | B94: 46 | C94: 20 | D94: 9 | E94: 8 | F94: 2 | G94: 6 | H94: 0 | I94: 1 | J94: 0 | K94: 0
A95: Приморский край | B95: 56 | C95: 7 | D95: 10 | E95: 13 | F95: 7 | G95: 9 | H95: 3 | I95: 5 | J95: 1 | K95: 1
A96: Хабаровский край | B96: 191 | C96: 81 | D96: 54 | E96: 31 | F96: 6 | G96: 13 | H96: 3 | I96: 2 | J96: 1 | K96: 0
A97: Амурская область | B97: 98 | C97: 46 | D97: 36 | E97: 9 | F97: 3 | G97: 2 | H97: 1 | I97: 1 | J97: 0 | K97: 0
A98: Магаданская область | B98: 0 | C98: 0 | D98: 0 | E98: 0 | F98: 0 | G98: 0 | H98: 0 | I98: 0 | J98: 0 | K98: 0
A99: Сахалинская область | B99: 0 | C99: 0 | D99: 0 | E99: 0 | F99: 0 | G99: 0 | H99: 0 | I99: 0 | J99: 0 | K99: 0
A100: Еврейская автономная область | B100: 17 | C100: 0 | D100: 4 | E100: 7 | F100: 2 | G100: 2 | H100: 2 | I100: 0 | J100: 0 | K100: 0
A101: Чукотский автономный округ | B101: 20 | C101: 12 | D101: 6 | E101: 2 | F101: 0 | G101: 0 | H101: 0 | I101: 0 | J101: 0 | K101: 0
A103: 1) Включая 1 сельское поселение без населения в Республике Коми
A104: 2) Включая 1 сельское поселение без населения в Республике Дагестан

Sheet Таб_16
A1: Содержание
A2: 16. Группировка численности населения, проживающего в сельских поселениях, на 1 января 2023 года
B4: Численность населения, проживающего в сельских поселениях - всего | C4: в том числе с числом жителей, человек
A5: Группировка численности населения, проживающего в сельских поселениях | C5: до 500 | D5: 500 - 999 | E5: 1000 - 1999 | F5: 2000 - 2999 | G5: 3000 - 4999 | H5: 5000 - 6999 | I5: 7000 - 9999 | J5: 10000 - 19999 | K5: 20000 и более
A6: Российская Федерация | B6: =B7+B26+B39+B48+B56+B71+B79+B90 -> 26679395 | C6: =C7+C26+C39+C48+C56+C71+C79+C90 -> 939486 | D6: =D7+D26+D39+D48+D56+D71+D79+D90 -> 3133891 | E6: 5561918 | F6: 3150337 | G6: 4117098 | H6: 2940653 | I6: 2521491 | J6: 3353603 | K6: 960918
A7: Центральный федеральный округ | B7: =SUM(B8:B25) -> 4520009 | C7: =SUM(C8:C25) -> 173247 | D7: 657315 | E7: 1164288 | F7: 616950 | G7: 823183 | H7: 460781 | I7: 303346 | J7: 282208 | K7: 38691
A8: Белгородская область | B8: 304144 | C8: 6544 | D8: 45625 | E8: 86245 | F8: 30861 | G8: 37032 | H8: 17437 | I8: 7752 | J8: 72648 | K8: 0
A9: Брянская область | B9: 283294 | C9: 5631 | D9: 47559 | E9: 83209 | F9: 49313 | G9: 48207 | H9: 24062 | I9: 0 | J9: 25313 | K9: 0
A10: Владимирская область | B10: 275932 | C10: 0 | D10: 5576 | E10: 22580 | F10: 47068 | G10: 98733 | H10: 39351 | I10: 40841 | J10: 21783 | K10: 0
A11: Воронежская область | B11: 682246 | C11: 22799 | D11: 97779 | E11: 185035 | F11: 88393 | G11: 107552 | H11: 89932 | I11: 39884 | J11: 12181 | K11: 38691
A12: Ивановская область | B12: 155885 | C12: 2489 | D12: 13137 | E12: 67232 | F12: 19327 | G12: 32035 | H12: 11262 | I12: 0 | J12: 10403 | K12: 0
A13: Калужская область | B13: 244103 | C13: 33076 | D13: 50419 | E13: 62341 | F13: 15014 | G13: 56456 | H13: 17142 | I13: 9655 | J13: 0 | K13: 0
A14: Костромская область | B14: 128100 | C14: 9793 | D14: 11984 | E14: 29293 | F14: 23738 | G14: 29170 | H14: 17066 | I14: 7056 | J14: 0 | K14: 0
A15: Курская область | B15: 335965 | C15: 20924 | D15: 85995 | E15: 99909 | F15: 51401 | G15: 50080 | H15: 10859 | I15: 16797 | J15: 0 | K15: 0
A16: Липецкая область | B16: 416900 | C16: 18383 | D16: 69812 | E16: 115613 | F16: 44117 | G16: 64848 | H16: 44753 | I16: 59374 | J16: 0 | K16: 0
A17: Московская область | B17: 0 | C17: 0 | D17: 0 | E17: 0 | F17: 0 | G17: 0 | H17: 0 | I17: 0 | J17: 0 | K17: 0
A18: Орловская область | B18: 173398 | C18: 27441 | D18: 48200 | E18: 56608 | F18: 29504 | G18: 6639 | H18: 5006 | I18: 0 | J18: 0 | K18: 0
A19: Рязанская область | B19: 299453 | C19: 6903 | D19: 69788 | E19: 104635 | F19: 66364 | G19: 38295 | H19: 6135 | I19: 7333 | J19: 0 | K19: 0
A20: Смоленская область | B20: 236852 | C20: 1913 | D20: 32630 | E20: 71128 | F20: 29299 | G20: 66740 | H20: 23264 | I20: 0 | J20: 11878 | K20: 0
A21: Тамбовская область | B21: 343756 | C21: 11042 | D21: 61623 | E21: 96764 | F21: 53086 | G21: 61958 | H21: 16556 | I21: 32092 | J21: 10635 | K21: 0
A22: Тверская область | B22: 123488 | C22: 6309 | D22: 13733 | E22: 39090 | F22: 18290 | G22: 23027 | H22: 23039 | I22: 0 | J22: 0 | K22: 0
A23: Тульская область | B23: 273925 | C23: 0 | D23: 0 | E23: 8844 | F23: 22456 | G23: 57942 | H23: 78374 | I23: 64601 | J23: 41708 | K23: 0
A24: Ярославская область | B24: 242568 | C24: 0 | D24: 3455 | E24: 35762 | F24: 28719 | G24: 44469 | H24: 36543 | I24: 17961 | J24: 75659 | K24: 0
A25: г.Москва | B25: 0 | C25: 0 | D25: 0 | E25: 0 | F25: 0 | G25: 0 | H25: 0 | I25: 0 | J25: 0 | K25: 0
A26: Северо-Западный федеральный округ | B26: =SUM(B27:B29,B32:B38) -> 1309782 | C26: =SUM(C27:C29,C32:C38) -> 37979 | D26: 124890 | E26: 260176 | F26: 176865 | G26: 192213 | H26: 138324 | I26: 138359 | J26: 128142 | K26: 112834
A27: Республика Карелия | B27: 91596 | C27: 4638 | D27: 25352 | E27: 30351 | F27: 18409 | G27: 12846 | H27: 0 | I27: 0 | J27: 0 | K27: 0
A28: Республика Коми | B28: 147635 | C28: 14860 | D28: 32724 | E28: 38467 | F28: 10450 | G28: 20337 | H28: 12474 | I28: 7878 | J28: 10445 | K28: 0
A29: Архангельская область, включая Ненецкий автономный округ | B29: 104736 | C29: 9114 | D29: 19031 | E29: 23121 | F29: 9442 | G29: 44028 | H29: 0 | I29: 0 | J29: 0 | K29: 0
A30: Ненецкий автономный округ | B30: 10551 | C30: 2972 | D30: 4960 | E30: 2619 | F30: 0 | G30: 0 | H30: 0 | I30: 0 | J30: 0 | K30: 0
A31: Архангельская область без Ненецкого автономного округа | B31: 94185 | C31: 6142 | D31: 14071 | E31: 20502 | F31: 9442 | G31: 44028 | H31: 0 | I31: 0 | J31: 0 | K31: 0
A32: Вологодская область | B32: 88106 | C32: 950 | D32: 6269 | E32: 21403 | F32: 20740 | G32: 21124 | H32: 17620 | I32: 0 | J32: 0 | K32: 0
A33: Калининградская область | B33: 0 | C33: 0 | D33: 0 | E33: 0 | F33: 0 | G33: 0 | H33: 0 | I33: 0 | J33: 0 | K33: 0
A34: Ленинградская область | B34: 571256 | C34: 463 | D34: 8160 | E34: 50471 | F34: 59186 | G34: 62284 | H34: 79915 | I34: 121673 | J34: 76270 | K34: 112834
A35: Мурманская область | B35: 13899 | C35: 736 | D35: 1094 | E35: 4235 | F35: 2374 | G35: 0 | H35: 5460 | I35: 0 | J35: 0 | K35: 0
A36: Новгородская область | B36: 134372 | C36: 4613 | D36: 18705 | E36: 35649 | F36: 29474 | G36: 12471 | H36: 0 | I36: 8808 | J36: 24652 | K36: 0
A37: Псковская область | B37: 158182 | C37: 2605 | D37: 13555 | E37: 56479 | F37: 26790 | G37: 19123 | H37: 22855 | I37: 0 | J37: 16775 | K37: 0
A38: г.Санкт-Петербург | B38: 0 | C38: 0 | D38: 0 | E38: 0 | F38: 0 | G38: 0 | H38: 0 | I38: 0 | J38: 0 | K38: 0
A39: Южный федеральный округ | B39: =SUM(B40:B47) -> 5311551 | C39: =SUM(C40:C47) -> 33781 | D39: 199018 | E39: 753970 | F39: 631905 | G39: 930459 | H39: 738303 | I39: 547139 | J39: 1000765 | K39: 476211
A40: Республика Адыгея | B40: 221183 | C40: 0 | D40: 0 | E40: 16356 | F40: 26020 | G40: 43201 | H40: 44487 | I40: 22932 | J40: 68187 | K40: 0
A41: Республика Калмыкия | B41: 135759 | C41: 13166 | D41: 34473 | E41: 17125 | F41: 4411 | G41: 23149 | H41: 22433 | I41: 7862 | J41: 13140 | K41: 0
A42: Республика Крым | B42: 788648 | C42: 479 | D42: 10722 | E42: 131434 | F42: 171469 | G42: 152117 | H42: 88811 | I42: 76019 | J42: 113524 | K42: 44073
A43: Краснодарский край | B43: 1972796 | C43: 450 | D43: 12502 | E43: 109366 | F43: 144324 | G43: 293172 | H43: 329493 | I43: 223944 | J43: 447533 | K43: 412012
A44: Астраханская область | B44: 333199 | C44: 1471 | D44: 17565 | E44: 49134 | F44: 46226 | G44: 68769 | H44: 45526 | I44: 26462 | J44: 78046 | K44: 0
A45: Волгоградская область | B45: 524715 | C45: 16615 | D45: 95343 | E45: 232305 | F45: 66621 | G45: 66043 | H45: 39114 | I45: 8674 | J45: 0 | K45: 0
A46: Ростовская область | B46: 1335251 | C46: 1600 | D46: 28413 | E46: 198250 | F46: 172834 | G46: 284008 | H46: 168439 | I46: 181246 | J46: 280335 | K46: 20126
A47: г. Севастополь | B47: 0 | C47: 0 | D47: 0 | E47: 0 | F47: 0 | G47: 0 | H47: 0 | I47: 0 | J47: 0 | K47: 0
A48: Северо-Кавказский федеральный округ | B48: =SUM(B49:B55) -> 3776183 | C48: =SUM(C49:C55) -> 42171 | D48: 144075 | E48: 489665 | F48: 483843 | G48: 599437 | H48: 602171 | I48: 471765 | J48: 840247 | K48: 102809
A49: Республика Дагестан | B49: 1720395 | C49: 26828 | D49: 97520 | E49: 300228 | F49: 281045 | G49: 368876 | H49: 210543 | I49: 208439 | J49: 205832 | K49: 21084
A50: Республика Ингушетия | B50: 234425 | C50: 1776 | D50: 3135 | E50: 5369 | F50: 7427 | G50: 14506 | H50: 24346 | I50: 38370 | J50: 88531 | K50: 50965
A51: Кабардино-Балкарская Республика | B51: 372013 | C51: 912 | D51: 10975 | E51: 52022 | F51: 37832 | G51: 54713 | H51: 94601 | I51: 56620 | J51: 64338 | K51: 0
A52: Карачаево-Черкесская Республика | B52: 270187 | C52: 373 | D52: 8020 | E52: 33769 | F52: 43217 | G52: 54770 | H52: 59040 | I52: 24160 | J52: 46838 | K52: 0
A53: Республика Северная Осетия-Алания | B53: 248908 | C53: 5144 | D53: 8520 | E53: 45386 | F53: 33767 | G53: 18275 | H53: 37060 | I53: 33084 | J53: 67672 | K53: 0
A54: Чеченская Республика | B54: 930255 | C54: 7138 | D54: 15905 | E54: 52891 | F54: 80555 | G54: 88297 | H54: 176581 | I54: 111092 | J54: 367036 | K54: 30760
A55: Ставропольский край | B55: 0 | C55: 0 | D55: 0 | E55: 0 | F55: 0 | G55: 0 | H55: 0 | I55: 0 | J55: 0 | K55: 0
A56: Приволжский федеральный округ | B56: =SUM(B57:B70) -> 5382920 | C56: =SUM(C57:C70) -> 256429 | D56: 938966 | E56: 1372551 | F56: 610333 | G56: 712358 | H56: 376588 | I56: 474347 | J56: 500125 | K56: 141223
A57: Республика Башкортостан | B57: 1494588 | C57: 25946 | D57: 230054 | E57: 392431 | F57: 149473 | G57: 156923 | H57: 104098 | I57: 191430 | J57: 211221 | K57: 33012
A58: Республика Марий Эл | B58: 185355 | C58: 1626 | D58: 8209 | E58: 76889 | F58: 47543 | G58: 45357 | H58: 5731 | I58: 0 | J58: 0 | K58: 0
A59: Республика Мордовия | B59: 264887 | C59: 22374 | D59: 68504 | E59: 68071 | F59: 22696 | G59: 42679 | H59: 22781 | I59: 17782 | J59: 0 | K59: 0
A60: Республика Татарстан | B60: 921183 | C60: 96517 | D60: 267943 | E60: 200297 | F60: 70453 | G60: 117017 | H60: 25157 | I60: 49518 | J60: 49034 | K60: 45247
A61: Удмуртская Республика | B61: 0 | C61: 0 | D61: 0 | E61: 0 | F61: 0 | G61: 0 | H61: 0 | I61: 0 | J61: 0 | K61: 0
A62: Чувашская Республика | B62: 0 | C62: 0 | D62: 0 | E62: 0 | F62: 0 | G62: 0 | H62: 0 | I62: 0 | J62: 0 | K62: 0
A63: Пермский край | B63: 0 | C63: 0 | D63: 0 | E63: 0 | F63: 0 | G63: 0 | H63: 0 | I63: 0 | J63: 0 | K63: 0
A64: Кировская область | B64: 168420 | C64: 26865 | D64: 49375 | E64: 47525 | F64: 16161 | G64: 22302 | H64: 6192 | I64: 0 | J64: 0 | K64: 0
A65: Нижегородская область | B65: 0 | C65: 0 | D65: 0 | E65: 0 | F65: 0 | G65: 0 | H65: 0 | I65: 0 | J65: 0 | K65: 0
A66: Оренбургская область | B66: 646986 | C66: 52810 | D66: 108583 | E66: 102371 | F66: 41556 | G66: 71965 | H66: 68277 | I66: 99413 | J66: 102011 | K66: 0
A67: Пензенская область | B67: 385511 | C67: 20961 | D67: 61817 | E67: 111480 | F67: 45395 | G67: 64981 | H67: 17500 | I67: 17823 | J67: 15855 | K67: 29699
A68: Самарская область | B68: 632811 | C68: 4969 | D68: 68532 | E68: 149247 | F68: 73390 | G68: 82813 | H68: 85576 | I68: 66511 | J68: 68508 | K68: 33265
A69: Саратовская область | B69: 468735 | C69: 4034 | D69: 60306 | E69: 148550 | F69: 88729 | G69: 65329 | H69: 24087 | I69: 24204 | J69: 53496 | K69: 0
A70: Ульяновская область | B70: 214444 | C70: 327 | D70: 15643 | E70: 75690 | F70: 54937 | G70: 42992 | H70: 17189 | I70: 7666 | J70: 0 | K70: 0
A71: Уральский федеральный округ | B71: =B72+B73+B75+B76+B77+B78 -> 1240426 | C71: =C72+C73+C75+C76+C77+C78 -> 35565 | D71: 126662 | E71: 268443 | F71: 161134 | G71: 158748 | H71: 141496 | I71: 140432 | J71: 187823 | K71: 20123
A72: Курганская область | B72: 32959 | C72: 7721 | D72: 8779 | E72: 10505 | F72: 2454 | G72: 3500 | H72: 0 | I72: 0 | J72: 0 | K72: 0
A73: Свердловская область | B73: 52559 | C73: 227 | D73: 776 | E73: 5979 | F73: 4845 | G73: 18793 | H73: 6411 | I73: 15528 | J73: 0 | K73: 0
A74: Тюменская область включая автономные округа | B74: =B75+B76+B77 -> 602438 | C74: =C75+C76+C77 -> 20138 | D74: 86602 | E74: 124093 | F74: 52912 | G74: 44238 | H74: 83878 | I74: 83488 | J74: 86966 | K74: 20123
A75: Ханты-Мансийский автономный округ - Югра | B75: 129905 | C75: 302 | D75: 7309 | E75: 43725 | F75: 19244 | G75: 7217 | H75: 16397 | I75: 7995 | J75: 27716 | K75: 0
A76: Ямало-Ненецкий автономный округ | B76: 0 | C76: 0 | D76: 0 | E76: 0 | F76: 0 | G76: 0 | H76: 0 | I76: 0 | J76: 0 | K76: 0
A77: Тюменская область без автономных округов | B77: 472533 | C77: 19836 | D77: 79293 | E77: 80368 | F77: 33668 | G77: 37021 | H77: 67481 | I77: 75493 | J77: 59250 | K77: 20123
A78: Челябинская область | B78: 552470 | C78: 7479 | D78: 30505 | E78: 127866 | F78: 100923 | G78: 92217 | H78: 51207 | I78: 41416 | J78: 100857 | K78: 0
A79: Сибирский федеральный округ | B79: =SUM(B80:B89) -> 3608327 | C79: =SUM(C80:C89) -> 212140 | D79: 632393 | E79: 956118 | F79: 344705 | G79: 500483 | H79: 320868 | I79: 311758 | J79: 305613 | K79: 24249
A80: Республика Алтай | B80: 145812 | C80: 4828 | D80: 25549 | E80: 36026 | F80: 8739 | G80: 19091 | H80: 23979 | I80: 8541 | J80: 19059 | K80: 0
A81: Республика Тыва | B81: 150104 | C81: 5746 | D81: 34249 | E81: 52934 | F81: 0 | G81: 51007 | H81: 6168 | I81: 0 | J81: 0 | K81: 0
A82: Республика Хакасия | B82: 165035 | C82: 3318 | D82: 14939 | E82: 48713 | F82: 18773 | G82: 23156 | H82: 11993 | I82: 18816 | J82: 25327 | K82: 0
A83: Алтайский край | B83: 796425 | C83: 57196 | D83: 179318 | E83: 176726 | F83: 46395 | G83: 133206 | H83: 50425 | I83: 100149 | J83: 53010 | K83: 0
A84: Красноярский край | B84: 539630 | C84: 49247 | D84: 86487 | E84: 131196 | F84: 84221 | G84: 77392 | H84: 50928 | I84: 48812 | J84: 11347 | K84: 0
A85: Иркутская область | B85: 495957 | C85: 25369 | D85: 76998 | E85: 159005 | F85: 46024 | G85: 42425 | H85: 38387 | I85: 16446 | J85: 67054 | K85: 24249
A86: Кемеровская область | B86: 4421 | C86: 0 | D86: 2207 | E86: 0 | F86: 2214 | G86: 0 | H86: 0 | I86: 0 | J86: 0 | K86: 0
A87: Новосибирская область | B87: 562163 | C87: 38896 | D87: 108853 | E87: 140755 | F87: 39934 | G87: 57498 | H87: 50753 | I87: 48883 | J87: 76591 | K87: 0
A88: Омская область | B88: 480339 | C88: 21644 | D88: 86100 | E88: 163837 | F88: 63903 | G88: 77167 | H88: 28383 | I88: 27470 | J88: 11835 | K88: 0
A89: Томская область | B89: 268441 | C89: 5896 | D89: 17693 | E89: 46926 | F89: 34502 | G89: 19541 | H89: 59852 | I89: 42641 | J89: 41390 | K89: 0
A90: Дальневосточный федеральный округ | B90: =SUM(B91:B101) -> 1530197 | C90: =SUM(C91:C101) -> 148174 | D90: 310572 | E90: 296707 | F90: 124602 | G90: 200217 | H90: 162122 | I90: 134345 | J90: 108680 | K90: 44778
A91: Республика Бурятия | B91: 395288 | C91: 20395 | D91: 72516 | E91: 74823 | F91: 29694 | G91: 35963 | H91: 60138 | I91: 26155 | J91: 54351 | K91: 21253
A92: Республика Саха (Якутия) | B92: 307047 | C92: 48547 | D92: 90763 | E92: 60911 | F92: 23924 | G92: 9632 | H92: 20118 | I92: 32660 | J92: 20492 | K92: 0
A93: Забайкальский край | B93: 260982 | C93: 35020 | D93: 64874 | E93: 61930 | F93: 23753 | G93: 31293 | H93: 31856 | I93: 0 | J93: 12256 | K93: 0
A94: Камчатский край | B94: 59977 | C94: 5891 | D94: 6478 | E94: 12779 | F94: 4679 | G94: 22223 | H94: 0 | I94: 7927 | J94: 0 | K94: 0
A95: Приморский край | B95: 171412 | C95: 1644 | D95: 7528 | E95: 18799 | F95: 16678 | G95: 34935 | H95: 16053 | I95: 41659 | J95: 10591 | K95: 23525
A96: Хабаровский край | B96: 206742 | C96: 19695 | D96: 36512 | E96: 44615 | F96: 13135 | G96: 49369 | H96: 15523 | I96: 16903 | J96: 10990 | K96: 0
A97: Амурская область | B97: 81527 | C97: 13653 | D97: 25169 | E97: 10792 | F97: 7495 | G97: 8812 | H97: 6565 | I97: 9041 | J97: 0 | K97: 0
A98: Магаданская область | B98: 0 | C98: 0 | D98: 0 | E98: 0 | F98: 0 | G98: 0 | H98: 0 | I98: 0 | J98: 0 | K98: 0
A99: Сахалинская область | B99: 0 | C99: 0 | D99: 0 | E99: 0 | F99: 0 | G99: 0 | H99: 0 | I99: 0 | J99: 0 | K99: 0
A100: Еврейская автономная область | B100: 37052 | C100: 0 | D100: 2798 | E100: 9151 | F100: 5244 | G100: 7990 | H100: 11869 | I100: 0 | J100: 0 | K100: 0
A101: Чукотский автономный округ | B101: 10170 | C101: 3329 | D101: 3934 | E101: 2907 | F101: 0 | G101: 0 | H101: 0 | I101: 0 | J101: 0 | K101: 0

Sheet Таб_17
A1: Содержание
A2: 17. Группировка числа городов по численности населения, проживающего в них, на 1 января 2023 года
B4: Число городов - всего | C4: в том числе с числом жителей, человек
A5: Группировка числа городов по численности населения, проживающего в них | C5: до 3000 | D5: 3000 - 4999 | E5: 5000 - 9999 | F5: 10000 - 19999 | G5: 20000 - 49999 | H5: 50000 - 99999 | I5: 100000 - 249999 | J5: 250000 - 499999 | K5: 500000 - 999999 | L5: 1000000 и более
A6: Российская Федерация 1) | B6: 1117 | C6: 16 | D6: 35 | E6: 159 | F6: 248 | G6: 341 | H6: 148 | I6: 92 | J6: 42 | K6: 20 | L6: 16
A7: Центральный федеральный округ | B7: 304 | C7: 4 | D7: 12 | E7: 49 | F7: 78 | G7: 84 | H7: 33 | I7: 23 | J7: 16 | K7: 3 | L7: 2
A8: Белгородская область | B8: 11 | C8: 0 | D8: 0 | E8: 3 | F8: 1 | G8: 4 | H8: 1 | I8: 1 | J8: 1 | K8: 0 | L8: 0
A9: Брянская область | B9: 16 | C9: 0 | D9: 0 | E9: 3 | F9: 8 | G9: 3 | H9: 1 | I9: 0 | J9: 1 | K9: 0 | L9: 0
A10: Владимирская область | B10: 23 | C10: 0 | D10: 0 | E10: 3 | F10: 12 | G10: 3 | H10: 2 | I10: 2 | J10: 1 | K10: 0 | L10: 0
A11: Воронежская область | B11: 15 | C11: 0 | D11: 0 | E11: 2 | F11: 3 | G11: 6 | H11: 3 | I11: 0 | J11: 0 | K11: 0 | L11: 1
A12: Ивановская область | B12: 17 | C12: 1 | D12: 0 | E12: 6 | F12: 2 | G12: 5 | H12: 2 | I12: 0 | J12: 1 | K12: 0 | L12: 0
A13: Калужская область | B13: 22 | C13: 0 | D13: 3 | E13: 4 | F13: 9 | G13: 4 | H13: 0 | I13: 1 | J13: 1 | K13: 0 | L13: 0
A14: Костромская область | B14: 12 | C14: 1 | D14: 1 | E14: 3 | F14: 4 | G14: 2 | H14: 0 | I14: 0 | J14: 1 | K14: 0 | L14: 0
A15: Курская область | B15: 10 | C15: 0 | D15: 1 | E15: 2 | F15: 4 | G15: 1 | H15: 1 | I15: 0 | J15: 1 | K15: 0 | L15: 0
A16: Липецкая область | B16: 8 | C16: 0 | D16: 0 | E16: 1 | F16: 4 | G16: 1 | H16: 1 | I16: 0 | J16: 1 | K16: 0 | L16: 0
A17: Московская область | B17: 74 | C17: 0 | D17: 1 | E17: 0 | F17: 12 | G17: 24 | H17: 16 | I17: 17 | J17: 3 | K17: 1 | L17: 0
A18: Орловская область | B18: 7 | C18: 1 | D18: 1 | E18: 2 | F18: 0 | G18: 2 | H18: 0 | I18: 0 | J18: 1 | K18: 0 | L18: 0
A19: Рязанская область | B19: 12 | C19: 0 | D19: 1 | E19: 2 | F19: 3 | G19: 5 | H19: 0 | I19: 0 | J19: 0 | K19: 1 | L19: 0
A20: Смоленская область | B20: 15 | C20: 0 | D20: 1 | E20: 7 | F20: 0 | G20: 5 | H20: 1 | I20: 0 | J20: 1 | K20: 0 | L20: 0
A21: Тамбовская область | B21: 8 | C21: 0 | D21: 0 | E21: 0 | F21: 2 | G21: 4 | H21: 1 | I21: 0 | J21: 1 | K21: 0 | L21: 0
A22: Тверская область | B22: 23 | C22: 0 | D22: 2 | E22: 6 | F22: 7 | G22: 6 | H22: 1 | I22: 0 | J22: 1 | K22: 0 | L22: 0
A23: Тульская область | B23: 19 | C23: 1 | D23: 0 | E23: 3 | F23: 5 | G23: 5 | H23: 3 | I23: 1 | J23: 1 | K23: 0 | L23: 0
A24: Ярославская область | B24: 11 | C24: 0 | D24: 1 | E24: 2 | F24: 2 | G24: 4 | H24: 0 | I24: 1 | J24: 0 | K24: 1 | L24: 0
A25: г.Москва | B25: 1 | C25: 0 | D25: 0 | E25: 0 | F25: 0 | G25: 0 | H25: 0 | I25: 0 | J25: 0 | K25: 0 | L25: 1
A26: Северо-Западный федеральный округ | B26: 148 | C26: 5 | D26: 13 | E26: 38 | F26: 30 | G26: 38 | H26: 12 | I26: 6 | J26: 5 | K26: 0 | L26: 1
A27: Республика Карелия | B27: 13 | C27: 0 | D27: 0 | E27: 7 | F27: 2 | G27: 3 | H27: 0 | I27: 1 | J27: 0 | K27: 0 | L27: 0
A28: Республика Коми | B28: 10 | C28: 0 | D28: 0 | E28: 2 | F28: 2 | G28: 3 | H28: 2 | I28: 1 | J28: 0 | K28: 0 | L28: 0
A29: Архангельская область, включая Ненецкий автономный округ | B29: 14 | C29: 2 | D29: 1 | E29: 1 | F29: 2 | G29: 5 | H29: 1 | I29: 1 | J29: 1 | K29: 0 | L29: 0
A30: Ненецкий автономный округ | B30: 1 | C30: 0 | D30: 0 | E30: 0 | F30: 0 | G30: 1 | H30: 0 | I30: 0 | J30: 0 | K30: 0 | L30: 0
A31: Архангельская область, без Ненецкого автономного округа | B31: 13 | C31: 2 | D31: 1 | E31: 1 | F31: 2 | G31: 4 | H31: 1 | I31: 1 | J31: 1 | K31: 0 | L31: 0
A32: Вологодская область | B32: 15 | C32: 0 | D32: 1 | E32: 7 | F32: 3 | G32: 2 | H32: 0 | I32: 0 | J32: 2 | K32: 0 | L32: 0
A33: Калининградская область | B33: 22 | C33: 1 | D33: 6 | E33: 4 | F33: 4 | G33: 6 | H33: 0 | I33: 0 | J33: 1 | K33: 0 | L33: 0
A34: Ленинградская область | B34: 33 | C34: 1 | D34: 1 | E34: 4 | F34: 8 | G34: 10 | H34: 8 | I34: 1 | J34: 0 | K34: 0 | L34: 0
A35: Мурманская область | B35: 16 | C35: 1 | D35: 0 | E35: 3 | F35: 5 | G35: 6 | H35: 0 | I35: 0 | J35: 1 | K35: 0 | L35: 0
A36: Новгородская область | B36: 10 | C36: 0 | D36: 1 | E36: 3 | F36: 3 | G36: 2 | H36: 0 | I36: 1 | J36: 0 | K36: 0 | L36: 0
A37: Псковская область | B37: 14 | C37: 0 | D37: 3 | E37: 7 | F37: 1 | G37: 1 | H37: 1 | I37: 1 | J37: 0 | K37: 0 | L37: 0
A38: г.Санкт-Петербург | B38: 1 | C38: 0 | D38: 0 | E38: 0 | F38: 0 | G38: 0 | H38: 0 | I38: 0 | J38: 0 | K38: 0 | L38: 1
A39: Южный федеральный округ 1) | B39: 96 | C39: 0 | D39: 0 | E39: 4 | F39: 21 | G39: 32 | H39: 18 | I39: 12 | J39: 5 | K39: 1 | L39: 3
A40: Республика Адыгея | B40: 2 | C40: 0 | D40: 0 | E40: 0 | F40: 1 | G40: 0 | H40: 0 | I40: 1 | J40: 0 | K40: 0 | L40: 0
A41: Республика Калмыкия | B41: 3 | C41: 0 | D41: 0 | E41: 1 | F41: 1 | G41: 0 | H41: 0 | I41: 1 | J41: 0 | K41: 0 | L41: 0
A42: Республика Крым | B42: 16 | C42: 0 | D42: 0 | E42: 2 | F42: 3 | G42: 6 | H42: 2 | I42: 2 | J42: 1 | K42: 0 | L42: 0
A43: Краснодарский край | B43: 26 | C43: 0 | D43: 0 | E43: 0 | F43: 0 | G43: 11 | H43: 11 | I43: 1 | J43: 2 | K43: 0 | L43: 1
A44: Астраханская область | B44: 6 | C44: 0 | D44: 0 | E44: 0 | F44: 3 | G44: 2 | H44: 0 | I44: 0 | J44: 1 | K44: 0 | L44: 0
A45: Волгоградская область | B45: 19 | C45: 0 | D45: 0 | E45: 1 | F45: 9 | G45: 5 | H45: 1 | I45: 1 | J45: 1 | K45: 0 | L45: 1
A46: Ростовская область | B46: 23 | C46: 0 | D46: 0 | E46: 0 | F46: 4 | G46: 8 | H46: 4 | I46: 6 | J46: 0 | K46: 0 | L46: 1
A47: г. Севастополь 1) | B47: 1 | C47: 0 | D47: 0 | E47: 0 | F47: 0 | G47: 0 | H47: 0 | I47: 0 | J47: 0 | K47: 1 | L47: 0
A48: Северо-Кавказский федеральный округ | B48: 58 | C48: 0 | D48: 0 | E48: 2 | F48: 4 | G48: 26 | H48: 11 | I48: 11 | J48: 2 | K48: 2 | L48: 0
A49: Республика Дагестан | B49: 10 | C49: 0 | D49: 0 | E49: 0 | F49: 1 | G49: 2 | H49: 3 | I49: 3 | J49: 0 | K49: 1 | L49: 0
A50: Республика Ингушетия | B50: 5 | C50: 0 | D50: 0 | E50: 0 | F50: 1 | G50: 2 | H50: 1 | I50: 1 | J50: 0 | K50: 0 | L50: 0
A51: Кабардино-Балкарская Республика | B51: 8 | C51: 0 | D51: 0 | E51: 0 | F51: 1 | G51: 5 | H51: 1 | I51: 1 | J51: 0 | K51: 0 | L51: 0
A52: Карачаево-Черкесская Республика | B52: 4 | C52: 0 | D52: 0 | E52: 1 | F52: 0 | G52: 2 | H52: 0 | I52: 1 | J52: 0 | K52: 0 | L52: 0
A53: Республика Северная Осетия-Алания | B53: 6 | C53: 0 | D53: 0 | E53: 1 | F53: 1 | G53: 3 | H53: 0 | I53: 0 | J53: 1 | K53: 0 | L53: 0
A54: Чеченская Республика | B54: 6 | C54: 0 | D54: 0 | E54: 0 | F54: 0 | G54: 2 | H54: 3 | I54: 0 | J54: 1 | K54: 0 | L54: 0
A55: Ставропольский край | B55: 19 | C55: 0 | D55: 0 | E55: 0 | F55: 0 | G55: 10 | H55: 3 | I55: 5 | J55: 0 | K55: 1 | L55: 0
A56: Приволжский федеральный округ | B56: 200 | C56: 2 | D56: 3 | E56: 32 | F56: 45 | G56: 54 | H56: 33 | I56: 14 | J56: 6 | K56: 6 | L56: 5
A57: Республика Башкортостан | B57: 21 | C57: 0 | D57: 0 | E57: 0 | F57: 3 | G57: 6 | H57: 7 | I57: 3 | J57: 1 | K57: 0 | L57: 1
A58: Республика Марий Эл | B58: 4 | C58: 0 | D58: 0 | E58: 0 | F58: 2 | G58: 0 | H58: 1 | I58: 0 | J58: 1 | K58: 0 | L58: 0
A59: Республика Мордовия | B59: 7 | C59: 0 | D59: 0 | E59: 4 | F59: 1 | G59: 1 | H59: 0 | I59: 0 | J59: 1 | K59: 0 | L59: 0
A60: Республика Татарстан | B60: 24 | C60: 0 | D60: 1 | E60: 2 | F60: 6 | G60: 6 | H60: 5 | I60: 2 | J60: 0 | K60: 1 | L60: 1
A61: Удмуртская Республика | B61: 6 | C61: 0 | D61: 0 | E61: 1 | F61: 0 | G61: 1 | H61: 3 | I61: 0 | J61: 0 | K61: 1 | L61: 0
A62: Чувашская Республика | B62: 9 | C62: 0 | D62: 0 | E62: 3 | F62: 1 | G62: 3 | H62: 0 | I62: 1 | J62: 1 | K62: 0 | L62: 0
A63: Пермский край | B63: 25 | C63: 1 | D63: 1 | E63: 3 | F63: 7 | G63: 7 | H63: 4 | I63: 1 | J63: 0 | K63: 0 | L63: 1
A64: Кировская область | B64: 18 | C64: 0 | D64: 0 | E64: 10 | F64: 4 | G64: 2 | H64: 1 | I64: 0 | J64: 1 | K64: 0 | L64: 0
A65: Нижегородская область | B65: 28 | C65: 1 | D65: 0 | E65: 4 | F65: 8 | G65: 8 | H65: 4 | I65: 2 | J65: 0 | K65: 0 | L65: 1
A66: Оренбургская область | B66: 12 | C66: 0 | D66: 0 | E66: 0 | F66: 2 | G66: 6 | H66: 2 | I66: 1 | J66: 0 | K66: 1 | L66: 0
A67: Пензенская область | B67: 11 | C67: 0 | D67: 0 | E67: 4 | F67: 1 | G67: 3 | H67: 2 | I67: 0 | J67: 1 | K67: 0 | L67: 0
A68: Самарская область | B68: 11 | C68: 0 | D68: 0 | E68: 0 | F68: 1 | G68: 5 | H68: 2 | I68: 1 | J68: 0 | K68: 1 | L68: 1
A69: Саратовская область | B69: 18 | C69: 0 | D69: 1 | E69: 0 | F69: 6 | G69: 6 | H69: 2 | I69: 2 | J69: 0 | K69: 1 | L69: 0
A70: Ульяновская область | B70: 6 | C70: 0 | D70: 0 | E70: 1 | F70: 3 | G70: 0 | H70: 0 | I70: 1 | J70: 0 | K70: 1 | L70: 0
A71: Уральский федеральный округ | B71: 115 | C71: 0 | D71: 0 | E71: 11 | F71: 24 | G71: 46 | H71: 17 | I71: 9 | J71: 5 | K71: 1 | L71: 2
A72: Курганская область | B72: 9 | C72: 0 | D72: 0 | E72: 3 | F72: 4 | G72: 0 | H72: 1 | I72: 0 | J72: 1 | K72: 0 | L72: 0
A73: Свердловская область | B73: 47 | C73: 0 | D73: 0 | E73: 6 | F73: 9 | G73: 20 | H73: 8 | I73: 2 | J73: 1 | K73: 0 | L73: 1
A74: Тюменская область включая автономные округа | B74: 29 | C74: 0 | D74: 0 | E74: 0 | F74: 2 | G74: 15 | H74: 5 | I74: 4 | J74: 2 | K74: 1 | L74: 0
A75: Ханты-Мансийский автономный округ - Югра | B75: 16 | C75: 0 | D75: 0 | E75: 0 | F75: 1 | G75: 8 | H75: 3 | I75: 2 | J75: 2 | K75: 0 | L75: 0
A76: Ямало-Ненецкий автономный округ | B76: 8 | C76: 0 | D76: 0 | E76: 0 | F76: 1 | G76: 5 | H76: 0 | I76: 2 | J76: 0 | K76: 0 | L76: 0
A77: Тюменская область без автономных округов | B77: 5 | C77: 0 | D77: 0 | E77: 0 | F77: 0 | G77: 2 | H77: 2 | I77: 0 | J77: 0 | K77: 1 | L77: 0
A78: Челябинская область | B78: 30 | C78: 0 | D78: 0 | E78: 2 | F78: 9 | G78: 11 | H78: 3 | I78: 3 | J78: 1 | K78: 0 | L78: 1
A79: Сибирский федеральный округ | B79: 114 | C79: 2 | D79: 2 | E79: 10 | F79: 23 | G79: 40 | H79: 19 | I79: 10 | J79: 0 | K79: 5 | L79: 3
A80: Республика Алтай | B80: 1 | C80: 0 | D80: 0 | E80: 0 | F80: 0 | G80: 0 | H80: 1 | I80: 0 | J80: 0 | K80: 0 | L80: 0
A81: Республика Тыва | B81: 5 | C81: 0 | D81: 1 | E81: 1 | F81: 2 | G81: 0 | H81: 0 | I81: 1 | J81: 0 | K81: 0 | L81: 0
A82: Республика Хакасия | B82: 5 | C82: 0 | D82: 0 | E82: 1 | F82: 1 | G82: 1 | H82: 1 | I82: 1 | J82: 0 | K82: 0 | L82: 0
A83: Алтайский край | B83: 12 | C83: 0 | D83: 0 | E83: 2 | F83: 2 | G83: 4 | H83: 1 | I83: 2 | J83: 0 | K83: 1 | L83: 0
A84: Красноярский край | B84: 23 | C84: 1 | D84: 1 | E84: 0 | F84: 9 | G84: 4 | H84: 6 | I84: 1 | J84: 0 | K84: 0 | L84: 1
A85: Иркутская область | B85: 22 | C85: 0 | D85: 0 | E85: 3 | F85: 4 | G85: 9 | H85: 3 | I85: 2 | J85: 0 | K85: 1 | L85: 0
A86: Кемеровская область | B86: 20 | C86: 0 | D86: 0 | E86: 1 | F86: 0 | G86: 10 | H86: 6 | I86: 1 | J86: 0 | K86: 2 | L86: 0
A87: Новосибирская область | B87: 14 | C87: 0 | D87: 0 | E87: 1 | F87: 4 | G87: 6 | H87: 1 | I87: 1 | J87: 0 | K87: 0 | L87: 1
A88: Омская область | B88: 6 | C88: 0 | D88: 0 | E88: 1 | F88: 1 | G88: 3 | H88: 0 | I88: 0 | J88: 0 | K88: 0 | L88: 1
A89: Томская область | B89: 6 | C89: 1 | D89: 0 | E89: 0 | F89: 0 | G89: 3 | H89: 0 | I89: 1 | J89: 0 | K89: 1 | L89: 0
A90: Дальневосточный федеральный округ | B90: 82 | C90: 3 | D90: 5 | E90: 13 | F90: 23 | G90: 21 | H90: 5 | I90: 7 | J90: 3 | K90: 2 | L90: 0
A91: Республика Бурятия | B91: 6 | C91: 0 | D91: 1 | E91: 0 | F91: 2 | G91: 2 | H91: 0 | I91: 0 | J91: 1 | K91: 0 | L91: 0
A92: Республика Саха (Якутия) | B92: 13 | C92: 1 | D92: 1 | E92: 2 | F92: 4 | G92: 3 | H92: 1 | I92: 0 | J92: 1 | K92: 0 | L92: 0
A93: Забайкальский край | B93: 10 | C93: 0 | D93: 0 | E93: 2 | F93: 5 | G93: 1 | H93: 1 | I93: 0 | J93: 1 | K93: 0 | L93: 0
A94: Камчатский край | B94: 3 | C94: 0 | D94: 0 | E94: 0 | F94: 0 | G94: 2 | H94: 0 | I94: 1 | J94: 0 | K94: 0 | L94: 0
A95: Приморский край | B95: 12 | C95: 0 | D95: 0 | E95: 0 | F95: 1 | G95: 7 | H95: 0 | I95: 3 | J95: 0 | K95: 1 | L95: 0
A96: Хабаровский край | B96: 7 | C96: 0 | D96: 0 | E96: 0 | F96: 3 | G96: 2 | H96: 0 | I96: 1 | J96: 0 | K96: 1 | L96: 0
A97: Амурская область | B97: 10 | C97: 0 | D97: 0 | E97: 3 | F97: 3 | G97: 2 | H97: 1 | I97: 1 | J97: 0 | K97: 0 | L97: 0
A98: Магаданская область | B98: 2 | C98: 0 | D98: 1 | E98: 0 | F98: 0 | G98: 0 | H98: 1 | I98: 0 | J98: 0 | K98: 0 | L98: 0
A99: Сахалинская область | B99: 14 | C99: 2 | D99: 1 | E99: 4 | F99: 4 | G99: 2 | H99: 0 | I99: 1 | J99: 0 | K99: 0 | L99: 0
A100: Еврейская автономная область | B100: 2 | C100: 0 | D100: 0 | E100: 1 | F100: 0 | G100: 0 | H100: 1 | I100: 0 | J100: 0 | K100: 0 | L100: 0
A101: Чукотский автономный округ | B101: 3 | C101: 0 | D101: 1 | E101: 1 | F101: 1 | G101: 0 | H101: 0 | I101: 0 | J101: 0 | K101: 0 | L101: 0
A103: 1) Не включая 2 города в границах г. Севастополя: н.п. Балаклава (38186 человек) и г. Инкерман (13779 человек)

Sheet Таб_18
A1: Содержание
A2: 18. Группировка численности населения, проживающего в городах, на 1 января 2023 года
B4: Численность населения, проживающего в городах - всего | C4: в том числе с числом жителей, человек
A5: Группировка численности населения, проживающего в городах | C5: до 3000 | D5: 3000 - 4999 | E5: 5000 - 9999 | F5: 10000 - 19999 | G5: 20000 - 49999 | H5: 50000 - 99999 | I5: 100000 - 249999 | J5: 250000 - 499999 | K5: 500000 - 999999 | L5: 1000000 и более
A6: Российская Федерация 1), 2) | B6: 102428092 | C6: 30587 | D6: 142778 | E6: 1223539 | F6: 3660762 | G6: 10728663 | H6: 10220378 | I6: 14021884 | J6: 14860698 | K6: 12176123 | L6: 35581066
A7: Центральный федеральный округ 1) | B7: 31082822 | C7: 8013 | D7: 51228 | E7: 345910 | F7: 1143385 | G7: 2621938 | H7: 2317771 | I7: 3290137 | J7: 5527390 | K7: 1620878 | L7: 14156172
A8: Белгородская область | B8: 804077 | C8: 0 | D8: 0 | E8: 18412 | F8: 18213 | G8: 130824 | H8: 84357 | I8: 218340 | J8: 333931 | K8: 0 | L8: 0
A9: Брянская область | B9: 661869 | C9: 0 | D9: 0 | E9: 18590 | F9: 118497 | G9: 86838 | H9: 62275 | I9: 0 | J9: 375669 | K9: 0 | L9: 0
A10: Владимирская область | B10: 977622 | C10: 0 | D10: 0 | E10: 22182 | F10: 166132 | G10: 100207 | H10: 106008 | I10: 236322 | J10: 346771 | K10: 0 | L10: 0
A11: Воронежская область | B11: 1443077 | C11: 0 | D11: 0 | E11: 15578 | F11: 47673 | G11: 155986 | H11: 171845 | I11: 0 | J11: 0 | K11: 0 | L11: 1051995
A12: Ивановская область | B12: 707659 | C12: 1847 | D12: 0 | E12: 44319 | F12: 26804 | G12: 144269 | H12: 129733 | I12: 0 | J12: 360687 | K12: 0 | L12: 0
A13: Калужская область | B13: 760632 | C13: 0 | D13: 12565 | E13: 29736 | F13: 120151 | G13: 134642 | H13: 0 | I13: 129584 | J13: 333954 | K13: 0 | L13: 0
A14: Костромская область | B14: 390249 | C14: 2324 | D14: 4147 | E14: 18551 | F14: 58842 | G14: 40420 | H14: 0 | I14: 0 | J14: 265965 | K14: 0 | L14: 0
A15: Курская область | B15: 644693 | C15: 0 | D15: 4619 | E15: 11216 | F15: 58445 | G15: 39504 | H15: 96206 | I15: 0 | J15: 434703 | K15: 0 | L15: 0
A16: Липецкая область | B16: 709363 | C16: 0 | D16: 0 | E16: 9647 | F16: 68571 | G16: 43799 | H16: 96918 | I16: 0 | J16: 490428 | K16: 0 | L16: 0
A17: Московская область | B17: 5907782 | C17: 0 | D17: 4937 | E17: 0 | F17: 187470 | G17: 739159 | H17: 1199608 | I17: 2413915 | J17: 835842 | K17: 526851 | L17: 0
A18: Орловская область | B18: 396617 | C18: 2938 | D18: 3512 | E18: 14536 | F18: 0 | G18: 78998 | H18: 0 | I18: 0 | J18: 296633 | K18: 0 | L18: 0
